Workbook

Sheet Important Info
B2: INSTRUCTIONS FOR PERSONNEL ACTIVITY REPORT
B4: This form should be completed by any staff member who is providing services to both regular education and special education students. KSDE reimbursement will be based on pro-rated FTE for these staff members.
B6: Exception - Early childhood special education classrooms with peer models. FTE for these staff members should be calculated using the Early Childhood FTE calculator available on the KSDE Fiscal Auditing website.
B8: 1 | C8: Begin by selecting the appropriate school year on the Summary worksheet. This will change the dates on the rest of the worksheets to the appropriate time period.
B9: 2 | C9: Complete employee information on Summary worksheet. This information will autofill to the rest of the worksheets.
B10: 3 | C10: Choose the tab for the time period you are documenting.
B11: 5 | C11: Enter ALL time worked (special ed time, regular ed time, and any other time) in minutes for each month worked.
B12: 7 | C12: After all time is entered, the Summary worksheet will automatically calculate the staff member's sped time/FTE percentage.
B14: IMPORTANT INFORMATION
B16: • | C16: Orange highlighted cells indicate an area where the user should input data.
B17: • | C17: Blue highlighted cells indicate an area where the spreadsheet contains formulas and access is restricted.
B18: • | C18: Enter ALL time worked (special ed time, regular ed time, and any other time). Worksheet must reflect all time worked because FTE reimbursed is pro-rated based on the percentage of special ed time to total time.
B19: • | C19: Enter all time in minutes only. Don't enter time in hour increments. Worksheets won't calculate correctly if hour increments are entered. For example, 45 minutes should be entered as "45" and not as ".75".
B20: • | C20: Cutting data will cause formula errors in protected cells so we have disabled the cut function in the worksheet. Instead, copy and paste, then go back to original cell and delete data.
B22: EXAMPLE - PERSONNEL ACTIVITY REPORT
B24: AUGUST WORKSHEET | O24: SUMMARY WORKSHEET
E116: Kansas State Department of Education
E117: Fiscal Auditing
E118: 785-296-4976 | U118: ESL Contact Minutes Calculator
E119: https://www.ksde.org/Agency/Fiscal-and-Administrative-Services/Fiscal-Auditing | U119: Updated 6/18/18

Sheet Summary
B2: Personnel Activity Report
B3: (Time & Effort/PAR)
B5: 3
C8: Employee:
C9: Employee ID #:
C10: Employee Location:
D11: =IF(AND(E8<>"",E9<>""),"","Please complete employee information") -> Please complete employee information
B14: Regular School Year Summary | H14: ESY Summary (Summer)
B15: Month | C15: Sped Hours | D15: Total Hours | H15: Month | I15: Sped Hours | J15: Total Hours
B16: August | C16: =IF(COUNTA(INDIRECT("'"&$B16&"'!$E$10:$H$40"))>0,INDIRECT("'"&$B16&"'!$E$41"),"") -> 0 | D16: =IF(COUNTA(INDIRECT("'"&$B16&"'!$E$10:$H$40"))>0,INDIRECT("'"&$B16&"'!$i$41"),"") -> 0 | H16: May (ESY) | I16: =IF(COUNTA('Extended School Year'!E9:H39)>0,'Extended School Year'!E41,0) -> 0 | J16: =IF(COUNTA('Extended School Year'!F9:I39)>0,'Extended School Year'!I41,0) -> 0
B17: September | C17: 0 | D17: 0 | H17: June (ESY) | I17: =IF(COUNTA('Extended School Year'!E10:H40)>0,'Extended School Year'!E82,0) -> 0 | J17: =IF(COUNTA('Extended School Year'!F10:I40)>0,'Extended School Year'!I82,0) -> 0
B18: October | C18: 0 | D18: 0 | H18: July (ESY) | I18: =IF(COUNTA('Extended School Year'!E11:H41)>0,'Extended School Year'!E123,0) -> 0 | J18: =IF(COUNTA('Extended School Year'!F11:I41)>0,'Extended School Year'!I123,0) -> 0
B19: November | C19: 0 | D19: 0 | H19: August (ESY) | I19: =IF(COUNTA('Extended School Year'!E12:H42)>0,'Extended School Year'!E164,0) -> 0 | J19: =IF(COUNTA('Extended School Year'!F12:I42)>0,'Extended School Year'!I164,0) -> 0
B20: December | C20: 0 | D20: 0
B21: January | C21: 0 | D21: 0 | H21: ESY Total | I21: =SUM(I16:I19) -> 0 | J21: =SUM(J16:J19) -> 0
B22: February | C22: 0 | D22: 0 | H22: # of Months | I22: =COUNTIF(I16:I19,"<>0") -> 0
B23: March | C23: 0 | D23: 0 | H23: Sped/FTE percentage | I23: =IF(I22=0,0,MIN(1,ROUND(I21/J21,5))) -> 0
B24: April | C24: 0 | D24: 0 | H24: Allowable hours | I24: =MIN(335,I21) -> 0
B25: May | C25: 0 | D25: 0
B26: June | C26: 0 | D26: 0
B27: Reg School Yr Total | C27: =SUM(C16:C26) -> 0 | D27: =SUM(D16:D26) -> 0
B28: # of Months | C28: =COUNTIF(C16:C26,"<>0") -> 0
B29: Sped/FTE percentage | C29: =IF(C28=0,0,MIN(1,ROUND(C27/D27,5))) -> 0
B30: Allowable Hours | C30: =MIN(1116,C27) -> 0
B33: Notes
C44: Kansas State Department of Education | K44: Personnel Activity Report
C45: Fiscal Auditing | K45: Updated 9/20/18
C46: 785-296-4976
C47: https://www.ksde.org/Agency/Fiscal-and-Administrative-Services/Fiscal-Auditing
A50: The Kansas State Department of Education does not discriminate on the basis of race, color, national origin, sex, disability, or age in its programs and activities and provides equal access to the Boy Scouts and other designated youth groups. The following person has been designated to handle inquiries regarding the nondiscrimination policies: KSDE General Counsel, Office of General Counsel, KSDE, Landon State Office Building, 900 S.W. Jackson, Suite 102, Topeka, KS 66612, (785) 296-3204.

Sheet Extended School Year
C3: Personnel Activity Report
C4: Extended School Year
C5: May
C6: =IF(Summary!$E$8<>"",Summary!$E$8," ") -> 
C7: =IF(Summary!$E$9<>"",Summary!$E$9," ") -> 
C8: Day | D8: Date | E8: Special Ed | F8: General Ed | G8: Other | H8: Other | I8: Totals | L8: =IF(OR(AND(F8="",COUNTA(F9:F39)>0),AND(G8="",COUNTA(G9:G39)>0),AND(H8="",COUNTA(H9:H39)>0)),"<<< You must identify the cost objective in the column heading.","") -> 
A9: 501 | C9: =IF(ISNA(IF(Summary!$B$5=3,IF(VLOOKUP(A9,Calendar!$A$3:$G$459,7,FALSE)="S", "", VLOOKUP(A9,Calendar!$A$3:$G$459,7,FALSE)),IF(VLOOKUP(A9,Calendar!$A$3:$G$459,4,FALSE)="S", "", VLOOKUP(A9,Calendar!$A$3:$G$459,4,FALSE)))),"",IF(Summary!$B$5=3,IF(VLOOKUP(A9,Calendar!$A$3:$G$459,7,FALSE)="S", "", VLOOKUP(A9,Calendar!$A$3:$G$459,7,FALSE)),IF(VLOOKUP(A9,Calendar!$A$3:$G$459,4,FALSE)="S", "", VLOOKUP(A9,Calendar!$A$3:$G$459,4,FALSE)))) -> W | D9: =IF(Summary!$B$5=3,IF(C9="","",VLOOKUP(A9,Calendar!$A$3:$G$459,5,FALSE)),IF(C9="","",VLOOKUP(A9,Calendar!$A$3:$G$459,2,FALSE))) -> 2019-05-01 | I9: =MIN(1440,SUM(E9:H9)) -> 0 | L9: =IF(I9>390, "<<< Day exceeds 390 minutes. Confirm reported time.","") -> 
A10: 502 | C10: =IF(ISNA(IF(Summary!$B$5=3,IF(VLOOKUP(A10,Calendar!$A$3:$G$459,7,FALSE)="S", "", VLOOKUP(A10,Calendar!$A$3:$G$459,7,FALSE)),IF(VLOOKUP(A10,Calendar!$A$3:$G$459,4,FALSE)="S", "", VLOOKUP(A10,Calendar!$A$3:$G$459,4,FALSE)))),"",IF(Summary!$B$5=3,IF(VLOOKUP(A10,Calendar!$A$3:$G$459,7,FALSE)="S", "", VLOOKUP(A10,Calendar!$A$3:$G$459,7,FALSE)),IF(VLOOKUP(A10,Calendar!$A$3:$G$459,4,FALSE)="S", "", VLOOKUP(A10,Calendar!$A$3:$G$459,4,FALSE)))) -> R | D10: =IF(Summary!$B$5=3,IF(C10="","",VLOOKUP(A10,Calendar!$A$3:$G$459,5,FALSE)),IF(C10="","",VLOOKUP(A10,Calendar!$A$3:$G$459,2,FALSE))) -> 2019-05-02 | I10: =MIN(1440,SUM(E10:H10)) -> 0 | L10: =IF(I10>390, "<<< Day exceeds 390 minutes. Confirm reported time.","") -> 
A11: 503 | C11: =IF(ISNA(IF(Summary!$B$5=3,IF(VLOOKUP(A11,Calendar!$A$3:$G$459,7,FALSE)="S", "", VLOOKUP(A11,Calendar!$A$3:$G$459,7,FALSE)),IF(VLOOKUP(A11,Calendar!$A$3:$G$459,4,FALSE)="S", "", VLOOKUP(A11,Calendar!$A$3:$G$459,4,FALSE)))),"",IF(Summary!$B$5=3,IF(VLOOKUP(A11,Calendar!$A$3:$G$459,7,FALSE)="S", "", VLOOKUP(A11,Calendar!$A$3:$G$459,7,FALSE)),IF(VLOOKUP(A11,Calendar!$A$3:$G$459,4,FALSE)="S", "", VLOOKUP(A11,Calendar!$A$3:$G$459,4,FALSE)))) -> F | D11: =IF(Summary!$B$5=3,IF(C11="","",VLOOKUP(A11,Calendar!$A$3:$G$459,5,FALSE)),IF(C11="","",VLOOKUP(A11,Calendar!$A$3:$G$459,2,FALSE))) -> 2019-05-03 | I11: 0
A12: 504 | C12: =IF(ISNA(IF(Summary!$B$5=3,IF(VLOOKUP(A12,Calendar!$A$3:$G$459,7,FALSE)="S", "", VLOOKUP(A12,Calendar!$A$3:$G$459,7,FALSE)),IF(VLOOKUP(A12,Calendar!$A$3:$G$459,4,FALSE)="S", "", VLOOKUP(A12,Calendar!$A$3:$G$459,4,FALSE)))),"",IF(Summary!$B$5=3,IF(VLOOKUP(A12,Calendar!$A$3:$G$459,7,FALSE)="S", "", VLOOKUP(A12,Calendar!$A$3:$G$459,7,FALSE)),IF(VLOOKUP(A12,Calendar!$A$3:$G$459,4,FALSE)="S", "", VLOOKUP(A12,Calendar!$A$3:$G$459,4,FALSE)))) ->  | D12: =IF(Summary!$B$5=3,IF(C12="","",VLOOKUP(A12,Calendar!$A$3:$G$459,5,FALSE)),IF(C12="","",VLOOKUP(A12,Calendar!$A$3:$G$459,2,FALSE))) ->  | I12: 0
A13: 505 | C13: =IF(ISNA(IF(Summary!$B$5=3,IF(VLOOKUP(A13,Calendar!$A$3:$G$459,7,FALSE)="S", "", VLOOKUP(A13,Calendar!$A$3:$G$459,7,FALSE)),IF(VLOOKUP(A13,Calendar!$A$3:$G$459,4,FALSE)="S", "", VLOOKUP(A13,Calendar!$A$3:$G$459,4,FALSE)))),"",IF(Summary!$B$5=3,IF(VLOOKUP(A13,Calendar!$A$3:$G$459,7,FALSE)="S", "", VLOOKUP(A13,Calendar!$A$3:$G$459,7,FALSE)),IF(VLOOKUP(A13,Calendar!$A$3:$G$459,4,FALSE)="S", "", VLOOKUP(A13,Calendar!$A$3:$G$459,4,FALSE)))) ->  | D13: =IF(Summary!$B$5=3,IF(C13="","",VLOOKUP(A13,Calendar!$A$3:$G$459,5,FALSE)),IF(C13="","",VLOOKUP(A13,Calendar!$A$3:$G$459,2,FALSE))) ->  | I13: 0
A14: 506 | C14: =IF(ISNA(IF(Summary!$B$5=3,IF(VLOOKUP(A14,Calendar!$A$3:$G$459,7,FALSE)="S", "", VLOOKUP(A14,Calendar!$A$3:$G$459,7,FALSE)),IF(VLOOKUP(A14,Calendar!$A$3:$G$459,4,FALSE)="S", "", VLOOKUP(A14,Calendar!$A$3:$G$459,4,FALSE)))),"",IF(Summary!$B$5=3,IF(VLOOKUP(A14,Calendar!$A$3:$G$459,7,FALSE)="S", "", VLOOKUP(A14,Calendar!$A$3:$G$459,7,FALSE)),IF(VLOOKUP(A14,Calendar!$A$3:$G$459,4,FALSE)="S", "", VLOOKUP(A14,Calendar!$A$3:$G$459,4,FALSE)))) -> M | D14: =IF(Summary!$B$5=3,IF(C14="","",VLOOKUP(A14,Calendar!$A$3:$G$459,5,FALSE)),IF(C14="","",VLOOKUP(A14,Calendar!$A$3:$G$459,2,FALSE))) -> 2019-05-06 | I14: 0
A15: 507 | C15: =IF(ISNA(IF(Summary!$B$5=3,IF(VLOOKUP(A15,Calendar!$A$3:$G$459,7,FALSE)="S", "", VLOOKUP(A15,Calendar!$A$3:$G$459,7,FALSE)),IF(VLOOKUP(A15,Calendar!$A$3:$G$459,4,FALSE)="S", "", VLOOKUP(A15,Calendar!$A$3:$G$459,4,FALSE)))),"",IF(Summary!$B$5=3,IF(VLOOKUP(A15,Calendar!$A$3:$G$459,7,FALSE)="S", "", VLOOKUP(A15,Calendar!$A$3:$G$459,7,FALSE)),IF(VLOOKUP(A15,Calendar!$A$3:$G$459,4,FALSE)="S", "", VLOOKUP(A15,Calendar!$A$3:$G$459,4,FALSE)))) -> T | D15: =IF(Summary!$B$5=3,IF(C15="","",VLOOKUP(A15,Calendar!$A$3:$G$459,5,FALSE)),IF(C15="","",VLOOKUP(A15,Calendar!$A$3:$G$459,2,FALSE))) -> 2019-05-07 | I15: 0
A16: 508 | C16: =IF(ISNA(IF(Summary!$B$5=3,IF(VLOOKUP(A16,Calendar!$A$3:$G$459,7,FALSE)="S", "", VLOOKUP(A16,Calendar!$A$3:$G$459,7,FALSE)),IF(VLOOKUP(A16,Calendar!$A$3:$G$459,4,FALSE)="S", "", VLOOKUP(A16,Calendar!$A$3:$G$459,4,FALSE)))),"",IF(Summary!$B$5=3,IF(VLOOKUP(A16,Calendar!$A$3:$G$459,7,FALSE)="S", "", VLOOKUP(A16,Calendar!$A$3:$G$459,7,FALSE)),IF(VLOOKUP(A16,Calendar!$A$3:$G$459,4,FALSE)="S", "", VLOOKUP(A16,Calendar!$A$3:$G$459,4,FALSE)))) -> W | D16: =IF(Summary!$B$5=3,IF(C16="","",VLOOKUP(A16,Calendar!$A$3:$G$459,5,FALSE)),IF(C16="","",VLOOKUP(A16,Calendar!$A$3:$G$459,2,FALSE))) -> 2019-05-08 | I16: 0
A17: 509 | C17: =IF(ISNA(IF(Summary!$B$5=3,IF(VLOOKUP(A17,Calendar!$A$3:$G$459,7,FALSE)="S", "", VLOOKUP(A17,Calendar!$A$3:$G$459,7,FALSE)),IF(VLOOKUP(A17,Calendar!$A$3:$G$459,4,FALSE)="S", "", VLOOKUP(A17,Calendar!$A$3:$G$459,4,FALSE)))),"",IF(Summary!$B$5=3,IF(VLOOKUP(A17,Calendar!$A$3:$G$459,7,FALSE)="S", "", VLOOKUP(A17,Calendar!$A$3:$G$459,7,FALSE)),IF(VLOOKUP(A17,Calendar!$A$3:$G$459,4,FALSE)="S", "", VLOOKUP(A17,Calendar!$A$3:$G$459,4,FALSE)))) -> R | D17: =IF(Summary!$B$5=3,IF(C17="","",VLOOKUP(A17,Calendar!$A$3:$G$459,5,FALSE)),IF(C17="","",VLOOKUP(A17,Calendar!$A$3:$G$459,2,FALSE))) -> 2019-05-09 | I17: 0
A18: 510 | C18: =IF(ISNA(IF(Summary!$B$5=3,IF(VLOOKUP(A18,Calendar!$A$3:$G$459,7,FALSE)="S", "", VLOOKUP(A18,Calendar!$A$3:$G$459,7,FALSE)),IF(VLOOKUP(A18,Calendar!$A$3:$G$459,4,FALSE)="S", "", VLOOKUP(A18,Calendar!$A$3:$G$459,4,FALSE)))),"",IF(Summary!$B$5=3,IF(VLOOKUP(A18,Calendar!$A$3:$G$459,7,FALSE)="S", "", VLOOKUP(A18,Calendar!$A$3:$G$459,7,FALSE)),IF(VLOOKUP(A18,Calendar!$A$3:$G$459,4,FALSE)="S", "", VLOOKUP(A18,Calendar!$A$3:$G$459,4,FALSE)))) -> F | D18: =IF(Summary!$B$5=3,IF(C18="","",VLOOKUP(A18,Calendar!$A$3:$G$459,5,FALSE)),IF(C18="","",VLOOKUP(A18,Calendar!$A$3:$G$459,2,FALSE))) -> 2019-05-10 | I18: 0
A19: 511 | C19: =IF(ISNA(IF(Summary!$B$5=3,IF(VLOOKUP(A19,Calendar!$A$3:$G$459,7,FALSE)="S", "", VLOOKUP(A19,Calendar!$A$3:$G$459,7,FALSE)),IF(VLOOKUP(A19,Calendar!$A$3:$G$459,4,FALSE)="S", "", VLOOKUP(A19,Calendar!$A$3:$G$459,4,FALSE)))),"",IF(Summary!$B$5=3,IF(VLOOKUP(A19,Calendar!$A$3:$G$459,7,FALSE)="S", "", VLOOKUP(A19,Calendar!$A$3:$G$459,7,FALSE)),IF(VLOOKUP(A19,Calendar!$A$3:$G$459,4,FALSE)="S", "", VLOOKUP(A19,Calendar!$A$3:$G$459,4,FALSE)))) ->  | D19: =IF(Summary!$B$5=3,IF(C19="","",VLOOKUP(A19,Calendar!$A$3:$G$459,5,FALSE)),IF(C19="","",VLOOKUP(A19,Calendar!$A$3:$G$459,2,FALSE))) ->  | I19: 0
A20: 512 | C20: =IF(ISNA(IF(Summary!$B$5=3,IF(VLOOKUP(A20,Calendar!$A$3:$G$459,7,FALSE)="S", "", VLOOKUP(A20,Calendar!$A$3:$G$459,7,FALSE)),IF(VLOOKUP(A20,Calendar!$A$3:$G$459,4,FALSE)="S", "", VLOOKUP(A20,Calendar!$A$3:$G$459,4,FALSE)))),"",IF(Summary!$B$5=3,IF(VLOOKUP(A20,Calendar!$A$3:$G$459,7,FALSE)="S", "", VLOOKUP(A20,Calendar!$A$3:$G$459,7,FALSE)),IF(VLOOKUP(A20,Calendar!$A$3:$G$459,4,FALSE)="S", "", VLOOKUP(A20,Calendar!$A$3:$G$459,4,FALSE)))) ->  | D20: =IF(Summary!$B$5=3,IF(C20="","",VLOOKUP(A20,Calendar!$A$3:$G$459,5,FALSE)),IF(C20="","",VLOOKUP(A20,Calendar!$A$3:$G$459,2,FALSE))) ->  | I20: 0
A21: 513 | C21: =IF(ISNA(IF(Summary!$B$5=3,IF(VLOOKUP(A21,Calendar!$A$3:$G$459,7,FALSE)="S", "", VLOOKUP(A21,Calendar!$A$3:$G$459,7,FALSE)),IF(VLOOKUP(A21,Calendar!$A$3:$G$459,4,FALSE)="S", "", VLOOKUP(A21,Calendar!$A$3:$G$459,4,FALSE)))),"",IF(Summary!$B$5=3,IF(VLOOKUP(A21,Calendar!$A$3:$G$459,7,FALSE)="S", "", VLOOKUP(A21,Calendar!$A$3:$G$459,7,FALSE)),IF(VLOOKUP(A21,Calendar!$A$3:$G$459,4,FALSE)="S", "", VLOOKUP(A21,Calendar!$A$3:$G$459,4,FALSE)))) -> M | D21: =IF(Summary!$B$5=3,IF(C21="","",VLOOKUP(A21,Calendar!$A$3:$G$459,5,FALSE)),IF(C21="","",VLOOKUP(A21,Calendar!$A$3:$G$459,2,FALSE))) -> 2019-05-13 | I21: 0
A22: 514 | C22: =IF(ISNA(IF(Summary!$B$5=3,IF(VLOOKUP(A22,Calendar!$A$3:$G$459,7,FALSE)="S", "", VLOOKUP(A22,Calendar!$A$3:$G$459,7,FALSE)),IF(VLOOKUP(A22,Calendar!$A$3:$G$459,4,FALSE)="S", "", VLOOKUP(A22,Calendar!$A$3:$G$459,4,FALSE)))),"",IF(Summary!$B$5=3,IF(VLOOKUP(A22,Calendar!$A$3:$G$459,7,FALSE)="S", "", VLOOKUP(A22,Calendar!$A$3:$G$459,7,FALSE)),IF(VLOOKUP(A22,Calendar!$A$3:$G$459,4,FALSE)="S", "", VLOOKUP(A22,Calendar!$A$3:$G$459,4,FALSE)))) -> T | D22: =IF(Summary!$B$5=3,IF(C22="","",VLOOKUP(A22,Calendar!$A$3:$G$459,5,FALSE)),IF(C22="","",VLOOKUP(A22,Calendar!$A$3:$G$459,2,FALSE))) -> 2019-05-14 | I22: 0
A23: 515 | C23: =IF(ISNA(IF(Summary!$B$5=3,IF(VLOOKUP(A23,Calendar!$A$3:$G$459,7,FALSE)="S", "", VLOOKUP(A23,Calendar!$A$3:$G$459,7,FALSE)),IF(VLOOKUP(A23,Calendar!$A$3:$G$459,4,FALSE)="S", "", VLOOKUP(A23,Calendar!$A$3:$G$459,4,FALSE)))),"",IF(Summary!$B$5=3,IF(VLOOKUP(A23,Calendar!$A$3:$G$459,7,FALSE)="S", "", VLOOKUP(A23,Calendar!$A$3:$G$459,7,FALSE)),IF(VLOOKUP(A23,Calendar!$A$3:$G$459,4,FALSE)="S", "", VLOOKUP(A23,Calendar!$A$3:$G$459,4,FALSE)))) -> W | D23: =IF(Summary!$B$5=3,IF(C23="","",VLOOKUP(A23,Calendar!$A$3:$G$459,5,FALSE)),IF(C23="","",VLOOKUP(A23,Calendar!$A$3:$G$459,2,FALSE))) -> 2019-05-15 | I23: 0
A24: 516 | C24: =IF(ISNA(IF(Summary!$B$5=3,IF(VLOOKUP(A24,Calendar!$A$3:$G$459,7,FALSE)="S", "", VLOOKUP(A24,Calendar!$A$3:$G$459,7,FALSE)),IF(VLOOKUP(A24,Calendar!$A$3:$G$459,4,FALSE)="S", "", VLOOKUP(A24,Calendar!$A$3:$G$459,4,FALSE)))),"",IF(Summary!$B$5=3,IF(VLOOKUP(A24,Calendar!$A$3:$G$459,7,FALSE)="S", "", VLOOKUP(A24,Calendar!$A$3:$G$459,7,FALSE)),IF(VLOOKUP(A24,Calendar!$A$3:$G$459,4,FALSE)="S", "", VLOOKUP(A24,Calendar!$A$3:$G$459,4,FALSE)))) -> R | D24: =IF(Summary!$B$5=3,IF(C24="","",VLOOKUP(A24,Calendar!$A$3:$G$459,5,FALSE)),IF(C24="","",VLOOKUP(A24,Calendar!$A$3:$G$459,2,FALSE))) -> 2019-05-16 | I24: 0
A25: 517 | C25: =IF(ISNA(IF(Summary!$B$5=3,IF(VLOOKUP(A25,Calendar!$A$3:$G$459,7,FALSE)="S", "", VLOOKUP(A25,Calendar!$A$3:$G$459,7,FALSE)),IF(VLOOKUP(A25,Calendar!$A$3:$G$459,4,FALSE)="S", "", VLOOKUP(A25,Calendar!$A$3:$G$459,4,FALSE)))),"",IF(Summary!$B$5=3,IF(VLOOKUP(A25,Calendar!$A$3:$G$459,7,FALSE)="S", "", VLOOKUP(A25,Calendar!$A$3:$G$459,7,FALSE)),IF(VLOOKUP(A25,Calendar!$A$3:$G$459,4,FALSE)="S", "", VLOOKUP(A25,Calendar!$A$3:$G$459,4,FALSE)))) -> F | D25: =IF(Summary!$B$5=3,IF(C25="","",VLOOKUP(A25,Calendar!$A$3:$G$459,5,FALSE)),IF(C25="","",VLOOKUP(A25,Calendar!$A$3:$G$459,2,FALSE))) -> 2019-05-17 | I25: 0
A26: 518 | C26: =IF(ISNA(IF(Summary!$B$5=3,IF(VLOOKUP(A26,Calendar!$A$3:$G$459,7,FALSE)="S", "", VLOOKUP(A26,Calendar!$A$3:$G$459,7,FALSE)),IF(VLOOKUP(A26,Calendar!$A$3:$G$459,4,FALSE)="S", "", VLOOKUP(A26,Calendar!$A$3:$G$459,4,FALSE)))),"",IF(Summary!$B$5=3,IF(VLOOKUP(A26,Calendar!$A$3:$G$459,7,FALSE)="S", "", VLOOKUP(A26,Calendar!$A$3:$G$459,7,FALSE)),IF(VLOOKUP(A26,Calendar!$A$3:$G$459,4,FALSE)="S", "", VLOOKUP(A26,Calendar!$A$3:$G$459,4,FALSE)))) ->  | D26: =IF(Summary!$B$5=3,IF(C26="","",VLOOKUP(A26,Calendar!$A$3:$G$459,5,FALSE)),IF(C26="","",VLOOKUP(A26,Calendar!$A$3:$G$459,2,FALSE))) ->  | I26: 0
A27: 519 | C27: =IF(ISNA(IF(Summary!$B$5=3,IF(VLOOKUP(A27,Calendar!$A$3:$G$459,7,FALSE)="S", "", VLOOKUP(A27,Calendar!$A$3:$G$459,7,FALSE)),IF(VLOOKUP(A27,Calendar!$A$3:$G$459,4,FALSE)="S", "", VLOOKUP(A27,Calendar!$A$3:$G$459,4,FALSE)))),"",IF(Summary!$B$5=3,IF(VLOOKUP(A27,Calendar!$A$3:$G$459,7,FALSE)="S", "", VLOOKUP(A27,Calendar!$A$3:$G$459,7,FALSE)),IF(VLOOKUP(A27,Calendar!$A$3:$G$459,4,FALSE)="S", "", VLOOKUP(A27,Calendar!$A$3:$G$459,4,FALSE)))) ->  | D27: =IF(Summary!$B$5=3,IF(C27="","",VLOOKUP(A27,Calendar!$A$3:$G$459,5,FALSE)),IF(C27="","",VLOOKUP(A27,Calendar!$A$3:$G$459,2,FALSE))) ->  | I27: 0
A28: 520 | C28: =IF(ISNA(IF(Summary!$B$5=3,IF(VLOOKUP(A28,Calendar!$A$3:$G$459,7,FALSE)="S", "", VLOOKUP(A28,Calendar!$A$3:$G$459,7,FALSE)),IF(VLOOKUP(A28,Calendar!$A$3:$G$459,4,FALSE)="S", "", VLOOKUP(A28,Calendar!$A$3:$G$459,4,FALSE)))),"",IF(Summary!$B$5=3,IF(VLOOKUP(A28,Calendar!$A$3:$G$459,7,FALSE)="S", "", VLOOKUP(A28,Calendar!$A$3:$G$459,7,FALSE)),IF(VLOOKUP(A28,Calendar!$A$3:$G$459,4,FALSE)="S", "", VLOOKUP(A28,Calendar!$A$3:$G$459,4,FALSE)))) -> M | D28: =IF(Summary!$B$5=3,IF(C28="","",VLOOKUP(A28,Calendar!$A$3:$G$459,5,FALSE)),IF(C28="","",VLOOKUP(A28,Calendar!$A$3:$G$459,2,FALSE))) -> 2019-05-20 | I28: 0
A29: 521 | C29: =IF(ISNA(IF(Summary!$B$5=3,IF(VLOOKUP(A29,Calendar!$A$3:$G$459,7,FALSE)="S", "", VLOOKUP(A29,Calendar!$A$3:$G$459,7,FALSE)),IF(VLOOKUP(A29,Calendar!$A$3:$G$459,4,FALSE)="S", "", VLOOKUP(A29,Calendar!$A$3:$G$459,4,FALSE)))),"",IF(Summary!$B$5=3,IF(VLOOKUP(A29,Calendar!$A$3:$G$459,7,FALSE)="S", "", VLOOKUP(A29,Calendar!$A$3:$G$459,7,FALSE)),IF(VLOOKUP(A29,Calendar!$A$3:$G$459,4,FALSE)="S", "", VLOOKUP(A29,Calendar!$A$3:$G$459,4,FALSE)))) -> T | D29: =IF(Summary!$B$5=3,IF(C29="","",VLOOKUP(A29,Calendar!$A$3:$G$459,5,FALSE)),IF(C29="","",VLOOKUP(A29,Calendar!$A$3:$G$459,2,FALSE))) -> 2019-05-21 | I29: 0
A30: 522 | C30: =IF(ISNA(IF(Summary!$B$5=3,IF(VLOOKUP(A30,Calendar!$A$3:$G$459,7,FALSE)="S", "", VLOOKUP(A30,Calendar!$A$3:$G$459,7,FALSE)),IF(VLOOKUP(A30,Calendar!$A$3:$G$459,4,FALSE)="S", "", VLOOKUP(A30,Calendar!$A$3:$G$459,4,FALSE)))),"",IF(Summary!$B$5=3,IF(VLOOKUP(A30,Calendar!$A$3:$G$459,7,FALSE)="S", "", VLOOKUP(A30,Calendar!$A$3:$G$459,7,FALSE)),IF(VLOOKUP(A30,Calendar!$A$3:$G$459,4,FALSE)="S", "", VLOOKUP(A30,Calendar!$A$3:$G$459,4,FALSE)))) -> W | D30: =IF(Summary!$B$5=3,IF(C30="","",VLOOKUP(A30,Calendar!$A$3:$G$459,5,FALSE)),IF(C30="","",VLOOKUP(A30,Calendar!$A$3:$G$459,2,FALSE))) -> 2019-05-22 | I30: 0
A31: 523 | C31: =IF(ISNA(IF(Summary!$B$5=3,IF(VLOOKUP(A31,Calendar!$A$3:$G$459,7,FALSE)="S", "", VLOOKUP(A31,Calendar!$A$3:$G$459,7,FALSE)),IF(VLOOKUP(A31,Calendar!$A$3:$G$459,4,FALSE)="S", "", VLOOKUP(A31,Calendar!$A$3:$G$459,4,FALSE)))),"",IF(Summary!$B$5=3,IF(VLOOKUP(A31,Calendar!$A$3:$G$459,7,FALSE)="S", "", VLOOKUP(A31,Calendar!$A$3:$G$459,7,FALSE)),IF(VLOOKUP(A31,Calendar!$A$3:$G$459,4,FALSE)="S", "", VLOOKUP(A31,Calendar!$A$3:$G$459,4,FALSE)))) -> R | D31: =IF(Summary!$B$5=3,IF(C31="","",VLOOKUP(A31,Calendar!$A$3:$G$459,5,FALSE)),IF(C31="","",VLOOKUP(A31,Calendar!$A$3:$G$459,2,FALSE))) -> 2019-05-23 | I31: 0
A32: 524 | C32: =IF(ISNA(IF(Summary!$B$5=3,IF(VLOOKUP(A32,Calendar!$A$3:$G$459,7,FALSE)="S", "", VLOOKUP(A32,Calendar!$A$3:$G$459,7,FALSE)),IF(VLOOKUP(A32,Calendar!$A$3:$G$459,4,FALSE)="S", "", VLOOKUP(A32,Calendar!$A$3:$G$459,4,FALSE)))),"",IF(Summary!$B$5=3,IF(VLOOKUP(A32,Calendar!$A$3:$G$459,7,FALSE)="S", "", VLOOKUP(A32,Calendar!$A$3:$G$459,7,FALSE)),IF(VLOOKUP(A32,Calendar!$A$3:$G$459,4,FALSE)="S", "", VLOOKUP(A32,Calendar!$A$3:$G$459,4,FALSE)))) -> F | D32: =IF(Summary!$B$5=3,IF(C32="","",VLOOKUP(A32,Calendar!$A$3:$G$459,5,FALSE)),IF(C32="","",VLOOKUP(A32,Calendar!$A$3:$G$459,2,FALSE))) -> 2019-05-24 | I32: 0
A33: 525 | C33: =IF(ISNA(IF(Summary!$B$5=3,IF(VLOOKUP(A33,Calendar!$A$3:$G$459,7,FALSE)="S", "", VLOOKUP(A33,Calendar!$A$3:$G$459,7,FALSE)),IF(VLOOKUP(A33,Calendar!$A$3:$G$459,4,FALSE)="S", "", VLOOKUP(A33,Calendar!$A$3:$G$459,4,FALSE)))),"",IF(Summary!$B$5=3,IF(VLOOKUP(A33,Calendar!$A$3:$G$459,7,FALSE)="S", "", VLOOKUP(A33,Calendar!$A$3:$G$459,7,FALSE)),IF(VLOOKUP(A33,Calendar!$A$3:$G$459,4,FALSE)="S", "", VLOOKUP(A33,Calendar!$A$3:$G$459,4,FALSE)))) ->  | D33: =IF(Summary!$B$5=3,IF(C33="","",VLOOKUP(A33,Calendar!$A$3:$G$459,5,FALSE)),IF(C33="","",VLOOKUP(A33,Calendar!$A$3:$G$459,2,FALSE))) ->  | I33: 0
A34: 526 | C34: =IF(ISNA(IF(Summary!$B$5=3,IF(VLOOKUP(A34,Calendar!$A$3:$G$459,7,FALSE)="S", "", VLOOKUP(A34,Calendar!$A$3:$G$459,7,FALSE)),IF(VLOOKUP(A34,Calendar!$A$3:$G$459,4,FALSE)="S", "", VLOOKUP(A34,Calendar!$A$3:$G$459,4,FALSE)))),"",IF(Summary!$B$5=3,IF(VLOOKUP(A34,Calendar!$A$3:$G$459,7,FALSE)="S", "", VLOOKUP(A34,Calendar!$A$3:$G$459,7,FALSE)),IF(VLOOKUP(A34,Calendar!$A$3:$G$459,4,FALSE)="S", "", VLOOKUP(A34,Calendar!$A$3:$G$459,4,FALSE)))) ->  | D34: =IF(Summary!$B$5=3,IF(C34="","",VLOOKUP(A34,Calendar!$A$3:$G$459,5,FALSE)),IF(C34="","",VLOOKUP(A34,Calendar!$A$3:$G$459,2,FALSE))) ->  | I34: 0
A35: 527 | C35: =IF(ISNA(IF(Summary!$B$5=3,IF(VLOOKUP(A35,Calendar!$A$3:$G$459,7,FALSE)="S", "", VLOOKUP(A35,Calendar!$A$3:$G$459,7,FALSE)),IF(VLOOKUP(A35,Calendar!$A$3:$G$459,4,FALSE)="S", "", VLOOKUP(A35,Calendar!$A$3:$G$459,4,FALSE)))),"",IF(Summary!$B$5=3,IF(VLOOKUP(A35,Calendar!$A$3:$G$459,7,FALSE)="S", "", VLOOKUP(A35,Calendar!$A$3:$G$459,7,FALSE)),IF(VLOOKUP(A35,Calendar!$A$3:$G$459,4,FALSE)="S", "", VLOOKUP(A35,Calendar!$A$3:$G$459,4,FALSE)))) -> M | D35: =IF(Summary!$B$5=3,IF(C35="","",VLOOKUP(A35,Calendar!$A$3:$G$459,5,FALSE)),IF(C35="","",VLOOKUP(A35,Calendar!$A$3:$G$459,2,FALSE))) -> 2019-05-27 | I35: 0
A36: 528 | C36: =IF(ISNA(IF(Summary!$B$5=3,IF(VLOOKUP(A36,Calendar!$A$3:$G$459,7,FALSE)="S", "", VLOOKUP(A36,Calendar!$A$3:$G$459,7,FALSE)),IF(VLOOKUP(A36,Calendar!$A$3:$G$459,4,FALSE)="S", "", VLOOKUP(A36,Calendar!$A$3:$G$459,4,FALSE)))),"",IF(Summary!$B$5=3,IF(VLOOKUP(A36,Calendar!$A$3:$G$459,7,FALSE)="S", "", VLOOKUP(A36,Calendar!$A$3:$G$459,7,FALSE)),IF(VLOOKUP(A36,Calendar!$A$3:$G$459,4,FALSE)="S", "", VLOOKUP(A36,Calendar!$A$3:$G$459,4,FALSE)))) -> T | D36: =IF(Summary!$B$5=3,IF(C36="","",VLOOKUP(A36,Calendar!$A$3:$G$459,5,FALSE)),IF(C36="","",VLOOKUP(A36,Calendar!$A$3:$G$459,2,FALSE))) -> 2019-05-28 | I36: 0
A37: 529 | C37: =IF(ISNA(IF(Summary!$B$5=3,IF(VLOOKUP(A37,Calendar!$A$3:$G$459,7,FALSE)="S", "", VLOOKUP(A37,Calendar!$A$3:$G$459,7,FALSE)),IF(VLOOKUP(A37,Calendar!$A$3:$G$459,4,FALSE)="S", "", VLOOKUP(A37,Calendar!$A$3:$G$459,4,FALSE)))),"",IF(Summary!$B$5=3,IF(VLOOKUP(A37,Calendar!$A$3:$G$459,7,FALSE)="S", "", VLOOKUP(A37,Calendar!$A$3:$G$459,7,FALSE)),IF(VLOOKUP(A37,Calendar!$A$3:$G$459,4,FALSE)="S", "", VLOOKUP(A37,Calendar!$A$3:$G$459,4,FALSE)))) -> W | D37: =IF(Summary!$B$5=3,IF(C37="","",VLOOKUP(A37,Calendar!$A$3:$G$459,5,FALSE)),IF(C37="","",VLOOKUP(A37,Calendar!$A$3:$G$459,2,FALSE))) -> 2019-05-29 | I37: 0
A38: 530 | C38: =IF(ISNA(IF(Summary!$B$5=3,IF(VLOOKUP(A38,Calendar!$A$3:$G$459,7,FALSE)="S", "", VLOOKUP(A38,Calendar!$A$3:$G$459,7,FALSE)),IF(VLOOKUP(A38,Calendar!$A$3:$G$459,4,FALSE)="S", "", VLOOKUP(A38,Calendar!$A$3:$G$459,4,FALSE)))),"",IF(Summary!$B$5=3,IF(VLOOKUP(A38,Calendar!$A$3:$G$459,7,FALSE)="S", "", VLOOKUP(A38,Calendar!$A$3:$G$459,7,FALSE)),IF(VLOOKUP(A38,Calendar!$A$3:$G$459,4,FALSE)="S", "", VLOOKUP(A38,Calendar!$A$3:$G$459,4,FALSE)))) -> R | D38: =IF(Summary!$B$5=3,IF(C38="","",VLOOKUP(A38,Calendar!$A$3:$G$459,5,FALSE)),IF(C38="","",VLOOKUP(A38,Calendar!$A$3:$G$459,2,FALSE))) -> 2019-05-30 | I38: 0
A39: 531 | C39: =IF(ISNA(IF(Summary!$B$5=3,IF(VLOOKUP(A39,Calendar!$A$3:$G$459,7,FALSE)="S", "", VLOOKUP(A39,Calendar!$A$3:$G$459,7,FALSE)),IF(VLOOKUP(A39,Calendar!$A$3:$G$459,4,FALSE)="S", "", VLOOKUP(A39,Calendar!$A$3:$G$459,4,FALSE)))),"",IF(Summary!$B$5=3,IF(VLOOKUP(A39,Calendar!$A$3:$G$459,7,FALSE)="S", "", VLOOKUP(A39,Calendar!$A$3:$G$459,7,FALSE)),IF(VLOOKUP(A39,Calendar!$A$3:$G$459,4,FALSE)="S", "", VLOOKUP(A39,Calendar!$A$3:$G$459,4,FALSE)))) -> F | D39: =IF(Summary!$B$5=3,IF(C39="","",VLOOKUP(A39,Calendar!$A$3:$G$459,5,FALSE)),IF(C39="","",VLOOKUP(A39,Calendar!$A$3:$G$459,2,FALSE))) -> 2019-05-31 | I39: 0
D40: Total Minutes | E40: =SUM(E9:E39) -> 0 | F40: =SUM(F9:F39) -> 0 | G40: 0 | H40: 0 | I40: 0 | L40: =IF(SUM(E40:H40)>COUNTA(E9:E39)*390,"The sum total for all cost objectives exceeds the maximum anticipated value based upon the number of days worked. Confirm minutes claimed for each day.","") -> 
D41: Total Hours | E41: =E40/60 -> 0 | F41: =F40/60 -> 0 | G41: 0 | H41: 0 | I41: 0
C44: Personnel Activity Report
C45: Extended School Year
C46: June
A47: 602 | C47: =IF(Summary!$E$8<>"",Summary!$E$8," ") ->  | L47: =IF(I51>390, "<<< Day exceeds 390 minutes. Confirm reported time.","") -> 
A48: 603 | C48: =IF(Summary!$E$9<>"",Summary!$E$9," ") -> 
A49: 604 | C49: Day | D49: Date | E49: Special Ed | F49: General Ed | G49: Other | H49: Other | I49: Totals
A50: 605 | C50: =IF(ISNA(IF(Summary!$B$5=3,IF(VLOOKUP(A46,Calendar!$A$3:$G$459,7,FALSE)="S", "", VLOOKUP(A46,Calendar!$A$3:$G$459,7,FALSE)),IF(VLOOKUP(A46,Calendar!$A$3:$G$459,4,FALSE)="S", "", VLOOKUP(A46,Calendar!$A$3:$G$459,4,FALSE)))),"",IF(Summary!$B$5=3,IF(VLOOKUP(A46,Calendar!$A$3:$G$459,7,FALSE)="S", "", VLOOKUP(A46,Calendar!$A$3:$G$459,7,FALSE)),IF(VLOOKUP(A46,Calendar!$A$3:$G$459,4,FALSE)="S", "", VLOOKUP(A46,Calendar!$A$3:$G$459,4,FALSE)))) ->  | D50: =IF(Summary!$B$5=3,IF(C50="","",VLOOKUP(A46,Calendar!$A$3:$G$459,5,FALSE)),IF(C50="","",VLOOKUP(A46,Calendar!$A$3:$G$459,2,FALSE))) ->  | I50: =MIN(1440,SUM(E50:H50)) -> 0
A51: 606 | C51: =IF(ISNA(IF(Summary!$B$5=3,IF(VLOOKUP(A47,Calendar!$A$3:$G$459,7,FALSE)="S", "", VLOOKUP(A47,Calendar!$A$3:$G$459,7,FALSE)),IF(VLOOKUP(A47,Calendar!$A$3:$G$459,4,FALSE)="S", "", VLOOKUP(A47,Calendar!$A$3:$G$459,4,FALSE)))),"",IF(Summary!$B$5=3,IF(VLOOKUP(A47,Calendar!$A$3:$G$459,7,FALSE)="S", "", VLOOKUP(A47,Calendar!$A$3:$G$459,7,FALSE)),IF(VLOOKUP(A47,Calendar!$A$3:$G$459,4,FALSE)="S", "", VLOOKUP(A47,Calendar!$A$3:$G$459,4,FALSE)))) ->  | D51: =IF(Summary!$B$5=3,IF(C51="","",VLOOKUP(A47,Calendar!$A$3:$G$459,5,FALSE)),IF(C51="","",VLOOKUP(A47,Calendar!$A$3:$G$459,2,FALSE))) ->  | I51: =MIN(1440,SUM(E51:H51)) -> 0
A52: 607 | C52: =IF(ISNA(IF(Summary!$B$5=3,IF(VLOOKUP(A48,Calendar!$A$3:$G$459,7,FALSE)="S", "", VLOOKUP(A48,Calendar!$A$3:$G$459,7,FALSE)),IF(VLOOKUP(A48,Calendar!$A$3:$G$459,4,FALSE)="S", "", VLOOKUP(A48,Calendar!$A$3:$G$459,4,FALSE)))),"",IF(Summary!$B$5=3,IF(VLOOKUP(A48,Calendar!$A$3:$G$459,7,FALSE)="S", "", VLOOKUP(A48,Calendar!$A$3:$G$459,7,FALSE)),IF(VLOOKUP(A48,Calendar!$A$3:$G$459,4,FALSE)="S", "", VLOOKUP(A48,Calendar!$A$3:$G$459,4,FALSE)))) -> M | D52: =IF(Summary!$B$5=3,IF(C52="","",VLOOKUP(A48,Calendar!$A$3:$G$459,5,FALSE)),IF(C52="","",VLOOKUP(A48,Calendar!$A$3:$G$459,2,FALSE))) -> 2019-06-03 | I52: 0
A53: 608 | C53: =IF(ISNA(IF(Summary!$B$5=3,IF(VLOOKUP(A49,Calendar!$A$3:$G$459,7,FALSE)="S", "", VLOOKUP(A49,Calendar!$A$3:$G$459,7,FALSE)),IF(VLOOKUP(A49,Calendar!$A$3:$G$459,4,FALSE)="S", "", VLOOKUP(A49,Calendar!$A$3:$G$459,4,FALSE)))),"",IF(Summary!$B$5=3,IF(VLOOKUP(A49,Calendar!$A$3:$G$459,7,FALSE)="S", "", VLOOKUP(A49,Calendar!$A$3:$G$459,7,FALSE)),IF(VLOOKUP(A49,Calendar!$A$3:$G$459,4,FALSE)="S", "", VLOOKUP(A49,Calendar!$A$3:$G$459,4,FALSE)))) -> T | D53: =IF(Summary!$B$5=3,IF(C53="","",VLOOKUP(A49,Calendar!$A$3:$G$459,5,FALSE)),IF(C53="","",VLOOKUP(A49,Calendar!$A$3:$G$459,2,FALSE))) -> 2019-06-04 | I53: 0
A54: 609 | C54: =IF(ISNA(IF(Summary!$B$5=3,IF(VLOOKUP(A50,Calendar!$A$3:$G$459,7,FALSE)="S", "", VLOOKUP(A50,Calendar!$A$3:$G$459,7,FALSE)),IF(VLOOKUP(A50,Calendar!$A$3:$G$459,4,FALSE)="S", "", VLOOKUP(A50,Calendar!$A$3:$G$459,4,FALSE)))),"",IF(Summary!$B$5=3,IF(VLOOKUP(A50,Calendar!$A$3:$G$459,7,FALSE)="S", "", VLOOKUP(A50,Calendar!$A$3:$G$459,7,FALSE)),IF(VLOOKUP(A50,Calendar!$A$3:$G$459,4,FALSE)="S", "", VLOOKUP(A50,Calendar!$A$3:$G$459,4,FALSE)))) -> W | D54: =IF(Summary!$B$5=3,IF(C54="","",VLOOKUP(A50,Calendar!$A$3:$G$459,5,FALSE)),IF(C54="","",VLOOKUP(A50,Calendar!$A$3:$G$459,2,FALSE))) -> 2019-06-05 | I54: 0
A55: 610 | C55: =IF(ISNA(IF(Summary!$B$5=3,IF(VLOOKUP(A51,Calendar!$A$3:$G$459,7,FALSE)="S", "", VLOOKUP(A51,Calendar!$A$3:$G$459,7,FALSE)),IF(VLOOKUP(A51,Calendar!$A$3:$G$459,4,FALSE)="S", "", VLOOKUP(A51,Calendar!$A$3:$G$459,4,FALSE)))),"",IF(Summary!$B$5=3,IF(VLOOKUP(A51,Calendar!$A$3:$G$459,7,FALSE)="S", "", VLOOKUP(A51,Calendar!$A$3:$G$459,7,FALSE)),IF(VLOOKUP(A51,Calendar!$A$3:$G$459,4,FALSE)="S", "", VLOOKUP(A51,Calendar!$A$3:$G$459,4,FALSE)))) -> R | D55: =IF(Summary!$B$5=3,IF(C55="","",VLOOKUP(A51,Calendar!$A$3:$G$459,5,FALSE)),IF(C55="","",VLOOKUP(A51,Calendar!$A$3:$G$459,2,FALSE))) -> 2019-06-06 | I55: 0
A56: 611 | C56: =IF(ISNA(IF(Summary!$B$5=3,IF(VLOOKUP(A52,Calendar!$A$3:$G$459,7,FALSE)="S", "", VLOOKUP(A52,Calendar!$A$3:$G$459,7,FALSE)),IF(VLOOKUP(A52,Calendar!$A$3:$G$459,4,FALSE)="S", "", VLOOKUP(A52,Calendar!$A$3:$G$459,4,FALSE)))),"",IF(Summary!$B$5=3,IF(VLOOKUP(A52,Calendar!$A$3:$G$459,7,FALSE)="S", "", VLOOKUP(A52,Calendar!$A$3:$G$459,7,FALSE)),IF(VLOOKUP(A52,Calendar!$A$3:$G$459,4,FALSE)="S", "", VLOOKUP(A52,Calendar!$A$3:$G$459,4,FALSE)))) -> F | D56: =IF(Summary!$B$5=3,IF(C56="","",VLOOKUP(A52,Calendar!$A$3:$G$459,5,FALSE)),IF(C56="","",VLOOKUP(A52,Calendar!$A$3:$G$459,2,FALSE))) -> 2019-06-07 | I56: 0
A57: 612 | C57: =IF(ISNA(IF(Summary!$B$5=3,IF(VLOOKUP(A53,Calendar!$A$3:$G$459,7,FALSE)="S", "", VLOOKUP(A53,Calendar!$A$3:$G$459,7,FALSE)),IF(VLOOKUP(A53,Calendar!$A$3:$G$459,4,FALSE)="S", "", VLOOKUP(A53,Calendar!$A$3:$G$459,4,FALSE)))),"",IF(Summary!$B$5=3,IF(VLOOKUP(A53,Calendar!$A$3:$G$459,7,FALSE)="S", "", VLOOKUP(A53,Calendar!$A$3:$G$459,7,FALSE)),IF(VLOOKUP(A53,Calendar!$A$3:$G$459,4,FALSE)="S", "", VLOOKUP(A53,Calendar!$A$3:$G$459,4,FALSE)))) ->  | D57: =IF(Summary!$B$5=3,IF(C57="","",VLOOKUP(A53,Calendar!$A$3:$G$459,5,FALSE)),IF(C57="","",VLOOKUP(A53,Calendar!$A$3:$G$459,2,FALSE))) ->  | I57: 0
A58: 613 | C58: =IF(ISNA(IF(Summary!$B$5=3,IF(VLOOKUP(A54,Calendar!$A$3:$G$459,7,FALSE)="S", "", VLOOKUP(A54,Calendar!$A$3:$G$459,7,FALSE)),IF(VLOOKUP(A54,Calendar!$A$3:$G$459,4,FALSE)="S", "", VLOOKUP(A54,Calendar!$A$3:$G$459,4,FALSE)))),"",IF(Summary!$B$5=3,IF(VLOOKUP(A54,Calendar!$A$3:$G$459,7,FALSE)="S", "", VLOOKUP(A54,Calendar!$A$3:$G$459,7,FALSE)),IF(VLOOKUP(A54,Calendar!$A$3:$G$459,4,FALSE)="S", "", VLOOKUP(A54,Calendar!$A$3:$G$459,4,FALSE)))) ->  | D58: =IF(Summary!$B$5=3,IF(C58="","",VLOOKUP(A54,Calendar!$A$3:$G$459,5,FALSE)),IF(C58="","",VLOOKUP(A54,Calendar!$A$3:$G$459,2,FALSE))) ->  | I58: 0
A59: 614 | C59: =IF(ISNA(IF(Summary!$B$5=3,IF(VLOOKUP(A55,Calendar!$A$3:$G$459,7,FALSE)="S", "", VLOOKUP(A55,Calendar!$A$3:$G$459,7,FALSE)),IF(VLOOKUP(A55,Calendar!$A$3:$G$459,4,FALSE)="S", "", VLOOKUP(A55,Calendar!$A$3:$G$459,4,FALSE)))),"",IF(Summary!$B$5=3,IF(VLOOKUP(A55,Calendar!$A$3:$G$459,7,FALSE)="S", "", VLOOKUP(A55,Calendar!$A$3:$G$459,7,FALSE)),IF(VLOOKUP(A55,Calendar!$A$3:$G$459,4,FALSE)="S", "", VLOOKUP(A55,Calendar!$A$3:$G$459,4,FALSE)))) -> M | D59: =IF(Summary!$B$5=3,IF(C59="","",VLOOKUP(A55,Calendar!$A$3:$G$459,5,FALSE)),IF(C59="","",VLOOKUP(A55,Calendar!$A$3:$G$459,2,FALSE))) -> 2019-06-10 | I59: 0
A60: 615 | C60: =IF(ISNA(IF(Summary!$B$5=3,IF(VLOOKUP(A56,Calendar!$A$3:$G$459,7,FALSE)="S", "", VLOOKUP(A56,Calendar!$A$3:$G$459,7,FALSE)),IF(VLOOKUP(A56,Calendar!$A$3:$G$459,4,FALSE)="S", "", VLOOKUP(A56,Calendar!$A$3:$G$459,4,FALSE)))),"",IF(Summary!$B$5=3,IF(VLOOKUP(A56,Calendar!$A$3:$G$459,7,FALSE)="S", "", VLOOKUP(A56,Calendar!$A$3:$G$459,7,FALSE)),IF(VLOOKUP(A56,Calendar!$A$3:$G$459,4,FALSE)="S", "", VLOOKUP(A56,Calendar!$A$3:$G$459,4,FALSE)))) -> T | D60: =IF(Summary!$B$5=3,IF(C60="","",VLOOKUP(A56,Calendar!$A$3:$G$459,5,FALSE)),IF(C60="","",VLOOKUP(A56,Calendar!$A$3:$G$459,2,FALSE))) -> 2019-06-11 | I60: 0
A61: 616 | C61: =IF(ISNA(IF(Summary!$B$5=3,IF(VLOOKUP(A57,Calendar!$A$3:$G$459,7,FALSE)="S", "", VLOOKUP(A57,Calendar!$A$3:$G$459,7,FALSE)),IF(VLOOKUP(A57,Calendar!$A$3:$G$459,4,FALSE)="S", "", VLOOKUP(A57,Calendar!$A$3:$G$459,4,FALSE)))),"",IF(Summary!$B$5=3,IF(VLOOKUP(A57,Calendar!$A$3:$G$459,7,FALSE)="S", "", VLOOKUP(A57,Calendar!$A$3:$G$459,7,FALSE)),IF(VLOOKUP(A57,Calendar!$A$3:$G$459,4,FALSE)="S", "", VLOOKUP(A57,Calendar!$A$3:$G$459,4,FALSE)))) -> W | D61: =IF(Summary!$B$5=3,IF(C61="","",VLOOKUP(A57,Calendar!$A$3:$G$459,5,FALSE)),IF(C61="","",VLOOKUP(A57,Calendar!$A$3:$G$459,2,FALSE))) -> 2019-06-12 | I61: 0
A62: 617 | C62: =IF(ISNA(IF(Summary!$B$5=3,IF(VLOOKUP(A58,Calendar!$A$3:$G$459,7,FALSE)="S", "", VLOOKUP(A58,Calendar!$A$3:$G$459,7,FALSE)),IF(VLOOKUP(A58,Calendar!$A$3:$G$459,4,FALSE)="S", "", VLOOKUP(A58,Calendar!$A$3:$G$459,4,FALSE)))),"",IF(Summary!$B$5=3,IF(VLOOKUP(A58,Calendar!$A$3:$G$459,7,FALSE)="S", "", VLOOKUP(A58,Calendar!$A$3:$G$459,7,FALSE)),IF(VLOOKUP(A58,Calendar!$A$3:$G$459,4,FALSE)="S", "", VLOOKUP(A58,Calendar!$A$3:$G$459,4,FALSE)))) -> R | D62: =IF(Summary!$B$5=3,IF(C62="","",VLOOKUP(A58,Calendar!$A$3:$G$459,5,FALSE)),IF(C62="","",VLOOKUP(A58,Calendar!$A$3:$G$459,2,FALSE))) -> 2019-06-13 | I62: 0
A63: 618 | C63: =IF(ISNA(IF(Summary!$B$5=3,IF(VLOOKUP(A59,Calendar!$A$3:$G$459,7,FALSE)="S", "", VLOOKUP(A59,Calendar!$A$3:$G$459,7,FALSE)),IF(VLOOKUP(A59,Calendar!$A$3:$G$459,4,FALSE)="S", "", VLOOKUP(A59,Calendar!$A$3:$G$459,4,FALSE)))),"",IF(Summary!$B$5=3,IF(VLOOKUP(A59,Calendar!$A$3:$G$459,7,FALSE)="S", "", VLOOKUP(A59,Calendar!$A$3:$G$459,7,FALSE)),IF(VLOOKUP(A59,Calendar!$A$3:$G$459,4,FALSE)="S", "", VLOOKUP(A59,Calendar!$A$3:$G$459,4,FALSE)))) -> F | D63: =IF(Summary!$B$5=3,IF(C63="","",VLOOKUP(A59,Calendar!$A$3:$G$459,5,FALSE)),IF(C63="","",VLOOKUP(A59,Calendar!$A$3:$G$459,2,FALSE))) -> 2019-06-14 | I63: 0
A64: 619 | C64: =IF(ISNA(IF(Summary!$B$5=3,IF(VLOOKUP(A60,Calendar!$A$3:$G$459,7,FALSE)="S", "", VLOOKUP(A60,Calendar!$A$3:$G$459,7,FALSE)),IF(VLOOKUP(A60,Calendar!$A$3:$G$459,4,FALSE)="S", "", VLOOKUP(A60,Calendar!$A$3:$G$459,4,FALSE)))),"",IF(Summary!$B$5=3,IF(VLOOKUP(A60,Calendar!$A$3:$G$459,7,FALSE)="S", "", VLOOKUP(A60,Calendar!$A$3:$G$459,7,FALSE)),IF(VLOOKUP(A60,Calendar!$A$3:$G$459,4,FALSE)="S", "", VLOOKUP(A60,Calendar!$A$3:$G$459,4,FALSE)))) ->  | D64: =IF(Summary!$B$5=3,IF(C64="","",VLOOKUP(A60,Calendar!$A$3:$G$459,5,FALSE)),IF(C64="","",VLOOKUP(A60,Calendar!$A$3:$G$459,2,FALSE))) ->  | I64: 0
A65: 620 | C65: =IF(ISNA(IF(Summary!$B$5=3,IF(VLOOKUP(A61,Calendar!$A$3:$G$459,7,FALSE)="S", "", VLOOKUP(A61,Calendar!$A$3:$G$459,7,FALSE)),IF(VLOOKUP(A61,Calendar!$A$3:$G$459,4,FALSE)="S", "", VLOOKUP(A61,Calendar!$A$3:$G$459,4,FALSE)))),"",IF(Summary!$B$5=3,IF(VLOOKUP(A61,Calendar!$A$3:$G$459,7,FALSE)="S", "", VLOOKUP(A61,Calendar!$A$3:$G$459,7,FALSE)),IF(VLOOKUP(A61,Calendar!$A$3:$G$459,4,FALSE)="S", "", VLOOKUP(A61,Calendar!$A$3:$G$459,4,FALSE)))) ->  | D65: =IF(Summary!$B$5=3,IF(C65="","",VLOOKUP(A61,Calendar!$A$3:$G$459,5,FALSE)),IF(C65="","",VLOOKUP(A61,Calendar!$A$3:$G$459,2,FALSE))) ->  | I65: 0
A66: 621 | C66: =IF(ISNA(IF(Summary!$B$5=3,IF(VLOOKUP(A62,Calendar!$A$3:$G$459,7,FALSE)="S", "", VLOOKUP(A62,Calendar!$A$3:$G$459,7,FALSE)),IF(VLOOKUP(A62,Calendar!$A$3:$G$459,4,FALSE)="S", "", VLOOKUP(A62,Calendar!$A$3:$G$459,4,FALSE)))),"",IF(Summary!$B$5=3,IF(VLOOKUP(A62,Calendar!$A$3:$G$459,7,FALSE)="S", "", VLOOKUP(A62,Calendar!$A$3:$G$459,7,FALSE)),IF(VLOOKUP(A62,Calendar!$A$3:$G$459,4,FALSE)="S", "", VLOOKUP(A62,Calendar!$A$3:$G$459,4,FALSE)))) -> M | D66: =IF(Summary!$B$5=3,IF(C66="","",VLOOKUP(A62,Calendar!$A$3:$G$459,5,FALSE)),IF(C66="","",VLOOKUP(A62,Calendar!$A$3:$G$459,2,FALSE))) -> 2019-06-17 | I66: 0
A67: 622 | C67: =IF(ISNA(IF(Summary!$B$5=3,IF(VLOOKUP(A63,Calendar!$A$3:$G$459,7,FALSE)="S", "", VLOOKUP(A63,Calendar!$A$3:$G$459,7,FALSE)),IF(VLOOKUP(A63,Calendar!$A$3:$G$459,4,FALSE)="S", "", VLOOKUP(A63,Calendar!$A$3:$G$459,4,FALSE)))),"",IF(Summary!$B$5=3,IF(VLOOKUP(A63,Calendar!$A$3:$G$459,7,FALSE)="S", "", VLOOKUP(A63,Calendar!$A$3:$G$459,7,FALSE)),IF(VLOOKUP(A63,Calendar!$A$3:$G$459,4,FALSE)="S", "", VLOOKUP(A63,Calendar!$A$3:$G$459,4,FALSE)))) -> T | D67: =IF(Summary!$B$5=3,IF(C67="","",VLOOKUP(A63,Calendar!$A$3:$G$459,5,FALSE)),IF(C67="","",VLOOKUP(A63,Calendar!$A$3:$G$459,2,FALSE))) -> 2019-06-18 | I67: 0
A68: 623 | C68: =IF(ISNA(IF(Summary!$B$5=3,IF(VLOOKUP(A64,Calendar!$A$3:$G$459,7,FALSE)="S", "", VLOOKUP(A64,Calendar!$A$3:$G$459,7,FALSE)),IF(VLOOKUP(A64,Calendar!$A$3:$G$459,4,FALSE)="S", "", VLOOKUP(A64,Calendar!$A$3:$G$459,4,FALSE)))),"",IF(Summary!$B$5=3,IF(VLOOKUP(A64,Calendar!$A$3:$G$459,7,FALSE)="S", "", VLOOKUP(A64,Calendar!$A$3:$G$459,7,FALSE)),IF(VLOOKUP(A64,Calendar!$A$3:$G$459,4,FALSE)="S", "", VLOOKUP(A64,Calendar!$A$3:$G$459,4,FALSE)))) -> W | D68: =IF(Summary!$B$5=3,IF(C68="","",VLOOKUP(A64,Calendar!$A$3:$G$459,5,FALSE)),IF(C68="","",VLOOKUP(A64,Calendar!$A$3:$G$459,2,FALSE))) -> 2019-06-19 | I68: 0
A69: 624 | C69: =IF(ISNA(IF(Summary!$B$5=3,IF(VLOOKUP(A65,Calendar!$A$3:$G$459,7,FALSE)="S", "", VLOOKUP(A65,Calendar!$A$3:$G$459,7,FALSE)),IF(VLOOKUP(A65,Calendar!$A$3:$G$459,4,FALSE)="S", "", VLOOKUP(A65,Calendar!$A$3:$G$459,4,FALSE)))),"",IF(Summary!$B$5=3,IF(VLOOKUP(A65,Calendar!$A$3:$G$459,7,FALSE)="S", "", VLOOKUP(A65,Calendar!$A$3:$G$459,7,FALSE)),IF(VLOOKUP(A65,Calendar!$A$3:$G$459,4,FALSE)="S", "", VLOOKUP(A65,Calendar!$A$3:$G$459,4,FALSE)))) -> R | D69: =IF(Summary!$B$5=3,IF(C69="","",VLOOKUP(A65,Calendar!$A$3:$G$459,5,FALSE)),IF(C69="","",VLOOKUP(A65,Calendar!$A$3:$G$459,2,FALSE))) -> 2019-06-20 | I69: 0
A70: 625 | C70: =IF(ISNA(IF(Summary!$B$5=3,IF(VLOOKUP(A66,Calendar!$A$3:$G$459,7,FALSE)="S", "", VLOOKUP(A66,Calendar!$A$3:$G$459,7,FALSE)),IF(VLOOKUP(A66,Calendar!$A$3:$G$459,4,FALSE)="S", "", VLOOKUP(A66,Calendar!$A$3:$G$459,4,FALSE)))),"",IF(Summary!$B$5=3,IF(VLOOKUP(A66,Calendar!$A$3:$G$459,7,FALSE)="S", "", VLOOKUP(A66,Calendar!$A$3:$G$459,7,FALSE)),IF(VLOOKUP(A66,Calendar!$A$3:$G$459,4,FALSE)="S", "", VLOOKUP(A66,Calendar!$A$3:$G$459,4,FALSE)))) -> F | D70: =IF(Summary!$B$5=3,IF(C70="","",VLOOKUP(A66,Calendar!$A$3:$G$459,5,FALSE)),IF(C70="","",VLOOKUP(A66,Calendar!$A$3:$G$459,2,FALSE))) -> 2019-06-21 | I70: 0
A71: 626 | C71: =IF(ISNA(IF(Summary!$B$5=3,IF(VLOOKUP(A67,Calendar!$A$3:$G$459,7,FALSE)="S", "", VLOOKUP(A67,Calendar!$A$3:$G$459,7,FALSE)),IF(VLOOKUP(A67,Calendar!$A$3:$G$459,4,FALSE)="S", "", VLOOKUP(A67,Calendar!$A$3:$G$459,4,FALSE)))),"",IF(Summary!$B$5=3,IF(VLOOKUP(A67,Calendar!$A$3:$G$459,7,FALSE)="S", "", VLOOKUP(A67,Calendar!$A$3:$G$459,7,FALSE)),IF(VLOOKUP(A67,Calendar!$A$3:$G$459,4,FALSE)="S", "", VLOOKUP(A67,Calendar!$A$3:$G$459,4,FALSE)))) ->  | D71: =IF(Summary!$B$5=3,IF(C71="","",VLOOKUP(A67,Calendar!$A$3:$G$459,5,FALSE)),IF(C71="","",VLOOKUP(A67,Calendar!$A$3:$G$459,2,FALSE))) ->  | I71: 0
A72: 627 | C72: =IF(ISNA(IF(Summary!$B$5=3,IF(VLOOKUP(A68,Calendar!$A$3:$G$459,7,FALSE)="S", "", VLOOKUP(A68,Calendar!$A$3:$G$459,7,FALSE)),IF(VLOOKUP(A68,Calendar!$A$3:$G$459,4,FALSE)="S", "", VLOOKUP(A68,Calendar!$A$3:$G$459,4,FALSE)))),"",IF(Summary!$B$5=3,IF(VLOOKUP(A68,Calendar!$A$3:$G$459,7,FALSE)="S", "", VLOOKUP(A68,Calendar!$A$3:$G$459,7,FALSE)),IF(VLOOKUP(A68,Calendar!$A$3:$G$459,4,FALSE)="S", "", VLOOKUP(A68,Calendar!$A$3:$G$459,4,FALSE)))) ->  | D72: =IF(Summary!$B$5=3,IF(C72="","",VLOOKUP(A68,Calendar!$A$3:$G$459,5,FALSE)),IF(C72="","",VLOOKUP(A68,Calendar!$A$3:$G$459,2,FALSE))) ->  | I72: 0
A73: 628 | C73: =IF(ISNA(IF(Summary!$B$5=3,IF(VLOOKUP(A69,Calendar!$A$3:$G$459,7,FALSE)="S", "", VLOOKUP(A69,Calendar!$A$3:$G$459,7,FALSE)),IF(VLOOKUP(A69,Calendar!$A$3:$G$459,4,FALSE)="S", "", VLOOKUP(A69,Calendar!$A$3:$G$459,4,FALSE)))),"",IF(Summary!$B$5=3,IF(VLOOKUP(A69,Calendar!$A$3:$G$459,7,FALSE)="S", "", VLOOKUP(A69,Calendar!$A$3:$G$459,7,FALSE)),IF(VLOOKUP(A69,Calendar!$A$3:$G$459,4,FALSE)="S", "", VLOOKUP(A69,Calendar!$A$3:$G$459,4,FALSE)))) -> M | D73: =IF(Summary!$B$5=3,IF(C73="","",VLOOKUP(A69,Calendar!$A$3:$G$459,5,FALSE)),IF(C73="","",VLOOKUP(A69,Calendar!$A$3:$G$459,2,FALSE))) -> 2019-06-24 | I73: 0
A74: 629 | C74: =IF(ISNA(IF(Summary!$B$5=3,IF(VLOOKUP(A70,Calendar!$A$3:$G$459,7,FALSE)="S", "", VLOOKUP(A70,Calendar!$A$3:$G$459,7,FALSE)),IF(VLOOKUP(A70,Calendar!$A$3:$G$459,4,FALSE)="S", "", VLOOKUP(A70,Calendar!$A$3:$G$459,4,FALSE)))),"",IF(Summary!$B$5=3,IF(VLOOKUP(A70,Calendar!$A$3:$G$459,7,FALSE)="S", "", VLOOKUP(A70,Calendar!$A$3:$G$459,7,FALSE)),IF(VLOOKUP(A70,Calendar!$A$3:$G$459,4,FALSE)="S", "", VLOOKUP(A70,Calendar!$A$3:$G$459,4,FALSE)))) -> T | D74: =IF(Summary!$B$5=3,IF(C74="","",VLOOKUP(A70,Calendar!$A$3:$G$459,5,FALSE)),IF(C74="","",VLOOKUP(A70,Calendar!$A$3:$G$459,2,FALSE))) -> 2019-06-25 | I74: 0
A75: 630 | C75: =IF(ISNA(IF(Summary!$B$5=3,IF(VLOOKUP(A71,Calendar!$A$3:$G$459,7,FALSE)="S", "", VLOOKUP(A71,Calendar!$A$3:$G$459,7,FALSE)),IF(VLOOKUP(A71,Calendar!$A$3:$G$459,4,FALSE)="S", "", VLOOKUP(A71,Calendar!$A$3:$G$459,4,FALSE)))),"",IF(Summary!$B$5=3,IF(VLOOKUP(A71,Calendar!$A$3:$G$459,7,FALSE)="S", "", VLOOKUP(A71,Calendar!$A$3:$G$459,7,FALSE)),IF(VLOOKUP(A71,Calendar!$A$3:$G$459,4,FALSE)="S", "", VLOOKUP(A71,Calendar!$A$3:$G$459,4,FALSE)))) -> W | D75: =IF(Summary!$B$5=3,IF(C75="","",VLOOKUP(A71,Calendar!$A$3:$G$459,5,FALSE)),IF(C75="","",VLOOKUP(A71,Calendar!$A$3:$G$459,2,FALSE))) -> 2019-06-26 | I75: 0
C76: =IF(ISNA(IF(Summary!$B$5=3,IF(VLOOKUP(A72,Calendar!$A$3:$G$459,7,FALSE)="S", "", VLOOKUP(A72,Calendar!$A$3:$G$459,7,FALSE)),IF(VLOOKUP(A72,Calendar!$A$3:$G$459,4,FALSE)="S", "", VLOOKUP(A72,Calendar!$A$3:$G$459,4,FALSE)))),"",IF(Summary!$B$5=3,IF(VLOOKUP(A72,Calendar!$A$3:$G$459,7,FALSE)="S", "", VLOOKUP(A72,Calendar!$A$3:$G$459,7,FALSE)),IF(VLOOKUP(A72,Calendar!$A$3:$G$459,4,FALSE)="S", "", VLOOKUP(A72,Calendar!$A$3:$G$459,4,FALSE)))) -> R | D76: =IF(Summary!$B$5=3,IF(C76="","",VLOOKUP(A72,Calendar!$A$3:$G$459,5,FALSE)),IF(C76="","",VLOOKUP(A72,Calendar!$A$3:$G$459,2,FALSE))) -> 2019-06-27 | I76: 0
C77: =IF(ISNA(IF(Summary!$B$5=3,IF(VLOOKUP(A73,Calendar!$A$3:$G$459,7,FALSE)="S", "", VLOOKUP(A73,Calendar!$A$3:$G$459,7,FALSE)),IF(VLOOKUP(A73,Calendar!$A$3:$G$459,4,FALSE)="S", "", VLOOKUP(A73,Calendar!$A$3:$G$459,4,FALSE)))),"",IF(Summary!$B$5=3,IF(VLOOKUP(A73,Calendar!$A$3:$G$459,7,FALSE)="S", "", VLOOKUP(A73,Calendar!$A$3:$G$459,7,FALSE)),IF(VLOOKUP(A73,Calendar!$A$3:$G$459,4,FALSE)="S", "", VLOOKUP(A73,Calendar!$A$3:$G$459,4,FALSE)))) -> F | D77: =IF(Summary!$B$5=3,IF(C77="","",VLOOKUP(A73,Calendar!$A$3:$G$459,5,FALSE)),IF(C77="","",VLOOKUP(A73,Calendar!$A$3:$G$459,2,FALSE))) -> 2019-06-28 | I77: 0 | L77: =IF(SUM(E81:H81)>COUNTA(E50:E80)*390,"The sum total for all cost objectives exceeds the maximum anticipated value based upon the number of days worked. Confirm minutes claimed for each day.","") -> 
C78: =IF(ISNA(IF(Summary!$B$5=3,IF(VLOOKUP(A74,Calendar!$A$3:$G$459,7,FALSE)="S", "", VLOOKUP(A74,Calendar!$A$3:$G$459,7,FALSE)),IF(VLOOKUP(A74,Calendar!$A$3:$G$459,4,FALSE)="S", "", VLOOKUP(A74,Calendar!$A$3:$G$459,4,FALSE)))),"",IF(Summary!$B$5=3,IF(VLOOKUP(A74,Calendar!$A$3:$G$459,7,FALSE)="S", "", VLOOKUP(A74,Calendar!$A$3:$G$459,7,FALSE)),IF(VLOOKUP(A74,Calendar!$A$3:$G$459,4,FALSE)="S", "", VLOOKUP(A74,Calendar!$A$3:$G$459,4,FALSE)))) ->  | D78: =IF(Summary!$B$5=3,IF(C78="","",VLOOKUP(A74,Calendar!$A$3:$G$459,5,FALSE)),IF(C78="","",VLOOKUP(A74,Calendar!$A$3:$G$459,2,FALSE))) ->  | I78: 0
C79: =IF(ISNA(IF(Summary!$B$5=3,IF(VLOOKUP(A75,Calendar!$A$3:$G$459,7,FALSE)="S", "", VLOOKUP(A75,Calendar!$A$3:$G$459,7,FALSE)),IF(VLOOKUP(A75,Calendar!$A$3:$G$459,4,FALSE)="S", "", VLOOKUP(A75,Calendar!$A$3:$G$459,4,FALSE)))),"",IF(Summary!$B$5=3,IF(VLOOKUP(A75,Calendar!$A$3:$G$459,7,FALSE)="S", "", VLOOKUP(A75,Calendar!$A$3:$G$459,7,FALSE)),IF(VLOOKUP(A75,Calendar!$A$3:$G$459,4,FALSE)="S", "", VLOOKUP(A75,Calendar!$A$3:$G$459,4,FALSE)))) ->  | D79: =IF(Summary!$B$5=3,IF(C79="","",VLOOKUP(A75,Calendar!$A$3:$G$459,5,FALSE)),IF(C79="","",VLOOKUP(A75,Calendar!$A$3:$G$459,2,FALSE))) ->  | I79: 0
C80: =IF(ISNA(IF(Summary!$B$5=3,IF(VLOOKUP(A76,Calendar!$A$3:$G$459,7,FALSE)="S", "", VLOOKUP(A76,Calendar!$A$3:$G$459,7,FALSE)),IF(VLOOKUP(A76,Calendar!$A$3:$G$459,4,FALSE)="S", "", VLOOKUP(A76,Calendar!$A$3:$G$459,4,FALSE)))),"",IF(Summary!$B$5=3,IF(VLOOKUP(A76,Calendar!$A$3:$G$459,7,FALSE)="S", "", VLOOKUP(A76,Calendar!$A$3:$G$459,7,FALSE)),IF(VLOOKUP(A76,Calendar!$A$3:$G$459,4,FALSE)="S", "", VLOOKUP(A76,Calendar!$A$3:$G$459,4,FALSE)))) ->  | D80: =IF(Summary!$B$5=3,IF(C80="","",VLOOKUP(A76,Calendar!$A$3:$G$459,5,FALSE)),IF(C80="","",VLOOKUP(A76,Calendar!$A$3:$G$459,2,FALSE))) ->  | I80: 0
D81: Total Minutes | E81: =SUM(E50:E80) -> 0 | F81: =SUM(F50:F80) -> 0 | G81: =SUM(G50:G80) -> 0 | H81: =SUM(H50:H80) -> 0 | I81: =SUM(I50:I80) -> 0
D82: Total Hours | E82: =E81/60 -> 0 | F82: =F81/60 -> 0 | G82: =G81/60 -> 0 | H82: =H81/60 -> 0 | I82: =I81/60 -> 0
C85: Personnel Activity Report
C86: Extended School Year
A87: 701 | C87: July | L87: =IF(I91>390, "<<< Day exceeds 390 minutes. Confirm reported time.","") -> 
A88: 702 | C88: =IF(Summary!$E$8<>"",Summary!$E$8," ") ->  | L88: =IF(I92>390, "<<< Day exceeds 390 minutes. Confirm reported time.","") -> 
A89: 703 | C89: =IF(Summary!$E$9<>"",Summary!$E$9," ") -> 
A90: 704 | C90: Day | D90: Date | E90: Special Ed | F90: General Ed | G90: Other | H90: Other | I90: Totals
A91: 705 | C91: =IF(ISNA(IF(Summary!$B$5=3,IF(VLOOKUP(A87,Calendar!$A$3:$G$459,7,FALSE)="S", "", VLOOKUP(A87,Calendar!$A$3:$G$459,7,FALSE)),IF(VLOOKUP(A87,Calendar!$A$3:$G$459,4,FALSE)="S", "", VLOOKUP(A87,Calendar!$A$3:$G$459,4,FALSE)))),"",IF(Summary!$B$5=3,IF(VLOOKUP(A87,Calendar!$A$3:$G$459,7,FALSE)="S", "", VLOOKUP(A87,Calendar!$A$3:$G$459,7,FALSE)),IF(VLOOKUP(A87,Calendar!$A$3:$G$459,4,FALSE)="S", "", VLOOKUP(A87,Calendar!$A$3:$G$459,4,FALSE)))) -> M | D91: =IF(Summary!$B$5=3,IF(C91="","",VLOOKUP(A87,Calendar!$A$3:$G$459,5,FALSE)),IF(C91="","",VLOOKUP(A87,Calendar!$A$3:$G$459,2,FALSE))) -> 2019-07-01 | I91: =MIN(1440,SUM(E91:H91)) -> 0
A92: 706 | C92: =IF(ISNA(IF(Summary!$B$5=3,IF(VLOOKUP(A88,Calendar!$A$3:$G$459,7,FALSE)="S", "", VLOOKUP(A88,Calendar!$A$3:$G$459,7,FALSE)),IF(VLOOKUP(A88,Calendar!$A$3:$G$459,4,FALSE)="S", "", VLOOKUP(A88,Calendar!$A$3:$G$459,4,FALSE)))),"",IF(Summary!$B$5=3,IF(VLOOKUP(A88,Calendar!$A$3:$G$459,7,FALSE)="S", "", VLOOKUP(A88,Calendar!$A$3:$G$459,7,FALSE)),IF(VLOOKUP(A88,Calendar!$A$3:$G$459,4,FALSE)="S", "", VLOOKUP(A88,Calendar!$A$3:$G$459,4,FALSE)))) -> T | D92: =IF(Summary!$B$5=3,IF(C92="","",VLOOKUP(A88,Calendar!$A$3:$G$459,5,FALSE)),IF(C92="","",VLOOKUP(A88,Calendar!$A$3:$G$459,2,FALSE))) -> 2019-07-02 | I92: =MIN(1440,SUM(E92:H92)) -> 0
A93: 707 | C93: =IF(ISNA(IF(Summary!$B$5=3,IF(VLOOKUP(A89,Calendar!$A$3:$G$459,7,FALSE)="S", "", VLOOKUP(A89,Calendar!$A$3:$G$459,7,FALSE)),IF(VLOOKUP(A89,Calendar!$A$3:$G$459,4,FALSE)="S", "", VLOOKUP(A89,Calendar!$A$3:$G$459,4,FALSE)))),"",IF(Summary!$B$5=3,IF(VLOOKUP(A89,Calendar!$A$3:$G$459,7,FALSE)="S", "", VLOOKUP(A89,Calendar!$A$3:$G$459,7,FALSE)),IF(VLOOKUP(A89,Calendar!$A$3:$G$459,4,FALSE)="S", "", VLOOKUP(A89,Calendar!$A$3:$G$459,4,FALSE)))) -> W | D93: =IF(Summary!$B$5=3,IF(C93="","",VLOOKUP(A89,Calendar!$A$3:$G$459,5,FALSE)),IF(C93="","",VLOOKUP(A89,Calendar!$A$3:$G$459,2,FALSE))) -> 2019-07-03 | I93: 0
A94: 708 | C94: =IF(ISNA(IF(Summary!$B$5=3,IF(VLOOKUP(A90,Calendar!$A$3:$G$459,7,FALSE)="S", "", VLOOKUP(A90,Calendar!$A$3:$G$459,7,FALSE)),IF(VLOOKUP(A90,Calendar!$A$3:$G$459,4,FALSE)="S", "", VLOOKUP(A90,Calendar!$A$3:$G$459,4,FALSE)))),"",IF(Summary!$B$5=3,IF(VLOOKUP(A90,Calendar!$A$3:$G$459,7,FALSE)="S", "", VLOOKUP(A90,Calendar!$A$3:$G$459,7,FALSE)),IF(VLOOKUP(A90,Calendar!$A$3:$G$459,4,FALSE)="S", "", VLOOKUP(A90,Calendar!$A$3:$G$459,4,FALSE)))) -> R | D94: =IF(Summary!$B$5=3,IF(C94="","",VLOOKUP(A90,Calendar!$A$3:$G$459,5,FALSE)),IF(C94="","",VLOOKUP(A90,Calendar!$A$3:$G$459,2,FALSE))) -> 2019-07-04 | I94: 0
A95: 709 | C95: =IF(ISNA(IF(Summary!$B$5=3,IF(VLOOKUP(A91,Calendar!$A$3:$G$459,7,FALSE)="S", "", VLOOKUP(A91,Calendar!$A$3:$G$459,7,FALSE)),IF(VLOOKUP(A91,Calendar!$A$3:$G$459,4,FALSE)="S", "", VLOOKUP(A91,Calendar!$A$3:$G$459,4,FALSE)))),"",IF(Summary!$B$5=3,IF(VLOOKUP(A91,Calendar!$A$3:$G$459,7,FALSE)="S", "", VLOOKUP(A91,Calendar!$A$3:$G$459,7,FALSE)),IF(VLOOKUP(A91,Calendar!$A$3:$G$459,4,FALSE)="S", "", VLOOKUP(A91,Calendar!$A$3:$G$459,4,FALSE)))) -> F | D95: =IF(Summary!$B$5=3,IF(C95="","",VLOOKUP(A91,Calendar!$A$3:$G$459,5,FALSE)),IF(C95="","",VLOOKUP(A91,Calendar!$A$3:$G$459,2,FALSE))) -> 2019-07-05 | I95: 0
A96: 710 | C96: =IF(ISNA(IF(Summary!$B$5=3,IF(VLOOKUP(A92,Calendar!$A$3:$G$459,7,FALSE)="S", "", VLOOKUP(A92,Calendar!$A$3:$G$459,7,FALSE)),IF(VLOOKUP(A92,Calendar!$A$3:$G$459,4,FALSE)="S", "", VLOOKUP(A92,Calendar!$A$3:$G$459,4,FALSE)))),"",IF(Summary!$B$5=3,IF(VLOOKUP(A92,Calendar!$A$3:$G$459,7,FALSE)="S", "", VLOOKUP(A92,Calendar!$A$3:$G$459,7,FALSE)),IF(VLOOKUP(A92,Calendar!$A$3:$G$459,4,FALSE)="S", "", VLOOKUP(A92,Calendar!$A$3:$G$459,4,FALSE)))) ->  | D96: =IF(Summary!$B$5=3,IF(C96="","",VLOOKUP(A92,Calendar!$A$3:$G$459,5,FALSE)),IF(C96="","",VLOOKUP(A92,Calendar!$A$3:$G$459,2,FALSE))) ->  | I96: 0
A97: 711 | C97: =IF(ISNA(IF(Summary!$B$5=3,IF(VLOOKUP(A93,Calendar!$A$3:$G$459,7,FALSE)="S", "", VLOOKUP(A93,Calendar!$A$3:$G$459,7,FALSE)),IF(VLOOKUP(A93,Calendar!$A$3:$G$459,4,FALSE)="S", "", VLOOKUP(A93,Calendar!$A$3:$G$459,4,FALSE)))),"",IF(Summary!$B$5=3,IF(VLOOKUP(A93,Calendar!$A$3:$G$459,7,FALSE)="S", "", VLOOKUP(A93,Calendar!$A$3:$G$459,7,FALSE)),IF(VLOOKUP(A93,Calendar!$A$3:$G$459,4,FALSE)="S", "", VLOOKUP(A93,Calendar!$A$3:$G$459,4,FALSE)))) ->  | D97: =IF(Summary!$B$5=3,IF(C97="","",VLOOKUP(A93,Calendar!$A$3:$G$459,5,FALSE)),IF(C97="","",VLOOKUP(A93,Calendar!$A$3:$G$459,2,FALSE))) ->  | I97: 0
A98: 712 | C98: =IF(ISNA(IF(Summary!$B$5=3,IF(VLOOKUP(A94,Calendar!$A$3:$G$459,7,FALSE)="S", "", VLOOKUP(A94,Calendar!$A$3:$G$459,7,FALSE)),IF(VLOOKUP(A94,Calendar!$A$3:$G$459,4,FALSE)="S", "", VLOOKUP(A94,Calendar!$A$3:$G$459,4,FALSE)))),"",IF(Summary!$B$5=3,IF(VLOOKUP(A94,Calendar!$A$3:$G$459,7,FALSE)="S", "", VLOOKUP(A94,Calendar!$A$3:$G$459,7,FALSE)),IF(VLOOKUP(A94,Calendar!$A$3:$G$459,4,FALSE)="S", "", VLOOKUP(A94,Calendar!$A$3:$G$459,4,FALSE)))) -> M | D98: =IF(Summary!$B$5=3,IF(C98="","",VLOOKUP(A94,Calendar!$A$3:$G$459,5,FALSE)),IF(C98="","",VLOOKUP(A94,Calendar!$A$3:$G$459,2,FALSE))) -> 2019-07-08 | I98: 0
A99: 713 | C99: =IF(ISNA(IF(Summary!$B$5=3,IF(VLOOKUP(A95,Calendar!$A$3:$G$459,7,FALSE)="S", "", VLOOKUP(A95,Calendar!$A$3:$G$459,7,FALSE)),IF(VLOOKUP(A95,Calendar!$A$3:$G$459,4,FALSE)="S", "", VLOOKUP(A95,Calendar!$A$3:$G$459,4,FALSE)))),"",IF(Summary!$B$5=3,IF(VLOOKUP(A95,Calendar!$A$3:$G$459,7,FALSE)="S", "", VLOOKUP(A95,Calendar!$A$3:$G$459,7,FALSE)),IF(VLOOKUP(A95,Calendar!$A$3:$G$459,4,FALSE)="S", "", VLOOKUP(A95,Calendar!$A$3:$G$459,4,FALSE)))) -> T | D99: =IF(Summary!$B$5=3,IF(C99="","",VLOOKUP(A95,Calendar!$A$3:$G$459,5,FALSE)),IF(C99="","",VLOOKUP(A95,Calendar!$A$3:$G$459,2,FALSE))) -> 2019-07-09 | I99: 0
A100: 714 | C100: =IF(ISNA(IF(Summary!$B$5=3,IF(VLOOKUP(A96,Calendar!$A$3:$G$459,7,FALSE)="S", "", VLOOKUP(A96,Calendar!$A$3:$G$459,7,FALSE)),IF(VLOOKUP(A96,Calendar!$A$3:$G$459,4,FALSE)="S", "", VLOOKUP(A96,Calendar!$A$3:$G$459,4,FALSE)))),"",IF(Summary!$B$5=3,IF(VLOOKUP(A96,Calendar!$A$3:$G$459,7,FALSE)="S", "", VLOOKUP(A96,Calendar!$A$3:$G$459,7,FALSE)),IF(VLOOKUP(A96,Calendar!$A$3:$G$459,4,FALSE)="S", "", VLOOKUP(A96,Calendar!$A$3:$G$459,4,FALSE)))) -> W | D100: =IF(Summary!$B$5=3,IF(C100="","",VLOOKUP(A96,Calendar!$A$3:$G$459,5,FALSE)),IF(C100="","",VLOOKUP(A96,Calendar!$A$3:$G$459,2,FALSE))) -> 2019-07-10 | I100: 0
A101: 715 | C101: =IF(ISNA(IF(Summary!$B$5=3,IF(VLOOKUP(A97,Calendar!$A$3:$G$459,7,FALSE)="S", "", VLOOKUP(A97,Calendar!$A$3:$G$459,7,FALSE)),IF(VLOOKUP(A97,Calendar!$A$3:$G$459,4,FALSE)="S", "", VLOOKUP(A97,Calendar!$A$3:$G$459,4,FALSE)))),"",IF(Summary!$B$5=3,IF(VLOOKUP(A97,Calendar!$A$3:$G$459,7,FALSE)="S", "", VLOOKUP(A97,Calendar!$A$3:$G$459,7,FALSE)),IF(VLOOKUP(A97,Calendar!$A$3:$G$459,4,FALSE)="S", "", VLOOKUP(A97,Calendar!$A$3:$G$459,4,FALSE)))) -> R | D101: =IF(Summary!$B$5=3,IF(C101="","",VLOOKUP(A97,Calendar!$A$3:$G$459,5,FALSE)),IF(C101="","",VLOOKUP(A97,Calendar!$A$3:$G$459,2,FALSE))) -> 2019-07-11 | I101: 0
A102: 716 | C102: =IF(ISNA(IF(Summary!$B$5=3,IF(VLOOKUP(A98,Calendar!$A$3:$G$459,7,FALSE)="S", "", VLOOKUP(A98,Calendar!$A$3:$G$459,7,FALSE)),IF(VLOOKUP(A98,Calendar!$A$3:$G$459,4,FALSE)="S", "", VLOOKUP(A98,Calendar!$A$3:$G$459,4,FALSE)))),"",IF(Summary!$B$5=3,IF(VLOOKUP(A98,Calendar!$A$3:$G$459,7,FALSE)="S", "", VLOOKUP(A98,Calendar!$A$3:$G$459,7,FALSE)),IF(VLOOKUP(A98,Calendar!$A$3:$G$459,4,FALSE)="S", "", VLOOKUP(A98,Calendar!$A$3:$G$459,4,FALSE)))) -> F | D102: =IF(Summary!$B$5=3,IF(C102="","",VLOOKUP(A98,Calendar!$A$3:$G$459,5,FALSE)),IF(C102="","",VLOOKUP(A98,Calendar!$A$3:$G$459,2,FALSE))) -> 2019-07-12 | I102: 0
A103: 717 | C103: =IF(ISNA(IF(Summary!$B$5=3,IF(VLOOKUP(A99,Calendar!$A$3:$G$459,7,FALSE)="S", "", VLOOKUP(A99,Calendar!$A$3:$G$459,7,FALSE)),IF(VLOOKUP(A99,Calendar!$A$3:$G$459,4,FALSE)="S", "", VLOOKUP(A99,Calendar!$A$3:$G$459,4,FALSE)))),"",IF(Summary!$B$5=3,IF(VLOOKUP(A99,Calendar!$A$3:$G$459,7,FALSE)="S", "", VLOOKUP(A99,Calendar!$A$3:$G$459,7,FALSE)),IF(VLOOKUP(A99,Calendar!$A$3:$G$459,4,FALSE)="S", "", VLOOKUP(A99,Calendar!$A$3:$G$459,4,FALSE)))) ->  | D103: =IF(Summary!$B$5=3,IF(C103="","",VLOOKUP(A99,Calendar!$A$3:$G$459,5,FALSE)),IF(C103="","",VLOOKUP(A99,Calendar!$A$3:$G$459,2,FALSE))) ->  | I103: 0
A104: 718 | C104: =IF(ISNA(IF(Summary!$B$5=3,IF(VLOOKUP(A100,Calendar!$A$3:$G$459,7,FALSE)="S", "", VLOOKUP(A100,Calendar!$A$3:$G$459,7,FALSE)),IF(VLOOKUP(A100,Calendar!$A$3:$G$459,4,FALSE)="S", "", VLOOKUP(A100,Calendar!$A$3:$G$459,4,FALSE)))),"",IF(Summary!$B$5=3,IF(VLOOKUP(A100,Calendar!$A$3:$G$459,7,FALSE)="S", "", VLOOKUP(A100,Calendar!$A$3:$G$459,7,FALSE)),IF(VLOOKUP(A100,Calendar!$A$3:$G$459,4,FALSE)="S", "", VLOOKUP(A100,Calendar!$A$3:$G$459,4,FALSE)))) ->  | D104: =IF(Summary!$B$5=3,IF(C104="","",VLOOKUP(A100,Calendar!$A$3:$G$459,5,FALSE)),IF(C104="","",VLOOKUP(A100,Calendar!$A$3:$G$459,2,FALSE))) ->  | I104: 0
A105: 719 | C105: =IF(ISNA(IF(Summary!$B$5=3,IF(VLOOKUP(A101,Calendar!$A$3:$G$459,7,FALSE)="S", "", VLOOKUP(A101,Calendar!$A$3:$G$459,7,FALSE)),IF(VLOOKUP(A101,Calendar!$A$3:$G$459,4,FALSE)="S", "", VLOOKUP(A101,Calendar!$A$3:$G$459,4,FALSE)))),"",IF(Summary!$B$5=3,IF(VLOOKUP(A101,Calendar!$A$3:$G$459,7,FALSE)="S", "", VLOOKUP(A101,Calendar!$A$3:$G$459,7,FALSE)),IF(VLOOKUP(A101,Calendar!$A$3:$G$459,4,FALSE)="S", "", VLOOKUP(A101,Calendar!$A$3:$G$459,4,FALSE)))) -> M | D105: =IF(Summary!$B$5=3,IF(C105="","",VLOOKUP(A101,Calendar!$A$3:$G$459,5,FALSE)),IF(C105="","",VLOOKUP(A101,Calendar!$A$3:$G$459,2,FALSE))) -> 2019-07-15 | I105: 0
A106: 720 | C106: =IF(ISNA(IF(Summary!$B$5=3,IF(VLOOKUP(A102,Calendar!$A$3:$G$459,7,FALSE)="S", "", VLOOKUP(A102,Calendar!$A$3:$G$459,7,FALSE)),IF(VLOOKUP(A102,Calendar!$A$3:$G$459,4,FALSE)="S", "", VLOOKUP(A102,Calendar!$A$3:$G$459,4,FALSE)))),"",IF(Summary!$B$5=3,IF(VLOOKUP(A102,Calendar!$A$3:$G$459,7,FALSE)="S", "", VLOOKUP(A102,Calendar!$A$3:$G$459,7,FALSE)),IF(VLOOKUP(A102,Calendar!$A$3:$G$459,4,FALSE)="S", "", VLOOKUP(A102,Calendar!$A$3:$G$459,4,FALSE)))) -> T | D106: =IF(Summary!$B$5=3,IF(C106="","",VLOOKUP(A102,Calendar!$A$3:$G$459,5,FALSE)),IF(C106="","",VLOOKUP(A102,Calendar!$A$3:$G$459,2,FALSE))) -> 2019-07-16 | I106: 0
A107: 721 | C107: =IF(ISNA(IF(Summary!$B$5=3,IF(VLOOKUP(A103,Calendar!$A$3:$G$459,7,FALSE)="S", "", VLOOKUP(A103,Calendar!$A$3:$G$459,7,FALSE)),IF(VLOOKUP(A103,Calendar!$A$3:$G$459,4,FALSE)="S", "", VLOOKUP(A103,Calendar!$A$3:$G$459,4,FALSE)))),"",IF(Summary!$B$5=3,IF(VLOOKUP(A103,Calendar!$A$3:$G$459,7,FALSE)="S", "", VLOOKUP(A103,Calendar!$A$3:$G$459,7,FALSE)),IF(VLOOKUP(A103,Calendar!$A$3:$G$459,4,FALSE)="S", "", VLOOKUP(A103,Calendar!$A$3:$G$459,4,FALSE)))) -> W | D107: =IF(Summary!$B$5=3,IF(C107="","",VLOOKUP(A103,Calendar!$A$3:$G$459,5,FALSE)),IF(C107="","",VLOOKUP(A103,Calendar!$A$3:$G$459,2,FALSE))) -> 2019-07-17 | I107: 0
A108: 722 | C108: =IF(ISNA(IF(Summary!$B$5=3,IF(VLOOKUP(A104,Calendar!$A$3:$G$459,7,FALSE)="S", "", VLOOKUP(A104,Calendar!$A$3:$G$459,7,FALSE)),IF(VLOOKUP(A104,Calendar!$A$3:$G$459,4,FALSE)="S", "", VLOOKUP(A104,Calendar!$A$3:$G$459,4,FALSE)))),"",IF(Summary!$B$5=3,IF(VLOOKUP(A104,Calendar!$A$3:$G$459,7,FALSE)="S", "", VLOOKUP(A104,Calendar!$A$3:$G$459,7,FALSE)),IF(VLOOKUP(A104,Calendar!$A$3:$G$459,4,FALSE)="S", "", VLOOKUP(A104,Calendar!$A$3:$G$459,4,FALSE)))) -> R | D108: =IF(Summary!$B$5=3,IF(C108="","",VLOOKUP(A104,Calendar!$A$3:$G$459,5,FALSE)),IF(C108="","",VLOOKUP(A104,Calendar!$A$3:$G$459,2,FALSE))) -> 2019-07-18 | I108: 0
A109: 723 | C109: =IF(ISNA(IF(Summary!$B$5=3,IF(VLOOKUP(A105,Calendar!$A$3:$G$459,7,FALSE)="S", "", VLOOKUP(A105,Calendar!$A$3:$G$459,7,FALSE)),IF(VLOOKUP(A105,Calendar!$A$3:$G$459,4,FALSE)="S", "", VLOOKUP(A105,Calendar!$A$3:$G$459,4,FALSE)))),"",IF(Summary!$B$5=3,IF(VLOOKUP(A105,Calendar!$A$3:$G$459,7,FALSE)="S", "", VLOOKUP(A105,Calendar!$A$3:$G$459,7,FALSE)),IF(VLOOKUP(A105,Calendar!$A$3:$G$459,4,FALSE)="S", "", VLOOKUP(A105,Calendar!$A$3:$G$459,4,FALSE)))) -> F | D109: =IF(Summary!$B$5=3,IF(C109="","",VLOOKUP(A105,Calendar!$A$3:$G$459,5,FALSE)),IF(C109="","",VLOOKUP(A105,Calendar!$A$3:$G$459,2,FALSE))) -> 2019-07-19 | I109: 0
A110: 724 | C110: =IF(ISNA(IF(Summary!$B$5=3,IF(VLOOKUP(A106,Calendar!$A$3:$G$459,7,FALSE)="S", "", VLOOKUP(A106,Calendar!$A$3:$G$459,7,FALSE)),IF(VLOOKUP(A106,Calendar!$A$3:$G$459,4,FALSE)="S", "", VLOOKUP(A106,Calendar!$A$3:$G$459,4,FALSE)))),"",IF(Summary!$B$5=3,IF(VLOOKUP(A106,Calendar!$A$3:$G$459,7,FALSE)="S", "", VLOOKUP(A106,Calendar!$A$3:$G$459,7,FALSE)),IF(VLOOKUP(A106,Calendar!$A$3:$G$459,4,FALSE)="S", "", VLOOKUP(A106,Calendar!$A$3:$G$459,4,FALSE)))) ->  | D110: =IF(Summary!$B$5=3,IF(C110="","",VLOOKUP(A106,Calendar!$A$3:$G$459,5,FALSE)),IF(C110="","",VLOOKUP(A106,Calendar!$A$3:$G$459,2,FALSE))) ->  | I110: 0
A111: 725 | C111: =IF(ISNA(IF(Summary!$B$5=3,IF(VLOOKUP(A107,Calendar!$A$3:$G$459,7,FALSE)="S", "", VLOOKUP(A107,Calendar!$A$3:$G$459,7,FALSE)),IF(VLOOKUP(A107,Calendar!$A$3:$G$459,4,FALSE)="S", "", VLOOKUP(A107,Calendar!$A$3:$G$459,4,FALSE)))),"",IF(Summary!$B$5=3,IF(VLOOKUP(A107,Calendar!$A$3:$G$459,7,FALSE)="S", "", VLOOKUP(A107,Calendar!$A$3:$G$459,7,FALSE)),IF(VLOOKUP(A107,Calendar!$A$3:$G$459,4,FALSE)="S", "", VLOOKUP(A107,Calendar!$A$3:$G$459,4,FALSE)))) ->  | D111: =IF(Summary!$B$5=3,IF(C111="","",VLOOKUP(A107,Calendar!$A$3:$G$459,5,FALSE)),IF(C111="","",VLOOKUP(A107,Calendar!$A$3:$G$459,2,FALSE))) ->  | I111: 0
A112: 726 | C112: =IF(ISNA(IF(Summary!$B$5=3,IF(VLOOKUP(A108,Calendar!$A$3:$G$459,7,FALSE)="S", "", VLOOKUP(A108,Calendar!$A$3:$G$459,7,FALSE)),IF(VLOOKUP(A108,Calendar!$A$3:$G$459,4,FALSE)="S", "", VLOOKUP(A108,Calendar!$A$3:$G$459,4,FALSE)))),"",IF(Summary!$B$5=3,IF(VLOOKUP(A108,Calendar!$A$3:$G$459,7,FALSE)="S", "", VLOOKUP(A108,Calendar!$A$3:$G$459,7,FALSE)),IF(VLOOKUP(A108,Calendar!$A$3:$G$459,4,FALSE)="S", "", VLOOKUP(A108,Calendar!$A$3:$G$459,4,FALSE)))) -> M | D112: =IF(Summary!$B$5=3,IF(C112="","",VLOOKUP(A108,Calendar!$A$3:$G$459,5,FALSE)),IF(C112="","",VLOOKUP(A108,Calendar!$A$3:$G$459,2,FALSE))) -> 2019-07-22 | I112: 0
A113: 727 | C113: =IF(ISNA(IF(Summary!$B$5=3,IF(VLOOKUP(A109,Calendar!$A$3:$G$459,7,FALSE)="S", "", VLOOKUP(A109,Calendar!$A$3:$G$459,7,FALSE)),IF(VLOOKUP(A109,Calendar!$A$3:$G$459,4,FALSE)="S", "", VLOOKUP(A109,Calendar!$A$3:$G$459,4,FALSE)))),"",IF(Summary!$B$5=3,IF(VLOOKUP(A109,Calendar!$A$3:$G$459,7,FALSE)="S", "", VLOOKUP(A109,Calendar!$A$3:$G$459,7,FALSE)),IF(VLOOKUP(A109,Calendar!$A$3:$G$459,4,FALSE)="S", "", VLOOKUP(A109,Calendar!$A$3:$G$459,4,FALSE)))) -> T | D113: =IF(Summary!$B$5=3,IF(C113="","",VLOOKUP(A109,Calendar!$A$3:$G$459,5,FALSE)),IF(C113="","",VLOOKUP(A109,Calendar!$A$3:$G$459,2,FALSE))) -> 2019-07-23 | I113: 0
A114: 728 | C114: =IF(ISNA(IF(Summary!$B$5=3,IF(VLOOKUP(A110,Calendar!$A$3:$G$459,7,FALSE)="S", "", VLOOKUP(A110,Calendar!$A$3:$G$459,7,FALSE)),IF(VLOOKUP(A110,Calendar!$A$3:$G$459,4,FALSE)="S", "", VLOOKUP(A110,Calendar!$A$3:$G$459,4,FALSE)))),"",IF(Summary!$B$5=3,IF(VLOOKUP(A110,Calendar!$A$3:$G$459,7,FALSE)="S", "", VLOOKUP(A110,Calendar!$A$3:$G$459,7,FALSE)),IF(VLOOKUP(A110,Calendar!$A$3:$G$459,4,FALSE)="S", "", VLOOKUP(A110,Calendar!$A$3:$G$459,4,FALSE)))) -> W | D114: =IF(Summary!$B$5=3,IF(C114="","",VLOOKUP(A110,Calendar!$A$3:$G$459,5,FALSE)),IF(C114="","",VLOOKUP(A110,Calendar!$A$3:$G$459,2,FALSE))) -> 2019-07-24 | I114: 0
A115: 729 | C115: =IF(ISNA(IF(Summary!$B$5=3,IF(VLOOKUP(A111,Calendar!$A$3:$G$459,7,FALSE)="S", "", VLOOKUP(A111,Calendar!$A$3:$G$459,7,FALSE)),IF(VLOOKUP(A111,Calendar!$A$3:$G$459,4,FALSE)="S", "", VLOOKUP(A111,Calendar!$A$3:$G$459,4,FALSE)))),"",IF(Summary!$B$5=3,IF(VLOOKUP(A111,Calendar!$A$3:$G$459,7,FALSE)="S", "", VLOOKUP(A111,Calendar!$A$3:$G$459,7,FALSE)),IF(VLOOKUP(A111,Calendar!$A$3:$G$459,4,FALSE)="S", "", VLOOKUP(A111,Calendar!$A$3:$G$459,4,FALSE)))) -> R | D115: =IF(Summary!$B$5=3,IF(C115="","",VLOOKUP(A111,Calendar!$A$3:$G$459,5,FALSE)),IF(C115="","",VLOOKUP(A111,Calendar!$A$3:$G$459,2,FALSE))) -> 2019-07-25 | I115: 0
A116: 730 | C116: =IF(ISNA(IF(Summary!$B$5=3,IF(VLOOKUP(A112,Calendar!$A$3:$G$459,7,FALSE)="S", "", VLOOKUP(A112,Calendar!$A$3:$G$459,7,FALSE)),IF(VLOOKUP(A112,Calendar!$A$3:$G$459,4,FALSE)="S", "", VLOOKUP(A112,Calendar!$A$3:$G$459,4,FALSE)))),"",IF(Summary!$B$5=3,IF(VLOOKUP(A112,Calendar!$A$3:$G$459,7,FALSE)="S", "", VLOOKUP(A112,Calendar!$A$3:$G$459,7,FALSE)),IF(VLOOKUP(A112,Calendar!$A$3:$G$459,4,FALSE)="S", "", VLOOKUP(A112,Calendar!$A$3:$G$459,4,FALSE)))) -> F | D116: =IF(Summary!$B$5=3,IF(C116="","",VLOOKUP(A112,Calendar!$A$3:$G$459,5,FALSE)),IF(C116="","",VLOOKUP(A112,Calendar!$A$3:$G$459,2,FALSE))) -> 2019-07-26 | I116: 0
A117: 731 | C117: =IF(ISNA(IF(Summary!$B$5=3,IF(VLOOKUP(A113,Calendar!$A$3:$G$459,7,FALSE)="S", "", VLOOKUP(A113,Calendar!$A$3:$G$459,7,FALSE)),IF(VLOOKUP(A113,Calendar!$A$3:$G$459,4,FALSE)="S", "", VLOOKUP(A113,Calendar!$A$3:$G$459,4,FALSE)))),"",IF(Summary!$B$5=3,IF(VLOOKUP(A113,Calendar!$A$3:$G$459,7,FALSE)="S", "", VLOOKUP(A113,Calendar!$A$3:$G$459,7,FALSE)),IF(VLOOKUP(A113,Calendar!$A$3:$G$459,4,FALSE)="S", "", VLOOKUP(A113,Calendar!$A$3:$G$459,4,FALSE)))) ->  | D117: =IF(Summary!$B$5=3,IF(C117="","",VLOOKUP(A113,Calendar!$A$3:$G$459,5,FALSE)),IF(C117="","",VLOOKUP(A113,Calendar!$A$3:$G$459,2,FALSE))) ->  | I117: 0
C118: =IF(ISNA(IF(Summary!$B$5=3,IF(VLOOKUP(A114,Calendar!$A$3:$G$459,7,FALSE)="S", "", VLOOKUP(A114,Calendar!$A$3:$G$459,7,FALSE)),IF(VLOOKUP(A114,Calendar!$A$3:$G$459,4,FALSE)="S", "", VLOOKUP(A114,Calendar!$A$3:$G$459,4,FALSE)))),"",IF(Summary!$B$5=3,IF(VLOOKUP(A114,Calendar!$A$3:$G$459,7,FALSE)="S", "", VLOOKUP(A114,Calendar!$A$3:$G$459,7,FALSE)),IF(VLOOKUP(A114,Calendar!$A$3:$G$459,4,FALSE)="S", "", VLOOKUP(A114,Calendar!$A$3:$G$459,4,FALSE)))) ->  | D118: =IF(Summary!$B$5=3,IF(C118="","",VLOOKUP(A114,Calendar!$A$3:$G$459,5,FALSE)),IF(C118="","",VLOOKUP(A114,Calendar!$A$3:$G$459,2,FALSE))) ->  | I118: 0 | L118: =IF(SUM(E122:H122)>COUNTA(E91:E121)*390,"The sum total for all cost objectives exceeds the maximum anticipated value based upon the number of days worked. Confirm minutes claimed for each day.","") -> 
C119: =IF(ISNA(IF(Summary!$B$5=3,IF(VLOOKUP(A115,Calendar!$A$3:$G$459,7,FALSE)="S", "", VLOOKUP(A115,Calendar!$A$3:$G$459,7,FALSE)),IF(VLOOKUP(A115,Calendar!$A$3:$G$459,4,FALSE)="S", "", VLOOKUP(A115,Calendar!$A$3:$G$459,4,FALSE)))),"",IF(Summary!$B$5=3,IF(VLOOKUP(A115,Calendar!$A$3:$G$459,7,FALSE)="S", "", VLOOKUP(A115,Calendar!$A$3:$G$459,7,FALSE)),IF(VLOOKUP(A115,Calendar!$A$3:$G$459,4,FALSE)="S", "", VLOOKUP(A115,Calendar!$A$3:$G$459,4,FALSE)))) -> M | D119: =IF(Summary!$B$5=3,IF(C119="","",VLOOKUP(A115,Calendar!$A$3:$G$459,5,FALSE)),IF(C119="","",VLOOKUP(A115,Calendar!$A$3:$G$459,2,FALSE))) -> 2019-07-29 | I119: 0
C120: =IF(ISNA(IF(Summary!$B$5=3,IF(VLOOKUP(A116,Calendar!$A$3:$G$459,7,FALSE)="S", "", VLOOKUP(A116,Calendar!$A$3:$G$459,7,FALSE)),IF(VLOOKUP(A116,Calendar!$A$3:$G$459,4,FALSE)="S", "", VLOOKUP(A116,Calendar!$A$3:$G$459,4,FALSE)))),"",IF(Summary!$B$5=3,IF(VLOOKUP(A116,Calendar!$A$3:$G$459,7,FALSE)="S", "", VLOOKUP(A116,Calendar!$A$3:$G$459,7,FALSE)),IF(VLOOKUP(A116,Calendar!$A$3:$G$459,4,FALSE)="S", "", VLOOKUP(A116,Calendar!$A$3:$G$459,4,FALSE)))) -> T | D120: =IF(Summary!$B$5=3,IF(C120="","",VLOOKUP(A116,Calendar!$A$3:$G$459,5,FALSE)),IF(C120="","",VLOOKUP(A116,Calendar!$A$3:$G$459,2,FALSE))) -> 2019-07-30 | I120: 0
C121: =IF(ISNA(IF(Summary!$B$5=3,IF(VLOOKUP(A117,Calendar!$A$3:$G$459,7,FALSE)="S", "", VLOOKUP(A117,Calendar!$A$3:$G$459,7,FALSE)),IF(VLOOKUP(A117,Calendar!$A$3:$G$459,4,FALSE)="S", "", VLOOKUP(A117,Calendar!$A$3:$G$459,4,FALSE)))),"",IF(Summary!$B$5=3,IF(VLOOKUP(A117,Calendar!$A$3:$G$459,7,FALSE)="S", "", VLOOKUP(A117,Calendar!$A$3:$G$459,7,FALSE)),IF(VLOOKUP(A117,Calendar!$A$3:$G$459,4,FALSE)="S", "", VLOOKUP(A117,Calendar!$A$3:$G$459,4,FALSE)))) -> W | D121: =IF(Summary!$B$5=3,IF(C121="","",VLOOKUP(A117,Calendar!$A$3:$G$459,5,FALSE)),IF(C121="","",VLOOKUP(A117,Calendar!$A$3:$G$459,2,FALSE))) -> 2019-07-31 | I121: 0
D122: Total Minutes | E122: =SUM(E91:E121) -> 0 | F122: =SUM(F91:F121) -> 0 | G122: =SUM(G91:G121) -> 0 | H122: =SUM(H91:H121) -> 0 | I122: =SUM(I91:I121) -> 0
D123: Total Hours | E123: =E122/60 -> 0 | F123: =F122/60 -> 0 | G123: =G122/60 -> 0 | H123: =H122/60 -> 0 | I123: =I122/60 -> 0
C126: Personnel Activity Report
C127: Extended School Year | L127: =IF(OR(AND(F131="",COUNTA(F132:F162)>0),AND(G131="",COUNTA(G132:G162)>0),AND(H131="",COUNTA(H132:H162)>0)),"<<< You must identify the cost objective in the column heading.","") -> 
A128: 801 | C128: August | L128: =IF(I132>390, "<<< Day exceeds 390 minutes. Confirm reported time.","") -> 
A129: 802 | C129: =IF(Summary!$E$8<>"",Summary!$E$8," ") ->  | L129: =IF(I133>390, "<<< Day exceeds 390 minutes. Confirm reported time.","") -> 
A130: 803 | C130: =IF(Summary!$E$9<>"",Summary!$E$9," ") -> 
A131: 804 | C131: Day | D131: Date | E131: Special Ed | F131: General Ed | G131: Other | H131: Other | I131: Totals
A132: 805 | C132: =IF(ISNA(IF(Summary!$B$5=3,IF(VLOOKUP(A128,Calendar!$A$3:$G$459,7,FALSE)="S", "", VLOOKUP(A128,Calendar!$A$3:$G$459,7,FALSE)),IF(VLOOKUP(A128,Calendar!$A$3:$G$459,4,FALSE)="S", "", VLOOKUP(A128,Calendar!$A$3:$G$459,4,FALSE)))),"",IF(Summary!$B$5=3,IF(VLOOKUP(A128,Calendar!$A$3:$G$459,7,FALSE)="S", "", VLOOKUP(A128,Calendar!$A$3:$G$459,7,FALSE)),IF(VLOOKUP(A128,Calendar!$A$3:$G$459,4,FALSE)="S", "", VLOOKUP(A128,Calendar!$A$3:$G$459,4,FALSE)))) -> R | D132: =IF(Summary!$B$5=3,IF(C132="","",VLOOKUP(A128,Calendar!$A$3:$G$459,5,FALSE)),IF(C132="","",VLOOKUP(A128,Calendar!$A$3:$G$459,2,FALSE))) -> 2019-08-01 | I132: =MIN(1440,SUM(E132:H132)) -> 0
A133: 806 | C133: =IF(ISNA(IF(Summary!$B$5=3,IF(VLOOKUP(A129,Calendar!$A$3:$G$459,7,FALSE)="S", "", VLOOKUP(A129,Calendar!$A$3:$G$459,7,FALSE)),IF(VLOOKUP(A129,Calendar!$A$3:$G$459,4,FALSE)="S", "", VLOOKUP(A129,Calendar!$A$3:$G$459,4,FALSE)))),"",IF(Summary!$B$5=3,IF(VLOOKUP(A129,Calendar!$A$3:$G$459,7,FALSE)="S", "", VLOOKUP(A129,Calendar!$A$3:$G$459,7,FALSE)),IF(VLOOKUP(A129,Calendar!$A$3:$G$459,4,FALSE)="S", "", VLOOKUP(A129,Calendar!$A$3:$G$459,4,FALSE)))) -> F | D133: =IF(Summary!$B$5=3,IF(C133="","",VLOOKUP(A129,Calendar!$A$3:$G$459,5,FALSE)),IF(C133="","",VLOOKUP(A129,Calendar!$A$3:$G$459,2,FALSE))) -> 2019-08-02 | I133: =MIN(1440,SUM(E133:H133)) -> 0
A134: 807 | C134: =IF(ISNA(IF(Summary!$B$5=3,IF(VLOOKUP(A130,Calendar!$A$3:$G$459,7,FALSE)="S", "", VLOOKUP(A130,Calendar!$A$3:$G$459,7,FALSE)),IF(VLOOKUP(A130,Calendar!$A$3:$G$459,4,FALSE)="S", "", VLOOKUP(A130,Calendar!$A$3:$G$459,4,FALSE)))),"",IF(Summary!$B$5=3,IF(VLOOKUP(A130,Calendar!$A$3:$G$459,7,FALSE)="S", "", VLOOKUP(A130,Calendar!$A$3:$G$459,7,FALSE)),IF(VLOOKUP(A130,Calendar!$A$3:$G$459,4,FALSE)="S", "", VLOOKUP(A130,Calendar!$A$3:$G$459,4,FALSE)))) ->  | D134: =IF(Summary!$B$5=3,IF(C134="","",VLOOKUP(A130,Calendar!$A$3:$G$459,5,FALSE)),IF(C134="","",VLOOKUP(A130,Calendar!$A$3:$G$459,2,FALSE))) ->  | I134: 0
A135: 808 | C135: =IF(ISNA(IF(Summary!$B$5=3,IF(VLOOKUP(A131,Calendar!$A$3:$G$459,7,FALSE)="S", "", VLOOKUP(A131,Calendar!$A$3:$G$459,7,FALSE)),IF(VLOOKUP(A131,Calendar!$A$3:$G$459,4,FALSE)="S", "", VLOOKUP(A131,Calendar!$A$3:$G$459,4,FALSE)))),"",IF(Summary!$B$5=3,IF(VLOOKUP(A131,Calendar!$A$3:$G$459,7,FALSE)="S", "", VLOOKUP(A131,Calendar!$A$3:$G$459,7,FALSE)),IF(VLOOKUP(A131,Calendar!$A$3:$G$459,4,FALSE)="S", "", VLOOKUP(A131,Calendar!$A$3:$G$459,4,FALSE)))) ->  | D135: =IF(Summary!$B$5=3,IF(C135="","",VLOOKUP(A131,Calendar!$A$3:$G$459,5,FALSE)),IF(C135="","",VLOOKUP(A131,Calendar!$A$3:$G$459,2,FALSE))) ->  | I135: 0
A136: 809 | C136: =IF(ISNA(IF(Summary!$B$5=3,IF(VLOOKUP(A132,Calendar!$A$3:$G$459,7,FALSE)="S", "", VLOOKUP(A132,Calendar!$A$3:$G$459,7,FALSE)),IF(VLOOKUP(A132,Calendar!$A$3:$G$459,4,FALSE)="S", "", VLOOKUP(A132,Calendar!$A$3:$G$459,4,FALSE)))),"",IF(Summary!$B$5=3,IF(VLOOKUP(A132,Calendar!$A$3:$G$459,7,FALSE)="S", "", VLOOKUP(A132,Calendar!$A$3:$G$459,7,FALSE)),IF(VLOOKUP(A132,Calendar!$A$3:$G$459,4,FALSE)="S", "", VLOOKUP(A132,Calendar!$A$3:$G$459,4,FALSE)))) -> M | D136: =IF(Summary!$B$5=3,IF(C136="","",VLOOKUP(A132,Calendar!$A$3:$G$459,5,FALSE)),IF(C136="","",VLOOKUP(A132,Calendar!$A$3:$G$459,2,FALSE))) -> 2019-08-05 | I136: 0
A137: 810 | C137: =IF(ISNA(IF(Summary!$B$5=3,IF(VLOOKUP(A133,Calendar!$A$3:$G$459,7,FALSE)="S", "", VLOOKUP(A133,Calendar!$A$3:$G$459,7,FALSE)),IF(VLOOKUP(A133,Calendar!$A$3:$G$459,4,FALSE)="S", "", VLOOKUP(A133,Calendar!$A$3:$G$459,4,FALSE)))),"",IF(Summary!$B$5=3,IF(VLOOKUP(A133,Calendar!$A$3:$G$459,7,FALSE)="S", "", VLOOKUP(A133,Calendar!$A$3:$G$459,7,FALSE)),IF(VLOOKUP(A133,Calendar!$A$3:$G$459,4,FALSE)="S", "", VLOOKUP(A133,Calendar!$A$3:$G$459,4,FALSE)))) -> T | D137: =IF(Summary!$B$5=3,IF(C137="","",VLOOKUP(A133,Calendar!$A$3:$G$459,5,FALSE)),IF(C137="","",VLOOKUP(A133,Calendar!$A$3:$G$459,2,FALSE))) -> 2019-08-06 | I137: 0
A138: 811 | C138: =IF(ISNA(IF(Summary!$B$5=3,IF(VLOOKUP(A134,Calendar!$A$3:$G$459,7,FALSE)="S", "", VLOOKUP(A134,Calendar!$A$3:$G$459,7,FALSE)),IF(VLOOKUP(A134,Calendar!$A$3:$G$459,4,FALSE)="S", "", VLOOKUP(A134,Calendar!$A$3:$G$459,4,FALSE)))),"",IF(Summary!$B$5=3,IF(VLOOKUP(A134,Calendar!$A$3:$G$459,7,FALSE)="S", "", VLOOKUP(A134,Calendar!$A$3:$G$459,7,FALSE)),IF(VLOOKUP(A134,Calendar!$A$3:$G$459,4,FALSE)="S", "", VLOOKUP(A134,Calendar!$A$3:$G$459,4,FALSE)))) -> W | D138: =IF(Summary!$B$5=3,IF(C138="","",VLOOKUP(A134,Calendar!$A$3:$G$459,5,FALSE)),IF(C138="","",VLOOKUP(A134,Calendar!$A$3:$G$459,2,FALSE))) -> 2019-08-07 | I138: 0
A139: 812 | C139: =IF(ISNA(IF(Summary!$B$5=3,IF(VLOOKUP(A135,Calendar!$A$3:$G$459,7,FALSE)="S", "", VLOOKUP(A135,Calendar!$A$3:$G$459,7,FALSE)),IF(VLOOKUP(A135,Calendar!$A$3:$G$459,4,FALSE)="S", "", VLOOKUP(A135,Calendar!$A$3:$G$459,4,FALSE)))),"",IF(Summary!$B$5=3,IF(VLOOKUP(A135,Calendar!$A$3:$G$459,7,FALSE)="S", "", VLOOKUP(A135,Calendar!$A$3:$G$459,7,FALSE)),IF(VLOOKUP(A135,Calendar!$A$3:$G$459,4,FALSE)="S", "", VLOOKUP(A135,Calendar!$A$3:$G$459,4,FALSE)))) -> R | D139: =IF(Summary!$B$5=3,IF(C139="","",VLOOKUP(A135,Calendar!$A$3:$G$459,5,FALSE)),IF(C139="","",VLOOKUP(A135,Calendar!$A$3:$G$459,2,FALSE))) -> 2019-08-08 | I139: 0
A140: 813 | C140: =IF(ISNA(IF(Summary!$B$5=3,IF(VLOOKUP(A136,Calendar!$A$3:$G$459,7,FALSE)="S", "", VLOOKUP(A136,Calendar!$A$3:$G$459,7,FALSE)),IF(VLOOKUP(A136,Calendar!$A$3:$G$459,4,FALSE)="S", "", VLOOKUP(A136,Calendar!$A$3:$G$459,4,FALSE)))),"",IF(Summary!$B$5=3,IF(VLOOKUP(A136,Calendar!$A$3:$G$459,7,FALSE)="S", "", VLOOKUP(A136,Calendar!$A$3:$G$459,7,FALSE)),IF(VLOOKUP(A136,Calendar!$A$3:$G$459,4,FALSE)="S", "", VLOOKUP(A136,Calendar!$A$3:$G$459,4,FALSE)))) -> F | D140: =IF(Summary!$B$5=3,IF(C140="","",VLOOKUP(A136,Calendar!$A$3:$G$459,5,FALSE)),IF(C140="","",VLOOKUP(A136,Calendar!$A$3:$G$459,2,FALSE))) -> 2019-08-09 | I140: 0
A141: 814 | C141: =IF(ISNA(IF(Summary!$B$5=3,IF(VLOOKUP(A137,Calendar!$A$3:$G$459,7,FALSE)="S", "", VLOOKUP(A137,Calendar!$A$3:$G$459,7,FALSE)),IF(VLOOKUP(A137,Calendar!$A$3:$G$459,4,FALSE)="S", "", VLOOKUP(A137,Calendar!$A$3:$G$459,4,FALSE)))),"",IF(Summary!$B$5=3,IF(VLOOKUP(A137,Calendar!$A$3:$G$459,7,FALSE)="S", "", VLOOKUP(A137,Calendar!$A$3:$G$459,7,FALSE)),IF(VLOOKUP(A137,Calendar!$A$3:$G$459,4,FALSE)="S", "", VLOOKUP(A137,Calendar!$A$3:$G$459,4,FALSE)))) ->  | D141: =IF(Summary!$B$5=3,IF(C141="","",VLOOKUP(A137,Calendar!$A$3:$G$459,5,FALSE)),IF(C141="","",VLOOKUP(A137,Calendar!$A$3:$G$459,2,FALSE))) ->  | I141: 0
A142: 815 | C142: =IF(ISNA(IF(Summary!$B$5=3,IF(VLOOKUP(A138,Calendar!$A$3:$G$459,7,FALSE)="S", "", VLOOKUP(A138,Calendar!$A$3:$G$459,7,FALSE)),IF(VLOOKUP(A138,Calendar!$A$3:$G$459,4,FALSE)="S", "", VLOOKUP(A138,Calendar!$A$3:$G$459,4,FALSE)))),"",IF(Summary!$B$5=3,IF(VLOOKUP(A138,Calendar!$A$3:$G$459,7,FALSE)="S", "", VLOOKUP(A138,Calendar!$A$3:$G$459,7,FALSE)),IF(VLOOKUP(A138,Calendar!$A$3:$G$459,4,FALSE)="S", "", VLOOKUP(A138,Calendar!$A$3:$G$459,4,FALSE)))) ->  | D142: =IF(Summary!$B$5=3,IF(C142="","",VLOOKUP(A138,Calendar!$A$3:$G$459,5,FALSE)),IF(C142="","",VLOOKUP(A138,Calendar!$A$3:$G$459,2,FALSE))) ->  | I142: 0
A143: 816 | C143: =IF(ISNA(IF(Summary!$B$5=3,IF(VLOOKUP(A139,Calendar!$A$3:$G$459,7,FALSE)="S", "", VLOOKUP(A139,Calendar!$A$3:$G$459,7,FALSE)),IF(VLOOKUP(A139,Calendar!$A$3:$G$459,4,FALSE)="S", "", VLOOKUP(A139,Calendar!$A$3:$G$459,4,FALSE)))),"",IF(Summary!$B$5=3,IF(VLOOKUP(A139,Calendar!$A$3:$G$459,7,FALSE)="S", "", VLOOKUP(A139,Calendar!$A$3:$G$459,7,FALSE)),IF(VLOOKUP(A139,Calendar!$A$3:$G$459,4,FALSE)="S", "", VLOOKUP(A139,Calendar!$A$3:$G$459,4,FALSE)))) -> M | D143: =IF(Summary!$B$5=3,IF(C143="","",VLOOKUP(A139,Calendar!$A$3:$G$459,5,FALSE)),IF(C143="","",VLOOKUP(A139,Calendar!$A$3:$G$459,2,FALSE))) -> 2019-08-12 | I143: 0
A144: 817 | C144: =IF(ISNA(IF(Summary!$B$5=3,IF(VLOOKUP(A140,Calendar!$A$3:$G$459,7,FALSE)="S", "", VLOOKUP(A140,Calendar!$A$3:$G$459,7,FALSE)),IF(VLOOKUP(A140,Calendar!$A$3:$G$459,4,FALSE)="S", "", VLOOKUP(A140,Calendar!$A$3:$G$459,4,FALSE)))),"",IF(Summary!$B$5=3,IF(VLOOKUP(A140,Calendar!$A$3:$G$459,7,FALSE)="S", "", VLOOKUP(A140,Calendar!$A$3:$G$459,7,FALSE)),IF(VLOOKUP(A140,Calendar!$A$3:$G$459,4,FALSE)="S", "", VLOOKUP(A140,Calendar!$A$3:$G$459,4,FALSE)))) -> T | D144: =IF(Summary!$B$5=3,IF(C144="","",VLOOKUP(A140,Calendar!$A$3:$G$459,5,FALSE)),IF(C144="","",VLOOKUP(A140,Calendar!$A$3:$G$459,2,FALSE))) -> 2019-08-13 | I144: 0
A145: 818 | C145: =IF(ISNA(IF(Summary!$B$5=3,IF(VLOOKUP(A141,Calendar!$A$3:$G$459,7,FALSE)="S", "", VLOOKUP(A141,Calendar!$A$3:$G$459,7,FALSE)),IF(VLOOKUP(A141,Calendar!$A$3:$G$459,4,FALSE)="S", "", VLOOKUP(A141,Calendar!$A$3:$G$459,4,FALSE)))),"",IF(Summary!$B$5=3,IF(VLOOKUP(A141,Calendar!$A$3:$G$459,7,FALSE)="S", "", VLOOKUP(A141,Calendar!$A$3:$G$459,7,FALSE)),IF(VLOOKUP(A141,Calendar!$A$3:$G$459,4,FALSE)="S", "", VLOOKUP(A141,Calendar!$A$3:$G$459,4,FALSE)))) -> W | D145: =IF(Summary!$B$5=3,IF(C145="","",VLOOKUP(A141,Calendar!$A$3:$G$459,5,FALSE)),IF(C145="","",VLOOKUP(A141,Calendar!$A$3:$G$459,2,FALSE))) -> 2019-08-14 | I145: 0
A146: 819 | C146: =IF(ISNA(IF(Summary!$B$5=3,IF(VLOOKUP(A142,Calendar!$A$3:$G$459,7,FALSE)="S", "", VLOOKUP(A142,Calendar!$A$3:$G$459,7,FALSE)),IF(VLOOKUP(A142,Calendar!$A$3:$G$459,4,FALSE)="S", "", VLOOKUP(A142,Calendar!$A$3:$G$459,4,FALSE)))),"",IF(Summary!$B$5=3,IF(VLOOKUP(A142,Calendar!$A$3:$G$459,7,FALSE)="S", "", VLOOKUP(A142,Calendar!$A$3:$G$459,7,FALSE)),IF(VLOOKUP(A142,Calendar!$A$3:$G$459,4,FALSE)="S", "", VLOOKUP(A142,Calendar!$A$3:$G$459,4,FALSE)))) -> R | D146: =IF(Summary!$B$5=3,IF(C146="","",VLOOKUP(A142,Calendar!$A$3:$G$459,5,FALSE)),IF(C146="","",VLOOKUP(A142,Calendar!$A$3:$G$459,2,FALSE))) -> 2019-08-15 | I146: 0
A147: 820 | C147: =IF(ISNA(IF(Summary!$B$5=3,IF(VLOOKUP(A143,Calendar!$A$3:$G$459,7,FALSE)="S", "", VLOOKUP(A143,Calendar!$A$3:$G$459,7,FALSE)),IF(VLOOKUP(A143,Calendar!$A$3:$G$459,4,FALSE)="S", "", VLOOKUP(A143,Calendar!$A$3:$G$459,4,FALSE)))),"",IF(Summary!$B$5=3,IF(VLOOKUP(A143,Calendar!$A$3:$G$459,7,FALSE)="S", "", VLOOKUP(A143,Calendar!$A$3:$G$459,7,FALSE)),IF(VLOOKUP(A143,Calendar!$A$3:$G$459,4,FALSE)="S", "", VLOOKUP(A143,Calendar!$A$3:$G$459,4,FALSE)))) -> F | D147: =IF(Summary!$B$5=3,IF(C147="","",VLOOKUP(A143,Calendar!$A$3:$G$459,5,FALSE)),IF(C147="","",VLOOKUP(A143,Calendar!$A$3:$G$459,2,FALSE))) -> 2019-08-16 | I147: 0
A148: 821 | C148: =IF(ISNA(IF(Summary!$B$5=3,IF(VLOOKUP(A144,Calendar!$A$3:$G$459,7,FALSE)="S", "", VLOOKUP(A144,Calendar!$A$3:$G$459,7,FALSE)),IF(VLOOKUP(A144,Calendar!$A$3:$G$459,4,FALSE)="S", "", VLOOKUP(A144,Calendar!$A$3:$G$459,4,FALSE)))),"",IF(Summary!$B$5=3,IF(VLOOKUP(A144,Calendar!$A$3:$G$459,7,FALSE)="S", "", VLOOKUP(A144,Calendar!$A$3:$G$459,7,FALSE)),IF(VLOOKUP(A144,Calendar!$A$3:$G$459,4,FALSE)="S", "", VLOOKUP(A144,Calendar!$A$3:$G$459,4,FALSE)))) ->  | D148: =IF(Summary!$B$5=3,IF(C148="","",VLOOKUP(A144,Calendar!$A$3:$G$459,5,FALSE)),IF(C148="","",VLOOKUP(A144,Calendar!$A$3:$G$459,2,FALSE))) ->  | I148: 0
A149: 822 | C149: =IF(ISNA(IF(Summary!$B$5=3,IF(VLOOKUP(A145,Calendar!$A$3:$G$459,7,FALSE)="S", "", VLOOKUP(A145,Calendar!$A$3:$G$459,7,FALSE)),IF(VLOOKUP(A145,Calendar!$A$3:$G$459,4,FALSE)="S", "", VLOOKUP(A145,Calendar!$A$3:$G$459,4,FALSE)))),"",IF(Summary!$B$5=3,IF(VLOOKUP(A145,Calendar!$A$3:$G$459,7,FALSE)="S", "", VLOOKUP(A145,Calendar!$A$3:$G$459,7,FALSE)),IF(VLOOKUP(A145,Calendar!$A$3:$G$459,4,FALSE)="S", "", VLOOKUP(A145,Calendar!$A$3:$G$459,4,FALSE)))) ->  | D149: =IF(Summary!$B$5=3,IF(C149="","",VLOOKUP(A145,Calendar!$A$3:$G$459,5,FALSE)),IF(C149="","",VLOOKUP(A145,Calendar!$A$3:$G$459,2,FALSE))) ->  | I149: 0
A150: 823 | C150: =IF(ISNA(IF(Summary!$B$5=3,IF(VLOOKUP(A146,Calendar!$A$3:$G$459,7,FALSE)="S", "", VLOOKUP(A146,Calendar!$A$3:$G$459,7,FALSE)),IF(VLOOKUP(A146,Calendar!$A$3:$G$459,4,FALSE)="S", "", VLOOKUP(A146,Calendar!$A$3:$G$459,4,FALSE)))),"",IF(Summary!$B$5=3,IF(VLOOKUP(A146,Calendar!$A$3:$G$459,7,FALSE)="S", "", VLOOKUP(A146,Calendar!$A$3:$G$459,7,FALSE)),IF(VLOOKUP(A146,Calendar!$A$3:$G$459,4,FALSE)="S", "", VLOOKUP(A146,Calendar!$A$3:$G$459,4,FALSE)))) -> M | D150: =IF(Summary!$B$5=3,IF(C150="","",VLOOKUP(A146,Calendar!$A$3:$G$459,5,FALSE)),IF(C150="","",VLOOKUP(A146,Calendar!$A$3:$G$459,2,FALSE))) -> 2019-08-19 | I150: 0
A151: 824 | C151: =IF(ISNA(IF(Summary!$B$5=3,IF(VLOOKUP(A147,Calendar!$A$3:$G$459,7,FALSE)="S", "", VLOOKUP(A147,Calendar!$A$3:$G$459,7,FALSE)),IF(VLOOKUP(A147,Calendar!$A$3:$G$459,4,FALSE)="S", "", VLOOKUP(A147,Calendar!$A$3:$G$459,4,FALSE)))),"",IF(Summary!$B$5=3,IF(VLOOKUP(A147,Calendar!$A$3:$G$459,7,FALSE)="S", "", VLOOKUP(A147,Calendar!$A$3:$G$459,7,FALSE)),IF(VLOOKUP(A147,Calendar!$A$3:$G$459,4,FALSE)="S", "", VLOOKUP(A147,Calendar!$A$3:$G$459,4,FALSE)))) -> T | D151: =IF(Summary!$B$5=3,IF(C151="","",VLOOKUP(A147,Calendar!$A$3:$G$459,5,FALSE)),IF(C151="","",VLOOKUP(A147,Calendar!$A$3:$G$459,2,FALSE))) -> 2019-08-20 | I151: 0
A152: 825 | C152: =IF(ISNA(IF(Summary!$B$5=3,IF(VLOOKUP(A148,Calendar!$A$3:$G$459,7,FALSE)="S", "", VLOOKUP(A148,Calendar!$A$3:$G$459,7,FALSE)),IF(VLOOKUP(A148,Calendar!$A$3:$G$459,4,FALSE)="S", "", VLOOKUP(A148,Calendar!$A$3:$G$459,4,FALSE)))),"",IF(Summary!$B$5=3,IF(VLOOKUP(A148,Calendar!$A$3:$G$459,7,FALSE)="S", "", VLOOKUP(A148,Calendar!$A$3:$G$459,7,FALSE)),IF(VLOOKUP(A148,Calendar!$A$3:$G$459,4,FALSE)="S", "", VLOOKUP(A148,Calendar!$A$3:$G$459,4,FALSE)))) -> W | D152: =IF(Summary!$B$5=3,IF(C152="","",VLOOKUP(A148,Calendar!$A$3:$G$459,5,FALSE)),IF(C152="","",VLOOKUP(A148,Calendar!$A$3:$G$459,2,FALSE))) -> 2019-08-21 | I152: 0
A153: 826 | C153: =IF(ISNA(IF(Summary!$B$5=3,IF(VLOOKUP(A149,Calendar!$A$3:$G$459,7,FALSE)="S", "", VLOOKUP(A149,Calendar!$A$3:$G$459,7,FALSE)),IF(VLOOKUP(A149,Calendar!$A$3:$G$459,4,FALSE)="S", "", VLOOKUP(A149,Calendar!$A$3:$G$459,4,FALSE)))),"",IF(Summary!$B$5=3,IF(VLOOKUP(A149,Calendar!$A$3:$G$459,7,FALSE)="S", "", VLOOKUP(A149,Calendar!$A$3:$G$459,7,FALSE)),IF(VLOOKUP(A149,Calendar!$A$3:$G$459,4,FALSE)="S", "", VLOOKUP(A149,Calendar!$A$3:$G$459,4,FALSE)))) -> R | D153: =IF(Summary!$B$5=3,IF(C153="","",VLOOKUP(A149,Calendar!$A$3:$G$459,5,FALSE)),IF(C153="","",VLOOKUP(A149,Calendar!$A$3:$G$459,2,FALSE))) -> 2019-08-22 | I153: 0
A154: 827 | C154: =IF(ISNA(IF(Summary!$B$5=3,IF(VLOOKUP(A150,Calendar!$A$3:$G$459,7,FALSE)="S", "", VLOOKUP(A150,Calendar!$A$3:$G$459,7,FALSE)),IF(VLOOKUP(A150,Calendar!$A$3:$G$459,4,FALSE)="S", "", VLOOKUP(A150,Calendar!$A$3:$G$459,4,FALSE)))),"",IF(Summary!$B$5=3,IF(VLOOKUP(A150,Calendar!$A$3:$G$459,7,FALSE)="S", "", VLOOKUP(A150,Calendar!$A$3:$G$459,7,FALSE)),IF(VLOOKUP(A150,Calendar!$A$3:$G$459,4,FALSE)="S", "", VLOOKUP(A150,Calendar!$A$3:$G$459,4,FALSE)))) -> F | D154: =IF(Summary!$B$5=3,IF(C154="","",VLOOKUP(A150,Calendar!$A$3:$G$459,5,FALSE)),IF(C154="","",VLOOKUP(A150,Calendar!$A$3:$G$459,2,FALSE))) -> 2019-08-23 | I154: 0
A155: 828 | C155: =IF(ISNA(IF(Summary!$B$5=3,IF(VLOOKUP(A151,Calendar!$A$3:$G$459,7,FALSE)="S", "", VLOOKUP(A151,Calendar!$A$3:$G$459,7,FALSE)),IF(VLOOKUP(A151,Calendar!$A$3:$G$459,4,FALSE)="S", "", VLOOKUP(A151,Calendar!$A$3:$G$459,4,FALSE)))),"",IF(Summary!$B$5=3,IF(VLOOKUP(A151,Calendar!$A$3:$G$459,7,FALSE)="S", "", VLOOKUP(A151,Calendar!$A$3:$G$459,7,FALSE)),IF(VLOOKUP(A151,Calendar!$A$3:$G$459,4,FALSE)="S", "", VLOOKUP(A151,Calendar!$A$3:$G$459,4,FALSE)))) ->  | D155: =IF(Summary!$B$5=3,IF(C155="","",VLOOKUP(A151,Calendar!$A$3:$G$459,5,FALSE)),IF(C155="","",VLOOKUP(A151,Calendar!$A$3:$G$459,2,FALSE))) ->  | I155: 0
A156: 829 | C156: =IF(ISNA(IF(Summary!$B$5=3,IF(VLOOKUP(A152,Calendar!$A$3:$G$459,7,FALSE)="S", "", VLOOKUP(A152,Calendar!$A$3:$G$459,7,FALSE)),IF(VLOOKUP(A152,Calendar!$A$3:$G$459,4,FALSE)="S", "", VLOOKUP(A152,Calendar!$A$3:$G$459,4,FALSE)))),"",IF(Summary!$B$5=3,IF(VLOOKUP(A152,Calendar!$A$3:$G$459,7,FALSE)="S", "", VLOOKUP(A152,Calendar!$A$3:$G$459,7,FALSE)),IF(VLOOKUP(A152,Calendar!$A$3:$G$459,4,FALSE)="S", "", VLOOKUP(A152,Calendar!$A$3:$G$459,4,FALSE)))) ->  | D156: =IF(Summary!$B$5=3,IF(C156="","",VLOOKUP(A152,Calendar!$A$3:$G$459,5,FALSE)),IF(C156="","",VLOOKUP(A152,Calendar!$A$3:$G$459,2,FALSE))) ->  | I156: 0
A157: 830 | C157: =IF(ISNA(IF(Summary!$B$5=3,IF(VLOOKUP(A153,Calendar!$A$3:$G$459,7,FALSE)="S", "", VLOOKUP(A153,Calendar!$A$3:$G$459,7,FALSE)),IF(VLOOKUP(A153,Calendar!$A$3:$G$459,4,FALSE)="S", "", VLOOKUP(A153,Calendar!$A$3:$G$459,4,FALSE)))),"",IF(Summary!$B$5=3,IF(VLOOKUP(A153,Calendar!$A$3:$G$459,7,FALSE)="S", "", VLOOKUP(A153,Calendar!$A$3:$G$459,7,FALSE)),IF(VLOOKUP(A153,Calendar!$A$3:$G$459,4,FALSE)="S", "", VLOOKUP(A153,Calendar!$A$3:$G$459,4,FALSE)))) -> M | D157: =IF(Summary!$B$5=3,IF(C157="","",VLOOKUP(A153,Calendar!$A$3:$G$459,5,FALSE)),IF(C157="","",VLOOKUP(A153,Calendar!$A$3:$G$459,2,FALSE))) -> 2019-08-26 | I157: 0
A158: 831 | C158: =IF(ISNA(IF(Summary!$B$5=3,IF(VLOOKUP(A154,Calendar!$A$3:$G$459,7,FALSE)="S", "", VLOOKUP(A154,Calendar!$A$3:$G$459,7,FALSE)),IF(VLOOKUP(A154,Calendar!$A$3:$G$459,4,FALSE)="S", "", VLOOKUP(A154,Calendar!$A$3:$G$459,4,FALSE)))),"",IF(Summary!$B$5=3,IF(VLOOKUP(A154,Calendar!$A$3:$G$459,7,FALSE)="S", "", VLOOKUP(A154,Calendar!$A$3:$G$459,7,FALSE)),IF(VLOOKUP(A154,Calendar!$A$3:$G$459,4,FALSE)="S", "", VLOOKUP(A154,Calendar!$A$3:$G$459,4,FALSE)))) -> T | D158: =IF(Summary!$B$5=3,IF(C158="","",VLOOKUP(A154,Calendar!$A$3:$G$459,5,FALSE)),IF(C158="","",VLOOKUP(A154,Calendar!$A$3:$G$459,2,FALSE))) -> 2019-08-27 | I158: 0
C159: =IF(ISNA(IF(Summary!$B$5=3,IF(VLOOKUP(A155,Calendar!$A$3:$G$459,7,FALSE)="S", "", VLOOKUP(A155,Calendar!$A$3:$G$459,7,FALSE)),IF(VLOOKUP(A155,Calendar!$A$3:$G$459,4,FALSE)="S", "", VLOOKUP(A155,Calendar!$A$3:$G$459,4,FALSE)))),"",IF(Summary!$B$5=3,IF(VLOOKUP(A155,Calendar!$A$3:$G$459,7,FALSE)="S", "", VLOOKUP(A155,Calendar!$A$3:$G$459,7,FALSE)),IF(VLOOKUP(A155,Calendar!$A$3:$G$459,4,FALSE)="S", "", VLOOKUP(A155,Calendar!$A$3:$G$459,4,FALSE)))) -> W | D159: =IF(Summary!$B$5=3,IF(C159="","",VLOOKUP(A155,Calendar!$A$3:$G$459,5,FALSE)),IF(C159="","",VLOOKUP(A155,Calendar!$A$3:$G$459,2,FALSE))) -> 2019-08-28 | I159: 0 | L159: =IF(SUM(E163:H163)>COUNTA(E132:E162)*390,"The sum total for all cost objectives exceeds the maximum anticipated value based upon the number of days worked. Confirm minutes claimed for each day.","") -> 
C160: =IF(ISNA(IF(Summary!$B$5=3,IF(VLOOKUP(A156,Calendar!$A$3:$G$459,7,FALSE)="S", "", VLOOKUP(A156,Calendar!$A$3:$G$459,7,FALSE)),IF(VLOOKUP(A156,Calendar!$A$3:$G$459,4,FALSE)="S", "", VLOOKUP(A156,Calendar!$A$3:$G$459,4,FALSE)))),"",IF(Summary!$B$5=3,IF(VLOOKUP(A156,Calendar!$A$3:$G$459,7,FALSE)="S", "", VLOOKUP(A156,Calendar!$A$3:$G$459,7,FALSE)),IF(VLOOKUP(A156,Calendar!$A$3:$G$459,4,FALSE)="S", "", VLOOKUP(A156,Calendar!$A$3:$G$459,4,FALSE)))) -> R | D160: =IF(Summary!$B$5=3,IF(C160="","",VLOOKUP(A156,Calendar!$A$3:$G$459,5,FALSE)),IF(C160="","",VLOOKUP(A156,Calendar!$A$3:$G$459,2,FALSE))) -> 2019-08-29 | I160: 0
C161: =IF(ISNA(IF(Summary!$B$5=3,IF(VLOOKUP(A157,Calendar!$A$3:$G$459,7,FALSE)="S", "", VLOOKUP(A157,Calendar!$A$3:$G$459,7,FALSE)),IF(VLOOKUP(A157,Calendar!$A$3:$G$459,4,FALSE)="S", "", VLOOKUP(A157,Calendar!$A$3:$G$459,4,FALSE)))),"",IF(Summary!$B$5=3,IF(VLOOKUP(A157,Calendar!$A$3:$G$459,7,FALSE)="S", "", VLOOKUP(A157,Calendar!$A$3:$G$459,7,FALSE)),IF(VLOOKUP(A157,Calendar!$A$3:$G$459,4,FALSE)="S", "", VLOOKUP(A157,Calendar!$A$3:$G$459,4,FALSE)))) -> F | D161: =IF(Summary!$B$5=3,IF(C161="","",VLOOKUP(A157,Calendar!$A$3:$G$459,5,FALSE)),IF(C161="","",VLOOKUP(A157,Calendar!$A$3:$G$459,2,FALSE))) -> 2019-08-30 | I161: 0
C162: =IF(ISNA(IF(Summary!$B$5=3,IF(VLOOKUP(A158,Calendar!$A$3:$G$459,7,FALSE)="S", "", VLOOKUP(A158,Calendar!$A$3:$G$459,7,FALSE)),IF(VLOOKUP(A158,Calendar!$A$3:$G$459,4,FALSE)="S", "", VLOOKUP(A158,Calendar!$A$3:$G$459,4,FALSE)))),"",IF(Summary!$B$5=3,IF(VLOOKUP(A158,Calendar!$A$3:$G$459,7,FALSE)="S", "", VLOOKUP(A158,Calendar!$A$3:$G$459,7,FALSE)),IF(VLOOKUP(A158,Calendar!$A$3:$G$459,4,FALSE)="S", "", VLOOKUP(A158,Calendar!$A$3:$G$459,4,FALSE)))) ->  | D162: =IF(Summary!$B$5=3,IF(C162="","",VLOOKUP(A158,Calendar!$A$3:$G$459,5,FALSE)),IF(C162="","",VLOOKUP(A158,Calendar!$A$3:$G$459,2,FALSE))) ->  | I162: 0
D163: Total Minutes | E163: =SUM(E132:E162) -> 0 | F163: =SUM(F132:F162) -> 0 | G163: =SUM(G132:G162) -> 0 | H163: =SUM(H132:H162) -> 0 | I163: =SUM(I132:I162) -> 0
D164: Total Hours | E164: =E163/60 -> 0 | F164: =F163/60 -> 0 | G164: =G163/60 -> 0 | H164: =H163/60 -> 0 | I164: =I163/60 -> 0
C167: Notes
E177: Kansas State Department of Education | I177: Personnel Activity Report
E178: Fiscal Auditing | I178: Updated 9/20/18
E179: 785-296-4976
E180: https://www.ksde.org/Agency/Fiscal-and-Administrative-Services/Fiscal-Auditing
C183: The Kansas State Department of Education does not discriminate on the basis of race, color, national origin, sex, disability, or age in its programs and activities and provides equal access to the Boy Scouts and other designated youth groups. The following person has been designated to handle inquiries regarding the nondiscrimination policies: KSDE General Counsel, Office of General Counsel, KSDE, Landon State Office Building, 900 S.W. Jackson, Suite 102, Topeka, KS 66612, (785) 296-3204.

Sheet August
C3: Personnel Activity Report
C4: Regular School Year
C5: August
C6: =IF(Summary!$E$8<>"",Summary!$E$8," ") -> 
C7: =IF(Summary!$E$9<>"",Summary!$E$9," ") -> 
C8: Day | D8: Date | E8: Special Ed | F8: General Ed | G8: Other | H8: Other | I8: Totals
A9: 801 | C9: =IF(ISNA(IF(Summary!$B$5=3,IF(VLOOKUP(A9,Calendar!$A$3:$G$459,7,FALSE)="S", "", VLOOKUP(A9,Calendar!$A$3:$G$459,7,FALSE)),IF(VLOOKUP(A9,Calendar!$A$3:$G$459,4,FALSE)="S", "", VLOOKUP(A9,Calendar!$A$3:$G$459,4,FALSE)))),"",IF(Summary!$B$5=3,IF(VLOOKUP(A9,Calendar!$A$3:$G$459,7,FALSE)="S", "", VLOOKUP(A9,Calendar!$A$3:$G$459,7,FALSE)),IF(VLOOKUP(A9,Calendar!$A$3:$G$459,4,FALSE)="S", "", VLOOKUP(A9,Calendar!$A$3:$G$459,4,FALSE)))) -> R | D9: =IF(Summary!$B$5=3,IF(C9="","",VLOOKUP(A9,Calendar!$A$3:$G$459,5,FALSE)),IF(C9="","",VLOOKUP(A9,Calendar!$A$3:$G$459,2,FALSE))) -> 2019-08-01 | I9: =MIN(1440,SUM(E9:H9)) -> 0
A10: 802 | C10: =IF(ISNA(IF(Summary!$B$5=3,IF(VLOOKUP(A10,Calendar!$A$3:$G$459,7,FALSE)="S", "", VLOOKUP(A10,Calendar!$A$3:$G$459,7,FALSE)),IF(VLOOKUP(A10,Calendar!$A$3:$G$459,4,FALSE)="S", "", VLOOKUP(A10,Calendar!$A$3:$G$459,4,FALSE)))),"",IF(Summary!$B$5=3,IF(VLOOKUP(A10,Calendar!$A$3:$G$459,7,FALSE)="S", "", VLOOKUP(A10,Calendar!$A$3:$G$459,7,FALSE)),IF(VLOOKUP(A10,Calendar!$A$3:$G$459,4,FALSE)="S", "", VLOOKUP(A10,Calendar!$A$3:$G$459,4,FALSE)))) -> F | D10: =IF(Summary!$B$5=3,IF(C10="","",VLOOKUP(A10,Calendar!$A$3:$G$459,5,FALSE)),IF(C10="","",VLOOKUP(A10,Calendar!$A$3:$G$459,2,FALSE))) -> 2019-08-02 | I10: =MIN(1440,SUM(E10:H10)) -> 0
A11: 803 | C11: =IF(ISNA(IF(Summary!$B$5=3,IF(VLOOKUP(A11,Calendar!$A$3:$G$459,7,FALSE)="S", "", VLOOKUP(A11,Calendar!$A$3:$G$459,7,FALSE)),IF(VLOOKUP(A11,Calendar!$A$3:$G$459,4,FALSE)="S", "", VLOOKUP(A11,Calendar!$A$3:$G$459,4,FALSE)))),"",IF(Summary!$B$5=3,IF(VLOOKUP(A11,Calendar!$A$3:$G$459,7,FALSE)="S", "", VLOOKUP(A11,Calendar!$A$3:$G$459,7,FALSE)),IF(VLOOKUP(A11,Calendar!$A$3:$G$459,4,FALSE)="S", "", VLOOKUP(A11,Calendar!$A$3:$G$459,4,FALSE)))) ->  | D11: =IF(Summary!$B$5=3,IF(C11="","",VLOOKUP(A11,Calendar!$A$3:$G$459,5,FALSE)),IF(C11="","",VLOOKUP(A11,Calendar!$A$3:$G$459,2,FALSE))) ->  | I11: 0
A12: 804 | C12: =IF(ISNA(IF(Summary!$B$5=3,IF(VLOOKUP(A12,Calendar!$A$3:$G$459,7,FALSE)="S", "", VLOOKUP(A12,Calendar!$A$3:$G$459,7,FALSE)),IF(VLOOKUP(A12,Calendar!$A$3:$G$459,4,FALSE)="S", "", VLOOKUP(A12,Calendar!$A$3:$G$459,4,FALSE)))),"",IF(Summary!$B$5=3,IF(VLOOKUP(A12,Calendar!$A$3:$G$459,7,FALSE)="S", "", VLOOKUP(A12,Calendar!$A$3:$G$459,7,FALSE)),IF(VLOOKUP(A12,Calendar!$A$3:$G$459,4,FALSE)="S", "", VLOOKUP(A12,Calendar!$A$3:$G$459,4,FALSE)))) ->  | D12: =IF(Summary!$B$5=3,IF(C12="","",VLOOKUP(A12,Calendar!$A$3:$G$459,5,FALSE)),IF(C12="","",VLOOKUP(A12,Calendar!$A$3:$G$459,2,FALSE))) ->  | I12: 0
A13: 805 | C13: =IF(ISNA(IF(Summary!$B$5=3,IF(VLOOKUP(A13,Calendar!$A$3:$G$459,7,FALSE)="S", "", VLOOKUP(A13,Calendar!$A$3:$G$459,7,FALSE)),IF(VLOOKUP(A13,Calendar!$A$3:$G$459,4,FALSE)="S", "", VLOOKUP(A13,Calendar!$A$3:$G$459,4,FALSE)))),"",IF(Summary!$B$5=3,IF(VLOOKUP(A13,Calendar!$A$3:$G$459,7,FALSE)="S", "", VLOOKUP(A13,Calendar!$A$3:$G$459,7,FALSE)),IF(VLOOKUP(A13,Calendar!$A$3:$G$459,4,FALSE)="S", "", VLOOKUP(A13,Calendar!$A$3:$G$459,4,FALSE)))) -> M | D13: =IF(Summary!$B$5=3,IF(C13="","",VLOOKUP(A13,Calendar!$A$3:$G$459,5,FALSE)),IF(C13="","",VLOOKUP(A13,Calendar!$A$3:$G$459,2,FALSE))) -> 2019-08-05 | I13: 0
A14: 806 | C14: =IF(ISNA(IF(Summary!$B$5=3,IF(VLOOKUP(A14,Calendar!$A$3:$G$459,7,FALSE)="S", "", VLOOKUP(A14,Calendar!$A$3:$G$459,7,FALSE)),IF(VLOOKUP(A14,Calendar!$A$3:$G$459,4,FALSE)="S", "", VLOOKUP(A14,Calendar!$A$3:$G$459,4,FALSE)))),"",IF(Summary!$B$5=3,IF(VLOOKUP(A14,Calendar!$A$3:$G$459,7,FALSE)="S", "", VLOOKUP(A14,Calendar!$A$3:$G$459,7,FALSE)),IF(VLOOKUP(A14,Calendar!$A$3:$G$459,4,FALSE)="S", "", VLOOKUP(A14,Calendar!$A$3:$G$459,4,FALSE)))) -> T | D14: =IF(Summary!$B$5=3,IF(C14="","",VLOOKUP(A14,Calendar!$A$3:$G$459,5,FALSE)),IF(C14="","",VLOOKUP(A14,Calendar!$A$3:$G$459,2,FALSE))) -> 2019-08-06 | I14: 0
A15: 807 | C15: =IF(ISNA(IF(Summary!$B$5=3,IF(VLOOKUP(A15,Calendar!$A$3:$G$459,7,FALSE)="S", "", VLOOKUP(A15,Calendar!$A$3:$G$459,7,FALSE)),IF(VLOOKUP(A15,Calendar!$A$3:$G$459,4,FALSE)="S", "", VLOOKUP(A15,Calendar!$A$3:$G$459,4,FALSE)))),"",IF(Summary!$B$5=3,IF(VLOOKUP(A15,Calendar!$A$3:$G$459,7,FALSE)="S", "", VLOOKUP(A15,Calendar!$A$3:$G$459,7,FALSE)),IF(VLOOKUP(A15,Calendar!$A$3:$G$459,4,FALSE)="S", "", VLOOKUP(A15,Calendar!$A$3:$G$459,4,FALSE)))) -> W | D15: =IF(Summary!$B$5=3,IF(C15="","",VLOOKUP(A15,Calendar!$A$3:$G$459,5,FALSE)),IF(C15="","",VLOOKUP(A15,Calendar!$A$3:$G$459,2,FALSE))) -> 2019-08-07 | I15: 0
A16: 808 | C16: =IF(ISNA(IF(Summary!$B$5=3,IF(VLOOKUP(A16,Calendar!$A$3:$G$459,7,FALSE)="S", "", VLOOKUP(A16,Calendar!$A$3:$G$459,7,FALSE)),IF(VLOOKUP(A16,Calendar!$A$3:$G$459,4,FALSE)="S", "", VLOOKUP(A16,Calendar!$A$3:$G$459,4,FALSE)))),"",IF(Summary!$B$5=3,IF(VLOOKUP(A16,Calendar!$A$3:$G$459,7,FALSE)="S", "", VLOOKUP(A16,Calendar!$A$3:$G$459,7,FALSE)),IF(VLOOKUP(A16,Calendar!$A$3:$G$459,4,FALSE)="S", "", VLOOKUP(A16,Calendar!$A$3:$G$459,4,FALSE)))) -> R | D16: =IF(Summary!$B$5=3,IF(C16="","",VLOOKUP(A16,Calendar!$A$3:$G$459,5,FALSE)),IF(C16="","",VLOOKUP(A16,Calendar!$A$3:$G$459,2,FALSE))) -> 2019-08-08 | I16: 0
A17: 809 | C17: =IF(ISNA(IF(Summary!$B$5=3,IF(VLOOKUP(A17,Calendar!$A$3:$G$459,7,FALSE)="S", "", VLOOKUP(A17,Calendar!$A$3:$G$459,7,FALSE)),IF(VLOOKUP(A17,Calendar!$A$3:$G$459,4,FALSE)="S", "", VLOOKUP(A17,Calendar!$A$3:$G$459,4,FALSE)))),"",IF(Summary!$B$5=3,IF(VLOOKUP(A17,Calendar!$A$3:$G$459,7,FALSE)="S", "", VLOOKUP(A17,Calendar!$A$3:$G$459,7,FALSE)),IF(VLOOKUP(A17,Calendar!$A$3:$G$459,4,FALSE)="S", "", VLOOKUP(A17,Calendar!$A$3:$G$459,4,FALSE)))) -> F | D17: =IF(Summary!$B$5=3,IF(C17="","",VLOOKUP(A17,Calendar!$A$3:$G$459,5,FALSE)),IF(C17="","",VLOOKUP(A17,Calendar!$A$3:$G$459,2,FALSE))) -> 2019-08-09 | I17: 0
A18: 810 | C18: =IF(ISNA(IF(Summary!$B$5=3,IF(VLOOKUP(A18,Calendar!$A$3:$G$459,7,FALSE)="S", "", VLOOKUP(A18,Calendar!$A$3:$G$459,7,FALSE)),IF(VLOOKUP(A18,Calendar!$A$3:$G$459,4,FALSE)="S", "", VLOOKUP(A18,Calendar!$A$3:$G$459,4,FALSE)))),"",IF(Summary!$B$5=3,IF(VLOOKUP(A18,Calendar!$A$3:$G$459,7,FALSE)="S", "", VLOOKUP(A18,Calendar!$A$3:$G$459,7,FALSE)),IF(VLOOKUP(A18,Calendar!$A$3:$G$459,4,FALSE)="S", "", VLOOKUP(A18,Calendar!$A$3:$G$459,4,FALSE)))) ->  | D18: =IF(Summary!$B$5=3,IF(C18="","",VLOOKUP(A18,Calendar!$A$3:$G$459,5,FALSE)),IF(C18="","",VLOOKUP(A18,Calendar!$A$3:$G$459,2,FALSE))) ->  | I18: 0
A19: 811 | C19: =IF(ISNA(IF(Summary!$B$5=3,IF(VLOOKUP(A19,Calendar!$A$3:$G$459,7,FALSE)="S", "", VLOOKUP(A19,Calendar!$A$3:$G$459,7,FALSE)),IF(VLOOKUP(A19,Calendar!$A$3:$G$459,4,FALSE)="S", "", VLOOKUP(A19,Calendar!$A$3:$G$459,4,FALSE)))),"",IF(Summary!$B$5=3,IF(VLOOKUP(A19,Calendar!$A$3:$G$459,7,FALSE)="S", "", VLOOKUP(A19,Calendar!$A$3:$G$459,7,FALSE)),IF(VLOOKUP(A19,Calendar!$A$3:$G$459,4,FALSE)="S", "", VLOOKUP(A19,Calendar!$A$3:$G$459,4,FALSE)))) ->  | D19: =IF(Summary!$B$5=3,IF(C19="","",VLOOKUP(A19,Calendar!$A$3:$G$459,5,FALSE)),IF(C19="","",VLOOKUP(A19,Calendar!$A$3:$G$459,2,FALSE))) ->  | I19: 0
A20: 812 | C20: =IF(ISNA(IF(Summary!$B$5=3,IF(VLOOKUP(A20,Calendar!$A$3:$G$459,7,FALSE)="S", "", VLOOKUP(A20,Calendar!$A$3:$G$459,7,FALSE)),IF(VLOOKUP(A20,Calendar!$A$3:$G$459,4,FALSE)="S", "", VLOOKUP(A20,Calendar!$A$3:$G$459,4,FALSE)))),"",IF(Summary!$B$5=3,IF(VLOOKUP(A20,Calendar!$A$3:$G$459,7,FALSE)="S", "", VLOOKUP(A20,Calendar!$A$3:$G$459,7,FALSE)),IF(VLOOKUP(A20,Calendar!$A$3:$G$459,4,FALSE)="S", "", VLOOKUP(A20,Calendar!$A$3:$G$459,4,FALSE)))) -> M | D20: =IF(Summary!$B$5=3,IF(C20="","",VLOOKUP(A20,Calendar!$A$3:$G$459,5,FALSE)),IF(C20="","",VLOOKUP(A20,Calendar!$A$3:$G$459,2,FALSE))) -> 2019-08-12 | I20: 0
A21: 813 | C21: =IF(ISNA(IF(Summary!$B$5=3,IF(VLOOKUP(A21,Calendar!$A$3:$G$459,7,FALSE)="S", "", VLOOKUP(A21,Calendar!$A$3:$G$459,7,FALSE)),IF(VLOOKUP(A21,Calendar!$A$3:$G$459,4,FALSE)="S", "", VLOOKUP(A21,Calendar!$A$3:$G$459,4,FALSE)))),"",IF(Summary!$B$5=3,IF(VLOOKUP(A21,Calendar!$A$3:$G$459,7,FALSE)="S", "", VLOOKUP(A21,Calendar!$A$3:$G$459,7,FALSE)),IF(VLOOKUP(A21,Calendar!$A$3:$G$459,4,FALSE)="S", "", VLOOKUP(A21,Calendar!$A$3:$G$459,4,FALSE)))) -> T | D21: =IF(Summary!$B$5=3,IF(C21="","",VLOOKUP(A21,Calendar!$A$3:$G$459,5,FALSE)),IF(C21="","",VLOOKUP(A21,Calendar!$A$3:$G$459,2,FALSE))) -> 2019-08-13 | I21: 0
A22: 814 | C22: =IF(ISNA(IF(Summary!$B$5=3,IF(VLOOKUP(A22,Calendar!$A$3:$G$459,7,FALSE)="S", "", VLOOKUP(A22,Calendar!$A$3:$G$459,7,FALSE)),IF(VLOOKUP(A22,Calendar!$A$3:$G$459,4,FALSE)="S", "", VLOOKUP(A22,Calendar!$A$3:$G$459,4,FALSE)))),"",IF(Summary!$B$5=3,IF(VLOOKUP(A22,Calendar!$A$3:$G$459,7,FALSE)="S", "", VLOOKUP(A22,Calendar!$A$3:$G$459,7,FALSE)),IF(VLOOKUP(A22,Calendar!$A$3:$G$459,4,FALSE)="S", "", VLOOKUP(A22,Calendar!$A$3:$G$459,4,FALSE)))) -> W | D22: =IF(Summary!$B$5=3,IF(C22="","",VLOOKUP(A22,Calendar!$A$3:$G$459,5,FALSE)),IF(C22="","",VLOOKUP(A22,Calendar!$A$3:$G$459,2,FALSE))) -> 2019-08-14 | I22: 0
A23: 815 | C23: =IF(ISNA(IF(Summary!$B$5=3,IF(VLOOKUP(A23,Calendar!$A$3:$G$459,7,FALSE)="S", "", VLOOKUP(A23,Calendar!$A$3:$G$459,7,FALSE)),IF(VLOOKUP(A23,Calendar!$A$3:$G$459,4,FALSE)="S", "", VLOOKUP(A23,Calendar!$A$3:$G$459,4,FALSE)))),"",IF(Summary!$B$5=3,IF(VLOOKUP(A23,Calendar!$A$3:$G$459,7,FALSE)="S", "", VLOOKUP(A23,Calendar!$A$3:$G$459,7,FALSE)),IF(VLOOKUP(A23,Calendar!$A$3:$G$459,4,FALSE)="S", "", VLOOKUP(A23,Calendar!$A$3:$G$459,4,FALSE)))) -> R | D23: =IF(Summary!$B$5=3,IF(C23="","",VLOOKUP(A23,Calendar!$A$3:$G$459,5,FALSE)),IF(C23="","",VLOOKUP(A23,Calendar!$A$3:$G$459,2,FALSE))) -> 2019-08-15 | I23: 0
A24: 816 | C24: =IF(ISNA(IF(Summary!$B$5=3,IF(VLOOKUP(A24,Calendar!$A$3:$G$459,7,FALSE)="S", "", VLOOKUP(A24,Calendar!$A$3:$G$459,7,FALSE)),IF(VLOOKUP(A24,Calendar!$A$3:$G$459,4,FALSE)="S", "", VLOOKUP(A24,Calendar!$A$3:$G$459,4,FALSE)))),"",IF(Summary!$B$5=3,IF(VLOOKUP(A24,Calendar!$A$3:$G$459,7,FALSE)="S", "", VLOOKUP(A24,Calendar!$A$3:$G$459,7,FALSE)),IF(VLOOKUP(A24,Calendar!$A$3:$G$459,4,FALSE)="S", "", VLOOKUP(A24,Calendar!$A$3:$G$459,4,FALSE)))) -> F | D24: =IF(Summary!$B$5=3,IF(C24="","",VLOOKUP(A24,Calendar!$A$3:$G$459,5,FALSE)),IF(C24="","",VLOOKUP(A24,Calendar!$A$3:$G$459,2,FALSE))) -> 2019-08-16 | I24: 0
A25: 817 | C25: =IF(ISNA(IF(Summary!$B$5=3,IF(VLOOKUP(A25,Calendar!$A$3:$G$459,7,FALSE)="S", "", VLOOKUP(A25,Calendar!$A$3:$G$459,7,FALSE)),IF(VLOOKUP(A25,Calendar!$A$3:$G$459,4,FALSE)="S", "", VLOOKUP(A25,Calendar!$A$3:$G$459,4,FALSE)))),"",IF(Summary!$B$5=3,IF(VLOOKUP(A25,Calendar!$A$3:$G$459,7,FALSE)="S", "", VLOOKUP(A25,Calendar!$A$3:$G$459,7,FALSE)),IF(VLOOKUP(A25,Calendar!$A$3:$G$459,4,FALSE)="S", "", VLOOKUP(A25,Calendar!$A$3:$G$459,4,FALSE)))) ->  | D25: =IF(Summary!$B$5=3,IF(C25="","",VLOOKUP(A25,Calendar!$A$3:$G$459,5,FALSE)),IF(C25="","",VLOOKUP(A25,Calendar!$A$3:$G$459,2,FALSE))) ->  | I25: 0
A26: 818 | C26: =IF(ISNA(IF(Summary!$B$5=3,IF(VLOOKUP(A26,Calendar!$A$3:$G$459,7,FALSE)="S", "", VLOOKUP(A26,Calendar!$A$3:$G$459,7,FALSE)),IF(VLOOKUP(A26,Calendar!$A$3:$G$459,4,FALSE)="S", "", VLOOKUP(A26,Calendar!$A$3:$G$459,4,FALSE)))),"",IF(Summary!$B$5=3,IF(VLOOKUP(A26,Calendar!$A$3:$G$459,7,FALSE)="S", "", VLOOKUP(A26,Calendar!$A$3:$G$459,7,FALSE)),IF(VLOOKUP(A26,Calendar!$A$3:$G$459,4,FALSE)="S", "", VLOOKUP(A26,Calendar!$A$3:$G$459,4,FALSE)))) ->  | D26: =IF(Summary!$B$5=3,IF(C26="","",VLOOKUP(A26,Calendar!$A$3:$G$459,5,FALSE)),IF(C26="","",VLOOKUP(A26,Calendar!$A$3:$G$459,2,FALSE))) ->  | I26: 0
A27: 819 | C27: =IF(ISNA(IF(Summary!$B$5=3,IF(VLOOKUP(A27,Calendar!$A$3:$G$459,7,FALSE)="S", "", VLOOKUP(A27,Calendar!$A$3:$G$459,7,FALSE)),IF(VLOOKUP(A27,Calendar!$A$3:$G$459,4,FALSE)="S", "", VLOOKUP(A27,Calendar!$A$3:$G$459,4,FALSE)))),"",IF(Summary!$B$5=3,IF(VLOOKUP(A27,Calendar!$A$3:$G$459,7,FALSE)="S", "", VLOOKUP(A27,Calendar!$A$3:$G$459,7,FALSE)),IF(VLOOKUP(A27,Calendar!$A$3:$G$459,4,FALSE)="S", "", VLOOKUP(A27,Calendar!$A$3:$G$459,4,FALSE)))) -> M | D27: =IF(Summary!$B$5=3,IF(C27="","",VLOOKUP(A27,Calendar!$A$3:$G$459,5,FALSE)),IF(C27="","",VLOOKUP(A27,Calendar!$A$3:$G$459,2,FALSE))) -> 2019-08-19 | I27: 0
A28: 820 | C28: =IF(ISNA(IF(Summary!$B$5=3,IF(VLOOKUP(A28,Calendar!$A$3:$G$459,7,FALSE)="S", "", VLOOKUP(A28,Calendar!$A$3:$G$459,7,FALSE)),IF(VLOOKUP(A28,Calendar!$A$3:$G$459,4,FALSE)="S", "", VLOOKUP(A28,Calendar!$A$3:$G$459,4,FALSE)))),"",IF(Summary!$B$5=3,IF(VLOOKUP(A28,Calendar!$A$3:$G$459,7,FALSE)="S", "", VLOOKUP(A28,Calendar!$A$3:$G$459,7,FALSE)),IF(VLOOKUP(A28,Calendar!$A$3:$G$459,4,FALSE)="S", "", VLOOKUP(A28,Calendar!$A$3:$G$459,4,FALSE)))) -> T | D28: =IF(Summary!$B$5=3,IF(C28="","",VLOOKUP(A28,Calendar!$A$3:$G$459,5,FALSE)),IF(C28="","",VLOOKUP(A28,Calendar!$A$3:$G$459,2,FALSE))) -> 2019-08-20 | I28: 0
A29: 821 | C29: =IF(ISNA(IF(Summary!$B$5=3,IF(VLOOKUP(A29,Calendar!$A$3:$G$459,7,FALSE)="S", "", VLOOKUP(A29,Calendar!$A$3:$G$459,7,FALSE)),IF(VLOOKUP(A29,Calendar!$A$3:$G$459,4,FALSE)="S", "", VLOOKUP(A29,Calendar!$A$3:$G$459,4,FALSE)))),"",IF(Summary!$B$5=3,IF(VLOOKUP(A29,Calendar!$A$3:$G$459,7,FALSE)="S", "", VLOOKUP(A29,Calendar!$A$3:$G$459,7,FALSE)),IF(VLOOKUP(A29,Calendar!$A$3:$G$459,4,FALSE)="S", "", VLOOKUP(A29,Calendar!$A$3:$G$459,4,FALSE)))) -> W | D29: =IF(Summary!$B$5=3,IF(C29="","",VLOOKUP(A29,Calendar!$A$3:$G$459,5,FALSE)),IF(C29="","",VLOOKUP(A29,Calendar!$A$3:$G$459,2,FALSE))) -> 2019-08-21 | I29: 0
A30: 822 | C30: =IF(ISNA(IF(Summary!$B$5=3,IF(VLOOKUP(A30,Calendar!$A$3:$G$459,7,FALSE)="S", "", VLOOKUP(A30,Calendar!$A$3:$G$459,7,FALSE)),IF(VLOOKUP(A30,Calendar!$A$3:$G$459,4,FALSE)="S", "", VLOOKUP(A30,Calendar!$A$3:$G$459,4,FALSE)))),"",IF(Summary!$B$5=3,IF(VLOOKUP(A30,Calendar!$A$3:$G$459,7,FALSE)="S", "", VLOOKUP(A30,Calendar!$A$3:$G$459,7,FALSE)),IF(VLOOKUP(A30,Calendar!$A$3:$G$459,4,FALSE)="S", "", VLOOKUP(A30,Calendar!$A$3:$G$459,4,FALSE)))) -> R | D30: =IF(Summary!$B$5=3,IF(C30="","",VLOOKUP(A30,Calendar!$A$3:$G$459,5,FALSE)),IF(C30="","",VLOOKUP(A30,Calendar!$A$3:$G$459,2,FALSE))) -> 2019-08-22 | I30: 0
A31: 823 | C31: =IF(ISNA(IF(Summary!$B$5=3,IF(VLOOKUP(A31,Calendar!$A$3:$G$459,7,FALSE)="S", "", VLOOKUP(A31,Calendar!$A$3:$G$459,7,FALSE)),IF(VLOOKUP(A31,Calendar!$A$3:$G$459,4,FALSE)="S", "", VLOOKUP(A31,Calendar!$A$3:$G$459,4,FALSE)))),"",IF(Summary!$B$5=3,IF(VLOOKUP(A31,Calendar!$A$3:$G$459,7,FALSE)="S", "", VLOOKUP(A31,Calendar!$A$3:$G$459,7,FALSE)),IF(VLOOKUP(A31,Calendar!$A$3:$G$459,4,FALSE)="S", "", VLOOKUP(A31,Calendar!$A$3:$G$459,4,FALSE)))) -> F | D31: =IF(Summary!$B$5=3,IF(C31="","",VLOOKUP(A31,Calendar!$A$3:$G$459,5,FALSE)),IF(C31="","",VLOOKUP(A31,Calendar!$A$3:$G$459,2,FALSE))) -> 2019-08-23 | I31: 0
A32: 824 | C32: =IF(ISNA(IF(Summary!$B$5=3,IF(VLOOKUP(A32,Calendar!$A$3:$G$459,7,FALSE)="S", "", VLOOKUP(A32,Calendar!$A$3:$G$459,7,FALSE)),IF(VLOOKUP(A32,Calendar!$A$3:$G$459,4,FALSE)="S", "", VLOOKUP(A32,Calendar!$A$3:$G$459,4,FALSE)))),"",IF(Summary!$B$5=3,IF(VLOOKUP(A32,Calendar!$A$3:$G$459,7,FALSE)="S", "", VLOOKUP(A32,Calendar!$A$3:$G$459,7,FALSE)),IF(VLOOKUP(A32,Calendar!$A$3:$G$459,4,FALSE)="S", "", VLOOKUP(A32,Calendar!$A$3:$G$459,4,FALSE)))) ->  | D32: =IF(Summary!$B$5=3,IF(C32="","",VLOOKUP(A32,Calendar!$A$3:$G$459,5,FALSE)),IF(C32="","",VLOOKUP(A32,Calendar!$A$3:$G$459,2,FALSE))) ->  | I32: 0
A33: 825 | C33: =IF(ISNA(IF(Summary!$B$5=3,IF(VLOOKUP(A33,Calendar!$A$3:$G$459,7,FALSE)="S", "", VLOOKUP(A33,Calendar!$A$3:$G$459,7,FALSE)),IF(VLOOKUP(A33,Calendar!$A$3:$G$459,4,FALSE)="S", "", VLOOKUP(A33,Calendar!$A$3:$G$459,4,FALSE)))),"",IF(Summary!$B$5=3,IF(VLOOKUP(A33,Calendar!$A$3:$G$459,7,FALSE)="S", "", VLOOKUP(A33,Calendar!$A$3:$G$459,7,FALSE)),IF(VLOOKUP(A33,Calendar!$A$3:$G$459,4,FALSE)="S", "", VLOOKUP(A33,Calendar!$A$3:$G$459,4,FALSE)))) ->  | D33: =IF(Summary!$B$5=3,IF(C33="","",VLOOKUP(A33,Calendar!$A$3:$G$459,5,FALSE)),IF(C33="","",VLOOKUP(A33,Calendar!$A$3:$G$459,2,FALSE))) ->  | I33: 0
A34: 826 | C34: =IF(ISNA(IF(Summary!$B$5=3,IF(VLOOKUP(A34,Calendar!$A$3:$G$459,7,FALSE)="S", "", VLOOKUP(A34,Calendar!$A$3:$G$459,7,FALSE)),IF(VLOOKUP(A34,Calendar!$A$3:$G$459,4,FALSE)="S", "", VLOOKUP(A34,Calendar!$A$3:$G$459,4,FALSE)))),"",IF(Summary!$B$5=3,IF(VLOOKUP(A34,Calendar!$A$3:$G$459,7,FALSE)="S", "", VLOOKUP(A34,Calendar!$A$3:$G$459,7,FALSE)),IF(VLOOKUP(A34,Calendar!$A$3:$G$459,4,FALSE)="S", "", VLOOKUP(A34,Calendar!$A$3:$G$459,4,FALSE)))) -> M | D34: =IF(Summary!$B$5=3,IF(C34="","",VLOOKUP(A34,Calendar!$A$3:$G$459,5,FALSE)),IF(C34="","",VLOOKUP(A34,Calendar!$A$3:$G$459,2,FALSE))) -> 2019-08-26 | I34: 0
A35: 827 | C35: =IF(ISNA(IF(Summary!$B$5=3,IF(VLOOKUP(A35,Calendar!$A$3:$G$459,7,FALSE)="S", "", VLOOKUP(A35,Calendar!$A$3:$G$459,7,FALSE)),IF(VLOOKUP(A35,Calendar!$A$3:$G$459,4,FALSE)="S", "", VLOOKUP(A35,Calendar!$A$3:$G$459,4,FALSE)))),"",IF(Summary!$B$5=3,IF(VLOOKUP(A35,Calendar!$A$3:$G$459,7,FALSE)="S", "", VLOOKUP(A35,Calendar!$A$3:$G$459,7,FALSE)),IF(VLOOKUP(A35,Calendar!$A$3:$G$459,4,FALSE)="S", "", VLOOKUP(A35,Calendar!$A$3:$G$459,4,FALSE)))) -> T | D35: =IF(Summary!$B$5=3,IF(C35="","",VLOOKUP(A35,Calendar!$A$3:$G$459,5,FALSE)),IF(C35="","",VLOOKUP(A35,Calendar!$A$3:$G$459,2,FALSE))) -> 2019-08-27 | I35: 0
A36: 828 | C36: =IF(ISNA(IF(Summary!$B$5=3,IF(VLOOKUP(A36,Calendar!$A$3:$G$459,7,FALSE)="S", "", VLOOKUP(A36,Calendar!$A$3:$G$459,7,FALSE)),IF(VLOOKUP(A36,Calendar!$A$3:$G$459,4,FALSE)="S", "", VLOOKUP(A36,Calendar!$A$3:$G$459,4,FALSE)))),"",IF(Summary!$B$5=3,IF(VLOOKUP(A36,Calendar!$A$3:$G$459,7,FALSE)="S", "", VLOOKUP(A36,Calendar!$A$3:$G$459,7,FALSE)),IF(VLOOKUP(A36,Calendar!$A$3:$G$459,4,FALSE)="S", "", VLOOKUP(A36,Calendar!$A$3:$G$459,4,FALSE)))) -> W | D36: =IF(Summary!$B$5=3,IF(C36="","",VLOOKUP(A36,Calendar!$A$3:$G$459,5,FALSE)),IF(C36="","",VLOOKUP(A36,Calendar!$A$3:$G$459,2,FALSE))) -> 2019-08-28 | I36: 0
A37: 829 | C37: =IF(ISNA(IF(Summary!$B$5=3,IF(VLOOKUP(A37,Calendar!$A$3:$G$459,7,FALSE)="S", "", VLOOKUP(A37,Calendar!$A$3:$G$459,7,FALSE)),IF(VLOOKUP(A37,Calendar!$A$3:$G$459,4,FALSE)="S", "", VLOOKUP(A37,Calendar!$A$3:$G$459,4,FALSE)))),"",IF(Summary!$B$5=3,IF(VLOOKUP(A37,Calendar!$A$3:$G$459,7,FALSE)="S", "", VLOOKUP(A37,Calendar!$A$3:$G$459,7,FALSE)),IF(VLOOKUP(A37,Calendar!$A$3:$G$459,4,FALSE)="S", "", VLOOKUP(A37,Calendar!$A$3:$G$459,4,FALSE)))) -> R | D37: =IF(Summary!$B$5=3,IF(C37="","",VLOOKUP(A37,Calendar!$A$3:$G$459,5,FALSE)),IF(C37="","",VLOOKUP(A37,Calendar!$A$3:$G$459,2,FALSE))) -> 2019-08-29 | I37: 0
A38: 830 | C38: =IF(ISNA(IF(Summary!$B$5=3,IF(VLOOKUP(A38,Calendar!$A$3:$G$459,7,FALSE)="S", "", VLOOKUP(A38,Calendar!$A$3:$G$459,7,FALSE)),IF(VLOOKUP(A38,Calendar!$A$3:$G$459,4,FALSE)="S", "", VLOOKUP(A38,Calendar!$A$3:$G$459,4,FALSE)))),"",IF(Summary!$B$5=3,IF(VLOOKUP(A38,Calendar!$A$3:$G$459,7,FALSE)="S", "", VLOOKUP(A38,Calendar!$A$3:$G$459,7,FALSE)),IF(VLOOKUP(A38,Calendar!$A$3:$G$459,4,FALSE)="S", "", VLOOKUP(A38,Calendar!$A$3:$G$459,4,FALSE)))) -> F | D38: =IF(Summary!$B$5=3,IF(C38="","",VLOOKUP(A38,Calendar!$A$3:$G$459,5,FALSE)),IF(C38="","",VLOOKUP(A38,Calendar!$A$3:$G$459,2,FALSE))) -> 2019-08-30 | I38: 0
A39: 831 | C39: =IF(ISNA(IF(Summary!$B$5=3,IF(VLOOKUP(A39,Calendar!$A$3:$G$459,7,FALSE)="S", "", VLOOKUP(A39,Calendar!$A$3:$G$459,7,FALSE)),IF(VLOOKUP(A39,Calendar!$A$3:$G$459,4,FALSE)="S", "", VLOOKUP(A39,Calendar!$A$3:$G$459,4,FALSE)))),"",IF(Summary!$B$5=3,IF(VLOOKUP(A39,Calendar!$A$3:$G$459,7,FALSE)="S", "", VLOOKUP(A39,Calendar!$A$3:$G$459,7,FALSE)),IF(VLOOKUP(A39,Calendar!$A$3:$G$459,4,FALSE)="S", "", VLOOKUP(A39,Calendar!$A$3:$G$459,4,FALSE)))) ->  | D39: =IF(Summary!$B$5=3,IF(C39="","",VLOOKUP(A39,Calendar!$A$3:$G$459,5,FALSE)),IF(C39="","",VLOOKUP(A39,Calendar!$A$3:$G$459,2,FALSE))) ->  | I39: 0
D40: Total Minutes | E40: =SUM(E9:E39) -> 0 | F40: =SUM(F9:F39) -> 0 | G40: 0 | H40: 0 | I40: 0
D41: Total Hours | E41: =E40/60 -> 0 | F41: =F40/60 -> 0 | G41: 0 | H41: 0 | I41: 0
C44: Notes
E55: Kansas State Department of Education | I55: Personnel Activity Report
E56: Fiscal Auditing | I56: Updated 9/20/18
E57: 785-296-4976
E58: https://www.ksde.org/Agency/Fiscal-and-Administrative-Services/Fiscal-Auditing
C61: The Kansas State Department of Education does not discriminate on the basis of race, color, national origin, sex, disability, or age in its programs and activities and provides equal access to the Boy Scouts and other designated youth groups. The following person has been designated to handle inquiries regarding the nondiscrimination policies: KSDE General Counsel, Office of General Counsel, KSDE, Landon State Office Building, 900 S.W. Jackson, Suite 102, Topeka, KS 66612, (785) 296-3204.

Sheet September
C3: Personnel Activity Report
C4: Regular School Year
C5: September
C6: =IF(Summary!$E$8<>"",Summary!$E$8," ") -> 
C7: =IF(Summary!$E$9<>"",Summary!$E$9," ") -> 
C8: Day | D8: Date | E8: Special Ed | F8: General Ed | G8: Other | H8: Other | I8: Totals
A9: 901 | C9: =IF(ISNA(IF(Summary!$B$5=3,IF(VLOOKUP(A9,Calendar!$A$3:$G$459,7,FALSE)="S", "", VLOOKUP(A9,Calendar!$A$3:$G$459,7,FALSE)),IF(VLOOKUP(A9,Calendar!$A$3:$G$459,4,FALSE)="S", "", VLOOKUP(A9,Calendar!$A$3:$G$459,4,FALSE)))),"",IF(Summary!$B$5=3,IF(VLOOKUP(A9,Calendar!$A$3:$G$459,7,FALSE)="S", "", VLOOKUP(A9,Calendar!$A$3:$G$459,7,FALSE)),IF(VLOOKUP(A9,Calendar!$A$3:$G$459,4,FALSE)="S", "", VLOOKUP(A9,Calendar!$A$3:$G$459,4,FALSE)))) ->  | D9: =IF(Summary!$B$5=3,IF(C9="","",VLOOKUP(A9,Calendar!$A$3:$G$459,5,FALSE)),IF(C9="","",VLOOKUP(A9,Calendar!$A$3:$G$459,2,FALSE))) ->  | I9: =MIN(1440,SUM(E9:H9)) -> 0 | L9: =IF(I9>390, "<<< Day exceeds 390 minutes. Confirm reported time.","") -> 
A10: 902 | C10: =IF(ISNA(IF(Summary!$B$5=3,IF(VLOOKUP(A10,Calendar!$A$3:$G$459,7,FALSE)="S", "", VLOOKUP(A10,Calendar!$A$3:$G$459,7,FALSE)),IF(VLOOKUP(A10,Calendar!$A$3:$G$459,4,FALSE)="S", "", VLOOKUP(A10,Calendar!$A$3:$G$459,4,FALSE)))),"",IF(Summary!$B$5=3,IF(VLOOKUP(A10,Calendar!$A$3:$G$459,7,FALSE)="S", "", VLOOKUP(A10,Calendar!$A$3:$G$459,7,FALSE)),IF(VLOOKUP(A10,Calendar!$A$3:$G$459,4,FALSE)="S", "", VLOOKUP(A10,Calendar!$A$3:$G$459,4,FALSE)))) -> M | D10: =IF(Summary!$B$5=3,IF(C10="","",VLOOKUP(A10,Calendar!$A$3:$G$459,5,FALSE)),IF(C10="","",VLOOKUP(A10,Calendar!$A$3:$G$459,2,FALSE))) -> 2019-09-02 | I10: =MIN(1440,SUM(E10:H10)) -> 0 | L10: =IF(I10>390, "<<< Day exceeds 390 minutes. Confirm reported time.","") -> 
A11: 903 | C11: =IF(ISNA(IF(Summary!$B$5=3,IF(VLOOKUP(A11,Calendar!$A$3:$G$459,7,FALSE)="S", "", VLOOKUP(A11,Calendar!$A$3:$G$459,7,FALSE)),IF(VLOOKUP(A11,Calendar!$A$3:$G$459,4,FALSE)="S", "", VLOOKUP(A11,Calendar!$A$3:$G$459,4,FALSE)))),"",IF(Summary!$B$5=3,IF(VLOOKUP(A11,Calendar!$A$3:$G$459,7,FALSE)="S", "", VLOOKUP(A11,Calendar!$A$3:$G$459,7,FALSE)),IF(VLOOKUP(A11,Calendar!$A$3:$G$459,4,FALSE)="S", "", VLOOKUP(A11,Calendar!$A$3:$G$459,4,FALSE)))) -> T | D11: =IF(Summary!$B$5=3,IF(C11="","",VLOOKUP(A11,Calendar!$A$3:$G$459,5,FALSE)),IF(C11="","",VLOOKUP(A11,Calendar!$A$3:$G$459,2,FALSE))) -> 2019-09-03 | I11: 0
A12: 904 | C12: =IF(ISNA(IF(Summary!$B$5=3,IF(VLOOKUP(A12,Calendar!$A$3:$G$459,7,FALSE)="S", "", VLOOKUP(A12,Calendar!$A$3:$G$459,7,FALSE)),IF(VLOOKUP(A12,Calendar!$A$3:$G$459,4,FALSE)="S", "", VLOOKUP(A12,Calendar!$A$3:$G$459,4,FALSE)))),"",IF(Summary!$B$5=3,IF(VLOOKUP(A12,Calendar!$A$3:$G$459,7,FALSE)="S", "", VLOOKUP(A12,Calendar!$A$3:$G$459,7,FALSE)),IF(VLOOKUP(A12,Calendar!$A$3:$G$459,4,FALSE)="S", "", VLOOKUP(A12,Calendar!$A$3:$G$459,4,FALSE)))) -> W | D12: =IF(Summary!$B$5=3,IF(C12="","",VLOOKUP(A12,Calendar!$A$3:$G$459,5,FALSE)),IF(C12="","",VLOOKUP(A12,Calendar!$A$3:$G$459,2,FALSE))) -> 2019-09-04 | I12: 0
A13: 905 | C13: =IF(ISNA(IF(Summary!$B$5=3,IF(VLOOKUP(A13,Calendar!$A$3:$G$459,7,FALSE)="S", "", VLOOKUP(A13,Calendar!$A$3:$G$459,7,FALSE)),IF(VLOOKUP(A13,Calendar!$A$3:$G$459,4,FALSE)="S", "", VLOOKUP(A13,Calendar!$A$3:$G$459,4,FALSE)))),"",IF(Summary!$B$5=3,IF(VLOOKUP(A13,Calendar!$A$3:$G$459,7,FALSE)="S", "", VLOOKUP(A13,Calendar!$A$3:$G$459,7,FALSE)),IF(VLOOKUP(A13,Calendar!$A$3:$G$459,4,FALSE)="S", "", VLOOKUP(A13,Calendar!$A$3:$G$459,4,FALSE)))) -> R | D13: =IF(Summary!$B$5=3,IF(C13="","",VLOOKUP(A13,Calendar!$A$3:$G$459,5,FALSE)),IF(C13="","",VLOOKUP(A13,Calendar!$A$3:$G$459,2,FALSE))) -> 2019-09-05 | I13: 0
A14: 906 | C14: =IF(ISNA(IF(Summary!$B$5=3,IF(VLOOKUP(A14,Calendar!$A$3:$G$459,7,FALSE)="S", "", VLOOKUP(A14,Calendar!$A$3:$G$459,7,FALSE)),IF(VLOOKUP(A14,Calendar!$A$3:$G$459,4,FALSE)="S", "", VLOOKUP(A14,Calendar!$A$3:$G$459,4,FALSE)))),"",IF(Summary!$B$5=3,IF(VLOOKUP(A14,Calendar!$A$3:$G$459,7,FALSE)="S", "", VLOOKUP(A14,Calendar!$A$3:$G$459,7,FALSE)),IF(VLOOKUP(A14,Calendar!$A$3:$G$459,4,FALSE)="S", "", VLOOKUP(A14,Calendar!$A$3:$G$459,4,FALSE)))) -> F | D14: =IF(Summary!$B$5=3,IF(C14="","",VLOOKUP(A14,Calendar!$A$3:$G$459,5,FALSE)),IF(C14="","",VLOOKUP(A14,Calendar!$A$3:$G$459,2,FALSE))) -> 2019-09-06 | I14: 0
A15: 907 | C15: =IF(ISNA(IF(Summary!$B$5=3,IF(VLOOKUP(A15,Calendar!$A$3:$G$459,7,FALSE)="S", "", VLOOKUP(A15,Calendar!$A$3:$G$459,7,FALSE)),IF(VLOOKUP(A15,Calendar!$A$3:$G$459,4,FALSE)="S", "", VLOOKUP(A15,Calendar!$A$3:$G$459,4,FALSE)))),"",IF(Summary!$B$5=3,IF(VLOOKUP(A15,Calendar!$A$3:$G$459,7,FALSE)="S", "", VLOOKUP(A15,Calendar!$A$3:$G$459,7,FALSE)),IF(VLOOKUP(A15,Calendar!$A$3:$G$459,4,FALSE)="S", "", VLOOKUP(A15,Calendar!$A$3:$G$459,4,FALSE)))) ->  | D15: =IF(Summary!$B$5=3,IF(C15="","",VLOOKUP(A15,Calendar!$A$3:$G$459,5,FALSE)),IF(C15="","",VLOOKUP(A15,Calendar!$A$3:$G$459,2,FALSE))) ->  | I15: 0
A16: 908 | C16: =IF(ISNA(IF(Summary!$B$5=3,IF(VLOOKUP(A16,Calendar!$A$3:$G$459,7,FALSE)="S", "", VLOOKUP(A16,Calendar!$A$3:$G$459,7,FALSE)),IF(VLOOKUP(A16,Calendar!$A$3:$G$459,4,FALSE)="S", "", VLOOKUP(A16,Calendar!$A$3:$G$459,4,FALSE)))),"",IF(Summary!$B$5=3,IF(VLOOKUP(A16,Calendar!$A$3:$G$459,7,FALSE)="S", "", VLOOKUP(A16,Calendar!$A$3:$G$459,7,FALSE)),IF(VLOOKUP(A16,Calendar!$A$3:$G$459,4,FALSE)="S", "", VLOOKUP(A16,Calendar!$A$3:$G$459,4,FALSE)))) ->  | D16: =IF(Summary!$B$5=3,IF(C16="","",VLOOKUP(A16,Calendar!$A$3:$G$459,5,FALSE)),IF(C16="","",VLOOKUP(A16,Calendar!$A$3:$G$459,2,FALSE))) ->  | I16: 0
A17: 909 | C17: =IF(ISNA(IF(Summary!$B$5=3,IF(VLOOKUP(A17,Calendar!$A$3:$G$459,7,FALSE)="S", "", VLOOKUP(A17,Calendar!$A$3:$G$459,7,FALSE)),IF(VLOOKUP(A17,Calendar!$A$3:$G$459,4,FALSE)="S", "", VLOOKUP(A17,Calendar!$A$3:$G$459,4,FALSE)))),"",IF(Summary!$B$5=3,IF(VLOOKUP(A17,Calendar!$A$3:$G$459,7,FALSE)="S", "", VLOOKUP(A17,Calendar!$A$3:$G$459,7,FALSE)),IF(VLOOKUP(A17,Calendar!$A$3:$G$459,4,FALSE)="S", "", VLOOKUP(A17,Calendar!$A$3:$G$459,4,FALSE)))) -> M | D17: =IF(Summary!$B$5=3,IF(C17="","",VLOOKUP(A17,Calendar!$A$3:$G$459,5,FALSE)),IF(C17="","",VLOOKUP(A17,Calendar!$A$3:$G$459,2,FALSE))) -> 2019-09-09 | I17: 0
A18: 910 | C18: =IF(ISNA(IF(Summary!$B$5=3,IF(VLOOKUP(A18,Calendar!$A$3:$G$459,7,FALSE)="S", "", VLOOKUP(A18,Calendar!$A$3:$G$459,7,FALSE)),IF(VLOOKUP(A18,Calendar!$A$3:$G$459,4,FALSE)="S", "", VLOOKUP(A18,Calendar!$A$3:$G$459,4,FALSE)))),"",IF(Summary!$B$5=3,IF(VLOOKUP(A18,Calendar!$A$3:$G$459,7,FALSE)="S", "", VLOOKUP(A18,Calendar!$A$3:$G$459,7,FALSE)),IF(VLOOKUP(A18,Calendar!$A$3:$G$459,4,FALSE)="S", "", VLOOKUP(A18,Calendar!$A$3:$G$459,4,FALSE)))) -> T | D18: =IF(Summary!$B$5=3,IF(C18="","",VLOOKUP(A18,Calendar!$A$3:$G$459,5,FALSE)),IF(C18="","",VLOOKUP(A18,Calendar!$A$3:$G$459,2,FALSE))) -> 2019-09-10 | I18: 0
A19: 911 | C19: =IF(ISNA(IF(Summary!$B$5=3,IF(VLOOKUP(A19,Calendar!$A$3:$G$459,7,FALSE)="S", "", VLOOKUP(A19,Calendar!$A$3:$G$459,7,FALSE)),IF(VLOOKUP(A19,Calendar!$A$3:$G$459,4,FALSE)="S", "", VLOOKUP(A19,Calendar!$A$3:$G$459,4,FALSE)))),"",IF(Summary!$B$5=3,IF(VLOOKUP(A19,Calendar!$A$3:$G$459,7,FALSE)="S", "", VLOOKUP(A19,Calendar!$A$3:$G$459,7,FALSE)),IF(VLOOKUP(A19,Calendar!$A$3:$G$459,4,FALSE)="S", "", VLOOKUP(A19,Calendar!$A$3:$G$459,4,FALSE)))) -> W | D19: =IF(Summary!$B$5=3,IF(C19="","",VLOOKUP(A19,Calendar!$A$3:$G$459,5,FALSE)),IF(C19="","",VLOOKUP(A19,Calendar!$A$3:$G$459,2,FALSE))) -> 2019-09-11 | I19: 0
A20: 912 | C20: =IF(ISNA(IF(Summary!$B$5=3,IF(VLOOKUP(A20,Calendar!$A$3:$G$459,7,FALSE)="S", "", VLOOKUP(A20,Calendar!$A$3:$G$459,7,FALSE)),IF(VLOOKUP(A20,Calendar!$A$3:$G$459,4,FALSE)="S", "", VLOOKUP(A20,Calendar!$A$3:$G$459,4,FALSE)))),"",IF(Summary!$B$5=3,IF(VLOOKUP(A20,Calendar!$A$3:$G$459,7,FALSE)="S", "", VLOOKUP(A20,Calendar!$A$3:$G$459,7,FALSE)),IF(VLOOKUP(A20,Calendar!$A$3:$G$459,4,FALSE)="S", "", VLOOKUP(A20,Calendar!$A$3:$G$459,4,FALSE)))) -> R | D20: =IF(Summary!$B$5=3,IF(C20="","",VLOOKUP(A20,Calendar!$A$3:$G$459,5,FALSE)),IF(C20="","",VLOOKUP(A20,Calendar!$A$3:$G$459,2,FALSE))) -> 2019-09-12 | I20: 0
A21: 913 | C21: =IF(ISNA(IF(Summary!$B$5=3,IF(VLOOKUP(A21,Calendar!$A$3:$G$459,7,FALSE)="S", "", VLOOKUP(A21,Calendar!$A$3:$G$459,7,FALSE)),IF(VLOOKUP(A21,Calendar!$A$3:$G$459,4,FALSE)="S", "", VLOOKUP(A21,Calendar!$A$3:$G$459,4,FALSE)))),"",IF(Summary!$B$5=3,IF(VLOOKUP(A21,Calendar!$A$3:$G$459,7,FALSE)="S", "", VLOOKUP(A21,Calendar!$A$3:$G$459,7,FALSE)),IF(VLOOKUP(A21,Calendar!$A$3:$G$459,4,FALSE)="S", "", VLOOKUP(A21,Calendar!$A$3:$G$459,4,FALSE)))) -> F | D21: =IF(Summary!$B$5=3,IF(C21="","",VLOOKUP(A21,Calendar!$A$3:$G$459,5,FALSE)),IF(C21="","",VLOOKUP(A21,Calendar!$A$3:$G$459,2,FALSE))) -> 2019-09-13 | I21: 0
A22: 914 | C22: =IF(ISNA(IF(Summary!$B$5=3,IF(VLOOKUP(A22,Calendar!$A$3:$G$459,7,FALSE)="S", "", VLOOKUP(A22,Calendar!$A$3:$G$459,7,FALSE)),IF(VLOOKUP(A22,Calendar!$A$3:$G$459,4,FALSE)="S", "", VLOOKUP(A22,Calendar!$A$3:$G$459,4,FALSE)))),"",IF(Summary!$B$5=3,IF(VLOOKUP(A22,Calendar!$A$3:$G$459,7,FALSE)="S", "", VLOOKUP(A22,Calendar!$A$3:$G$459,7,FALSE)),IF(VLOOKUP(A22,Calendar!$A$3:$G$459,4,FALSE)="S", "", VLOOKUP(A22,Calendar!$A$3:$G$459,4,FALSE)))) ->  | D22: =IF(Summary!$B$5=3,IF(C22="","",VLOOKUP(A22,Calendar!$A$3:$G$459,5,FALSE)),IF(C22="","",VLOOKUP(A22,Calendar!$A$3:$G$459,2,FALSE))) ->  | I22: 0
A23: 915 | C23: =IF(ISNA(IF(Summary!$B$5=3,IF(VLOOKUP(A23,Calendar!$A$3:$G$459,7,FALSE)="S", "", VLOOKUP(A23,Calendar!$A$3:$G$459,7,FALSE)),IF(VLOOKUP(A23,Calendar!$A$3:$G$459,4,FALSE)="S", "", VLOOKUP(A23,Calendar!$A$3:$G$459,4,FALSE)))),"",IF(Summary!$B$5=3,IF(VLOOKUP(A23,Calendar!$A$3:$G$459,7,FALSE)="S", "", VLOOKUP(A23,Calendar!$A$3:$G$459,7,FALSE)),IF(VLOOKUP(A23,Calendar!$A$3:$G$459,4,FALSE)="S", "", VLOOKUP(A23,Calendar!$A$3:$G$459,4,FALSE)))) ->  | D23: =IF(Summary!$B$5=3,IF(C23="","",VLOOKUP(A23,Calendar!$A$3:$G$459,5,FALSE)),IF(C23="","",VLOOKUP(A23,Calendar!$A$3:$G$459,2,FALSE))) ->  | I23: 0
A24: 916 | C24: =IF(ISNA(IF(Summary!$B$5=3,IF(VLOOKUP(A24,Calendar!$A$3:$G$459,7,FALSE)="S", "", VLOOKUP(A24,Calendar!$A$3:$G$459,7,FALSE)),IF(VLOOKUP(A24,Calendar!$A$3:$G$459,4,FALSE)="S", "", VLOOKUP(A24,Calendar!$A$3:$G$459,4,FALSE)))),"",IF(Summary!$B$5=3,IF(VLOOKUP(A24,Calendar!$A$3:$G$459,7,FALSE)="S", "", VLOOKUP(A24,Calendar!$A$3:$G$459,7,FALSE)),IF(VLOOKUP(A24,Calendar!$A$3:$G$459,4,FALSE)="S", "", VLOOKUP(A24,Calendar!$A$3:$G$459,4,FALSE)))) -> M | D24: =IF(Summary!$B$5=3,IF(C24="","",VLOOKUP(A24,Calendar!$A$3:$G$459,5,FALSE)),IF(C24="","",VLOOKUP(A24,Calendar!$A$3:$G$459,2,FALSE))) -> 2019-09-16 | I24: 0
A25: 917 | C25: =IF(ISNA(IF(Summary!$B$5=3,IF(VLOOKUP(A25,Calendar!$A$3:$G$459,7,FALSE)="S", "", VLOOKUP(A25,Calendar!$A$3:$G$459,7,FALSE)),IF(VLOOKUP(A25,Calendar!$A$3:$G$459,4,FALSE)="S", "", VLOOKUP(A25,Calendar!$A$3:$G$459,4,FALSE)))),"",IF(Summary!$B$5=3,IF(VLOOKUP(A25,Calendar!$A$3:$G$459,7,FALSE)="S", "", VLOOKUP(A25,Calendar!$A$3:$G$459,7,FALSE)),IF(VLOOKUP(A25,Calendar!$A$3:$G$459,4,FALSE)="S", "", VLOOKUP(A25,Calendar!$A$3:$G$459,4,FALSE)))) -> T | D25: =IF(Summary!$B$5=3,IF(C25="","",VLOOKUP(A25,Calendar!$A$3:$G$459,5,FALSE)),IF(C25="","",VLOOKUP(A25,Calendar!$A$3:$G$459,2,FALSE))) -> 2019-09-17 | I25: 0
A26: 918 | C26: =IF(ISNA(IF(Summary!$B$5=3,IF(VLOOKUP(A26,Calendar!$A$3:$G$459,7,FALSE)="S", "", VLOOKUP(A26,Calendar!$A$3:$G$459,7,FALSE)),IF(VLOOKUP(A26,Calendar!$A$3:$G$459,4,FALSE)="S", "", VLOOKUP(A26,Calendar!$A$3:$G$459,4,FALSE)))),"",IF(Summary!$B$5=3,IF(VLOOKUP(A26,Calendar!$A$3:$G$459,7,FALSE)="S", "", VLOOKUP(A26,Calendar!$A$3:$G$459,7,FALSE)),IF(VLOOKUP(A26,Calendar!$A$3:$G$459,4,FALSE)="S", "", VLOOKUP(A26,Calendar!$A$3:$G$459,4,FALSE)))) -> W | D26: =IF(Summary!$B$5=3,IF(C26="","",VLOOKUP(A26,Calendar!$A$3:$G$459,5,FALSE)),IF(C26="","",VLOOKUP(A26,Calendar!$A$3:$G$459,2,FALSE))) -> 2019-09-18 | I26: 0
A27: 919 | C27: =IF(ISNA(IF(Summary!$B$5=3,IF(VLOOKUP(A27,Calendar!$A$3:$G$459,7,FALSE)="S", "", VLOOKUP(A27,Calendar!$A$3:$G$459,7,FALSE)),IF(VLOOKUP(A27,Calendar!$A$3:$G$459,4,FALSE)="S", "", VLOOKUP(A27,Calendar!$A$3:$G$459,4,FALSE)))),"",IF(Summary!$B$5=3,IF(VLOOKUP(A27,Calendar!$A$3:$G$459,7,FALSE)="S", "", VLOOKUP(A27,Calendar!$A$3:$G$459,7,FALSE)),IF(VLOOKUP(A27,Calendar!$A$3:$G$459,4,FALSE)="S", "", VLOOKUP(A27,Calendar!$A$3:$G$459,4,FALSE)))) -> R | D27: =IF(Summary!$B$5=3,IF(C27="","",VLOOKUP(A27,Calendar!$A$3:$G$459,5,FALSE)),IF(C27="","",VLOOKUP(A27,Calendar!$A$3:$G$459,2,FALSE))) -> 2019-09-19 | I27: 0
A28: 920 | C28: =IF(ISNA(IF(Summary!$B$5=3,IF(VLOOKUP(A28,Calendar!$A$3:$G$459,7,FALSE)="S", "", VLOOKUP(A28,Calendar!$A$3:$G$459,7,FALSE)),IF(VLOOKUP(A28,Calendar!$A$3:$G$459,4,FALSE)="S", "", VLOOKUP(A28,Calendar!$A$3:$G$459,4,FALSE)))),"",IF(Summary!$B$5=3,IF(VLOOKUP(A28,Calendar!$A$3:$G$459,7,FALSE)="S", "", VLOOKUP(A28,Calendar!$A$3:$G$459,7,FALSE)),IF(VLOOKUP(A28,Calendar!$A$3:$G$459,4,FALSE)="S", "", VLOOKUP(A28,Calendar!$A$3:$G$459,4,FALSE)))) -> F | D28: =IF(Summary!$B$5=3,IF(C28="","",VLOOKUP(A28,Calendar!$A$3:$G$459,5,FALSE)),IF(C28="","",VLOOKUP(A28,Calendar!$A$3:$G$459,2,FALSE))) -> 2019-09-20 | I28: 0
A29: 921 | C29: =IF(ISNA(IF(Summary!$B$5=3,IF(VLOOKUP(A29,Calendar!$A$3:$G$459,7,FALSE)="S", "", VLOOKUP(A29,Calendar!$A$3:$G$459,7,FALSE)),IF(VLOOKUP(A29,Calendar!$A$3:$G$459,4,FALSE)="S", "", VLOOKUP(A29,Calendar!$A$3:$G$459,4,FALSE)))),"",IF(Summary!$B$5=3,IF(VLOOKUP(A29,Calendar!$A$3:$G$459,7,FALSE)="S", "", VLOOKUP(A29,Calendar!$A$3:$G$459,7,FALSE)),IF(VLOOKUP(A29,Calendar!$A$3:$G$459,4,FALSE)="S", "", VLOOKUP(A29,Calendar!$A$3:$G$459,4,FALSE)))) ->  | D29: =IF(Summary!$B$5=3,IF(C29="","",VLOOKUP(A29,Calendar!$A$3:$G$459,5,FALSE)),IF(C29="","",VLOOKUP(A29,Calendar!$A$3:$G$459,2,FALSE))) ->  | I29: 0
A30: 922 | C30: =IF(ISNA(IF(Summary!$B$5=3,IF(VLOOKUP(A30,Calendar!$A$3:$G$459,7,FALSE)="S", "", VLOOKUP(A30,Calendar!$A$3:$G$459,7,FALSE)),IF(VLOOKUP(A30,Calendar!$A$3:$G$459,4,FALSE)="S", "", VLOOKUP(A30,Calendar!$A$3:$G$459,4,FALSE)))),"",IF(Summary!$B$5=3,IF(VLOOKUP(A30,Calendar!$A$3:$G$459,7,FALSE)="S", "", VLOOKUP(A30,Calendar!$A$3:$G$459,7,FALSE)),IF(VLOOKUP(A30,Calendar!$A$3:$G$459,4,FALSE)="S", "", VLOOKUP(A30,Calendar!$A$3:$G$459,4,FALSE)))) ->  | D30: =IF(Summary!$B$5=3,IF(C30="","",VLOOKUP(A30,Calendar!$A$3:$G$459,5,FALSE)),IF(C30="","",VLOOKUP(A30,Calendar!$A$3:$G$459,2,FALSE))) ->  | I30: 0
A31: 923 | C31: =IF(ISNA(IF(Summary!$B$5=3,IF(VLOOKUP(A31,Calendar!$A$3:$G$459,7,FALSE)="S", "", VLOOKUP(A31,Calendar!$A$3:$G$459,7,FALSE)),IF(VLOOKUP(A31,Calendar!$A$3:$G$459,4,FALSE)="S", "", VLOOKUP(A31,Calendar!$A$3:$G$459,4,FALSE)))),"",IF(Summary!$B$5=3,IF(VLOOKUP(A31,Calendar!$A$3:$G$459,7,FALSE)="S", "", VLOOKUP(A31,Calendar!$A$3:$G$459,7,FALSE)),IF(VLOOKUP(A31,Calendar!$A$3:$G$459,4,FALSE)="S", "", VLOOKUP(A31,Calendar!$A$3:$G$459,4,FALSE)))) -> M | D31: =IF(Summary!$B$5=3,IF(C31="","",VLOOKUP(A31,Calendar!$A$3:$G$459,5,FALSE)),IF(C31="","",VLOOKUP(A31,Calendar!$A$3:$G$459,2,FALSE))) -> 2019-09-23 | I31: 0
A32: 924 | C32: =IF(ISNA(IF(Summary!$B$5=3,IF(VLOOKUP(A32,Calendar!$A$3:$G$459,7,FALSE)="S", "", VLOOKUP(A32,Calendar!$A$3:$G$459,7,FALSE)),IF(VLOOKUP(A32,Calendar!$A$3:$G$459,4,FALSE)="S", "", VLOOKUP(A32,Calendar!$A$3:$G$459,4,FALSE)))),"",IF(Summary!$B$5=3,IF(VLOOKUP(A32,Calendar!$A$3:$G$459,7,FALSE)="S", "", VLOOKUP(A32,Calendar!$A$3:$G$459,7,FALSE)),IF(VLOOKUP(A32,Calendar!$A$3:$G$459,4,FALSE)="S", "", VLOOKUP(A32,Calendar!$A$3:$G$459,4,FALSE)))) -> T | D32: =IF(Summary!$B$5=3,IF(C32="","",VLOOKUP(A32,Calendar!$A$3:$G$459,5,FALSE)),IF(C32="","",VLOOKUP(A32,Calendar!$A$3:$G$459,2,FALSE))) -> 2019-09-24 | I32: 0
A33: 925 | C33: =IF(ISNA(IF(Summary!$B$5=3,IF(VLOOKUP(A33,Calendar!$A$3:$G$459,7,FALSE)="S", "", VLOOKUP(A33,Calendar!$A$3:$G$459,7,FALSE)),IF(VLOOKUP(A33,Calendar!$A$3:$G$459,4,FALSE)="S", "", VLOOKUP(A33,Calendar!$A$3:$G$459,4,FALSE)))),"",IF(Summary!$B$5=3,IF(VLOOKUP(A33,Calendar!$A$3:$G$459,7,FALSE)="S", "", VLOOKUP(A33,Calendar!$A$3:$G$459,7,FALSE)),IF(VLOOKUP(A33,Calendar!$A$3:$G$459,4,FALSE)="S", "", VLOOKUP(A33,Calendar!$A$3:$G$459,4,FALSE)))) -> W | D33: =IF(Summary!$B$5=3,IF(C33="","",VLOOKUP(A33,Calendar!$A$3:$G$459,5,FALSE)),IF(C33="","",VLOOKUP(A33,Calendar!$A$3:$G$459,2,FALSE))) -> 2019-09-25 | I33: 0
A34: 926 | C34: =IF(ISNA(IF(Summary!$B$5=3,IF(VLOOKUP(A34,Calendar!$A$3:$G$459,7,FALSE)="S", "", VLOOKUP(A34,Calendar!$A$3:$G$459,7,FALSE)),IF(VLOOKUP(A34,Calendar!$A$3:$G$459,4,FALSE)="S", "", VLOOKUP(A34,Calendar!$A$3:$G$459,4,FALSE)))),"",IF(Summary!$B$5=3,IF(VLOOKUP(A34,Calendar!$A$3:$G$459,7,FALSE)="S", "", VLOOKUP(A34,Calendar!$A$3:$G$459,7,FALSE)),IF(VLOOKUP(A34,Calendar!$A$3:$G$459,4,FALSE)="S", "", VLOOKUP(A34,Calendar!$A$3:$G$459,4,FALSE)))) -> R | D34: =IF(Summary!$B$5=3,IF(C34="","",VLOOKUP(A34,Calendar!$A$3:$G$459,5,FALSE)),IF(C34="","",VLOOKUP(A34,Calendar!$A$3:$G$459,2,FALSE))) -> 2019-09-26 | I34: 0
A35: 927 | C35: =IF(ISNA(IF(Summary!$B$5=3,IF(VLOOKUP(A35,Calendar!$A$3:$G$459,7,FALSE)="S", "", VLOOKUP(A35,Calendar!$A$3:$G$459,7,FALSE)),IF(VLOOKUP(A35,Calendar!$A$3:$G$459,4,FALSE)="S", "", VLOOKUP(A35,Calendar!$A$3:$G$459,4,FALSE)))),"",IF(Summary!$B$5=3,IF(VLOOKUP(A35,Calendar!$A$3:$G$459,7,FALSE)="S", "", VLOOKUP(A35,Calendar!$A$3:$G$459,7,FALSE)),IF(VLOOKUP(A35,Calendar!$A$3:$G$459,4,FALSE)="S", "", VLOOKUP(A35,Calendar!$A$3:$G$459,4,FALSE)))) -> F | D35: =IF(Summary!$B$5=3,IF(C35="","",VLOOKUP(A35,Calendar!$A$3:$G$459,5,FALSE)),IF(C35="","",VLOOKUP(A35,Calendar!$A$3:$G$459,2,FALSE))) -> 2019-09-27 | I35: 0
A36: 928 | C36: =IF(ISNA(IF(Summary!$B$5=3,IF(VLOOKUP(A36,Calendar!$A$3:$G$459,7,FALSE)="S", "", VLOOKUP(A36,Calendar!$A$3:$G$459,7,FALSE)),IF(VLOOKUP(A36,Calendar!$A$3:$G$459,4,FALSE)="S", "", VLOOKUP(A36,Calendar!$A$3:$G$459,4,FALSE)))),"",IF(Summary!$B$5=3,IF(VLOOKUP(A36,Calendar!$A$3:$G$459,7,FALSE)="S", "", VLOOKUP(A36,Calendar!$A$3:$G$459,7,FALSE)),IF(VLOOKUP(A36,Calendar!$A$3:$G$459,4,FALSE)="S", "", VLOOKUP(A36,Calendar!$A$3:$G$459,4,FALSE)))) ->  | D36: =IF(Summary!$B$5=3,IF(C36="","",VLOOKUP(A36,Calendar!$A$3:$G$459,5,FALSE)),IF(C36="","",VLOOKUP(A36,Calendar!$A$3:$G$459,2,FALSE))) ->  | I36: 0
A37: 929 | C37: =IF(ISNA(IF(Summary!$B$5=3,IF(VLOOKUP(A37,Calendar!$A$3:$G$459,7,FALSE)="S", "", VLOOKUP(A37,Calendar!$A$3:$G$459,7,FALSE)),IF(VLOOKUP(A37,Calendar!$A$3:$G$459,4,FALSE)="S", "", VLOOKUP(A37,Calendar!$A$3:$G$459,4,FALSE)))),"",IF(Summary!$B$5=3,IF(VLOOKUP(A37,Calendar!$A$3:$G$459,7,FALSE)="S", "", VLOOKUP(A37,Calendar!$A$3:$G$459,7,FALSE)),IF(VLOOKUP(A37,Calendar!$A$3:$G$459,4,FALSE)="S", "", VLOOKUP(A37,Calendar!$A$3:$G$459,4,FALSE)))) ->  | D37: =IF(Summary!$B$5=3,IF(C37="","",VLOOKUP(A37,Calendar!$A$3:$G$459,5,FALSE)),IF(C37="","",VLOOKUP(A37,Calendar!$A$3:$G$459,2,FALSE))) ->  | I37: 0
A38: 930 | C38: =IF(ISNA(IF(Summary!$B$5=3,IF(VLOOKUP(A38,Calendar!$A$3:$G$459,7,FALSE)="S", "", VLOOKUP(A38,Calendar!$A$3:$G$459,7,FALSE)),IF(VLOOKUP(A38,Calendar!$A$3:$G$459,4,FALSE)="S", "", VLOOKUP(A38,Calendar!$A$3:$G$459,4,FALSE)))),"",IF(Summary!$B$5=3,IF(VLOOKUP(A38,Calendar!$A$3:$G$459,7,FALSE)="S", "", VLOOKUP(A38,Calendar!$A$3:$G$459,7,FALSE)),IF(VLOOKUP(A38,Calendar!$A$3:$G$459,4,FALSE)="S", "", VLOOKUP(A38,Calendar!$A$3:$G$459,4,FALSE)))) -> M | D38: =IF(Summary!$B$5=3,IF(C38="","",VLOOKUP(A38,Calendar!$A$3:$G$459,5,FALSE)),IF(C38="","",VLOOKUP(A38,Calendar!$A$3:$G$459,2,FALSE))) -> 2019-09-30 | I38: 0
C39: =IF(ISNA(IF(Summary!$B$5=3,IF(VLOOKUP(A39,Calendar!$A$3:$G$459,7,FALSE)="S", "", VLOOKUP(A39,Calendar!$A$3:$G$459,7,FALSE)),IF(VLOOKUP(A39,Calendar!$A$3:$G$459,4,FALSE)="S", "", VLOOKUP(A39,Calendar!$A$3:$G$459,4,FALSE)))),"",IF(Summary!$B$5=3,IF(VLOOKUP(A39,Calendar!$A$3:$G$459,7,FALSE)="S", "", VLOOKUP(A39,Calendar!$A$3:$G$459,7,FALSE)),IF(VLOOKUP(A39,Calendar!$A$3:$G$459,4,FALSE)="S", "", VLOOKUP(A39,Calendar!$A$3:$G$459,4,FALSE)))) ->  | D39: =IF(Summary!$B$5=3,IF(C39="","",VLOOKUP(A39,Calendar!$A$3:$G$459,5,FALSE)),IF(C39="","",VLOOKUP(A39,Calendar!$A$3:$G$459,2,FALSE))) ->  | I39: 0
D40: Total Minutes | E40: =SUM(E9:E39) -> 0 | F40: =SUM(F9:F39) -> 0 | G40: 0 | H40: 0 | I40: 0 | L40: =IF(SUM(E40:H40)>COUNTA(E9:E39)*390,"The sum total for all cost objectives exceeds the maximum anticipated value based upon the number of days worked. Confirm minutes claimed for each day.","") -> 
D41: Total Hours | E41: =E40/60 -> 0 | F41: =F40/60 -> 0 | G41: 0 | H41: 0 | I41: 0
C44: Notes
E55: Kansas State Department of Education | I55: Personnel Activity Report
E56: Fiscal Auditing | I56: Updated 9/20/18
E57: 785-296-4976
E58: https://www.ksde.org/Agency/Fiscal-and-Administrative-Services/Fiscal-Auditing
C61: The Kansas State Department of Education does not discriminate on the basis of race, color, national origin, sex, disability, or age in its programs and activities and provides equal access to the Boy Scouts and other designated youth groups. The following person has been designated to handle inquiries regarding the nondiscrimination policies: KSDE General Counsel, Office of General Counsel, KSDE, Landon State Office Building, 900 S.W. Jackson, Suite 102, Topeka, KS 66612, (785) 296-3204.

Sheet October
C3: Personnel Activity Report
C4: Regular School Year
C5: October
C6: =IF(Summary!$E$8<>"",Summary!$E$8," ") -> 
C7: =IF(Summary!$E$9<>"",Summary!$E$9," ") -> 
C8: Day | D8: Date | E8: Special Ed | F8: General Ed | G8: Other | H8: Other | I8: Totals | L8: =IF(OR(AND(F8="",COUNTA(F9:F39)>0),AND(G8="",COUNTA(G9:G39)>0),AND(H8="",COUNTA(H9:H39)>0)),"<<< You must identify the cost objective in the column heading.","") -> 
A9: 1001 | C9: =IF(ISNA(IF(Summary!$B$5=3,IF(VLOOKUP(A9,Calendar!$A$3:$G$459,7,FALSE)="S", "", VLOOKUP(A9,Calendar!$A$3:$G$459,7,FALSE)),IF(VLOOKUP(A9,Calendar!$A$3:$G$459,4,FALSE)="S", "", VLOOKUP(A9,Calendar!$A$3:$G$459,4,FALSE)))),"",IF(Summary!$B$5=3,IF(VLOOKUP(A9,Calendar!$A$3:$G$459,7,FALSE)="S", "", VLOOKUP(A9,Calendar!$A$3:$G$459,7,FALSE)),IF(VLOOKUP(A9,Calendar!$A$3:$G$459,4,FALSE)="S", "", VLOOKUP(A9,Calendar!$A$3:$G$459,4,FALSE)))) -> T | D9: =IF(Summary!$B$5=3,IF(C9="","",VLOOKUP(A9,Calendar!$A$3:$G$459,5,FALSE)),IF(C9="","",VLOOKUP(A9,Calendar!$A$3:$G$459,2,FALSE))) -> 2019-10-01 | I9: =MIN(1440,SUM(E9:H9)) -> 0 | L9: =IF(I9>390, "<<< Day exceeds 390 minutes. Confirm reported time.","") -> 
A10: 1002 | C10: =IF(ISNA(IF(Summary!$B$5=3,IF(VLOOKUP(A10,Calendar!$A$3:$G$459,7,FALSE)="S", "", VLOOKUP(A10,Calendar!$A$3:$G$459,7,FALSE)),IF(VLOOKUP(A10,Calendar!$A$3:$G$459,4,FALSE)="S", "", VLOOKUP(A10,Calendar!$A$3:$G$459,4,FALSE)))),"",IF(Summary!$B$5=3,IF(VLOOKUP(A10,Calendar!$A$3:$G$459,7,FALSE)="S", "", VLOOKUP(A10,Calendar!$A$3:$G$459,7,FALSE)),IF(VLOOKUP(A10,Calendar!$A$3:$G$459,4,FALSE)="S", "", VLOOKUP(A10,Calendar!$A$3:$G$459,4,FALSE)))) -> W | D10: =IF(Summary!$B$5=3,IF(C10="","",VLOOKUP(A10,Calendar!$A$3:$G$459,5,FALSE)),IF(C10="","",VLOOKUP(A10,Calendar!$A$3:$G$459,2,FALSE))) -> 2019-10-02 | I10: =MIN(1440,SUM(E10:H10)) -> 0 | L10: =IF(I10>390, "<<< Day exceeds 390 minutes. Confirm reported time.","") -> 
A11: 1003 | C11: =IF(ISNA(IF(Summary!$B$5=3,IF(VLOOKUP(A11,Calendar!$A$3:$G$459,7,FALSE)="S", "", VLOOKUP(A11,Calendar!$A$3:$G$459,7,FALSE)),IF(VLOOKUP(A11,Calendar!$A$3:$G$459,4,FALSE)="S", "", VLOOKUP(A11,Calendar!$A$3:$G$459,4,FALSE)))),"",IF(Summary!$B$5=3,IF(VLOOKUP(A11,Calendar!$A$3:$G$459,7,FALSE)="S", "", VLOOKUP(A11,Calendar!$A$3:$G$459,7,FALSE)),IF(VLOOKUP(A11,Calendar!$A$3:$G$459,4,FALSE)="S", "", VLOOKUP(A11,Calendar!$A$3:$G$459,4,FALSE)))) -> R | D11: =IF(Summary!$B$5=3,IF(C11="","",VLOOKUP(A11,Calendar!$A$3:$G$459,5,FALSE)),IF(C11="","",VLOOKUP(A11,Calendar!$A$3:$G$459,2,FALSE))) -> 2019-10-03 | I11: 0
A12: 1004 | C12: =IF(ISNA(IF(Summary!$B$5=3,IF(VLOOKUP(A12,Calendar!$A$3:$G$459,7,FALSE)="S", "", VLOOKUP(A12,Calendar!$A$3:$G$459,7,FALSE)),IF(VLOOKUP(A12,Calendar!$A$3:$G$459,4,FALSE)="S", "", VLOOKUP(A12,Calendar!$A$3:$G$459,4,FALSE)))),"",IF(Summary!$B$5=3,IF(VLOOKUP(A12,Calendar!$A$3:$G$459,7,FALSE)="S", "", VLOOKUP(A12,Calendar!$A$3:$G$459,7,FALSE)),IF(VLOOKUP(A12,Calendar!$A$3:$G$459,4,FALSE)="S", "", VLOOKUP(A12,Calendar!$A$3:$G$459,4,FALSE)))) -> F | D12: =IF(Summary!$B$5=3,IF(C12="","",VLOOKUP(A12,Calendar!$A$3:$G$459,5,FALSE)),IF(C12="","",VLOOKUP(A12,Calendar!$A$3:$G$459,2,FALSE))) -> 2019-10-04 | I12: 0
A13: 1005 | C13: =IF(ISNA(IF(Summary!$B$5=3,IF(VLOOKUP(A13,Calendar!$A$3:$G$459,7,FALSE)="S", "", VLOOKUP(A13,Calendar!$A$3:$G$459,7,FALSE)),IF(VLOOKUP(A13,Calendar!$A$3:$G$459,4,FALSE)="S", "", VLOOKUP(A13,Calendar!$A$3:$G$459,4,FALSE)))),"",IF(Summary!$B$5=3,IF(VLOOKUP(A13,Calendar!$A$3:$G$459,7,FALSE)="S", "", VLOOKUP(A13,Calendar!$A$3:$G$459,7,FALSE)),IF(VLOOKUP(A13,Calendar!$A$3:$G$459,4,FALSE)="S", "", VLOOKUP(A13,Calendar!$A$3:$G$459,4,FALSE)))) ->  | D13: =IF(Summary!$B$5=3,IF(C13="","",VLOOKUP(A13,Calendar!$A$3:$G$459,5,FALSE)),IF(C13="","",VLOOKUP(A13,Calendar!$A$3:$G$459,2,FALSE))) ->  | I13: 0
A14: 1006 | C14: =IF(ISNA(IF(Summary!$B$5=3,IF(VLOOKUP(A14,Calendar!$A$3:$G$459,7,FALSE)="S", "", VLOOKUP(A14,Calendar!$A$3:$G$459,7,FALSE)),IF(VLOOKUP(A14,Calendar!$A$3:$G$459,4,FALSE)="S", "", VLOOKUP(A14,Calendar!$A$3:$G$459,4,FALSE)))),"",IF(Summary!$B$5=3,IF(VLOOKUP(A14,Calendar!$A$3:$G$459,7,FALSE)="S", "", VLOOKUP(A14,Calendar!$A$3:$G$459,7,FALSE)),IF(VLOOKUP(A14,Calendar!$A$3:$G$459,4,FALSE)="S", "", VLOOKUP(A14,Calendar!$A$3:$G$459,4,FALSE)))) ->  | D14: =IF(Summary!$B$5=3,IF(C14="","",VLOOKUP(A14,Calendar!$A$3:$G$459,5,FALSE)),IF(C14="","",VLOOKUP(A14,Calendar!$A$3:$G$459,2,FALSE))) ->  | I14: 0
A15: 1007 | C15: =IF(ISNA(IF(Summary!$B$5=3,IF(VLOOKUP(A15,Calendar!$A$3:$G$459,7,FALSE)="S", "", VLOOKUP(A15,Calendar!$A$3:$G$459,7,FALSE)),IF(VLOOKUP(A15,Calendar!$A$3:$G$459,4,FALSE)="S", "", VLOOKUP(A15,Calendar!$A$3:$G$459,4,FALSE)))),"",IF(Summary!$B$5=3,IF(VLOOKUP(A15,Calendar!$A$3:$G$459,7,FALSE)="S", "", VLOOKUP(A15,Calendar!$A$3:$G$459,7,FALSE)),IF(VLOOKUP(A15,Calendar!$A$3:$G$459,4,FALSE)="S", "", VLOOKUP(A15,Calendar!$A$3:$G$459,4,FALSE)))) -> M | D15: =IF(Summary!$B$5=3,IF(C15="","",VLOOKUP(A15,Calendar!$A$3:$G$459,5,FALSE)),IF(C15="","",VLOOKUP(A15,Calendar!$A$3:$G$459,2,FALSE))) -> 2019-10-07 | I15: 0
A16: 1008 | C16: =IF(ISNA(IF(Summary!$B$5=3,IF(VLOOKUP(A16,Calendar!$A$3:$G$459,7,FALSE)="S", "", VLOOKUP(A16,Calendar!$A$3:$G$459,7,FALSE)),IF(VLOOKUP(A16,Calendar!$A$3:$G$459,4,FALSE)="S", "", VLOOKUP(A16,Calendar!$A$3:$G$459,4,FALSE)))),"",IF(Summary!$B$5=3,IF(VLOOKUP(A16,Calendar!$A$3:$G$459,7,FALSE)="S", "", VLOOKUP(A16,Calendar!$A$3:$G$459,7,FALSE)),IF(VLOOKUP(A16,Calendar!$A$3:$G$459,4,FALSE)="S", "", VLOOKUP(A16,Calendar!$A$3:$G$459,4,FALSE)))) -> T | D16: =IF(Summary!$B$5=3,IF(C16="","",VLOOKUP(A16,Calendar!$A$3:$G$459,5,FALSE)),IF(C16="","",VLOOKUP(A16,Calendar!$A$3:$G$459,2,FALSE))) -> 2019-10-08 | I16: 0
A17: 1009 | C17: =IF(ISNA(IF(Summary!$B$5=3,IF(VLOOKUP(A17,Calendar!$A$3:$G$459,7,FALSE)="S", "", VLOOKUP(A17,Calendar!$A$3:$G$459,7,FALSE)),IF(VLOOKUP(A17,Calendar!$A$3:$G$459,4,FALSE)="S", "", VLOOKUP(A17,Calendar!$A$3:$G$459,4,FALSE)))),"",IF(Summary!$B$5=3,IF(VLOOKUP(A17,Calendar!$A$3:$G$459,7,FALSE)="S", "", VLOOKUP(A17,Calendar!$A$3:$G$459,7,FALSE)),IF(VLOOKUP(A17,Calendar!$A$3:$G$459,4,FALSE)="S", "", VLOOKUP(A17,Calendar!$A$3:$G$459,4,FALSE)))) -> W | D17: =IF(Summary!$B$5=3,IF(C17="","",VLOOKUP(A17,Calendar!$A$3:$G$459,5,FALSE)),IF(C17="","",VLOOKUP(A17,Calendar!$A$3:$G$459,2,FALSE))) -> 2019-10-09 | I17: 0
A18: 1010 | C18: =IF(ISNA(IF(Summary!$B$5=3,IF(VLOOKUP(A18,Calendar!$A$3:$G$459,7,FALSE)="S", "", VLOOKUP(A18,Calendar!$A$3:$G$459,7,FALSE)),IF(VLOOKUP(A18,Calendar!$A$3:$G$459,4,FALSE)="S", "", VLOOKUP(A18,Calendar!$A$3:$G$459,4,FALSE)))),"",IF(Summary!$B$5=3,IF(VLOOKUP(A18,Calendar!$A$3:$G$459,7,FALSE)="S", "", VLOOKUP(A18,Calendar!$A$3:$G$459,7,FALSE)),IF(VLOOKUP(A18,Calendar!$A$3:$G$459,4,FALSE)="S", "", VLOOKUP(A18,Calendar!$A$3:$G$459,4,FALSE)))) -> R | D18: =IF(Summary!$B$5=3,IF(C18="","",VLOOKUP(A18,Calendar!$A$3:$G$459,5,FALSE)),IF(C18="","",VLOOKUP(A18,Calendar!$A$3:$G$459,2,FALSE))) -> 2019-10-10 | I18: 0
A19: 1011 | C19: =IF(ISNA(IF(Summary!$B$5=3,IF(VLOOKUP(A19,Calendar!$A$3:$G$459,7,FALSE)="S", "", VLOOKUP(A19,Calendar!$A$3:$G$459,7,FALSE)),IF(VLOOKUP(A19,Calendar!$A$3:$G$459,4,FALSE)="S", "", VLOOKUP(A19,Calendar!$A$3:$G$459,4,FALSE)))),"",IF(Summary!$B$5=3,IF(VLOOKUP(A19,Calendar!$A$3:$G$459,7,FALSE)="S", "", VLOOKUP(A19,Calendar!$A$3:$G$459,7,FALSE)),IF(VLOOKUP(A19,Calendar!$A$3:$G$459,4,FALSE)="S", "", VLOOKUP(A19,Calendar!$A$3:$G$459,4,FALSE)))) -> F | D19: =IF(Summary!$B$5=3,IF(C19="","",VLOOKUP(A19,Calendar!$A$3:$G$459,5,FALSE)),IF(C19="","",VLOOKUP(A19,Calendar!$A$3:$G$459,2,FALSE))) -> 2019-10-11 | I19: 0
A20: 1012 | C20: =IF(ISNA(IF(Summary!$B$5=3,IF(VLOOKUP(A20,Calendar!$A$3:$G$459,7,FALSE)="S", "", VLOOKUP(A20,Calendar!$A$3:$G$459,7,FALSE)),IF(VLOOKUP(A20,Calendar!$A$3:$G$459,4,FALSE)="S", "", VLOOKUP(A20,Calendar!$A$3:$G$459,4,FALSE)))),"",IF(Summary!$B$5=3,IF(VLOOKUP(A20,Calendar!$A$3:$G$459,7,FALSE)="S", "", VLOOKUP(A20,Calendar!$A$3:$G$459,7,FALSE)),IF(VLOOKUP(A20,Calendar!$A$3:$G$459,4,FALSE)="S", "", VLOOKUP(A20,Calendar!$A$3:$G$459,4,FALSE)))) ->  | D20: =IF(Summary!$B$5=3,IF(C20="","",VLOOKUP(A20,Calendar!$A$3:$G$459,5,FALSE)),IF(C20="","",VLOOKUP(A20,Calendar!$A$3:$G$459,2,FALSE))) ->  | I20: 0
A21: 1013 | C21: =IF(ISNA(IF(Summary!$B$5=3,IF(VLOOKUP(A21,Calendar!$A$3:$G$459,7,FALSE)="S", "", VLOOKUP(A21,Calendar!$A$3:$G$459,7,FALSE)),IF(VLOOKUP(A21,Calendar!$A$3:$G$459,4,FALSE)="S", "", VLOOKUP(A21,Calendar!$A$3:$G$459,4,FALSE)))),"",IF(Summary!$B$5=3,IF(VLOOKUP(A21,Calendar!$A$3:$G$459,7,FALSE)="S", "", VLOOKUP(A21,Calendar!$A$3:$G$459,7,FALSE)),IF(VLOOKUP(A21,Calendar!$A$3:$G$459,4,FALSE)="S", "", VLOOKUP(A21,Calendar!$A$3:$G$459,4,FALSE)))) ->  | D21: =IF(Summary!$B$5=3,IF(C21="","",VLOOKUP(A21,Calendar!$A$3:$G$459,5,FALSE)),IF(C21="","",VLOOKUP(A21,Calendar!$A$3:$G$459,2,FALSE))) ->  | I21: 0
A22: 1014 | C22: =IF(ISNA(IF(Summary!$B$5=3,IF(VLOOKUP(A22,Calendar!$A$3:$G$459,7,FALSE)="S", "", VLOOKUP(A22,Calendar!$A$3:$G$459,7,FALSE)),IF(VLOOKUP(A22,Calendar!$A$3:$G$459,4,FALSE)="S", "", VLOOKUP(A22,Calendar!$A$3:$G$459,4,FALSE)))),"",IF(Summary!$B$5=3,IF(VLOOKUP(A22,Calendar!$A$3:$G$459,7,FALSE)="S", "", VLOOKUP(A22,Calendar!$A$3:$G$459,7,FALSE)),IF(VLOOKUP(A22,Calendar!$A$3:$G$459,4,FALSE)="S", "", VLOOKUP(A22,Calendar!$A$3:$G$459,4,FALSE)))) -> M | D22: =IF(Summary!$B$5=3,IF(C22="","",VLOOKUP(A22,Calendar!$A$3:$G$459,5,FALSE)),IF(C22="","",VLOOKUP(A22,Calendar!$A$3:$G$459,2,FALSE))) -> 2019-10-14 | I22: 0
A23: 1015 | C23: =IF(ISNA(IF(Summary!$B$5=3,IF(VLOOKUP(A23,Calendar!$A$3:$G$459,7,FALSE)="S", "", VLOOKUP(A23,Calendar!$A$3:$G$459,7,FALSE)),IF(VLOOKUP(A23,Calendar!$A$3:$G$459,4,FALSE)="S", "", VLOOKUP(A23,Calendar!$A$3:$G$459,4,FALSE)))),"",IF(Summary!$B$5=3,IF(VLOOKUP(A23,Calendar!$A$3:$G$459,7,FALSE)="S", "", VLOOKUP(A23,Calendar!$A$3:$G$459,7,FALSE)),IF(VLOOKUP(A23,Calendar!$A$3:$G$459,4,FALSE)="S", "", VLOOKUP(A23,Calendar!$A$3:$G$459,4,FALSE)))) -> T | D23: =IF(Summary!$B$5=3,IF(C23="","",VLOOKUP(A23,Calendar!$A$3:$G$459,5,FALSE)),IF(C23="","",VLOOKUP(A23,Calendar!$A$3:$G$459,2,FALSE))) -> 2019-10-15 | I23: 0
A24: 1016 | C24: =IF(ISNA(IF(Summary!$B$5=3,IF(VLOOKUP(A24,Calendar!$A$3:$G$459,7,FALSE)="S", "", VLOOKUP(A24,Calendar!$A$3:$G$459,7,FALSE)),IF(VLOOKUP(A24,Calendar!$A$3:$G$459,4,FALSE)="S", "", VLOOKUP(A24,Calendar!$A$3:$G$459,4,FALSE)))),"",IF(Summary!$B$5=3,IF(VLOOKUP(A24,Calendar!$A$3:$G$459,7,FALSE)="S", "", VLOOKUP(A24,Calendar!$A$3:$G$459,7,FALSE)),IF(VLOOKUP(A24,Calendar!$A$3:$G$459,4,FALSE)="S", "", VLOOKUP(A24,Calendar!$A$3:$G$459,4,FALSE)))) -> W | D24: =IF(Summary!$B$5=3,IF(C24="","",VLOOKUP(A24,Calendar!$A$3:$G$459,5,FALSE)),IF(C24="","",VLOOKUP(A24,Calendar!$A$3:$G$459,2,FALSE))) -> 2019-10-16 | I24: 0
A25: 1017 | C25: =IF(ISNA(IF(Summary!$B$5=3,IF(VLOOKUP(A25,Calendar!$A$3:$G$459,7,FALSE)="S", "", VLOOKUP(A25,Calendar!$A$3:$G$459,7,FALSE)),IF(VLOOKUP(A25,Calendar!$A$3:$G$459,4,FALSE)="S", "", VLOOKUP(A25,Calendar!$A$3:$G$459,4,FALSE)))),"",IF(Summary!$B$5=3,IF(VLOOKUP(A25,Calendar!$A$3:$G$459,7,FALSE)="S", "", VLOOKUP(A25,Calendar!$A$3:$G$459,7,FALSE)),IF(VLOOKUP(A25,Calendar!$A$3:$G$459,4,FALSE)="S", "", VLOOKUP(A25,Calendar!$A$3:$G$459,4,FALSE)))) -> R | D25: =IF(Summary!$B$5=3,IF(C25="","",VLOOKUP(A25,Calendar!$A$3:$G$459,5,FALSE)),IF(C25="","",VLOOKUP(A25,Calendar!$A$3:$G$459,2,FALSE))) -> 2019-10-17 | I25: 0
A26: 1018 | C26: =IF(ISNA(IF(Summary!$B$5=3,IF(VLOOKUP(A26,Calendar!$A$3:$G$459,7,FALSE)="S", "", VLOOKUP(A26,Calendar!$A$3:$G$459,7,FALSE)),IF(VLOOKUP(A26,Calendar!$A$3:$G$459,4,FALSE)="S", "", VLOOKUP(A26,Calendar!$A$3:$G$459,4,FALSE)))),"",IF(Summary!$B$5=3,IF(VLOOKUP(A26,Calendar!$A$3:$G$459,7,FALSE)="S", "", VLOOKUP(A26,Calendar!$A$3:$G$459,7,FALSE)),IF(VLOOKUP(A26,Calendar!$A$3:$G$459,4,FALSE)="S", "", VLOOKUP(A26,Calendar!$A$3:$G$459,4,FALSE)))) -> F | D26: =IF(Summary!$B$5=3,IF(C26="","",VLOOKUP(A26,Calendar!$A$3:$G$459,5,FALSE)),IF(C26="","",VLOOKUP(A26,Calendar!$A$3:$G$459,2,FALSE))) -> 2019-10-18 | I26: 0
A27: 1019 | C27: =IF(ISNA(IF(Summary!$B$5=3,IF(VLOOKUP(A27,Calendar!$A$3:$G$459,7,FALSE)="S", "", VLOOKUP(A27,Calendar!$A$3:$G$459,7,FALSE)),IF(VLOOKUP(A27,Calendar!$A$3:$G$459,4,FALSE)="S", "", VLOOKUP(A27,Calendar!$A$3:$G$459,4,FALSE)))),"",IF(Summary!$B$5=3,IF(VLOOKUP(A27,Calendar!$A$3:$G$459,7,FALSE)="S", "", VLOOKUP(A27,Calendar!$A$3:$G$459,7,FALSE)),IF(VLOOKUP(A27,Calendar!$A$3:$G$459,4,FALSE)="S", "", VLOOKUP(A27,Calendar!$A$3:$G$459,4,FALSE)))) ->  | D27: =IF(Summary!$B$5=3,IF(C27="","",VLOOKUP(A27,Calendar!$A$3:$G$459,5,FALSE)),IF(C27="","",VLOOKUP(A27,Calendar!$A$3:$G$459,2,FALSE))) ->  | I27: 0
A28: 1020 | C28: =IF(ISNA(IF(Summary!$B$5=3,IF(VLOOKUP(A28,Calendar!$A$3:$G$459,7,FALSE)="S", "", VLOOKUP(A28,Calendar!$A$3:$G$459,7,FALSE)),IF(VLOOKUP(A28,Calendar!$A$3:$G$459,4,FALSE)="S", "", VLOOKUP(A28,Calendar!$A$3:$G$459,4,FALSE)))),"",IF(Summary!$B$5=3,IF(VLOOKUP(A28,Calendar!$A$3:$G$459,7,FALSE)="S", "", VLOOKUP(A28,Calendar!$A$3:$G$459,7,FALSE)),IF(VLOOKUP(A28,Calendar!$A$3:$G$459,4,FALSE)="S", "", VLOOKUP(A28,Calendar!$A$3:$G$459,4,FALSE)))) ->  | D28: =IF(Summary!$B$5=3,IF(C28="","",VLOOKUP(A28,Calendar!$A$3:$G$459,5,FALSE)),IF(C28="","",VLOOKUP(A28,Calendar!$A$3:$G$459,2,FALSE))) ->  | I28: 0
A29: 1021 | C29: =IF(ISNA(IF(Summary!$B$5=3,IF(VLOOKUP(A29,Calendar!$A$3:$G$459,7,FALSE)="S", "", VLOOKUP(A29,Calendar!$A$3:$G$459,7,FALSE)),IF(VLOOKUP(A29,Calendar!$A$3:$G$459,4,FALSE)="S", "", VLOOKUP(A29,Calendar!$A$3:$G$459,4,FALSE)))),"",IF(Summary!$B$5=3,IF(VLOOKUP(A29,Calendar!$A$3:$G$459,7,FALSE)="S", "", VLOOKUP(A29,Calendar!$A$3:$G$459,7,FALSE)),IF(VLOOKUP(A29,Calendar!$A$3:$G$459,4,FALSE)="S", "", VLOOKUP(A29,Calendar!$A$3:$G$459,4,FALSE)))) -> M | D29: =IF(Summary!$B$5=3,IF(C29="","",VLOOKUP(A29,Calendar!$A$3:$G$459,5,FALSE)),IF(C29="","",VLOOKUP(A29,Calendar!$A$3:$G$459,2,FALSE))) -> 2019-10-21 | I29: 0
A30: 1022 | C30: =IF(ISNA(IF(Summary!$B$5=3,IF(VLOOKUP(A30,Calendar!$A$3:$G$459,7,FALSE)="S", "", VLOOKUP(A30,Calendar!$A$3:$G$459,7,FALSE)),IF(VLOOKUP(A30,Calendar!$A$3:$G$459,4,FALSE)="S", "", VLOOKUP(A30,Calendar!$A$3:$G$459,4,FALSE)))),"",IF(Summary!$B$5=3,IF(VLOOKUP(A30,Calendar!$A$3:$G$459,7,FALSE)="S", "", VLOOKUP(A30,Calendar!$A$3:$G$459,7,FALSE)),IF(VLOOKUP(A30,Calendar!$A$3:$G$459,4,FALSE)="S", "", VLOOKUP(A30,Calendar!$A$3:$G$459,4,FALSE)))) -> T | D30: =IF(Summary!$B$5=3,IF(C30="","",VLOOKUP(A30,Calendar!$A$3:$G$459,5,FALSE)),IF(C30="","",VLOOKUP(A30,Calendar!$A$3:$G$459,2,FALSE))) -> 2019-10-22 | I30: 0
A31: 1023 | C31: =IF(ISNA(IF(Summary!$B$5=3,IF(VLOOKUP(A31,Calendar!$A$3:$G$459,7,FALSE)="S", "", VLOOKUP(A31,Calendar!$A$3:$G$459,7,FALSE)),IF(VLOOKUP(A31,Calendar!$A$3:$G$459,4,FALSE)="S", "", VLOOKUP(A31,Calendar!$A$3:$G$459,4,FALSE)))),"",IF(Summary!$B$5=3,IF(VLOOKUP(A31,Calendar!$A$3:$G$459,7,FALSE)="S", "", VLOOKUP(A31,Calendar!$A$3:$G$459,7,FALSE)),IF(VLOOKUP(A31,Calendar!$A$3:$G$459,4,FALSE)="S", "", VLOOKUP(A31,Calendar!$A$3:$G$459,4,FALSE)))) -> W | D31: =IF(Summary!$B$5=3,IF(C31="","",VLOOKUP(A31,Calendar!$A$3:$G$459,5,FALSE)),IF(C31="","",VLOOKUP(A31,Calendar!$A$3:$G$459,2,FALSE))) -> 2019-10-23 | I31: 0
A32: 1024 | C32: =IF(ISNA(IF(Summary!$B$5=3,IF(VLOOKUP(A32,Calendar!$A$3:$G$459,7,FALSE)="S", "", VLOOKUP(A32,Calendar!$A$3:$G$459,7,FALSE)),IF(VLOOKUP(A32,Calendar!$A$3:$G$459,4,FALSE)="S", "", VLOOKUP(A32,Calendar!$A$3:$G$459,4,FALSE)))),"",IF(Summary!$B$5=3,IF(VLOOKUP(A32,Calendar!$A$3:$G$459,7,FALSE)="S", "", VLOOKUP(A32,Calendar!$A$3:$G$459,7,FALSE)),IF(VLOOKUP(A32,Calendar!$A$3:$G$459,4,FALSE)="S", "", VLOOKUP(A32,Calendar!$A$3:$G$459,4,FALSE)))) -> R | D32: =IF(Summary!$B$5=3,IF(C32="","",VLOOKUP(A32,Calendar!$A$3:$G$459,5,FALSE)),IF(C32="","",VLOOKUP(A32,Calendar!$A$3:$G$459,2,FALSE))) -> 2019-10-24 | I32: 0
A33: 1025 | C33: =IF(ISNA(IF(Summary!$B$5=3,IF(VLOOKUP(A33,Calendar!$A$3:$G$459,7,FALSE)="S", "", VLOOKUP(A33,Calendar!$A$3:$G$459,7,FALSE)),IF(VLOOKUP(A33,Calendar!$A$3:$G$459,4,FALSE)="S", "", VLOOKUP(A33,Calendar!$A$3:$G$459,4,FALSE)))),"",IF(Summary!$B$5=3,IF(VLOOKUP(A33,Calendar!$A$3:$G$459,7,FALSE)="S", "", VLOOKUP(A33,Calendar!$A$3:$G$459,7,FALSE)),IF(VLOOKUP(A33,Calendar!$A$3:$G$459,4,FALSE)="S", "", VLOOKUP(A33,Calendar!$A$3:$G$459,4,FALSE)))) -> F | D33: =IF(Summary!$B$5=3,IF(C33="","",VLOOKUP(A33,Calendar!$A$3:$G$459,5,FALSE)),IF(C33="","",VLOOKUP(A33,Calendar!$A$3:$G$459,2,FALSE))) -> 2019-10-25 | I33: 0
A34: 1026 | C34: =IF(ISNA(IF(Summary!$B$5=3,IF(VLOOKUP(A34,Calendar!$A$3:$G$459,7,FALSE)="S", "", VLOOKUP(A34,Calendar!$A$3:$G$459,7,FALSE)),IF(VLOOKUP(A34,Calendar!$A$3:$G$459,4,FALSE)="S", "", VLOOKUP(A34,Calendar!$A$3:$G$459,4,FALSE)))),"",IF(Summary!$B$5=3,IF(VLOOKUP(A34,Calendar!$A$3:$G$459,7,FALSE)="S", "", VLOOKUP(A34,Calendar!$A$3:$G$459,7,FALSE)),IF(VLOOKUP(A34,Calendar!$A$3:$G$459,4,FALSE)="S", "", VLOOKUP(A34,Calendar!$A$3:$G$459,4,FALSE)))) ->  | D34: =IF(Summary!$B$5=3,IF(C34="","",VLOOKUP(A34,Calendar!$A$3:$G$459,5,FALSE)),IF(C34="","",VLOOKUP(A34,Calendar!$A$3:$G$459,2,FALSE))) ->  | I34: 0
A35: 1027 | C35: =IF(ISNA(IF(Summary!$B$5=3,IF(VLOOKUP(A35,Calendar!$A$3:$G$459,7,FALSE)="S", "", VLOOKUP(A35,Calendar!$A$3:$G$459,7,FALSE)),IF(VLOOKUP(A35,Calendar!$A$3:$G$459,4,FALSE)="S", "", VLOOKUP(A35,Calendar!$A$3:$G$459,4,FALSE)))),"",IF(Summary!$B$5=3,IF(VLOOKUP(A35,Calendar!$A$3:$G$459,7,FALSE)="S", "", VLOOKUP(A35,Calendar!$A$3:$G$459,7,FALSE)),IF(VLOOKUP(A35,Calendar!$A$3:$G$459,4,FALSE)="S", "", VLOOKUP(A35,Calendar!$A$3:$G$459,4,FALSE)))) ->  | D35: =IF(Summary!$B$5=3,IF(C35="","",VLOOKUP(A35,Calendar!$A$3:$G$459,5,FALSE)),IF(C35="","",VLOOKUP(A35,Calendar!$A$3:$G$459,2,FALSE))) ->  | I35: 0
A36: 1028 | C36: =IF(ISNA(IF(Summary!$B$5=3,IF(VLOOKUP(A36,Calendar!$A$3:$G$459,7,FALSE)="S", "", VLOOKUP(A36,Calendar!$A$3:$G$459,7,FALSE)),IF(VLOOKUP(A36,Calendar!$A$3:$G$459,4,FALSE)="S", "", VLOOKUP(A36,Calendar!$A$3:$G$459,4,FALSE)))),"",IF(Summary!$B$5=3,IF(VLOOKUP(A36,Calendar!$A$3:$G$459,7,FALSE)="S", "", VLOOKUP(A36,Calendar!$A$3:$G$459,7,FALSE)),IF(VLOOKUP(A36,Calendar!$A$3:$G$459,4,FALSE)="S", "", VLOOKUP(A36,Calendar!$A$3:$G$459,4,FALSE)))) -> M | D36: =IF(Summary!$B$5=3,IF(C36="","",VLOOKUP(A36,Calendar!$A$3:$G$459,5,FALSE)),IF(C36="","",VLOOKUP(A36,Calendar!$A$3:$G$459,2,FALSE))) -> 2019-10-28 | I36: 0
A37: 1029 | C37: =IF(ISNA(IF(Summary!$B$5=3,IF(VLOOKUP(A37,Calendar!$A$3:$G$459,7,FALSE)="S", "", VLOOKUP(A37,Calendar!$A$3:$G$459,7,FALSE)),IF(VLOOKUP(A37,Calendar!$A$3:$G$459,4,FALSE)="S", "", VLOOKUP(A37,Calendar!$A$3:$G$459,4,FALSE)))),"",IF(Summary!$B$5=3,IF(VLOOKUP(A37,Calendar!$A$3:$G$459,7,FALSE)="S", "", VLOOKUP(A37,Calendar!$A$3:$G$459,7,FALSE)),IF(VLOOKUP(A37,Calendar!$A$3:$G$459,4,FALSE)="S", "", VLOOKUP(A37,Calendar!$A$3:$G$459,4,FALSE)))) -> T | D37: =IF(Summary!$B$5=3,IF(C37="","",VLOOKUP(A37,Calendar!$A$3:$G$459,5,FALSE)),IF(C37="","",VLOOKUP(A37,Calendar!$A$3:$G$459,2,FALSE))) -> 2019-10-29 | I37: 0
A38: 1030 | C38: =IF(ISNA(IF(Summary!$B$5=3,IF(VLOOKUP(A38,Calendar!$A$3:$G$459,7,FALSE)="S", "", VLOOKUP(A38,Calendar!$A$3:$G$459,7,FALSE)),IF(VLOOKUP(A38,Calendar!$A$3:$G$459,4,FALSE)="S", "", VLOOKUP(A38,Calendar!$A$3:$G$459,4,FALSE)))),"",IF(Summary!$B$5=3,IF(VLOOKUP(A38,Calendar!$A$3:$G$459,7,FALSE)="S", "", VLOOKUP(A38,Calendar!$A$3:$G$459,7,FALSE)),IF(VLOOKUP(A38,Calendar!$A$3:$G$459,4,FALSE)="S", "", VLOOKUP(A38,Calendar!$A$3:$G$459,4,FALSE)))) -> W | D38: =IF(Summary!$B$5=3,IF(C38="","",VLOOKUP(A38,Calendar!$A$3:$G$459,5,FALSE)),IF(C38="","",VLOOKUP(A38,Calendar!$A$3:$G$459,2,FALSE))) -> 2019-10-30 | I38: 0
A39: 1031 | C39: =IF(ISNA(IF(Summary!$B$5=3,IF(VLOOKUP(A39,Calendar!$A$3:$G$459,7,FALSE)="S", "", VLOOKUP(A39,Calendar!$A$3:$G$459,7,FALSE)),IF(VLOOKUP(A39,Calendar!$A$3:$G$459,4,FALSE)="S", "", VLOOKUP(A39,Calendar!$A$3:$G$459,4,FALSE)))),"",IF(Summary!$B$5=3,IF(VLOOKUP(A39,Calendar!$A$3:$G$459,7,FALSE)="S", "", VLOOKUP(A39,Calendar!$A$3:$G$459,7,FALSE)),IF(VLOOKUP(A39,Calendar!$A$3:$G$459,4,FALSE)="S", "", VLOOKUP(A39,Calendar!$A$3:$G$459,4,FALSE)))) -> R | D39: =IF(Summary!$B$5=3,IF(C39="","",VLOOKUP(A39,Calendar!$A$3:$G$459,5,FALSE)),IF(C39="","",VLOOKUP(A39,Calendar!$A$3:$G$459,2,FALSE))) -> 2019-10-31 | I39: 0
D40: Total Minutes | E40: =SUM(E9:E39) -> 0 | F40: =SUM(F9:F39) -> 0 | G40: 0 | H40: 0 | I40: 0 | L40: =IF(SUM(E40:H40)>COUNTA(E9:E39)*390,"The sum total for all cost objectives exceeds the maximum anticipated value based upon the number of days worked. Confirm minutes claimed for each day.","") -> 
D41: Total Hours | E41: =E40/60 -> 0 | F41: =F40/60 -> 0 | G41: 0 | H41: 0 | I41: 0
C44: Notes
E55: Kansas State Department of Education | I55: Personnel Activity Report
E56: Fiscal Auditing | I56: Updated 9/20/18
E57: 785-296-4976
E58: https://www.ksde.org/Agency/Fiscal-and-Administrative-Services/Fiscal-Auditing
C61: The Kansas State Department of Education does not discriminate on the basis of race, color, national origin, sex, disability, or age in its programs and activities and provides equal access to the Boy Scouts and other designated youth groups. The following person has been designated to handle inquiries regarding the nondiscrimination policies: KSDE General Counsel, Office of General Counsel, KSDE, Landon State Office Building, 900 S.W. Jackson, Suite 102, Topeka, KS 66612, (785) 296-3204.

Sheet November
C3: Personnel Activity Report
C4: Regular School Year
C5: November
C6: =IF(Summary!$E$8<>"",Summary!$E$8," ") -> 
C7: =IF(Summary!$E$9<>"",Summary!$E$9," ") -> 
C8: Day | D8: Date | E8: Special Ed | F8: General Ed | G8: Other | H8: Other | I8: Totals | L8: =IF(OR(AND(F8="",COUNTA(F9:F39)>0),AND(G8="",COUNTA(G9:G39)>0),AND(H8="",COUNTA(H9:H39)>0)),"<<< You must identify the cost objective in the column heading.","") -> 
A9: 1101 | C9: =IF(ISNA(IF(Summary!$B$5=3,IF(VLOOKUP(A9,Calendar!$A$3:$G$459,7,FALSE)="S", "", VLOOKUP(A9,Calendar!$A$3:$G$459,7,FALSE)),IF(VLOOKUP(A9,Calendar!$A$3:$G$459,4,FALSE)="S", "", VLOOKUP(A9,Calendar!$A$3:$G$459,4,FALSE)))),"",IF(Summary!$B$5=3,IF(VLOOKUP(A9,Calendar!$A$3:$G$459,7,FALSE)="S", "", VLOOKUP(A9,Calendar!$A$3:$G$459,7,FALSE)),IF(VLOOKUP(A9,Calendar!$A$3:$G$459,4,FALSE)="S", "", VLOOKUP(A9,Calendar!$A$3:$G$459,4,FALSE)))) -> F | D9: =IF(Summary!$B$5=3,IF(C9="","",VLOOKUP(A9,Calendar!$A$3:$G$459,5,FALSE)),IF(C9="","",VLOOKUP(A9,Calendar!$A$3:$G$459,2,FALSE))) -> 2019-11-01 | I9: =MIN(1440,SUM(E9:H9)) -> 0 | L9: =IF(I9>390, "<<< Day exceeds 390 minutes. Confirm reported time.","") -> 
A10: 1102 | C10: =IF(ISNA(IF(Summary!$B$5=3,IF(VLOOKUP(A10,Calendar!$A$3:$G$459,7,FALSE)="S", "", VLOOKUP(A10,Calendar!$A$3:$G$459,7,FALSE)),IF(VLOOKUP(A10,Calendar!$A$3:$G$459,4,FALSE)="S", "", VLOOKUP(A10,Calendar!$A$3:$G$459,4,FALSE)))),"",IF(Summary!$B$5=3,IF(VLOOKUP(A10,Calendar!$A$3:$G$459,7,FALSE)="S", "", VLOOKUP(A10,Calendar!$A$3:$G$459,7,FALSE)),IF(VLOOKUP(A10,Calendar!$A$3:$G$459,4,FALSE)="S", "", VLOOKUP(A10,Calendar!$A$3:$G$459,4,FALSE)))) ->  | D10: =IF(Summary!$B$5=3,IF(C10="","",VLOOKUP(A10,Calendar!$A$3:$G$459,5,FALSE)),IF(C10="","",VLOOKUP(A10,Calendar!$A$3:$G$459,2,FALSE))) ->  | I10: =MIN(1440,SUM(E10:H10)) -> 0 | L10: =IF(I10>390, "<<< Day exceeds 390 minutes. Confirm reported time.","") -> 
A11: 1103 | C11: =IF(ISNA(IF(Summary!$B$5=3,IF(VLOOKUP(A11,Calendar!$A$3:$G$459,7,FALSE)="S", "", VLOOKUP(A11,Calendar!$A$3:$G$459,7,FALSE)),IF(VLOOKUP(A11,Calendar!$A$3:$G$459,4,FALSE)="S", "", VLOOKUP(A11,Calendar!$A$3:$G$459,4,FALSE)))),"",IF(Summary!$B$5=3,IF(VLOOKUP(A11,Calendar!$A$3:$G$459,7,FALSE)="S", "", VLOOKUP(A11,Calendar!$A$3:$G$459,7,FALSE)),IF(VLOOKUP(A11,Calendar!$A$3:$G$459,4,FALSE)="S", "", VLOOKUP(A11,Calendar!$A$3:$G$459,4,FALSE)))) ->  | D11: =IF(Summary!$B$5=3,IF(C11="","",VLOOKUP(A11,Calendar!$A$3:$G$459,5,FALSE)),IF(C11="","",VLOOKUP(A11,Calendar!$A$3:$G$459,2,FALSE))) ->  | I11: 0
A12: 1104 | C12: =IF(ISNA(IF(Summary!$B$5=3,IF(VLOOKUP(A12,Calendar!$A$3:$G$459,7,FALSE)="S", "", VLOOKUP(A12,Calendar!$A$3:$G$459,7,FALSE)),IF(VLOOKUP(A12,Calendar!$A$3:$G$459,4,FALSE)="S", "", VLOOKUP(A12,Calendar!$A$3:$G$459,4,FALSE)))),"",IF(Summary!$B$5=3,IF(VLOOKUP(A12,Calendar!$A$3:$G$459,7,FALSE)="S", "", VLOOKUP(A12,Calendar!$A$3:$G$459,7,FALSE)),IF(VLOOKUP(A12,Calendar!$A$3:$G$459,4,FALSE)="S", "", VLOOKUP(A12,Calendar!$A$3:$G$459,4,FALSE)))) -> M | D12: =IF(Summary!$B$5=3,IF(C12="","",VLOOKUP(A12,Calendar!$A$3:$G$459,5,FALSE)),IF(C12="","",VLOOKUP(A12,Calendar!$A$3:$G$459,2,FALSE))) -> 2019-11-04 | I12: 0
A13: 1105 | C13: =IF(ISNA(IF(Summary!$B$5=3,IF(VLOOKUP(A13,Calendar!$A$3:$G$459,7,FALSE)="S", "", VLOOKUP(A13,Calendar!$A$3:$G$459,7,FALSE)),IF(VLOOKUP(A13,Calendar!$A$3:$G$459,4,FALSE)="S", "", VLOOKUP(A13,Calendar!$A$3:$G$459,4,FALSE)))),"",IF(Summary!$B$5=3,IF(VLOOKUP(A13,Calendar!$A$3:$G$459,7,FALSE)="S", "", VLOOKUP(A13,Calendar!$A$3:$G$459,7,FALSE)),IF(VLOOKUP(A13,Calendar!$A$3:$G$459,4,FALSE)="S", "", VLOOKUP(A13,Calendar!$A$3:$G$459,4,FALSE)))) -> T | D13: =IF(Summary!$B$5=3,IF(C13="","",VLOOKUP(A13,Calendar!$A$3:$G$459,5,FALSE)),IF(C13="","",VLOOKUP(A13,Calendar!$A$3:$G$459,2,FALSE))) -> 2019-11-05 | I13: 0
A14: 1106 | C14: =IF(ISNA(IF(Summary!$B$5=3,IF(VLOOKUP(A14,Calendar!$A$3:$G$459,7,FALSE)="S", "", VLOOKUP(A14,Calendar!$A$3:$G$459,7,FALSE)),IF(VLOOKUP(A14,Calendar!$A$3:$G$459,4,FALSE)="S", "", VLOOKUP(A14,Calendar!$A$3:$G$459,4,FALSE)))),"",IF(Summary!$B$5=3,IF(VLOOKUP(A14,Calendar!$A$3:$G$459,7,FALSE)="S", "", VLOOKUP(A14,Calendar!$A$3:$G$459,7,FALSE)),IF(VLOOKUP(A14,Calendar!$A$3:$G$459,4,FALSE)="S", "", VLOOKUP(A14,Calendar!$A$3:$G$459,4,FALSE)))) -> W | D14: =IF(Summary!$B$5=3,IF(C14="","",VLOOKUP(A14,Calendar!$A$3:$G$459,5,FALSE)),IF(C14="","",VLOOKUP(A14,Calendar!$A$3:$G$459,2,FALSE))) -> 2019-11-06 | I14: 0
A15: 1107 | C15: =IF(ISNA(IF(Summary!$B$5=3,IF(VLOOKUP(A15,Calendar!$A$3:$G$459,7,FALSE)="S", "", VLOOKUP(A15,Calendar!$A$3:$G$459,7,FALSE)),IF(VLOOKUP(A15,Calendar!$A$3:$G$459,4,FALSE)="S", "", VLOOKUP(A15,Calendar!$A$3:$G$459,4,FALSE)))),"",IF(Summary!$B$5=3,IF(VLOOKUP(A15,Calendar!$A$3:$G$459,7,FALSE)="S", "", VLOOKUP(A15,Calendar!$A$3:$G$459,7,FALSE)),IF(VLOOKUP(A15,Calendar!$A$3:$G$459,4,FALSE)="S", "", VLOOKUP(A15,Calendar!$A$3:$G$459,4,FALSE)))) -> R | D15: =IF(Summary!$B$5=3,IF(C15="","",VLOOKUP(A15,Calendar!$A$3:$G$459,5,FALSE)),IF(C15="","",VLOOKUP(A15,Calendar!$A$3:$G$459,2,FALSE))) -> 2019-11-07 | I15: 0
A16: 1108 | C16: =IF(ISNA(IF(Summary!$B$5=3,IF(VLOOKUP(A16,Calendar!$A$3:$G$459,7,FALSE)="S", "", VLOOKUP(A16,Calendar!$A$3:$G$459,7,FALSE)),IF(VLOOKUP(A16,Calendar!$A$3:$G$459,4,FALSE)="S", "", VLOOKUP(A16,Calendar!$A$3:$G$459,4,FALSE)))),"",IF(Summary!$B$5=3,IF(VLOOKUP(A16,Calendar!$A$3:$G$459,7,FALSE)="S", "", VLOOKUP(A16,Calendar!$A$3:$G$459,7,FALSE)),IF(VLOOKUP(A16,Calendar!$A$3:$G$459,4,FALSE)="S", "", VLOOKUP(A16,Calendar!$A$3:$G$459,4,FALSE)))) -> F | D16: =IF(Summary!$B$5=3,IF(C16="","",VLOOKUP(A16,Calendar!$A$3:$G$459,5,FALSE)),IF(C16="","",VLOOKUP(A16,Calendar!$A$3:$G$459,2,FALSE))) -> 2019-11-08 | I16: 0
A17: 1109 | C17: =IF(ISNA(IF(Summary!$B$5=3,IF(VLOOKUP(A17,Calendar!$A$3:$G$459,7,FALSE)="S", "", VLOOKUP(A17,Calendar!$A$3:$G$459,7,FALSE)),IF(VLOOKUP(A17,Calendar!$A$3:$G$459,4,FALSE)="S", "", VLOOKUP(A17,Calendar!$A$3:$G$459,4,FALSE)))),"",IF(Summary!$B$5=3,IF(VLOOKUP(A17,Calendar!$A$3:$G$459,7,FALSE)="S", "", VLOOKUP(A17,Calendar!$A$3:$G$459,7,FALSE)),IF(VLOOKUP(A17,Calendar!$A$3:$G$459,4,FALSE)="S", "", VLOOKUP(A17,Calendar!$A$3:$G$459,4,FALSE)))) ->  | D17: =IF(Summary!$B$5=3,IF(C17="","",VLOOKUP(A17,Calendar!$A$3:$G$459,5,FALSE)),IF(C17="","",VLOOKUP(A17,Calendar!$A$3:$G$459,2,FALSE))) ->  | I17: 0
A18: 1110 | C18: =IF(ISNA(IF(Summary!$B$5=3,IF(VLOOKUP(A18,Calendar!$A$3:$G$459,7,FALSE)="S", "", VLOOKUP(A18,Calendar!$A$3:$G$459,7,FALSE)),IF(VLOOKUP(A18,Calendar!$A$3:$G$459,4,FALSE)="S", "", VLOOKUP(A18,Calendar!$A$3:$G$459,4,FALSE)))),"",IF(Summary!$B$5=3,IF(VLOOKUP(A18,Calendar!$A$3:$G$459,7,FALSE)="S", "", VLOOKUP(A18,Calendar!$A$3:$G$459,7,FALSE)),IF(VLOOKUP(A18,Calendar!$A$3:$G$459,4,FALSE)="S", "", VLOOKUP(A18,Calendar!$A$3:$G$459,4,FALSE)))) ->  | D18: =IF(Summary!$B$5=3,IF(C18="","",VLOOKUP(A18,Calendar!$A$3:$G$459,5,FALSE)),IF(C18="","",VLOOKUP(A18,Calendar!$A$3:$G$459,2,FALSE))) ->  | I18: 0
A19: 1111 | C19: =IF(ISNA(IF(Summary!$B$5=3,IF(VLOOKUP(A19,Calendar!$A$3:$G$459,7,FALSE)="S", "", VLOOKUP(A19,Calendar!$A$3:$G$459,7,FALSE)),IF(VLOOKUP(A19,Calendar!$A$3:$G$459,4,FALSE)="S", "", VLOOKUP(A19,Calendar!$A$3:$G$459,4,FALSE)))),"",IF(Summary!$B$5=3,IF(VLOOKUP(A19,Calendar!$A$3:$G$459,7,FALSE)="S", "", VLOOKUP(A19,Calendar!$A$3:$G$459,7,FALSE)),IF(VLOOKUP(A19,Calendar!$A$3:$G$459,4,FALSE)="S", "", VLOOKUP(A19,Calendar!$A$3:$G$459,4,FALSE)))) -> M | D19: =IF(Summary!$B$5=3,IF(C19="","",VLOOKUP(A19,Calendar!$A$3:$G$459,5,FALSE)),IF(C19="","",VLOOKUP(A19,Calendar!$A$3:$G$459,2,FALSE))) -> 2019-11-11 | I19: 0
A20: 1112 | C20: =IF(ISNA(IF(Summary!$B$5=3,IF(VLOOKUP(A20,Calendar!$A$3:$G$459,7,FALSE)="S", "", VLOOKUP(A20,Calendar!$A$3:$G$459,7,FALSE)),IF(VLOOKUP(A20,Calendar!$A$3:$G$459,4,FALSE)="S", "", VLOOKUP(A20,Calendar!$A$3:$G$459,4,FALSE)))),"",IF(Summary!$B$5=3,IF(VLOOKUP(A20,Calendar!$A$3:$G$459,7,FALSE)="S", "", VLOOKUP(A20,Calendar!$A$3:$G$459,7,FALSE)),IF(VLOOKUP(A20,Calendar!$A$3:$G$459,4,FALSE)="S", "", VLOOKUP(A20,Calendar!$A$3:$G$459,4,FALSE)))) -> T | D20: =IF(Summary!$B$5=3,IF(C20="","",VLOOKUP(A20,Calendar!$A$3:$G$459,5,FALSE)),IF(C20="","",VLOOKUP(A20,Calendar!$A$3:$G$459,2,FALSE))) -> 2019-11-12 | I20: 0
A21: 1113 | C21: =IF(ISNA(IF(Summary!$B$5=3,IF(VLOOKUP(A21,Calendar!$A$3:$G$459,7,FALSE)="S", "", VLOOKUP(A21,Calendar!$A$3:$G$459,7,FALSE)),IF(VLOOKUP(A21,Calendar!$A$3:$G$459,4,FALSE)="S", "", VLOOKUP(A21,Calendar!$A$3:$G$459,4,FALSE)))),"",IF(Summary!$B$5=3,IF(VLOOKUP(A21,Calendar!$A$3:$G$459,7,FALSE)="S", "", VLOOKUP(A21,Calendar!$A$3:$G$459,7,FALSE)),IF(VLOOKUP(A21,Calendar!$A$3:$G$459,4,FALSE)="S", "", VLOOKUP(A21,Calendar!$A$3:$G$459,4,FALSE)))) -> W | D21: =IF(Summary!$B$5=3,IF(C21="","",VLOOKUP(A21,Calendar!$A$3:$G$459,5,FALSE)),IF(C21="","",VLOOKUP(A21,Calendar!$A$3:$G$459,2,FALSE))) -> 2019-11-13 | I21: 0
A22: 1114 | C22: =IF(ISNA(IF(Summary!$B$5=3,IF(VLOOKUP(A22,Calendar!$A$3:$G$459,7,FALSE)="S", "", VLOOKUP(A22,Calendar!$A$3:$G$459,7,FALSE)),IF(VLOOKUP(A22,Calendar!$A$3:$G$459,4,FALSE)="S", "", VLOOKUP(A22,Calendar!$A$3:$G$459,4,FALSE)))),"",IF(Summary!$B$5=3,IF(VLOOKUP(A22,Calendar!$A$3:$G$459,7,FALSE)="S", "", VLOOKUP(A22,Calendar!$A$3:$G$459,7,FALSE)),IF(VLOOKUP(A22,Calendar!$A$3:$G$459,4,FALSE)="S", "", VLOOKUP(A22,Calendar!$A$3:$G$459,4,FALSE)))) -> R | D22: =IF(Summary!$B$5=3,IF(C22="","",VLOOKUP(A22,Calendar!$A$3:$G$459,5,FALSE)),IF(C22="","",VLOOKUP(A22,Calendar!$A$3:$G$459,2,FALSE))) -> 2019-11-14 | I22: 0
A23: 1115 | C23: =IF(ISNA(IF(Summary!$B$5=3,IF(VLOOKUP(A23,Calendar!$A$3:$G$459,7,FALSE)="S", "", VLOOKUP(A23,Calendar!$A$3:$G$459,7,FALSE)),IF(VLOOKUP(A23,Calendar!$A$3:$G$459,4,FALSE)="S", "", VLOOKUP(A23,Calendar!$A$3:$G$459,4,FALSE)))),"",IF(Summary!$B$5=3,IF(VLOOKUP(A23,Calendar!$A$3:$G$459,7,FALSE)="S", "", VLOOKUP(A23,Calendar!$A$3:$G$459,7,FALSE)),IF(VLOOKUP(A23,Calendar!$A$3:$G$459,4,FALSE)="S", "", VLOOKUP(A23,Calendar!$A$3:$G$459,4,FALSE)))) -> F | D23: =IF(Summary!$B$5=3,IF(C23="","",VLOOKUP(A23,Calendar!$A$3:$G$459,5,FALSE)),IF(C23="","",VLOOKUP(A23,Calendar!$A$3:$G$459,2,FALSE))) -> 2019-11-15 | I23: 0
A24: 1116 | C24: =IF(ISNA(IF(Summary!$B$5=3,IF(VLOOKUP(A24,Calendar!$A$3:$G$459,7,FALSE)="S", "", VLOOKUP(A24,Calendar!$A$3:$G$459,7,FALSE)),IF(VLOOKUP(A24,Calendar!$A$3:$G$459,4,FALSE)="S", "", VLOOKUP(A24,Calendar!$A$3:$G$459,4,FALSE)))),"",IF(Summary!$B$5=3,IF(VLOOKUP(A24,Calendar!$A$3:$G$459,7,FALSE)="S", "", VLOOKUP(A24,Calendar!$A$3:$G$459,7,FALSE)),IF(VLOOKUP(A24,Calendar!$A$3:$G$459,4,FALSE)="S", "", VLOOKUP(A24,Calendar!$A$3:$G$459,4,FALSE)))) ->  | D24: =IF(Summary!$B$5=3,IF(C24="","",VLOOKUP(A24,Calendar!$A$3:$G$459,5,FALSE)),IF(C24="","",VLOOKUP(A24,Calendar!$A$3:$G$459,2,FALSE))) ->  | I24: 0
A25: 1117 | C25: =IF(ISNA(IF(Summary!$B$5=3,IF(VLOOKUP(A25,Calendar!$A$3:$G$459,7,FALSE)="S", "", VLOOKUP(A25,Calendar!$A$3:$G$459,7,FALSE)),IF(VLOOKUP(A25,Calendar!$A$3:$G$459,4,FALSE)="S", "", VLOOKUP(A25,Calendar!$A$3:$G$459,4,FALSE)))),"",IF(Summary!$B$5=3,IF(VLOOKUP(A25,Calendar!$A$3:$G$459,7,FALSE)="S", "", VLOOKUP(A25,Calendar!$A$3:$G$459,7,FALSE)),IF(VLOOKUP(A25,Calendar!$A$3:$G$459,4,FALSE)="S", "", VLOOKUP(A25,Calendar!$A$3:$G$459,4,FALSE)))) ->  | D25: =IF(Summary!$B$5=3,IF(C25="","",VLOOKUP(A25,Calendar!$A$3:$G$459,5,FALSE)),IF(C25="","",VLOOKUP(A25,Calendar!$A$3:$G$459,2,FALSE))) ->  | I25: 0
A26: 1118 | C26: =IF(ISNA(IF(Summary!$B$5=3,IF(VLOOKUP(A26,Calendar!$A$3:$G$459,7,FALSE)="S", "", VLOOKUP(A26,Calendar!$A$3:$G$459,7,FALSE)),IF(VLOOKUP(A26,Calendar!$A$3:$G$459,4,FALSE)="S", "", VLOOKUP(A26,Calendar!$A$3:$G$459,4,FALSE)))),"",IF(Summary!$B$5=3,IF(VLOOKUP(A26,Calendar!$A$3:$G$459,7,FALSE)="S", "", VLOOKUP(A26,Calendar!$A$3:$G$459,7,FALSE)),IF(VLOOKUP(A26,Calendar!$A$3:$G$459,4,FALSE)="S", "", VLOOKUP(A26,Calendar!$A$3:$G$459,4,FALSE)))) -> M | D26: =IF(Summary!$B$5=3,IF(C26="","",VLOOKUP(A26,Calendar!$A$3:$G$459,5,FALSE)),IF(C26="","",VLOOKUP(A26,Calendar!$A$3:$G$459,2,FALSE))) -> 2019-11-18 | I26: 0
A27: 1119 | C27: =IF(ISNA(IF(Summary!$B$5=3,IF(VLOOKUP(A27,Calendar!$A$3:$G$459,7,FALSE)="S", "", VLOOKUP(A27,Calendar!$A$3:$G$459,7,FALSE)),IF(VLOOKUP(A27,Calendar!$A$3:$G$459,4,FALSE)="S", "", VLOOKUP(A27,Calendar!$A$3:$G$459,4,FALSE)))),"",IF(Summary!$B$5=3,IF(VLOOKUP(A27,Calendar!$A$3:$G$459,7,FALSE)="S", "", VLOOKUP(A27,Calendar!$A$3:$G$459,7,FALSE)),IF(VLOOKUP(A27,Calendar!$A$3:$G$459,4,FALSE)="S", "", VLOOKUP(A27,Calendar!$A$3:$G$459,4,FALSE)))) -> T | D27: =IF(Summary!$B$5=3,IF(C27="","",VLOOKUP(A27,Calendar!$A$3:$G$459,5,FALSE)),IF(C27="","",VLOOKUP(A27,Calendar!$A$3:$G$459,2,FALSE))) -> 2019-11-19 | I27: 0
A28: 1120 | C28: =IF(ISNA(IF(Summary!$B$5=3,IF(VLOOKUP(A28,Calendar!$A$3:$G$459,7,FALSE)="S", "", VLOOKUP(A28,Calendar!$A$3:$G$459,7,FALSE)),IF(VLOOKUP(A28,Calendar!$A$3:$G$459,4,FALSE)="S", "", VLOOKUP(A28,Calendar!$A$3:$G$459,4,FALSE)))),"",IF(Summary!$B$5=3,IF(VLOOKUP(A28,Calendar!$A$3:$G$459,7,FALSE)="S", "", VLOOKUP(A28,Calendar!$A$3:$G$459,7,FALSE)),IF(VLOOKUP(A28,Calendar!$A$3:$G$459,4,FALSE)="S", "", VLOOKUP(A28,Calendar!$A$3:$G$459,4,FALSE)))) -> W | D28: =IF(Summary!$B$5=3,IF(C28="","",VLOOKUP(A28,Calendar!$A$3:$G$459,5,FALSE)),IF(C28="","",VLOOKUP(A28,Calendar!$A$3:$G$459,2,FALSE))) -> 2019-11-20 | I28: 0
A29: 1121 | C29: =IF(ISNA(IF(Summary!$B$5=3,IF(VLOOKUP(A29,Calendar!$A$3:$G$459,7,FALSE)="S", "", VLOOKUP(A29,Calendar!$A$3:$G$459,7,FALSE)),IF(VLOOKUP(A29,Calendar!$A$3:$G$459,4,FALSE)="S", "", VLOOKUP(A29,Calendar!$A$3:$G$459,4,FALSE)))),"",IF(Summary!$B$5=3,IF(VLOOKUP(A29,Calendar!$A$3:$G$459,7,FALSE)="S", "", VLOOKUP(A29,Calendar!$A$3:$G$459,7,FALSE)),IF(VLOOKUP(A29,Calendar!$A$3:$G$459,4,FALSE)="S", "", VLOOKUP(A29,Calendar!$A$3:$G$459,4,FALSE)))) -> R | D29: =IF(Summary!$B$5=3,IF(C29="","",VLOOKUP(A29,Calendar!$A$3:$G$459,5,FALSE)),IF(C29="","",VLOOKUP(A29,Calendar!$A$3:$G$459,2,FALSE))) -> 2019-11-21 | I29: 0
A30: 1122 | C30: =IF(ISNA(IF(Summary!$B$5=3,IF(VLOOKUP(A30,Calendar!$A$3:$G$459,7,FALSE)="S", "", VLOOKUP(A30,Calendar!$A$3:$G$459,7,FALSE)),IF(VLOOKUP(A30,Calendar!$A$3:$G$459,4,FALSE)="S", "", VLOOKUP(A30,Calendar!$A$3:$G$459,4,FALSE)))),"",IF(Summary!$B$5=3,IF(VLOOKUP(A30,Calendar!$A$3:$G$459,7,FALSE)="S", "", VLOOKUP(A30,Calendar!$A$3:$G$459,7,FALSE)),IF(VLOOKUP(A30,Calendar!$A$3:$G$459,4,FALSE)="S", "", VLOOKUP(A30,Calendar!$A$3:$G$459,4,FALSE)))) -> F | D30: =IF(Summary!$B$5=3,IF(C30="","",VLOOKUP(A30,Calendar!$A$3:$G$459,5,FALSE)),IF(C30="","",VLOOKUP(A30,Calendar!$A$3:$G$459,2,FALSE))) -> 2019-11-22 | I30: 0
A31: 1123 | C31: =IF(ISNA(IF(Summary!$B$5=3,IF(VLOOKUP(A31,Calendar!$A$3:$G$459,7,FALSE)="S", "", VLOOKUP(A31,Calendar!$A$3:$G$459,7,FALSE)),IF(VLOOKUP(A31,Calendar!$A$3:$G$459,4,FALSE)="S", "", VLOOKUP(A31,Calendar!$A$3:$G$459,4,FALSE)))),"",IF(Summary!$B$5=3,IF(VLOOKUP(A31,Calendar!$A$3:$G$459,7,FALSE)="S", "", VLOOKUP(A31,Calendar!$A$3:$G$459,7,FALSE)),IF(VLOOKUP(A31,Calendar!$A$3:$G$459,4,FALSE)="S", "", VLOOKUP(A31,Calendar!$A$3:$G$459,4,FALSE)))) ->  | D31: =IF(Summary!$B$5=3,IF(C31="","",VLOOKUP(A31,Calendar!$A$3:$G$459,5,FALSE)),IF(C31="","",VLOOKUP(A31,Calendar!$A$3:$G$459,2,FALSE))) ->  | I31: 0
A32: 1124 | C32: =IF(ISNA(IF(Summary!$B$5=3,IF(VLOOKUP(A32,Calendar!$A$3:$G$459,7,FALSE)="S", "", VLOOKUP(A32,Calendar!$A$3:$G$459,7,FALSE)),IF(VLOOKUP(A32,Calendar!$A$3:$G$459,4,FALSE)="S", "", VLOOKUP(A32,Calendar!$A$3:$G$459,4,FALSE)))),"",IF(Summary!$B$5=3,IF(VLOOKUP(A32,Calendar!$A$3:$G$459,7,FALSE)="S", "", VLOOKUP(A32,Calendar!$A$3:$G$459,7,FALSE)),IF(VLOOKUP(A32,Calendar!$A$3:$G$459,4,FALSE)="S", "", VLOOKUP(A32,Calendar!$A$3:$G$459,4,FALSE)))) ->  | D32: =IF(Summary!$B$5=3,IF(C32="","",VLOOKUP(A32,Calendar!$A$3:$G$459,5,FALSE)),IF(C32="","",VLOOKUP(A32,Calendar!$A$3:$G$459,2,FALSE))) ->  | I32: 0
A33: 1125 | C33: =IF(ISNA(IF(Summary!$B$5=3,IF(VLOOKUP(A33,Calendar!$A$3:$G$459,7,FALSE)="S", "", VLOOKUP(A33,Calendar!$A$3:$G$459,7,FALSE)),IF(VLOOKUP(A33,Calendar!$A$3:$G$459,4,FALSE)="S", "", VLOOKUP(A33,Calendar!$A$3:$G$459,4,FALSE)))),"",IF(Summary!$B$5=3,IF(VLOOKUP(A33,Calendar!$A$3:$G$459,7,FALSE)="S", "", VLOOKUP(A33,Calendar!$A$3:$G$459,7,FALSE)),IF(VLOOKUP(A33,Calendar!$A$3:$G$459,4,FALSE)="S", "", VLOOKUP(A33,Calendar!$A$3:$G$459,4,FALSE)))) -> M | D33: =IF(Summary!$B$5=3,IF(C33="","",VLOOKUP(A33,Calendar!$A$3:$G$459,5,FALSE)),IF(C33="","",VLOOKUP(A33,Calendar!$A$3:$G$459,2,FALSE))) -> 2019-11-25 | I33: 0
A34: 1126 | C34: =IF(ISNA(IF(Summary!$B$5=3,IF(VLOOKUP(A34,Calendar!$A$3:$G$459,7,FALSE)="S", "", VLOOKUP(A34,Calendar!$A$3:$G$459,7,FALSE)),IF(VLOOKUP(A34,Calendar!$A$3:$G$459,4,FALSE)="S", "", VLOOKUP(A34,Calendar!$A$3:$G$459,4,FALSE)))),"",IF(Summary!$B$5=3,IF(VLOOKUP(A34,Calendar!$A$3:$G$459,7,FALSE)="S", "", VLOOKUP(A34,Calendar!$A$3:$G$459,7,FALSE)),IF(VLOOKUP(A34,Calendar!$A$3:$G$459,4,FALSE)="S", "", VLOOKUP(A34,Calendar!$A$3:$G$459,4,FALSE)))) -> T | D34: =IF(Summary!$B$5=3,IF(C34="","",VLOOKUP(A34,Calendar!$A$3:$G$459,5,FALSE)),IF(C34="","",VLOOKUP(A34,Calendar!$A$3:$G$459,2,FALSE))) -> 2019-11-26 | I34: 0
A35: 1127 | C35: =IF(ISNA(IF(Summary!$B$5=3,IF(VLOOKUP(A35,Calendar!$A$3:$G$459,7,FALSE)="S", "", VLOOKUP(A35,Calendar!$A$3:$G$459,7,FALSE)),IF(VLOOKUP(A35,Calendar!$A$3:$G$459,4,FALSE)="S", "", VLOOKUP(A35,Calendar!$A$3:$G$459,4,FALSE)))),"",IF(Summary!$B$5=3,IF(VLOOKUP(A35,Calendar!$A$3:$G$459,7,FALSE)="S", "", VLOOKUP(A35,Calendar!$A$3:$G$459,7,FALSE)),IF(VLOOKUP(A35,Calendar!$A$3:$G$459,4,FALSE)="S", "", VLOOKUP(A35,Calendar!$A$3:$G$459,4,FALSE)))) -> W | D35: =IF(Summary!$B$5=3,IF(C35="","",VLOOKUP(A35,Calendar!$A$3:$G$459,5,FALSE)),IF(C35="","",VLOOKUP(A35,Calendar!$A$3:$G$459,2,FALSE))) -> 2019-11-27 | I35: 0
A36: 1128 | C36: =IF(ISNA(IF(Summary!$B$5=3,IF(VLOOKUP(A36,Calendar!$A$3:$G$459,7,FALSE)="S", "", VLOOKUP(A36,Calendar!$A$3:$G$459,7,FALSE)),IF(VLOOKUP(A36,Calendar!$A$3:$G$459,4,FALSE)="S", "", VLOOKUP(A36,Calendar!$A$3:$G$459,4,FALSE)))),"",IF(Summary!$B$5=3,IF(VLOOKUP(A36,Calendar!$A$3:$G$459,7,FALSE)="S", "", VLOOKUP(A36,Calendar!$A$3:$G$459,7,FALSE)),IF(VLOOKUP(A36,Calendar!$A$3:$G$459,4,FALSE)="S", "", VLOOKUP(A36,Calendar!$A$3:$G$459,4,FALSE)))) -> R | D36: =IF(Summary!$B$5=3,IF(C36="","",VLOOKUP(A36,Calendar!$A$3:$G$459,5,FALSE)),IF(C36="","",VLOOKUP(A36,Calendar!$A$3:$G$459,2,FALSE))) -> 2019-11-28 | I36: 0
A37: 1129 | C37: =IF(ISNA(IF(Summary!$B$5=3,IF(VLOOKUP(A37,Calendar!$A$3:$G$459,7,FALSE)="S", "", VLOOKUP(A37,Calendar!$A$3:$G$459,7,FALSE)),IF(VLOOKUP(A37,Calendar!$A$3:$G$459,4,FALSE)="S", "", VLOOKUP(A37,Calendar!$A$3:$G$459,4,FALSE)))),"",IF(Summary!$B$5=3,IF(VLOOKUP(A37,Calendar!$A$3:$G$459,7,FALSE)="S", "", VLOOKUP(A37,Calendar!$A$3:$G$459,7,FALSE)),IF(VLOOKUP(A37,Calendar!$A$3:$G$459,4,FALSE)="S", "", VLOOKUP(A37,Calendar!$A$3:$G$459,4,FALSE)))) -> F | D37: =IF(Summary!$B$5=3,IF(C37="","",VLOOKUP(A37,Calendar!$A$3:$G$459,5,FALSE)),IF(C37="","",VLOOKUP(A37,Calendar!$A$3:$G$459,2,FALSE))) -> 2019-11-29 | I37: 0
A38: 1130 | C38: =IF(ISNA(IF(Summary!$B$5=3,IF(VLOOKUP(A38,Calendar!$A$3:$G$459,7,FALSE)="S", "", VLOOKUP(A38,Calendar!$A$3:$G$459,7,FALSE)),IF(VLOOKUP(A38,Calendar!$A$3:$G$459,4,FALSE)="S", "", VLOOKUP(A38,Calendar!$A$3:$G$459,4,FALSE)))),"",IF(Summary!$B$5=3,IF(VLOOKUP(A38,Calendar!$A$3:$G$459,7,FALSE)="S", "", VLOOKUP(A38,Calendar!$A$3:$G$459,7,FALSE)),IF(VLOOKUP(A38,Calendar!$A$3:$G$459,4,FALSE)="S", "", VLOOKUP(A38,Calendar!$A$3:$G$459,4,FALSE)))) ->  | D38: =IF(Summary!$B$5=3,IF(C38="","",VLOOKUP(A38,Calendar!$A$3:$G$459,5,FALSE)),IF(C38="","",VLOOKUP(A38,Calendar!$A$3:$G$459,2,FALSE))) ->  | I38: 0
C39: =IF(ISNA(IF(Summary!$B$5=3,IF(VLOOKUP(A39,Calendar!$A$3:$G$459,7,FALSE)="S", "", VLOOKUP(A39,Calendar!$A$3:$G$459,7,FALSE)),IF(VLOOKUP(A39,Calendar!$A$3:$G$459,4,FALSE)="S", "", VLOOKUP(A39,Calendar!$A$3:$G$459,4,FALSE)))),"",IF(Summary!$B$5=3,IF(VLOOKUP(A39,Calendar!$A$3:$G$459,7,FALSE)="S", "", VLOOKUP(A39,Calendar!$A$3:$G$459,7,FALSE)),IF(VLOOKUP(A39,Calendar!$A$3:$G$459,4,FALSE)="S", "", VLOOKUP(A39,Calendar!$A$3:$G$459,4,FALSE)))) ->  | D39: =IF(Summary!$B$5=3,IF(C39="","",VLOOKUP(A39,Calendar!$A$3:$G$459,5,FALSE)),IF(C39="","",VLOOKUP(A39,Calendar!$A$3:$G$459,2,FALSE))) ->  | I39: 0
D40: Total Minutes | E40: =SUM(E9:E39) -> 0 | F40: =SUM(F9:F39) -> 0 | G40: 0 | H40: 0 | I40: 0 | L40: =IF(SUM(E40:H40)>COUNTA(E9:E39)*390,"The sum total for all cost objectives exceeds the maximum anticipated value based upon the number of days worked. Confirm minutes claimed for each day.","") -> 
D41: Total Hours | E41: =E40/60 -> 0 | F41: =F40/60 -> 0 | G41: 0 | H41: 0 | I41: 0
C44: Notes
E55: Kansas State Department of Education | I55: Personnel Activity Report
E56: Fiscal Auditing | I56: Updated 9/20/18
E57: 785-296-4976
E58: https://www.ksde.org/Agency/Fiscal-and-Administrative-Services/Fiscal-Auditing
C61: The Kansas State Department of Education does not discriminate on the basis of race, color, national origin, sex, disability, or age in its programs and activities and provides equal access to the Boy Scouts and other designated youth groups. The following person has been designated to handle inquiries regarding the nondiscrimination policies: KSDE General Counsel, Office of General Counsel, KSDE, Landon State Office Building, 900 S.W. Jackson, Suite 102, Topeka, KS 66612, (785) 296-3204.

Sheet December
C3: Personnel Activity Report
C4: Regular School Year
C5: December
C6: =IF(Summary!$E$8<>"",Summary!$E$8," ") -> 
C7: =IF(Summary!$E$9<>"",Summary!$E$9," ") -> 
C8: Day | D8: Date | E8: Special Ed | F8: General Ed | G8: Other | H8: Other | I8: Totals | L8: =IF(OR(AND(F8="",COUNTA(F9:F39)>0),AND(G8="",COUNTA(G9:G39)>0),AND(H8="",COUNTA(H9:H39)>0)),"<<< You must identify the cost objective in the column heading.","") -> 
A9: 1201 | C9: =IF(ISNA(IF(Summary!$B$5=3,IF(VLOOKUP(A9,Calendar!$A$3:$G$459,7,FALSE)="S", "", VLOOKUP(A9,Calendar!$A$3:$G$459,7,FALSE)),IF(VLOOKUP(A9,Calendar!$A$3:$G$459,4,FALSE)="S", "", VLOOKUP(A9,Calendar!$A$3:$G$459,4,FALSE)))),"",IF(Summary!$B$5=3,IF(VLOOKUP(A9,Calendar!$A$3:$G$459,7,FALSE)="S", "", VLOOKUP(A9,Calendar!$A$3:$G$459,7,FALSE)),IF(VLOOKUP(A9,Calendar!$A$3:$G$459,4,FALSE)="S", "", VLOOKUP(A9,Calendar!$A$3:$G$459,4,FALSE)))) ->  | D9: =IF(Summary!$B$5=3,IF(C9="","",VLOOKUP(A9,Calendar!$A$3:$G$459,5,FALSE)),IF(C9="","",VLOOKUP(A9,Calendar!$A$3:$G$459,2,FALSE))) ->  | I9: =MIN(1440,SUM(E9:H9)) -> 0 | L9: =IF(I9>390, "<<< Day exceeds 390 minutes. Confirm reported time.","") -> 
A10: 1202 | C10: =IF(ISNA(IF(Summary!$B$5=3,IF(VLOOKUP(A10,Calendar!$A$3:$G$459,7,FALSE)="S", "", VLOOKUP(A10,Calendar!$A$3:$G$459,7,FALSE)),IF(VLOOKUP(A10,Calendar!$A$3:$G$459,4,FALSE)="S", "", VLOOKUP(A10,Calendar!$A$3:$G$459,4,FALSE)))),"",IF(Summary!$B$5=3,IF(VLOOKUP(A10,Calendar!$A$3:$G$459,7,FALSE)="S", "", VLOOKUP(A10,Calendar!$A$3:$G$459,7,FALSE)),IF(VLOOKUP(A10,Calendar!$A$3:$G$459,4,FALSE)="S", "", VLOOKUP(A10,Calendar!$A$3:$G$459,4,FALSE)))) -> M | D10: =IF(Summary!$B$5=3,IF(C10="","",VLOOKUP(A10,Calendar!$A$3:$G$459,5,FALSE)),IF(C10="","",VLOOKUP(A10,Calendar!$A$3:$G$459,2,FALSE))) -> 2019-12-02 | I10: =MIN(1440,SUM(E10:H10)) -> 0 | L10: =IF(I10>390, "<<< Day exceeds 390 minutes. Confirm reported time.","") -> 
A11: 1203 | C11: =IF(ISNA(IF(Summary!$B$5=3,IF(VLOOKUP(A11,Calendar!$A$3:$G$459,7,FALSE)="S", "", VLOOKUP(A11,Calendar!$A$3:$G$459,7,FALSE)),IF(VLOOKUP(A11,Calendar!$A$3:$G$459,4,FALSE)="S", "", VLOOKUP(A11,Calendar!$A$3:$G$459,4,FALSE)))),"",IF(Summary!$B$5=3,IF(VLOOKUP(A11,Calendar!$A$3:$G$459,7,FALSE)="S", "", VLOOKUP(A11,Calendar!$A$3:$G$459,7,FALSE)),IF(VLOOKUP(A11,Calendar!$A$3:$G$459,4,FALSE)="S", "", VLOOKUP(A11,Calendar!$A$3:$G$459,4,FALSE)))) -> T | D11: =IF(Summary!$B$5=3,IF(C11="","",VLOOKUP(A11,Calendar!$A$3:$G$459,5,FALSE)),IF(C11="","",VLOOKUP(A11,Calendar!$A$3:$G$459,2,FALSE))) -> 2019-12-03 | I11: 0
A12: 1204 | C12: =IF(ISNA(IF(Summary!$B$5=3,IF(VLOOKUP(A12,Calendar!$A$3:$G$459,7,FALSE)="S", "", VLOOKUP(A12,Calendar!$A$3:$G$459,7,FALSE)),IF(VLOOKUP(A12,Calendar!$A$3:$G$459,4,FALSE)="S", "", VLOOKUP(A12,Calendar!$A$3:$G$459,4,FALSE)))),"",IF(Summary!$B$5=3,IF(VLOOKUP(A12,Calendar!$A$3:$G$459,7,FALSE)="S", "", VLOOKUP(A12,Calendar!$A$3:$G$459,7,FALSE)),IF(VLOOKUP(A12,Calendar!$A$3:$G$459,4,FALSE)="S", "", VLOOKUP(A12,Calendar!$A$3:$G$459,4,FALSE)))) -> W | D12: =IF(Summary!$B$5=3,IF(C12="","",VLOOKUP(A12,Calendar!$A$3:$G$459,5,FALSE)),IF(C12="","",VLOOKUP(A12,Calendar!$A$3:$G$459,2,FALSE))) -> 2019-12-04 | I12: 0
A13: 1205 | C13: =IF(ISNA(IF(Summary!$B$5=3,IF(VLOOKUP(A13,Calendar!$A$3:$G$459,7,FALSE)="S", "", VLOOKUP(A13,Calendar!$A$3:$G$459,7,FALSE)),IF(VLOOKUP(A13,Calendar!$A$3:$G$459,4,FALSE)="S", "", VLOOKUP(A13,Calendar!$A$3:$G$459,4,FALSE)))),"",IF(Summary!$B$5=3,IF(VLOOKUP(A13,Calendar!$A$3:$G$459,7,FALSE)="S", "", VLOOKUP(A13,Calendar!$A$3:$G$459,7,FALSE)),IF(VLOOKUP(A13,Calendar!$A$3:$G$459,4,FALSE)="S", "", VLOOKUP(A13,Calendar!$A$3:$G$459,4,FALSE)))) -> R | D13: =IF(Summary!$B$5=3,IF(C13="","",VLOOKUP(A13,Calendar!$A$3:$G$459,5,FALSE)),IF(C13="","",VLOOKUP(A13,Calendar!$A$3:$G$459,2,FALSE))) -> 2019-12-05 | I13: 0
A14: 1206 | C14: =IF(ISNA(IF(Summary!$B$5=3,IF(VLOOKUP(A14,Calendar!$A$3:$G$459,7,FALSE)="S", "", VLOOKUP(A14,Calendar!$A$3:$G$459,7,FALSE)),IF(VLOOKUP(A14,Calendar!$A$3:$G$459,4,FALSE)="S", "", VLOOKUP(A14,Calendar!$A$3:$G$459,4,FALSE)))),"",IF(Summary!$B$5=3,IF(VLOOKUP(A14,Calendar!$A$3:$G$459,7,FALSE)="S", "", VLOOKUP(A14,Calendar!$A$3:$G$459,7,FALSE)),IF(VLOOKUP(A14,Calendar!$A$3:$G$459,4,FALSE)="S", "", VLOOKUP(A14,Calendar!$A$3:$G$459,4,FALSE)))) -> F | D14: =IF(Summary!$B$5=3,IF(C14="","",VLOOKUP(A14,Calendar!$A$3:$G$459,5,FALSE)),IF(C14="","",VLOOKUP(A14,Calendar!$A$3:$G$459,2,FALSE))) -> 2019-12-06 | I14: 0
A15: 1207 | C15: =IF(ISNA(IF(Summary!$B$5=3,IF(VLOOKUP(A15,Calendar!$A$3:$G$459,7,FALSE)="S", "", VLOOKUP(A15,Calendar!$A$3:$G$459,7,FALSE)),IF(VLOOKUP(A15,Calendar!$A$3:$G$459,4,FALSE)="S", "", VLOOKUP(A15,Calendar!$A$3:$G$459,4,FALSE)))),"",IF(Summary!$B$5=3,IF(VLOOKUP(A15,Calendar!$A$3:$G$459,7,FALSE)="S", "", VLOOKUP(A15,Calendar!$A$3:$G$459,7,FALSE)),IF(VLOOKUP(A15,Calendar!$A$3:$G$459,4,FALSE)="S", "", VLOOKUP(A15,Calendar!$A$3:$G$459,4,FALSE)))) ->  | D15: =IF(Summary!$B$5=3,IF(C15="","",VLOOKUP(A15,Calendar!$A$3:$G$459,5,FALSE)),IF(C15="","",VLOOKUP(A15,Calendar!$A$3:$G$459,2,FALSE))) ->  | I15: 0
A16: 1208 | C16: =IF(ISNA(IF(Summary!$B$5=3,IF(VLOOKUP(A16,Calendar!$A$3:$G$459,7,FALSE)="S", "", VLOOKUP(A16,Calendar!$A$3:$G$459,7,FALSE)),IF(VLOOKUP(A16,Calendar!$A$3:$G$459,4,FALSE)="S", "", VLOOKUP(A16,Calendar!$A$3:$G$459,4,FALSE)))),"",IF(Summary!$B$5=3,IF(VLOOKUP(A16,Calendar!$A$3:$G$459,7,FALSE)="S", "", VLOOKUP(A16,Calendar!$A$3:$G$459,7,FALSE)),IF(VLOOKUP(A16,Calendar!$A$3:$G$459,4,FALSE)="S", "", VLOOKUP(A16,Calendar!$A$3:$G$459,4,FALSE)))) ->  | D16: =IF(Summary!$B$5=3,IF(C16="","",VLOOKUP(A16,Calendar!$A$3:$G$459,5,FALSE)),IF(C16="","",VLOOKUP(A16,Calendar!$A$3:$G$459,2,FALSE))) ->  | I16: 0
A17: 1209 | C17: =IF(ISNA(IF(Summary!$B$5=3,IF(VLOOKUP(A17,Calendar!$A$3:$G$459,7,FALSE)="S", "", VLOOKUP(A17,Calendar!$A$3:$G$459,7,FALSE)),IF(VLOOKUP(A17,Calendar!$A$3:$G$459,4,FALSE)="S", "", VLOOKUP(A17,Calendar!$A$3:$G$459,4,FALSE)))),"",IF(Summary!$B$5=3,IF(VLOOKUP(A17,Calendar!$A$3:$G$459,7,FALSE)="S", "", VLOOKUP(A17,Calendar!$A$3:$G$459,7,FALSE)),IF(VLOOKUP(A17,Calendar!$A$3:$G$459,4,FALSE)="S", "", VLOOKUP(A17,Calendar!$A$3:$G$459,4,FALSE)))) -> M | D17: =IF(Summary!$B$5=3,IF(C17="","",VLOOKUP(A17,Calendar!$A$3:$G$459,5,FALSE)),IF(C17="","",VLOOKUP(A17,Calendar!$A$3:$G$459,2,FALSE))) -> 2019-12-09 | I17: 0
A18: 1210 | C18: =IF(ISNA(IF(Summary!$B$5=3,IF(VLOOKUP(A18,Calendar!$A$3:$G$459,7,FALSE)="S", "", VLOOKUP(A18,Calendar!$A$3:$G$459,7,FALSE)),IF(VLOOKUP(A18,Calendar!$A$3:$G$459,4,FALSE)="S", "", VLOOKUP(A18,Calendar!$A$3:$G$459,4,FALSE)))),"",IF(Summary!$B$5=3,IF(VLOOKUP(A18,Calendar!$A$3:$G$459,7,FALSE)="S", "", VLOOKUP(A18,Calendar!$A$3:$G$459,7,FALSE)),IF(VLOOKUP(A18,Calendar!$A$3:$G$459,4,FALSE)="S", "", VLOOKUP(A18,Calendar!$A$3:$G$459,4,FALSE)))) -> T | D18: =IF(Summary!$B$5=3,IF(C18="","",VLOOKUP(A18,Calendar!$A$3:$G$459,5,FALSE)),IF(C18="","",VLOOKUP(A18,Calendar!$A$3:$G$459,2,FALSE))) -> 2019-12-10 | I18: 0
A19: 1211 | C19: =IF(ISNA(IF(Summary!$B$5=3,IF(VLOOKUP(A19,Calendar!$A$3:$G$459,7,FALSE)="S", "", VLOOKUP(A19,Calendar!$A$3:$G$459,7,FALSE)),IF(VLOOKUP(A19,Calendar!$A$3:$G$459,4,FALSE)="S", "", VLOOKUP(A19,Calendar!$A$3:$G$459,4,FALSE)))),"",IF(Summary!$B$5=3,IF(VLOOKUP(A19,Calendar!$A$3:$G$459,7,FALSE)="S", "", VLOOKUP(A19,Calendar!$A$3:$G$459,7,FALSE)),IF(VLOOKUP(A19,Calendar!$A$3:$G$459,4,FALSE)="S", "", VLOOKUP(A19,Calendar!$A$3:$G$459,4,FALSE)))) -> W | D19: =IF(Summary!$B$5=3,IF(C19="","",VLOOKUP(A19,Calendar!$A$3:$G$459,5,FALSE)),IF(C19="","",VLOOKUP(A19,Calendar!$A$3:$G$459,2,FALSE))) -> 2019-12-11 | I19: 0
A20: 1212 | C20: =IF(ISNA(IF(Summary!$B$5=3,IF(VLOOKUP(A20,Calendar!$A$3:$G$459,7,FALSE)="S", "", VLOOKUP(A20,Calendar!$A$3:$G$459,7,FALSE)),IF(VLOOKUP(A20,Calendar!$A$3:$G$459,4,FALSE)="S", "", VLOOKUP(A20,Calendar!$A$3:$G$459,4,FALSE)))),"",IF(Summary!$B$5=3,IF(VLOOKUP(A20,Calendar!$A$3:$G$459,7,FALSE)="S", "", VLOOKUP(A20,Calendar!$A$3:$G$459,7,FALSE)),IF(VLOOKUP(A20,Calendar!$A$3:$G$459,4,FALSE)="S", "", VLOOKUP(A20,Calendar!$A$3:$G$459,4,FALSE)))) -> R | D20: =IF(Summary!$B$5=3,IF(C20="","",VLOOKUP(A20,Calendar!$A$3:$G$459,5,FALSE)),IF(C20="","",VLOOKUP(A20,Calendar!$A$3:$G$459,2,FALSE))) -> 2019-12-12 | I20: 0
A21: 1213 | C21: =IF(ISNA(IF(Summary!$B$5=3,IF(VLOOKUP(A21,Calendar!$A$3:$G$459,7,FALSE)="S", "", VLOOKUP(A21,Calendar!$A$3:$G$459,7,FALSE)),IF(VLOOKUP(A21,Calendar!$A$3:$G$459,4,FALSE)="S", "", VLOOKUP(A21,Calendar!$A$3:$G$459,4,FALSE)))),"",IF(Summary!$B$5=3,IF(VLOOKUP(A21,Calendar!$A$3:$G$459,7,FALSE)="S", "", VLOOKUP(A21,Calendar!$A$3:$G$459,7,FALSE)),IF(VLOOKUP(A21,Calendar!$A$3:$G$459,4,FALSE)="S", "", VLOOKUP(A21,Calendar!$A$3:$G$459,4,FALSE)))) -> F | D21: =IF(Summary!$B$5=3,IF(C21="","",VLOOKUP(A21,Calendar!$A$3:$G$459,5,FALSE)),IF(C21="","",VLOOKUP(A21,Calendar!$A$3:$G$459,2,FALSE))) -> 2019-12-13 | I21: 0
A22: 1214 | C22: =IF(ISNA(IF(Summary!$B$5=3,IF(VLOOKUP(A22,Calendar!$A$3:$G$459,7,FALSE)="S", "", VLOOKUP(A22,Calendar!$A$3:$G$459,7,FALSE)),IF(VLOOKUP(A22,Calendar!$A$3:$G$459,4,FALSE)="S", "", VLOOKUP(A22,Calendar!$A$3:$G$459,4,FALSE)))),"",IF(Summary!$B$5=3,IF(VLOOKUP(A22,Calendar!$A$3:$G$459,7,FALSE)="S", "", VLOOKUP(A22,Calendar!$A$3:$G$459,7,FALSE)),IF(VLOOKUP(A22,Calendar!$A$3:$G$459,4,FALSE)="S", "", VLOOKUP(A22,Calendar!$A$3:$G$459,4,FALSE)))) ->  | D22: =IF(Summary!$B$5=3,IF(C22="","",VLOOKUP(A22,Calendar!$A$3:$G$459,5,FALSE)),IF(C22="","",VLOOKUP(A22,Calendar!$A$3:$G$459,2,FALSE))) ->  | I22: 0
A23: 1215 | C23: =IF(ISNA(IF(Summary!$B$5=3,IF(VLOOKUP(A23,Calendar!$A$3:$G$459,7,FALSE)="S", "", VLOOKUP(A23,Calendar!$A$3:$G$459,7,FALSE)),IF(VLOOKUP(A23,Calendar!$A$3:$G$459,4,FALSE)="S", "", VLOOKUP(A23,Calendar!$A$3:$G$459,4,FALSE)))),"",IF(Summary!$B$5=3,IF(VLOOKUP(A23,Calendar!$A$3:$G$459,7,FALSE)="S", "", VLOOKUP(A23,Calendar!$A$3:$G$459,7,FALSE)),IF(VLOOKUP(A23,Calendar!$A$3:$G$459,4,FALSE)="S", "", VLOOKUP(A23,Calendar!$A$3:$G$459,4,FALSE)))) ->  | D23: =IF(Summary!$B$5=3,IF(C23="","",VLOOKUP(A23,Calendar!$A$3:$G$459,5,FALSE)),IF(C23="","",VLOOKUP(A23,Calendar!$A$3:$G$459,2,FALSE))) ->  | I23: 0
A24: 1216 | C24: =IF(ISNA(IF(Summary!$B$5=3,IF(VLOOKUP(A24,Calendar!$A$3:$G$459,7,FALSE)="S", "", VLOOKUP(A24,Calendar!$A$3:$G$459,7,FALSE)),IF(VLOOKUP(A24,Calendar!$A$3:$G$459,4,FALSE)="S", "", VLOOKUP(A24,Calendar!$A$3:$G$459,4,FALSE)))),"",IF(Summary!$B$5=3,IF(VLOOKUP(A24,Calendar!$A$3:$G$459,7,FALSE)="S", "", VLOOKUP(A24,Calendar!$A$3:$G$459,7,FALSE)),IF(VLOOKUP(A24,Calendar!$A$3:$G$459,4,FALSE)="S", "", VLOOKUP(A24,Calendar!$A$3:$G$459,4,FALSE)))) -> M | D24: =IF(Summary!$B$5=3,IF(C24="","",VLOOKUP(A24,Calendar!$A$3:$G$459,5,FALSE)),IF(C24="","",VLOOKUP(A24,Calendar!$A$3:$G$459,2,FALSE))) -> 2019-12-16 | I24: 0
A25: 1217 | C25: =IF(ISNA(IF(Summary!$B$5=3,IF(VLOOKUP(A25,Calendar!$A$3:$G$459,7,FALSE)="S", "", VLOOKUP(A25,Calendar!$A$3:$G$459,7,FALSE)),IF(VLOOKUP(A25,Calendar!$A$3:$G$459,4,FALSE)="S", "", VLOOKUP(A25,Calendar!$A$3:$G$459,4,FALSE)))),"",IF(Summary!$B$5=3,IF(VLOOKUP(A25,Calendar!$A$3:$G$459,7,FALSE)="S", "", VLOOKUP(A25,Calendar!$A$3:$G$459,7,FALSE)),IF(VLOOKUP(A25,Calendar!$A$3:$G$459,4,FALSE)="S", "", VLOOKUP(A25,Calendar!$A$3:$G$459,4,FALSE)))) -> T | D25: =IF(Summary!$B$5=3,IF(C25="","",VLOOKUP(A25,Calendar!$A$3:$G$459,5,FALSE)),IF(C25="","",VLOOKUP(A25,Calendar!$A$3:$G$459,2,FALSE))) -> 2019-12-17 | I25: 0
A26: 1218 | C26: =IF(ISNA(IF(Summary!$B$5=3,IF(VLOOKUP(A26,Calendar!$A$3:$G$459,7,FALSE)="S", "", VLOOKUP(A26,Calendar!$A$3:$G$459,7,FALSE)),IF(VLOOKUP(A26,Calendar!$A$3:$G$459,4,FALSE)="S", "", VLOOKUP(A26,Calendar!$A$3:$G$459,4,FALSE)))),"",IF(Summary!$B$5=3,IF(VLOOKUP(A26,Calendar!$A$3:$G$459,7,FALSE)="S", "", VLOOKUP(A26,Calendar!$A$3:$G$459,7,FALSE)),IF(VLOOKUP(A26,Calendar!$A$3:$G$459,4,FALSE)="S", "", VLOOKUP(A26,Calendar!$A$3:$G$459,4,FALSE)))) -> W | D26: =IF(Summary!$B$5=3,IF(C26="","",VLOOKUP(A26,Calendar!$A$3:$G$459,5,FALSE)),IF(C26="","",VLOOKUP(A26,Calendar!$A$3:$G$459,2,FALSE))) -> 2019-12-18 | I26: 0
A27: 1219 | C27: =IF(ISNA(IF(Summary!$B$5=3,IF(VLOOKUP(A27,Calendar!$A$3:$G$459,7,FALSE)="S", "", VLOOKUP(A27,Calendar!$A$3:$G$459,7,FALSE)),IF(VLOOKUP(A27,Calendar!$A$3:$G$459,4,FALSE)="S", "", VLOOKUP(A27,Calendar!$A$3:$G$459,4,FALSE)))),"",IF(Summary!$B$5=3,IF(VLOOKUP(A27,Calendar!$A$3:$G$459,7,FALSE)="S", "", VLOOKUP(A27,Calendar!$A$3:$G$459,7,FALSE)),IF(VLOOKUP(A27,Calendar!$A$3:$G$459,4,FALSE)="S", "", VLOOKUP(A27,Calendar!$A$3:$G$459,4,FALSE)))) -> R | D27: =IF(Summary!$B$5=3,IF(C27="","",VLOOKUP(A27,Calendar!$A$3:$G$459,5,FALSE)),IF(C27="","",VLOOKUP(A27,Calendar!$A$3:$G$459,2,FALSE))) -> 2019-12-19 | I27: 0
A28: 1220 | C28: =IF(ISNA(IF(Summary!$B$5=3,IF(VLOOKUP(A28,Calendar!$A$3:$G$459,7,FALSE)="S", "", VLOOKUP(A28,Calendar!$A$3:$G$459,7,FALSE)),IF(VLOOKUP(A28,Calendar!$A$3:$G$459,4,FALSE)="S", "", VLOOKUP(A28,Calendar!$A$3:$G$459,4,FALSE)))),"",IF(Summary!$B$5=3,IF(VLOOKUP(A28,Calendar!$A$3:$G$459,7,FALSE)="S", "", VLOOKUP(A28,Calendar!$A$3:$G$459,7,FALSE)),IF(VLOOKUP(A28,Calendar!$A$3:$G$459,4,FALSE)="S", "", VLOOKUP(A28,Calendar!$A$3:$G$459,4,FALSE)))) -> F | D28: =IF(Summary!$B$5=3,IF(C28="","",VLOOKUP(A28,Calendar!$A$3:$G$459,5,FALSE)),IF(C28="","",VLOOKUP(A28,Calendar!$A$3:$G$459,2,FALSE))) -> 2019-12-20 | I28: 0
A29: 1221 | C29: =IF(ISNA(IF(Summary!$B$5=3,IF(VLOOKUP(A29,Calendar!$A$3:$G$459,7,FALSE)="S", "", VLOOKUP(A29,Calendar!$A$3:$G$459,7,FALSE)),IF(VLOOKUP(A29,Calendar!$A$3:$G$459,4,FALSE)="S", "", VLOOKUP(A29,Calendar!$A$3:$G$459,4,FALSE)))),"",IF(Summary!$B$5=3,IF(VLOOKUP(A29,Calendar!$A$3:$G$459,7,FALSE)="S", "", VLOOKUP(A29,Calendar!$A$3:$G$459,7,FALSE)),IF(VLOOKUP(A29,Calendar!$A$3:$G$459,4,FALSE)="S", "", VLOOKUP(A29,Calendar!$A$3:$G$459,4,FALSE)))) ->  | D29: =IF(Summary!$B$5=3,IF(C29="","",VLOOKUP(A29,Calendar!$A$3:$G$459,5,FALSE)),IF(C29="","",VLOOKUP(A29,Calendar!$A$3:$G$459,2,FALSE))) ->  | I29: 0
A30: 1222 | C30: =IF(ISNA(IF(Summary!$B$5=3,IF(VLOOKUP(A30,Calendar!$A$3:$G$459,7,FALSE)="S", "", VLOOKUP(A30,Calendar!$A$3:$G$459,7,FALSE)),IF(VLOOKUP(A30,Calendar!$A$3:$G$459,4,FALSE)="S", "", VLOOKUP(A30,Calendar!$A$3:$G$459,4,FALSE)))),"",IF(Summary!$B$5=3,IF(VLOOKUP(A30,Calendar!$A$3:$G$459,7,FALSE)="S", "", VLOOKUP(A30,Calendar!$A$3:$G$459,7,FALSE)),IF(VLOOKUP(A30,Calendar!$A$3:$G$459,4,FALSE)="S", "", VLOOKUP(A30,Calendar!$A$3:$G$459,4,FALSE)))) ->  | D30: =IF(Summary!$B$5=3,IF(C30="","",VLOOKUP(A30,Calendar!$A$3:$G$459,5,FALSE)),IF(C30="","",VLOOKUP(A30,Calendar!$A$3:$G$459,2,FALSE))) ->  | I30: 0
A31: 1223 | C31: =IF(ISNA(IF(Summary!$B$5=3,IF(VLOOKUP(A31,Calendar!$A$3:$G$459,7,FALSE)="S", "", VLOOKUP(A31,Calendar!$A$3:$G$459,7,FALSE)),IF(VLOOKUP(A31,Calendar!$A$3:$G$459,4,FALSE)="S", "", VLOOKUP(A31,Calendar!$A$3:$G$459,4,FALSE)))),"",IF(Summary!$B$5=3,IF(VLOOKUP(A31,Calendar!$A$3:$G$459,7,FALSE)="S", "", VLOOKUP(A31,Calendar!$A$3:$G$459,7,FALSE)),IF(VLOOKUP(A31,Calendar!$A$3:$G$459,4,FALSE)="S", "", VLOOKUP(A31,Calendar!$A$3:$G$459,4,FALSE)))) -> M | D31: =IF(Summary!$B$5=3,IF(C31="","",VLOOKUP(A31,Calendar!$A$3:$G$459,5,FALSE)),IF(C31="","",VLOOKUP(A31,Calendar!$A$3:$G$459,2,FALSE))) -> 2019-12-23 | I31: 0
A32: 1224 | C32: =IF(ISNA(IF(Summary!$B$5=3,IF(VLOOKUP(A32,Calendar!$A$3:$G$459,7,FALSE)="S", "", VLOOKUP(A32,Calendar!$A$3:$G$459,7,FALSE)),IF(VLOOKUP(A32,Calendar!$A$3:$G$459,4,FALSE)="S", "", VLOOKUP(A32,Calendar!$A$3:$G$459,4,FALSE)))),"",IF(Summary!$B$5=3,IF(VLOOKUP(A32,Calendar!$A$3:$G$459,7,FALSE)="S", "", VLOOKUP(A32,Calendar!$A$3:$G$459,7,FALSE)),IF(VLOOKUP(A32,Calendar!$A$3:$G$459,4,FALSE)="S", "", VLOOKUP(A32,Calendar!$A$3:$G$459,4,FALSE)))) -> T | D32: =IF(Summary!$B$5=3,IF(C32="","",VLOOKUP(A32,Calendar!$A$3:$G$459,5,FALSE)),IF(C32="","",VLOOKUP(A32,Calendar!$A$3:$G$459,2,FALSE))) -> 2019-12-24 | I32: 0
A33: 1225 | C33: =IF(ISNA(IF(Summary!$B$5=3,IF(VLOOKUP(A33,Calendar!$A$3:$G$459,7,FALSE)="S", "", VLOOKUP(A33,Calendar!$A$3:$G$459,7,FALSE)),IF(VLOOKUP(A33,Calendar!$A$3:$G$459,4,FALSE)="S", "", VLOOKUP(A33,Calendar!$A$3:$G$459,4,FALSE)))),"",IF(Summary!$B$5=3,IF(VLOOKUP(A33,Calendar!$A$3:$G$459,7,FALSE)="S", "", VLOOKUP(A33,Calendar!$A$3:$G$459,7,FALSE)),IF(VLOOKUP(A33,Calendar!$A$3:$G$459,4,FALSE)="S", "", VLOOKUP(A33,Calendar!$A$3:$G$459,4,FALSE)))) -> W | D33: =IF(Summary!$B$5=3,IF(C33="","",VLOOKUP(A33,Calendar!$A$3:$G$459,5,FALSE)),IF(C33="","",VLOOKUP(A33,Calendar!$A$3:$G$459,2,FALSE))) -> 2019-12-25 | I33: 0
A34: 1226 | C34: =IF(ISNA(IF(Summary!$B$5=3,IF(VLOOKUP(A34,Calendar!$A$3:$G$459,7,FALSE)="S", "", VLOOKUP(A34,Calendar!$A$3:$G$459,7,FALSE)),IF(VLOOKUP(A34,Calendar!$A$3:$G$459,4,FALSE)="S", "", VLOOKUP(A34,Calendar!$A$3:$G$459,4,FALSE)))),"",IF(Summary!$B$5=3,IF(VLOOKUP(A34,Calendar!$A$3:$G$459,7,FALSE)="S", "", VLOOKUP(A34,Calendar!$A$3:$G$459,7,FALSE)),IF(VLOOKUP(A34,Calendar!$A$3:$G$459,4,FALSE)="S", "", VLOOKUP(A34,Calendar!$A$3:$G$459,4,FALSE)))) -> R | D34: =IF(Summary!$B$5=3,IF(C34="","",VLOOKUP(A34,Calendar!$A$3:$G$459,5,FALSE)),IF(C34="","",VLOOKUP(A34,Calendar!$A$3:$G$459,2,FALSE))) -> 2019-12-26 | I34: 0
A35: 1227 | C35: =IF(ISNA(IF(Summary!$B$5=3,IF(VLOOKUP(A35,Calendar!$A$3:$G$459,7,FALSE)="S", "", VLOOKUP(A35,Calendar!$A$3:$G$459,7,FALSE)),IF(VLOOKUP(A35,Calendar!$A$3:$G$459,4,FALSE)="S", "", VLOOKUP(A35,Calendar!$A$3:$G$459,4,FALSE)))),"",IF(Summary!$B$5=3,IF(VLOOKUP(A35,Calendar!$A$3:$G$459,7,FALSE)="S", "", VLOOKUP(A35,Calendar!$A$3:$G$459,7,FALSE)),IF(VLOOKUP(A35,Calendar!$A$3:$G$459,4,FALSE)="S", "", VLOOKUP(A35,Calendar!$A$3:$G$459,4,FALSE)))) -> F | D35: =IF(Summary!$B$5=3,IF(C35="","",VLOOKUP(A35,Calendar!$A$3:$G$459,5,FALSE)),IF(C35="","",VLOOKUP(A35,Calendar!$A$3:$G$459,2,FALSE))) -> 2019-12-27 | I35: 0
A36: 1228 | C36: =IF(ISNA(IF(Summary!$B$5=3,IF(VLOOKUP(A36,Calendar!$A$3:$G$459,7,FALSE)="S", "", VLOOKUP(A36,Calendar!$A$3:$G$459,7,FALSE)),IF(VLOOKUP(A36,Calendar!$A$3:$G$459,4,FALSE)="S", "", VLOOKUP(A36,Calendar!$A$3:$G$459,4,FALSE)))),"",IF(Summary!$B$5=3,IF(VLOOKUP(A36,Calendar!$A$3:$G$459,7,FALSE)="S", "", VLOOKUP(A36,Calendar!$A$3:$G$459,7,FALSE)),IF(VLOOKUP(A36,Calendar!$A$3:$G$459,4,FALSE)="S", "", VLOOKUP(A36,Calendar!$A$3:$G$459,4,FALSE)))) ->  | D36: =IF(Summary!$B$5=3,IF(C36="","",VLOOKUP(A36,Calendar!$A$3:$G$459,5,FALSE)),IF(C36="","",VLOOKUP(A36,Calendar!$A$3:$G$459,2,FALSE))) ->  | I36: 0
A37: 1229 | C37: =IF(ISNA(IF(Summary!$B$5=3,IF(VLOOKUP(A37,Calendar!$A$3:$G$459,7,FALSE)="S", "", VLOOKUP(A37,Calendar!$A$3:$G$459,7,FALSE)),IF(VLOOKUP(A37,Calendar!$A$3:$G$459,4,FALSE)="S", "", VLOOKUP(A37,Calendar!$A$3:$G$459,4,FALSE)))),"",IF(Summary!$B$5=3,IF(VLOOKUP(A37,Calendar!$A$3:$G$459,7,FALSE)="S", "", VLOOKUP(A37,Calendar!$A$3:$G$459,7,FALSE)),IF(VLOOKUP(A37,Calendar!$A$3:$G$459,4,FALSE)="S", "", VLOOKUP(A37,Calendar!$A$3:$G$459,4,FALSE)))) ->  | D37: =IF(Summary!$B$5=3,IF(C37="","",VLOOKUP(A37,Calendar!$A$3:$G$459,5,FALSE)),IF(C37="","",VLOOKUP(A37,Calendar!$A$3:$G$459,2,FALSE))) ->  | I37: 0
A38: 1230 | C38: =IF(ISNA(IF(Summary!$B$5=3,IF(VLOOKUP(A38,Calendar!$A$3:$G$459,7,FALSE)="S", "", VLOOKUP(A38,Calendar!$A$3:$G$459,7,FALSE)),IF(VLOOKUP(A38,Calendar!$A$3:$G$459,4,FALSE)="S", "", VLOOKUP(A38,Calendar!$A$3:$G$459,4,FALSE)))),"",IF(Summary!$B$5=3,IF(VLOOKUP(A38,Calendar!$A$3:$G$459,7,FALSE)="S", "", VLOOKUP(A38,Calendar!$A$3:$G$459,7,FALSE)),IF(VLOOKUP(A38,Calendar!$A$3:$G$459,4,FALSE)="S", "", VLOOKUP(A38,Calendar!$A$3:$G$459,4,FALSE)))) -> M | D38: =IF(Summary!$B$5=3,IF(C38="","",VLOOKUP(A38,Calendar!$A$3:$G$459,5,FALSE)),IF(C38="","",VLOOKUP(A38,Calendar!$A$3:$G$459,2,FALSE))) -> 2019-12-30 | I38: 0
A39: 1231 | C39: =IF(ISNA(IF(Summary!$B$5=3,IF(VLOOKUP(A39,Calendar!$A$3:$G$459,7,FALSE)="S", "", VLOOKUP(A39,Calendar!$A$3:$G$459,7,FALSE)),IF(VLOOKUP(A39,Calendar!$A$3:$G$459,4,FALSE)="S", "", VLOOKUP(A39,Calendar!$A$3:$G$459,4,FALSE)))),"",IF(Summary!$B$5=3,IF(VLOOKUP(A39,Calendar!$A$3:$G$459,7,FALSE)="S", "", VLOOKUP(A39,Calendar!$A$3:$G$459,7,FALSE)),IF(VLOOKUP(A39,Calendar!$A$3:$G$459,4,FALSE)="S", "", VLOOKUP(A39,Calendar!$A$3:$G$459,4,FALSE)))) -> T | D39: =IF(Summary!$B$5=3,IF(C39="","",VLOOKUP(A39,Calendar!$A$3:$G$459,5,FALSE)),IF(C39="","",VLOOKUP(A39,Calendar!$A$3:$G$459,2,FALSE))) -> 2019-12-31 | I39: 0
D40: Total Minutes | E40: =SUM(E9:E39) -> 0 | F40: =SUM(F9:F39) -> 0 | G40: 0 | H40: 0 | I40: 0 | L40: =IF(SUM(E40:H40)>COUNTA(E9:E39)*390,"The sum total for all cost objectives exceeds the maximum anticipated value based upon the number of days worked. Confirm minutes claimed for each day.","") -> 
D41: Total Hours | E41: =E40/60 -> 0 | F41: =F40/60 -> 0 | G41: 0 | H41: 0 | I41: 0
C44: Notes
E55: Kansas State Department of Education | I55: Personnel Activity Report
E56: Fiscal Auditing | I56: Updated 9/20/18
E57: 785-296-4976
E58: https://www.ksde.org/Agency/Fiscal-and-Administrative-Services/Fiscal-Auditing
C61: The Kansas State Department of Education does not discriminate on the basis of race, color, national origin, sex, disability, or age in its programs and activities and provides equal access to the Boy Scouts and other designated youth groups. The following person has been designated to handle inquiries regarding the nondiscrimination policies: KSDE General Counsel, Office of General Counsel, KSDE, Landon State Office Building, 900 S.W. Jackson, Suite 102, Topeka, KS 66612, (785) 296-3204.

Sheet January
C3: Personnel Activity Report
C4: Regular School Year
C5: January
C6: =IF(Summary!$E$8<>"",Summary!$E$8," ") -> 
C7: =IF(Summary!$E$9<>"",Summary!$E$9," ") -> 
C8: Day | D8: Date | E8: Special Ed | F8: General Ed | G8: Other | H8: Other | I8: Totals | L8: =IF(OR(AND(F8="",COUNTA(F9:F39)>0),AND(G8="",COUNTA(G9:G39)>0),AND(H8="",COUNTA(H9:H39)>0)),"<<< You must identify the cost objective in the column heading.","") -> 
A9: 101 | C9: =IF(ISNA(IF(Summary!$B$5=3,IF(VLOOKUP(A9,Calendar!$A$3:$G$459,7,FALSE)="S", "", VLOOKUP(A9,Calendar!$A$3:$G$459,7,FALSE)),IF(VLOOKUP(A9,Calendar!$A$3:$G$459,4,FALSE)="S", "", VLOOKUP(A9,Calendar!$A$3:$G$459,4,FALSE)))),"",IF(Summary!$B$5=3,IF(VLOOKUP(A9,Calendar!$A$3:$G$459,7,FALSE)="S", "", VLOOKUP(A9,Calendar!$A$3:$G$459,7,FALSE)),IF(VLOOKUP(A9,Calendar!$A$3:$G$459,4,FALSE)="S", "", VLOOKUP(A9,Calendar!$A$3:$G$459,4,FALSE)))) -> W | D9: =IF(Summary!$B$5=3,IF(C9="","",VLOOKUP(A9,Calendar!$A$3:$G$459,5,FALSE)),IF(C9="","",VLOOKUP(A9,Calendar!$A$3:$G$459,2,FALSE))) -> 2020-01-01 | I9: =MIN(1440,SUM(E9:H9)) -> 0 | L9: =IF(I9>390, "<<< Day exceeds 390 minutes. Confirm reported time.","") -> 
A10: 102 | C10: =IF(ISNA(IF(Summary!$B$5=3,IF(VLOOKUP(A10,Calendar!$A$3:$G$459,7,FALSE)="S", "", VLOOKUP(A10,Calendar!$A$3:$G$459,7,FALSE)),IF(VLOOKUP(A10,Calendar!$A$3:$G$459,4,FALSE)="S", "", VLOOKUP(A10,Calendar!$A$3:$G$459,4,FALSE)))),"",IF(Summary!$B$5=3,IF(VLOOKUP(A10,Calendar!$A$3:$G$459,7,FALSE)="S", "", VLOOKUP(A10,Calendar!$A$3:$G$459,7,FALSE)),IF(VLOOKUP(A10,Calendar!$A$3:$G$459,4,FALSE)="S", "", VLOOKUP(A10,Calendar!$A$3:$G$459,4,FALSE)))) -> R | D10: =IF(Summary!$B$5=3,IF(C10="","",VLOOKUP(A10,Calendar!$A$3:$G$459,5,FALSE)),IF(C10="","",VLOOKUP(A10,Calendar!$A$3:$G$459,2,FALSE))) -> 2020-01-02 | I10: =MIN(1440,SUM(E10:H10)) -> 0 | L10: =IF(I10>390, "<<< Day exceeds 390 minutes. Confirm reported time.","") -> 
A11: 103 | C11: =IF(ISNA(IF(Summary!$B$5=3,IF(VLOOKUP(A11,Calendar!$A$3:$G$459,7,FALSE)="S", "", VLOOKUP(A11,Calendar!$A$3:$G$459,7,FALSE)),IF(VLOOKUP(A11,Calendar!$A$3:$G$459,4,FALSE)="S", "", VLOOKUP(A11,Calendar!$A$3:$G$459,4,FALSE)))),"",IF(Summary!$B$5=3,IF(VLOOKUP(A11,Calendar!$A$3:$G$459,7,FALSE)="S", "", VLOOKUP(A11,Calendar!$A$3:$G$459,7,FALSE)),IF(VLOOKUP(A11,Calendar!$A$3:$G$459,4,FALSE)="S", "", VLOOKUP(A11,Calendar!$A$3:$G$459,4,FALSE)))) -> F | D11: =IF(Summary!$B$5=3,IF(C11="","",VLOOKUP(A11,Calendar!$A$3:$G$459,5,FALSE)),IF(C11="","",VLOOKUP(A11,Calendar!$A$3:$G$459,2,FALSE))) -> 2020-01-03 | I11: 0
A12: 104 | C12: =IF(ISNA(IF(Summary!$B$5=3,IF(VLOOKUP(A12,Calendar!$A$3:$G$459,7,FALSE)="S", "", VLOOKUP(A12,Calendar!$A$3:$G$459,7,FALSE)),IF(VLOOKUP(A12,Calendar!$A$3:$G$459,4,FALSE)="S", "", VLOOKUP(A12,Calendar!$A$3:$G$459,4,FALSE)))),"",IF(Summary!$B$5=3,IF(VLOOKUP(A12,Calendar!$A$3:$G$459,7,FALSE)="S", "", VLOOKUP(A12,Calendar!$A$3:$G$459,7,FALSE)),IF(VLOOKUP(A12,Calendar!$A$3:$G$459,4,FALSE)="S", "", VLOOKUP(A12,Calendar!$A$3:$G$459,4,FALSE)))) ->  | D12: =IF(Summary!$B$5=3,IF(C12="","",VLOOKUP(A12,Calendar!$A$3:$G$459,5,FALSE)),IF(C12="","",VLOOKUP(A12,Calendar!$A$3:$G$459,2,FALSE))) ->  | I12: 0
A13: 105 | C13: =IF(ISNA(IF(Summary!$B$5=3,IF(VLOOKUP(A13,Calendar!$A$3:$G$459,7,FALSE)="S", "", VLOOKUP(A13,Calendar!$A$3:$G$459,7,FALSE)),IF(VLOOKUP(A13,Calendar!$A$3:$G$459,4,FALSE)="S", "", VLOOKUP(A13,Calendar!$A$3:$G$459,4,FALSE)))),"",IF(Summary!$B$5=3,IF(VLOOKUP(A13,Calendar!$A$3:$G$459,7,FALSE)="S", "", VLOOKUP(A13,Calendar!$A$3:$G$459,7,FALSE)),IF(VLOOKUP(A13,Calendar!$A$3:$G$459,4,FALSE)="S", "", VLOOKUP(A13,Calendar!$A$3:$G$459,4,FALSE)))) ->  | D13: =IF(Summary!$B$5=3,IF(C13="","",VLOOKUP(A13,Calendar!$A$3:$G$459,5,FALSE)),IF(C13="","",VLOOKUP(A13,Calendar!$A$3:$G$459,2,FALSE))) ->  | I13: 0
A14: 106 | C14: =IF(ISNA(IF(Summary!$B$5=3,IF(VLOOKUP(A14,Calendar!$A$3:$G$459,7,FALSE)="S", "", VLOOKUP(A14,Calendar!$A$3:$G$459,7,FALSE)),IF(VLOOKUP(A14,Calendar!$A$3:$G$459,4,FALSE)="S", "", VLOOKUP(A14,Calendar!$A$3:$G$459,4,FALSE)))),"",IF(Summary!$B$5=3,IF(VLOOKUP(A14,Calendar!$A$3:$G$459,7,FALSE)="S", "", VLOOKUP(A14,Calendar!$A$3:$G$459,7,FALSE)),IF(VLOOKUP(A14,Calendar!$A$3:$G$459,4,FALSE)="S", "", VLOOKUP(A14,Calendar!$A$3:$G$459,4,FALSE)))) -> M | D14: =IF(Summary!$B$5=3,IF(C14="","",VLOOKUP(A14,Calendar!$A$3:$G$459,5,FALSE)),IF(C14="","",VLOOKUP(A14,Calendar!$A$3:$G$459,2,FALSE))) -> 2020-01-06 | I14: 0
A15: 107 | C15: =IF(ISNA(IF(Summary!$B$5=3,IF(VLOOKUP(A15,Calendar!$A$3:$G$459,7,FALSE)="S", "", VLOOKUP(A15,Calendar!$A$3:$G$459,7,FALSE)),IF(VLOOKUP(A15,Calendar!$A$3:$G$459,4,FALSE)="S", "", VLOOKUP(A15,Calendar!$A$3:$G$459,4,FALSE)))),"",IF(Summary!$B$5=3,IF(VLOOKUP(A15,Calendar!$A$3:$G$459,7,FALSE)="S", "", VLOOKUP(A15,Calendar!$A$3:$G$459,7,FALSE)),IF(VLOOKUP(A15,Calendar!$A$3:$G$459,4,FALSE)="S", "", VLOOKUP(A15,Calendar!$A$3:$G$459,4,FALSE)))) -> T | D15: =IF(Summary!$B$5=3,IF(C15="","",VLOOKUP(A15,Calendar!$A$3:$G$459,5,FALSE)),IF(C15="","",VLOOKUP(A15,Calendar!$A$3:$G$459,2,FALSE))) -> 2020-01-07 | I15: 0
A16: 108 | C16: =IF(ISNA(IF(Summary!$B$5=3,IF(VLOOKUP(A16,Calendar!$A$3:$G$459,7,FALSE)="S", "", VLOOKUP(A16,Calendar!$A$3:$G$459,7,FALSE)),IF(VLOOKUP(A16,Calendar!$A$3:$G$459,4,FALSE)="S", "", VLOOKUP(A16,Calendar!$A$3:$G$459,4,FALSE)))),"",IF(Summary!$B$5=3,IF(VLOOKUP(A16,Calendar!$A$3:$G$459,7,FALSE)="S", "", VLOOKUP(A16,Calendar!$A$3:$G$459,7,FALSE)),IF(VLOOKUP(A16,Calendar!$A$3:$G$459,4,FALSE)="S", "", VLOOKUP(A16,Calendar!$A$3:$G$459,4,FALSE)))) -> W | D16: =IF(Summary!$B$5=3,IF(C16="","",VLOOKUP(A16,Calendar!$A$3:$G$459,5,FALSE)),IF(C16="","",VLOOKUP(A16,Calendar!$A$3:$G$459,2,FALSE))) -> 2020-01-08 | I16: 0
A17: 109 | C17: =IF(ISNA(IF(Summary!$B$5=3,IF(VLOOKUP(A17,Calendar!$A$3:$G$459,7,FALSE)="S", "", VLOOKUP(A17,Calendar!$A$3:$G$459,7,FALSE)),IF(VLOOKUP(A17,Calendar!$A$3:$G$459,4,FALSE)="S", "", VLOOKUP(A17,Calendar!$A$3:$G$459,4,FALSE)))),"",IF(Summary!$B$5=3,IF(VLOOKUP(A17,Calendar!$A$3:$G$459,7,FALSE)="S", "", VLOOKUP(A17,Calendar!$A$3:$G$459,7,FALSE)),IF(VLOOKUP(A17,Calendar!$A$3:$G$459,4,FALSE)="S", "", VLOOKUP(A17,Calendar!$A$3:$G$459,4,FALSE)))) -> R | D17: =IF(Summary!$B$5=3,IF(C17="","",VLOOKUP(A17,Calendar!$A$3:$G$459,5,FALSE)),IF(C17="","",VLOOKUP(A17,Calendar!$A$3:$G$459,2,FALSE))) -> 2020-01-09 | I17: 0
A18: 110 | C18: =IF(ISNA(IF(Summary!$B$5=3,IF(VLOOKUP(A18,Calendar!$A$3:$G$459,7,FALSE)="S", "", VLOOKUP(A18,Calendar!$A$3:$G$459,7,FALSE)),IF(VLOOKUP(A18,Calendar!$A$3:$G$459,4,FALSE)="S", "", VLOOKUP(A18,Calendar!$A$3:$G$459,4,FALSE)))),"",IF(Summary!$B$5=3,IF(VLOOKUP(A18,Calendar!$A$3:$G$459,7,FALSE)="S", "", VLOOKUP(A18,Calendar!$A$3:$G$459,7,FALSE)),IF(VLOOKUP(A18,Calendar!$A$3:$G$459,4,FALSE)="S", "", VLOOKUP(A18,Calendar!$A$3:$G$459,4,FALSE)))) -> F | D18: =IF(Summary!$B$5=3,IF(C18="","",VLOOKUP(A18,Calendar!$A$3:$G$459,5,FALSE)),IF(C18="","",VLOOKUP(A18,Calendar!$A$3:$G$459,2,FALSE))) -> 2020-01-10 | I18: 0
A19: 111 | C19: =IF(ISNA(IF(Summary!$B$5=3,IF(VLOOKUP(A19,Calendar!$A$3:$G$459,7,FALSE)="S", "", VLOOKUP(A19,Calendar!$A$3:$G$459,7,FALSE)),IF(VLOOKUP(A19,Calendar!$A$3:$G$459,4,FALSE)="S", "", VLOOKUP(A19,Calendar!$A$3:$G$459,4,FALSE)))),"",IF(Summary!$B$5=3,IF(VLOOKUP(A19,Calendar!$A$3:$G$459,7,FALSE)="S", "", VLOOKUP(A19,Calendar!$A$3:$G$459,7,FALSE)),IF(VLOOKUP(A19,Calendar!$A$3:$G$459,4,FALSE)="S", "", VLOOKUP(A19,Calendar!$A$3:$G$459,4,FALSE)))) ->  | D19: =IF(Summary!$B$5=3,IF(C19="","",VLOOKUP(A19,Calendar!$A$3:$G$459,5,FALSE)),IF(C19="","",VLOOKUP(A19,Calendar!$A$3:$G$459,2,FALSE))) ->  | I19: 0
A20: 112 | C20: =IF(ISNA(IF(Summary!$B$5=3,IF(VLOOKUP(A20,Calendar!$A$3:$G$459,7,FALSE)="S", "", VLOOKUP(A20,Calendar!$A$3:$G$459,7,FALSE)),IF(VLOOKUP(A20,Calendar!$A$3:$G$459,4,FALSE)="S", "", VLOOKUP(A20,Calendar!$A$3:$G$459,4,FALSE)))),"",IF(Summary!$B$5=3,IF(VLOOKUP(A20,Calendar!$A$3:$G$459,7,FALSE)="S", "", VLOOKUP(A20,Calendar!$A$3:$G$459,7,FALSE)),IF(VLOOKUP(A20,Calendar!$A$3:$G$459,4,FALSE)="S", "", VLOOKUP(A20,Calendar!$A$3:$G$459,4,FALSE)))) ->  | D20: =IF(Summary!$B$5=3,IF(C20="","",VLOOKUP(A20,Calendar!$A$3:$G$459,5,FALSE)),IF(C20="","",VLOOKUP(A20,Calendar!$A$3:$G$459,2,FALSE))) ->  | I20: 0
A21: 113 | C21: =IF(ISNA(IF(Summary!$B$5=3,IF(VLOOKUP(A21,Calendar!$A$3:$G$459,7,FALSE)="S", "", VLOOKUP(A21,Calendar!$A$3:$G$459,7,FALSE)),IF(VLOOKUP(A21,Calendar!$A$3:$G$459,4,FALSE)="S", "", VLOOKUP(A21,Calendar!$A$3:$G$459,4,FALSE)))),"",IF(Summary!$B$5=3,IF(VLOOKUP(A21,Calendar!$A$3:$G$459,7,FALSE)="S", "", VLOOKUP(A21,Calendar!$A$3:$G$459,7,FALSE)),IF(VLOOKUP(A21,Calendar!$A$3:$G$459,4,FALSE)="S", "", VLOOKUP(A21,Calendar!$A$3:$G$459,4,FALSE)))) -> M | D21: =IF(Summary!$B$5=3,IF(C21="","",VLOOKUP(A21,Calendar!$A$3:$G$459,5,FALSE)),IF(C21="","",VLOOKUP(A21,Calendar!$A$3:$G$459,2,FALSE))) -> 2020-01-13 | I21: 0
A22: 114 | C22: =IF(ISNA(IF(Summary!$B$5=3,IF(VLOOKUP(A22,Calendar!$A$3:$G$459,7,FALSE)="S", "", VLOOKUP(A22,Calendar!$A$3:$G$459,7,FALSE)),IF(VLOOKUP(A22,Calendar!$A$3:$G$459,4,FALSE)="S", "", VLOOKUP(A22,Calendar!$A$3:$G$459,4,FALSE)))),"",IF(Summary!$B$5=3,IF(VLOOKUP(A22,Calendar!$A$3:$G$459,7,FALSE)="S", "", VLOOKUP(A22,Calendar!$A$3:$G$459,7,FALSE)),IF(VLOOKUP(A22,Calendar!$A$3:$G$459,4,FALSE)="S", "", VLOOKUP(A22,Calendar!$A$3:$G$459,4,FALSE)))) -> T | D22: =IF(Summary!$B$5=3,IF(C22="","",VLOOKUP(A22,Calendar!$A$3:$G$459,5,FALSE)),IF(C22="","",VLOOKUP(A22,Calendar!$A$3:$G$459,2,FALSE))) -> 2020-01-14 | I22: 0
A23: 115 | C23: =IF(ISNA(IF(Summary!$B$5=3,IF(VLOOKUP(A23,Calendar!$A$3:$G$459,7,FALSE)="S", "", VLOOKUP(A23,Calendar!$A$3:$G$459,7,FALSE)),IF(VLOOKUP(A23,Calendar!$A$3:$G$459,4,FALSE)="S", "", VLOOKUP(A23,Calendar!$A$3:$G$459,4,FALSE)))),"",IF(Summary!$B$5=3,IF(VLOOKUP(A23,Calendar!$A$3:$G$459,7,FALSE)="S", "", VLOOKUP(A23,Calendar!$A$3:$G$459,7,FALSE)),IF(VLOOKUP(A23,Calendar!$A$3:$G$459,4,FALSE)="S", "", VLOOKUP(A23,Calendar!$A$3:$G$459,4,FALSE)))) -> W | D23: =IF(Summary!$B$5=3,IF(C23="","",VLOOKUP(A23,Calendar!$A$3:$G$459,5,FALSE)),IF(C23="","",VLOOKUP(A23,Calendar!$A$3:$G$459,2,FALSE))) -> 2020-01-15 | I23: 0
A24: 116 | C24: =IF(ISNA(IF(Summary!$B$5=3,IF(VLOOKUP(A24,Calendar!$A$3:$G$459,7,FALSE)="S", "", VLOOKUP(A24,Calendar!$A$3:$G$459,7,FALSE)),IF(VLOOKUP(A24,Calendar!$A$3:$G$459,4,FALSE)="S", "", VLOOKUP(A24,Calendar!$A$3:$G$459,4,FALSE)))),"",IF(Summary!$B$5=3,IF(VLOOKUP(A24,Calendar!$A$3:$G$459,7,FALSE)="S", "", VLOOKUP(A24,Calendar!$A$3:$G$459,7,FALSE)),IF(VLOOKUP(A24,Calendar!$A$3:$G$459,4,FALSE)="S", "", VLOOKUP(A24,Calendar!$A$3:$G$459,4,FALSE)))) -> R | D24: =IF(Summary!$B$5=3,IF(C24="","",VLOOKUP(A24,Calendar!$A$3:$G$459,5,FALSE)),IF(C24="","",VLOOKUP(A24,Calendar!$A$3:$G$459,2,FALSE))) -> 2020-01-16 | I24: 0
A25: 117 | C25: =IF(ISNA(IF(Summary!$B$5=3,IF(VLOOKUP(A25,Calendar!$A$3:$G$459,7,FALSE)="S", "", VLOOKUP(A25,Calendar!$A$3:$G$459,7,FALSE)),IF(VLOOKUP(A25,Calendar!$A$3:$G$459,4,FALSE)="S", "", VLOOKUP(A25,Calendar!$A$3:$G$459,4,FALSE)))),"",IF(Summary!$B$5=3,IF(VLOOKUP(A25,Calendar!$A$3:$G$459,7,FALSE)="S", "", VLOOKUP(A25,Calendar!$A$3:$G$459,7,FALSE)),IF(VLOOKUP(A25,Calendar!$A$3:$G$459,4,FALSE)="S", "", VLOOKUP(A25,Calendar!$A$3:$G$459,4,FALSE)))) -> F | D25: =IF(Summary!$B$5=3,IF(C25="","",VLOOKUP(A25,Calendar!$A$3:$G$459,5,FALSE)),IF(C25="","",VLOOKUP(A25,Calendar!$A$3:$G$459,2,FALSE))) -> 2020-01-17 | I25: 0
A26: 118 | C26: =IF(ISNA(IF(Summary!$B$5=3,IF(VLOOKUP(A26,Calendar!$A$3:$G$459,7,FALSE)="S", "", VLOOKUP(A26,Calendar!$A$3:$G$459,7,FALSE)),IF(VLOOKUP(A26,Calendar!$A$3:$G$459,4,FALSE)="S", "", VLOOKUP(A26,Calendar!$A$3:$G$459,4,FALSE)))),"",IF(Summary!$B$5=3,IF(VLOOKUP(A26,Calendar!$A$3:$G$459,7,FALSE)="S", "", VLOOKUP(A26,Calendar!$A$3:$G$459,7,FALSE)),IF(VLOOKUP(A26,Calendar!$A$3:$G$459,4,FALSE)="S", "", VLOOKUP(A26,Calendar!$A$3:$G$459,4,FALSE)))) ->  | D26: =IF(Summary!$B$5=3,IF(C26="","",VLOOKUP(A26,Calendar!$A$3:$G$459,5,FALSE)),IF(C26="","",VLOOKUP(A26,Calendar!$A$3:$G$459,2,FALSE))) ->  | I26: 0
A27: 119 | C27: =IF(ISNA(IF(Summary!$B$5=3,IF(VLOOKUP(A27,Calendar!$A$3:$G$459,7,FALSE)="S", "", VLOOKUP(A27,Calendar!$A$3:$G$459,7,FALSE)),IF(VLOOKUP(A27,Calendar!$A$3:$G$459,4,FALSE)="S", "", VLOOKUP(A27,Calendar!$A$3:$G$459,4,FALSE)))),"",IF(Summary!$B$5=3,IF(VLOOKUP(A27,Calendar!$A$3:$G$459,7,FALSE)="S", "", VLOOKUP(A27,Calendar!$A$3:$G$459,7,FALSE)),IF(VLOOKUP(A27,Calendar!$A$3:$G$459,4,FALSE)="S", "", VLOOKUP(A27,Calendar!$A$3:$G$459,4,FALSE)))) ->  | D27: =IF(Summary!$B$5=3,IF(C27="","",VLOOKUP(A27,Calendar!$A$3:$G$459,5,FALSE)),IF(C27="","",VLOOKUP(A27,Calendar!$A$3:$G$459,2,FALSE))) ->  | I27: 0
A28: 120 | C28: =IF(ISNA(IF(Summary!$B$5=3,IF(VLOOKUP(A28,Calendar!$A$3:$G$459,7,FALSE)="S", "", VLOOKUP(A28,Calendar!$A$3:$G$459,7,FALSE)),IF(VLOOKUP(A28,Calendar!$A$3:$G$459,4,FALSE)="S", "", VLOOKUP(A28,Calendar!$A$3:$G$459,4,FALSE)))),"",IF(Summary!$B$5=3,IF(VLOOKUP(A28,Calendar!$A$3:$G$459,7,FALSE)="S", "", VLOOKUP(A28,Calendar!$A$3:$G$459,7,FALSE)),IF(VLOOKUP(A28,Calendar!$A$3:$G$459,4,FALSE)="S", "", VLOOKUP(A28,Calendar!$A$3:$G$459,4,FALSE)))) -> M | D28: =IF(Summary!$B$5=3,IF(C28="","",VLOOKUP(A28,Calendar!$A$3:$G$459,5,FALSE)),IF(C28="","",VLOOKUP(A28,Calendar!$A$3:$G$459,2,FALSE))) -> 2020-01-20 | I28: 0
A29: 121 | C29: =IF(ISNA(IF(Summary!$B$5=3,IF(VLOOKUP(A29,Calendar!$A$3:$G$459,7,FALSE)="S", "", VLOOKUP(A29,Calendar!$A$3:$G$459,7,FALSE)),IF(VLOOKUP(A29,Calendar!$A$3:$G$459,4,FALSE)="S", "", VLOOKUP(A29,Calendar!$A$3:$G$459,4,FALSE)))),"",IF(Summary!$B$5=3,IF(VLOOKUP(A29,Calendar!$A$3:$G$459,7,FALSE)="S", "", VLOOKUP(A29,Calendar!$A$3:$G$459,7,FALSE)),IF(VLOOKUP(A29,Calendar!$A$3:$G$459,4,FALSE)="S", "", VLOOKUP(A29,Calendar!$A$3:$G$459,4,FALSE)))) -> T | D29: =IF(Summary!$B$5=3,IF(C29="","",VLOOKUP(A29,Calendar!$A$3:$G$459,5,FALSE)),IF(C29="","",VLOOKUP(A29,Calendar!$A$3:$G$459,2,FALSE))) -> 2020-01-21 | I29: 0
A30: 122 | C30: =IF(ISNA(IF(Summary!$B$5=3,IF(VLOOKUP(A30,Calendar!$A$3:$G$459,7,FALSE)="S", "", VLOOKUP(A30,Calendar!$A$3:$G$459,7,FALSE)),IF(VLOOKUP(A30,Calendar!$A$3:$G$459,4,FALSE)="S", "", VLOOKUP(A30,Calendar!$A$3:$G$459,4,FALSE)))),"",IF(Summary!$B$5=3,IF(VLOOKUP(A30,Calendar!$A$3:$G$459,7,FALSE)="S", "", VLOOKUP(A30,Calendar!$A$3:$G$459,7,FALSE)),IF(VLOOKUP(A30,Calendar!$A$3:$G$459,4,FALSE)="S", "", VLOOKUP(A30,Calendar!$A$3:$G$459,4,FALSE)))) -> W | D30: =IF(Summary!$B$5=3,IF(C30="","",VLOOKUP(A30,Calendar!$A$3:$G$459,5,FALSE)),IF(C30="","",VLOOKUP(A30,Calendar!$A$3:$G$459,2,FALSE))) -> 2020-01-22 | I30: 0
A31: 123 | C31: =IF(ISNA(IF(Summary!$B$5=3,IF(VLOOKUP(A31,Calendar!$A$3:$G$459,7,FALSE)="S", "", VLOOKUP(A31,Calendar!$A$3:$G$459,7,FALSE)),IF(VLOOKUP(A31,Calendar!$A$3:$G$459,4,FALSE)="S", "", VLOOKUP(A31,Calendar!$A$3:$G$459,4,FALSE)))),"",IF(Summary!$B$5=3,IF(VLOOKUP(A31,Calendar!$A$3:$G$459,7,FALSE)="S", "", VLOOKUP(A31,Calendar!$A$3:$G$459,7,FALSE)),IF(VLOOKUP(A31,Calendar!$A$3:$G$459,4,FALSE)="S", "", VLOOKUP(A31,Calendar!$A$3:$G$459,4,FALSE)))) -> R | D31: =IF(Summary!$B$5=3,IF(C31="","",VLOOKUP(A31,Calendar!$A$3:$G$459,5,FALSE)),IF(C31="","",VLOOKUP(A31,Calendar!$A$3:$G$459,2,FALSE))) -> 2020-01-23 | I31: 0
A32: 124 | C32: =IF(ISNA(IF(Summary!$B$5=3,IF(VLOOKUP(A32,Calendar!$A$3:$G$459,7,FALSE)="S", "", VLOOKUP(A32,Calendar!$A$3:$G$459,7,FALSE)),IF(VLOOKUP(A32,Calendar!$A$3:$G$459,4,FALSE)="S", "", VLOOKUP(A32,Calendar!$A$3:$G$459,4,FALSE)))),"",IF(Summary!$B$5=3,IF(VLOOKUP(A32,Calendar!$A$3:$G$459,7,FALSE)="S", "", VLOOKUP(A32,Calendar!$A$3:$G$459,7,FALSE)),IF(VLOOKUP(A32,Calendar!$A$3:$G$459,4,FALSE)="S", "", VLOOKUP(A32,Calendar!$A$3:$G$459,4,FALSE)))) -> F | D32: =IF(Summary!$B$5=3,IF(C32="","",VLOOKUP(A32,Calendar!$A$3:$G$459,5,FALSE)),IF(C32="","",VLOOKUP(A32,Calendar!$A$3:$G$459,2,FALSE))) -> 2020-01-24 | I32: 0
A33: 125 | C33: =IF(ISNA(IF(Summary!$B$5=3,IF(VLOOKUP(A33,Calendar!$A$3:$G$459,7,FALSE)="S", "", VLOOKUP(A33,Calendar!$A$3:$G$459,7,FALSE)),IF(VLOOKUP(A33,Calendar!$A$3:$G$459,4,FALSE)="S", "", VLOOKUP(A33,Calendar!$A$3:$G$459,4,FALSE)))),"",IF(Summary!$B$5=3,IF(VLOOKUP(A33,Calendar!$A$3:$G$459,7,FALSE)="S", "", VLOOKUP(A33,Calendar!$A$3:$G$459,7,FALSE)),IF(VLOOKUP(A33,Calendar!$A$3:$G$459,4,FALSE)="S", "", VLOOKUP(A33,Calendar!$A$3:$G$459,4,FALSE)))) ->  | D33: =IF(Summary!$B$5=3,IF(C33="","",VLOOKUP(A33,Calendar!$A$3:$G$459,5,FALSE)),IF(C33="","",VLOOKUP(A33,Calendar!$A$3:$G$459,2,FALSE))) ->  | I33: 0
A34: 126 | C34: =IF(ISNA(IF(Summary!$B$5=3,IF(VLOOKUP(A34,Calendar!$A$3:$G$459,7,FALSE)="S", "", VLOOKUP(A34,Calendar!$A$3:$G$459,7,FALSE)),IF(VLOOKUP(A34,Calendar!$A$3:$G$459,4,FALSE)="S", "", VLOOKUP(A34,Calendar!$A$3:$G$459,4,FALSE)))),"",IF(Summary!$B$5=3,IF(VLOOKUP(A34,Calendar!$A$3:$G$459,7,FALSE)="S", "", VLOOKUP(A34,Calendar!$A$3:$G$459,7,FALSE)),IF(VLOOKUP(A34,Calendar!$A$3:$G$459,4,FALSE)="S", "", VLOOKUP(A34,Calendar!$A$3:$G$459,4,FALSE)))) ->  | D34: =IF(Summary!$B$5=3,IF(C34="","",VLOOKUP(A34,Calendar!$A$3:$G$459,5,FALSE)),IF(C34="","",VLOOKUP(A34,Calendar!$A$3:$G$459,2,FALSE))) ->  | I34: 0
A35: 127 | C35: =IF(ISNA(IF(Summary!$B$5=3,IF(VLOOKUP(A35,Calendar!$A$3:$G$459,7,FALSE)="S", "", VLOOKUP(A35,Calendar!$A$3:$G$459,7,FALSE)),IF(VLOOKUP(A35,Calendar!$A$3:$G$459,4,FALSE)="S", "", VLOOKUP(A35,Calendar!$A$3:$G$459,4,FALSE)))),"",IF(Summary!$B$5=3,IF(VLOOKUP(A35,Calendar!$A$3:$G$459,7,FALSE)="S", "", VLOOKUP(A35,Calendar!$A$3:$G$459,7,FALSE)),IF(VLOOKUP(A35,Calendar!$A$3:$G$459,4,FALSE)="S", "", VLOOKUP(A35,Calendar!$A$3:$G$459,4,FALSE)))) -> M | D35: =IF(Summary!$B$5=3,IF(C35="","",VLOOKUP(A35,Calendar!$A$3:$G$459,5,FALSE)),IF(C35="","",VLOOKUP(A35,Calendar!$A$3:$G$459,2,FALSE))) -> 2020-01-27 | I35: 0
A36: 128 | C36: =IF(ISNA(IF(Summary!$B$5=3,IF(VLOOKUP(A36,Calendar!$A$3:$G$459,7,FALSE)="S", "", VLOOKUP(A36,Calendar!$A$3:$G$459,7,FALSE)),IF(VLOOKUP(A36,Calendar!$A$3:$G$459,4,FALSE)="S", "", VLOOKUP(A36,Calendar!$A$3:$G$459,4,FALSE)))),"",IF(Summary!$B$5=3,IF(VLOOKUP(A36,Calendar!$A$3:$G$459,7,FALSE)="S", "", VLOOKUP(A36,Calendar!$A$3:$G$459,7,FALSE)),IF(VLOOKUP(A36,Calendar!$A$3:$G$459,4,FALSE)="S", "", VLOOKUP(A36,Calendar!$A$3:$G$459,4,FALSE)))) -> T | D36: =IF(Summary!$B$5=3,IF(C36="","",VLOOKUP(A36,Calendar!$A$3:$G$459,5,FALSE)),IF(C36="","",VLOOKUP(A36,Calendar!$A$3:$G$459,2,FALSE))) -> 2020-01-28 | I36: 0
A37: 129 | C37: =IF(ISNA(IF(Summary!$B$5=3,IF(VLOOKUP(A37,Calendar!$A$3:$G$459,7,FALSE)="S", "", VLOOKUP(A37,Calendar!$A$3:$G$459,7,FALSE)),IF(VLOOKUP(A37,Calendar!$A$3:$G$459,4,FALSE)="S", "", VLOOKUP(A37,Calendar!$A$3:$G$459,4,FALSE)))),"",IF(Summary!$B$5=3,IF(VLOOKUP(A37,Calendar!$A$3:$G$459,7,FALSE)="S", "", VLOOKUP(A37,Calendar!$A$3:$G$459,7,FALSE)),IF(VLOOKUP(A37,Calendar!$A$3:$G$459,4,FALSE)="S", "", VLOOKUP(A37,Calendar!$A$3:$G$459,4,FALSE)))) -> W | D37: =IF(Summary!$B$5=3,IF(C37="","",VLOOKUP(A37,Calendar!$A$3:$G$459,5,FALSE)),IF(C37="","",VLOOKUP(A37,Calendar!$A$3:$G$459,2,FALSE))) -> 2020-01-29 | I37: 0
A38: 130 | C38: =IF(ISNA(IF(Summary!$B$5=3,IF(VLOOKUP(A38,Calendar!$A$3:$G$459,7,FALSE)="S", "", VLOOKUP(A38,Calendar!$A$3:$G$459,7,FALSE)),IF(VLOOKUP(A38,Calendar!$A$3:$G$459,4,FALSE)="S", "", VLOOKUP(A38,Calendar!$A$3:$G$459,4,FALSE)))),"",IF(Summary!$B$5=3,IF(VLOOKUP(A38,Calendar!$A$3:$G$459,7,FALSE)="S", "", VLOOKUP(A38,Calendar!$A$3:$G$459,7,FALSE)),IF(VLOOKUP(A38,Calendar!$A$3:$G$459,4,FALSE)="S", "", VLOOKUP(A38,Calendar!$A$3:$G$459,4,FALSE)))) -> R | D38: =IF(Summary!$B$5=3,IF(C38="","",VLOOKUP(A38,Calendar!$A$3:$G$459,5,FALSE)),IF(C38="","",VLOOKUP(A38,Calendar!$A$3:$G$459,2,FALSE))) -> 2020-01-30 | I38: 0
A39: 131 | C39: =IF(ISNA(IF(Summary!$B$5=3,IF(VLOOKUP(A39,Calendar!$A$3:$G$459,7,FALSE)="S", "", VLOOKUP(A39,Calendar!$A$3:$G$459,7,FALSE)),IF(VLOOKUP(A39,Calendar!$A$3:$G$459,4,FALSE)="S", "", VLOOKUP(A39,Calendar!$A$3:$G$459,4,FALSE)))),"",IF(Summary!$B$5=3,IF(VLOOKUP(A39,Calendar!$A$3:$G$459,7,FALSE)="S", "", VLOOKUP(A39,Calendar!$A$3:$G$459,7,FALSE)),IF(VLOOKUP(A39,Calendar!$A$3:$G$459,4,FALSE)="S", "", VLOOKUP(A39,Calendar!$A$3:$G$459,4,FALSE)))) -> F | D39: =IF(Summary!$B$5=3,IF(C39="","",VLOOKUP(A39,Calendar!$A$3:$G$459,5,FALSE)),IF(C39="","",VLOOKUP(A39,Calendar!$A$3:$G$459,2,FALSE))) -> 2020-01-31 | I39: 0
D40: Total Minutes | E40: =SUM(E9:E39) -> 0 | F40: =SUM(F9:F39) -> 0 | G40: 0 | H40: 0 | I40: 0 | L40: =IF(SUM(E40:H40)>COUNTA(E9:E39)*390,"The sum total for all cost objectives exceeds the maximum anticipated value based upon the number of days worked. Confirm minutes claimed for each day.","") -> 
D41: Total Hours | E41: =E40/60 -> 0 | F41: =F40/60 -> 0 | G41: 0 | H41: 0 | I41: 0
C44: Notes
E55: Kansas State Department of Education | I55: Personnel Activity Report
E56: Fiscal Auditing | I56: Updated 9/20/18
E57: 785-296-4976
E58: https://www.ksde.org/Agency/Fiscal-and-Administrative-Services/Fiscal-Auditing
C61: The Kansas State Department of Education does not discriminate on the basis of race, color, national origin, sex, disability, or age in its programs and activities and provides equal access to the Boy Scouts and other designated youth groups. The following person has been designated to handle inquiries regarding the nondiscrimination policies: KSDE General Counsel, Office of General Counsel, KSDE, Landon State Office Building, 900 S.W. Jackson, Suite 102, Topeka, KS 66612, (785) 296-3204.

Sheet February
C3: Personnel Activity Report
C4: Regular School Year
C5: February
C6: =IF(Summary!$E$8<>"",Summary!$E$8," ") -> 
C7: =IF(Summary!$E$9<>"",Summary!$E$9," ") -> 
C8: Day | D8: Date | E8: Special Ed | F8: General Ed | G8: Other | H8: Other | I8: Totals | L8: =IF(OR(AND(F8="",COUNTA(F9:F39)>0),AND(G8="",COUNTA(G9:G39)>0),AND(H8="",COUNTA(H9:H39)>0)),"<<< You must identify the cost objective in the column heading.","") -> 
A9: 201 | C9: =IF(ISNA(IF(Summary!$B$5=3,IF(VLOOKUP(A9,Calendar!$A$3:$G$459,7,FALSE)="S", "", VLOOKUP(A9,Calendar!$A$3:$G$459,7,FALSE)),IF(VLOOKUP(A9,Calendar!$A$3:$G$459,4,FALSE)="S", "", VLOOKUP(A9,Calendar!$A$3:$G$459,4,FALSE)))),"",IF(Summary!$B$5=3,IF(VLOOKUP(A9,Calendar!$A$3:$G$459,7,FALSE)="S", "", VLOOKUP(A9,Calendar!$A$3:$G$459,7,FALSE)),IF(VLOOKUP(A9,Calendar!$A$3:$G$459,4,FALSE)="S", "", VLOOKUP(A9,Calendar!$A$3:$G$459,4,FALSE)))) ->  | D9: =IF(Summary!$B$5=3,IF(C9="","",VLOOKUP(A9,Calendar!$A$3:$G$459,5,FALSE)),IF(C9="","",VLOOKUP(A9,Calendar!$A$3:$G$459,2,FALSE))) ->  | I9: =MIN(1440,SUM(E9:H9)) -> 0 | L9: =IF(I9>390, "<<< Day exceeds 390 minutes. Confirm reported time.","") -> 
A10: 202 | C10: =IF(ISNA(IF(Summary!$B$5=3,IF(VLOOKUP(A10,Calendar!$A$3:$G$459,7,FALSE)="S", "", VLOOKUP(A10,Calendar!$A$3:$G$459,7,FALSE)),IF(VLOOKUP(A10,Calendar!$A$3:$G$459,4,FALSE)="S", "", VLOOKUP(A10,Calendar!$A$3:$G$459,4,FALSE)))),"",IF(Summary!$B$5=3,IF(VLOOKUP(A10,Calendar!$A$3:$G$459,7,FALSE)="S", "", VLOOKUP(A10,Calendar!$A$3:$G$459,7,FALSE)),IF(VLOOKUP(A10,Calendar!$A$3:$G$459,4,FALSE)="S", "", VLOOKUP(A10,Calendar!$A$3:$G$459,4,FALSE)))) ->  | D10: =IF(Summary!$B$5=3,IF(C10="","",VLOOKUP(A10,Calendar!$A$3:$G$459,5,FALSE)),IF(C10="","",VLOOKUP(A10,Calendar!$A$3:$G$459,2,FALSE))) ->  | I10: =MIN(1440,SUM(E10:H10)) -> 0 | L10: =IF(I10>390, "<<< Day exceeds 390 minutes. Confirm reported time.","") -> 
A11: 203 | C11: =IF(ISNA(IF(Summary!$B$5=3,IF(VLOOKUP(A11,Calendar!$A$3:$G$459,7,FALSE)="S", "", VLOOKUP(A11,Calendar!$A$3:$G$459,7,FALSE)),IF(VLOOKUP(A11,Calendar!$A$3:$G$459,4,FALSE)="S", "", VLOOKUP(A11,Calendar!$A$3:$G$459,4,FALSE)))),"",IF(Summary!$B$5=3,IF(VLOOKUP(A11,Calendar!$A$3:$G$459,7,FALSE)="S", "", VLOOKUP(A11,Calendar!$A$3:$G$459,7,FALSE)),IF(VLOOKUP(A11,Calendar!$A$3:$G$459,4,FALSE)="S", "", VLOOKUP(A11,Calendar!$A$3:$G$459,4,FALSE)))) -> M | D11: =IF(Summary!$B$5=3,IF(C11="","",VLOOKUP(A11,Calendar!$A$3:$G$459,5,FALSE)),IF(C11="","",VLOOKUP(A11,Calendar!$A$3:$G$459,2,FALSE))) -> 2020-02-03 | I11: 0
A12: 204 | C12: =IF(ISNA(IF(Summary!$B$5=3,IF(VLOOKUP(A12,Calendar!$A$3:$G$459,7,FALSE)="S", "", VLOOKUP(A12,Calendar!$A$3:$G$459,7,FALSE)),IF(VLOOKUP(A12,Calendar!$A$3:$G$459,4,FALSE)="S", "", VLOOKUP(A12,Calendar!$A$3:$G$459,4,FALSE)))),"",IF(Summary!$B$5=3,IF(VLOOKUP(A12,Calendar!$A$3:$G$459,7,FALSE)="S", "", VLOOKUP(A12,Calendar!$A$3:$G$459,7,FALSE)),IF(VLOOKUP(A12,Calendar!$A$3:$G$459,4,FALSE)="S", "", VLOOKUP(A12,Calendar!$A$3:$G$459,4,FALSE)))) -> T | D12: =IF(Summary!$B$5=3,IF(C12="","",VLOOKUP(A12,Calendar!$A$3:$G$459,5,FALSE)),IF(C12="","",VLOOKUP(A12,Calendar!$A$3:$G$459,2,FALSE))) -> 2020-02-04 | I12: 0
A13: 205 | C13: =IF(ISNA(IF(Summary!$B$5=3,IF(VLOOKUP(A13,Calendar!$A$3:$G$459,7,FALSE)="S", "", VLOOKUP(A13,Calendar!$A$3:$G$459,7,FALSE)),IF(VLOOKUP(A13,Calendar!$A$3:$G$459,4,FALSE)="S", "", VLOOKUP(A13,Calendar!$A$3:$G$459,4,FALSE)))),"",IF(Summary!$B$5=3,IF(VLOOKUP(A13,Calendar!$A$3:$G$459,7,FALSE)="S", "", VLOOKUP(A13,Calendar!$A$3:$G$459,7,FALSE)),IF(VLOOKUP(A13,Calendar!$A$3:$G$459,4,FALSE)="S", "", VLOOKUP(A13,Calendar!$A$3:$G$459,4,FALSE)))) -> W | D13: =IF(Summary!$B$5=3,IF(C13="","",VLOOKUP(A13,Calendar!$A$3:$G$459,5,FALSE)),IF(C13="","",VLOOKUP(A13,Calendar!$A$3:$G$459,2,FALSE))) -> 2020-02-05 | I13: 0
A14: 206 | C14: =IF(ISNA(IF(Summary!$B$5=3,IF(VLOOKUP(A14,Calendar!$A$3:$G$459,7,FALSE)="S", "", VLOOKUP(A14,Calendar!$A$3:$G$459,7,FALSE)),IF(VLOOKUP(A14,Calendar!$A$3:$G$459,4,FALSE)="S", "", VLOOKUP(A14,Calendar!$A$3:$G$459,4,FALSE)))),"",IF(Summary!$B$5=3,IF(VLOOKUP(A14,Calendar!$A$3:$G$459,7,FALSE)="S", "", VLOOKUP(A14,Calendar!$A$3:$G$459,7,FALSE)),IF(VLOOKUP(A14,Calendar!$A$3:$G$459,4,FALSE)="S", "", VLOOKUP(A14,Calendar!$A$3:$G$459,4,FALSE)))) -> R | D14: =IF(Summary!$B$5=3,IF(C14="","",VLOOKUP(A14,Calendar!$A$3:$G$459,5,FALSE)),IF(C14="","",VLOOKUP(A14,Calendar!$A$3:$G$459,2,FALSE))) -> 2020-02-06 | I14: 0
A15: 207 | C15: =IF(ISNA(IF(Summary!$B$5=3,IF(VLOOKUP(A15,Calendar!$A$3:$G$459,7,FALSE)="S", "", VLOOKUP(A15,Calendar!$A$3:$G$459,7,FALSE)),IF(VLOOKUP(A15,Calendar!$A$3:$G$459,4,FALSE)="S", "", VLOOKUP(A15,Calendar!$A$3:$G$459,4,FALSE)))),"",IF(Summary!$B$5=3,IF(VLOOKUP(A15,Calendar!$A$3:$G$459,7,FALSE)="S", "", VLOOKUP(A15,Calendar!$A$3:$G$459,7,FALSE)),IF(VLOOKUP(A15,Calendar!$A$3:$G$459,4,FALSE)="S", "", VLOOKUP(A15,Calendar!$A$3:$G$459,4,FALSE)))) -> F | D15: =IF(Summary!$B$5=3,IF(C15="","",VLOOKUP(A15,Calendar!$A$3:$G$459,5,FALSE)),IF(C15="","",VLOOKUP(A15,Calendar!$A$3:$G$459,2,FALSE))) -> 2020-02-07 | I15: 0
A16: 208 | C16: =IF(ISNA(IF(Summary!$B$5=3,IF(VLOOKUP(A16,Calendar!$A$3:$G$459,7,FALSE)="S", "", VLOOKUP(A16,Calendar!$A$3:$G$459,7,FALSE)),IF(VLOOKUP(A16,Calendar!$A$3:$G$459,4,FALSE)="S", "", VLOOKUP(A16,Calendar!$A$3:$G$459,4,FALSE)))),"",IF(Summary!$B$5=3,IF(VLOOKUP(A16,Calendar!$A$3:$G$459,7,FALSE)="S", "", VLOOKUP(A16,Calendar!$A$3:$G$459,7,FALSE)),IF(VLOOKUP(A16,Calendar!$A$3:$G$459,4,FALSE)="S", "", VLOOKUP(A16,Calendar!$A$3:$G$459,4,FALSE)))) ->  | D16: =IF(Summary!$B$5=3,IF(C16="","",VLOOKUP(A16,Calendar!$A$3:$G$459,5,FALSE)),IF(C16="","",VLOOKUP(A16,Calendar!$A$3:$G$459,2,FALSE))) ->  | I16: 0
A17: 209 | C17: =IF(ISNA(IF(Summary!$B$5=3,IF(VLOOKUP(A17,Calendar!$A$3:$G$459,7,FALSE)="S", "", VLOOKUP(A17,Calendar!$A$3:$G$459,7,FALSE)),IF(VLOOKUP(A17,Calendar!$A$3:$G$459,4,FALSE)="S", "", VLOOKUP(A17,Calendar!$A$3:$G$459,4,FALSE)))),"",IF(Summary!$B$5=3,IF(VLOOKUP(A17,Calendar!$A$3:$G$459,7,FALSE)="S", "", VLOOKUP(A17,Calendar!$A$3:$G$459,7,FALSE)),IF(VLOOKUP(A17,Calendar!$A$3:$G$459,4,FALSE)="S", "", VLOOKUP(A17,Calendar!$A$3:$G$459,4,FALSE)))) ->  | D17: =IF(Summary!$B$5=3,IF(C17="","",VLOOKUP(A17,Calendar!$A$3:$G$459,5,FALSE)),IF(C17="","",VLOOKUP(A17,Calendar!$A$3:$G$459,2,FALSE))) ->  | I17: 0
A18: 210 | C18: =IF(ISNA(IF(Summary!$B$5=3,IF(VLOOKUP(A18,Calendar!$A$3:$G$459,7,FALSE)="S", "", VLOOKUP(A18,Calendar!$A$3:$G$459,7,FALSE)),IF(VLOOKUP(A18,Calendar!$A$3:$G$459,4,FALSE)="S", "", VLOOKUP(A18,Calendar!$A$3:$G$459,4,FALSE)))),"",IF(Summary!$B$5=3,IF(VLOOKUP(A18,Calendar!$A$3:$G$459,7,FALSE)="S", "", VLOOKUP(A18,Calendar!$A$3:$G$459,7,FALSE)),IF(VLOOKUP(A18,Calendar!$A$3:$G$459,4,FALSE)="S", "", VLOOKUP(A18,Calendar!$A$3:$G$459,4,FALSE)))) -> M | D18: =IF(Summary!$B$5=3,IF(C18="","",VLOOKUP(A18,Calendar!$A$3:$G$459,5,FALSE)),IF(C18="","",VLOOKUP(A18,Calendar!$A$3:$G$459,2,FALSE))) -> 2020-02-10 | I18: 0
A19: 211 | C19: =IF(ISNA(IF(Summary!$B$5=3,IF(VLOOKUP(A19,Calendar!$A$3:$G$459,7,FALSE)="S", "", VLOOKUP(A19,Calendar!$A$3:$G$459,7,FALSE)),IF(VLOOKUP(A19,Calendar!$A$3:$G$459,4,FALSE)="S", "", VLOOKUP(A19,Calendar!$A$3:$G$459,4,FALSE)))),"",IF(Summary!$B$5=3,IF(VLOOKUP(A19,Calendar!$A$3:$G$459,7,FALSE)="S", "", VLOOKUP(A19,Calendar!$A$3:$G$459,7,FALSE)),IF(VLOOKUP(A19,Calendar!$A$3:$G$459,4,FALSE)="S", "", VLOOKUP(A19,Calendar!$A$3:$G$459,4,FALSE)))) -> T | D19: =IF(Summary!$B$5=3,IF(C19="","",VLOOKUP(A19,Calendar!$A$3:$G$459,5,FALSE)),IF(C19="","",VLOOKUP(A19,Calendar!$A$3:$G$459,2,FALSE))) -> 2020-02-11 | I19: 0
A20: 212 | C20: =IF(ISNA(IF(Summary!$B$5=3,IF(VLOOKUP(A20,Calendar!$A$3:$G$459,7,FALSE)="S", "", VLOOKUP(A20,Calendar!$A$3:$G$459,7,FALSE)),IF(VLOOKUP(A20,Calendar!$A$3:$G$459,4,FALSE)="S", "", VLOOKUP(A20,Calendar!$A$3:$G$459,4,FALSE)))),"",IF(Summary!$B$5=3,IF(VLOOKUP(A20,Calendar!$A$3:$G$459,7,FALSE)="S", "", VLOOKUP(A20,Calendar!$A$3:$G$459,7,FALSE)),IF(VLOOKUP(A20,Calendar!$A$3:$G$459,4,FALSE)="S", "", VLOOKUP(A20,Calendar!$A$3:$G$459,4,FALSE)))) -> W | D20: =IF(Summary!$B$5=3,IF(C20="","",VLOOKUP(A20,Calendar!$A$3:$G$459,5,FALSE)),IF(C20="","",VLOOKUP(A20,Calendar!$A$3:$G$459,2,FALSE))) -> 2020-02-12 | I20: 0
A21: 213 | C21: =IF(ISNA(IF(Summary!$B$5=3,IF(VLOOKUP(A21,Calendar!$A$3:$G$459,7,FALSE)="S", "", VLOOKUP(A21,Calendar!$A$3:$G$459,7,FALSE)),IF(VLOOKUP(A21,Calendar!$A$3:$G$459,4,FALSE)="S", "", VLOOKUP(A21,Calendar!$A$3:$G$459,4,FALSE)))),"",IF(Summary!$B$5=3,IF(VLOOKUP(A21,Calendar!$A$3:$G$459,7,FALSE)="S", "", VLOOKUP(A21,Calendar!$A$3:$G$459,7,FALSE)),IF(VLOOKUP(A21,Calendar!$A$3:$G$459,4,FALSE)="S", "", VLOOKUP(A21,Calendar!$A$3:$G$459,4,FALSE)))) -> R | D21: =IF(Summary!$B$5=3,IF(C21="","",VLOOKUP(A21,Calendar!$A$3:$G$459,5,FALSE)),IF(C21="","",VLOOKUP(A21,Calendar!$A$3:$G$459,2,FALSE))) -> 2020-02-13 | I21: 0
A22: 214 | C22: =IF(ISNA(IF(Summary!$B$5=3,IF(VLOOKUP(A22,Calendar!$A$3:$G$459,7,FALSE)="S", "", VLOOKUP(A22,Calendar!$A$3:$G$459,7,FALSE)),IF(VLOOKUP(A22,Calendar!$A$3:$G$459,4,FALSE)="S", "", VLOOKUP(A22,Calendar!$A$3:$G$459,4,FALSE)))),"",IF(Summary!$B$5=3,IF(VLOOKUP(A22,Calendar!$A$3:$G$459,7,FALSE)="S", "", VLOOKUP(A22,Calendar!$A$3:$G$459,7,FALSE)),IF(VLOOKUP(A22,Calendar!$A$3:$G$459,4,FALSE)="S", "", VLOOKUP(A22,Calendar!$A$3:$G$459,4,FALSE)))) -> F | D22: =IF(Summary!$B$5=3,IF(C22="","",VLOOKUP(A22,Calendar!$A$3:$G$459,5,FALSE)),IF(C22="","",VLOOKUP(A22,Calendar!$A$3:$G$459,2,FALSE))) -> 2020-02-14 | I22: 0
A23: 215 | C23: =IF(ISNA(IF(Summary!$B$5=3,IF(VLOOKUP(A23,Calendar!$A$3:$G$459,7,FALSE)="S", "", VLOOKUP(A23,Calendar!$A$3:$G$459,7,FALSE)),IF(VLOOKUP(A23,Calendar!$A$3:$G$459,4,FALSE)="S", "", VLOOKUP(A23,Calendar!$A$3:$G$459,4,FALSE)))),"",IF(Summary!$B$5=3,IF(VLOOKUP(A23,Calendar!$A$3:$G$459,7,FALSE)="S", "", VLOOKUP(A23,Calendar!$A$3:$G$459,7,FALSE)),IF(VLOOKUP(A23,Calendar!$A$3:$G$459,4,FALSE)="S", "", VLOOKUP(A23,Calendar!$A$3:$G$459,4,FALSE)))) ->  | D23: =IF(Summary!$B$5=3,IF(C23="","",VLOOKUP(A23,Calendar!$A$3:$G$459,5,FALSE)),IF(C23="","",VLOOKUP(A23,Calendar!$A$3:$G$459,2,FALSE))) ->  | I23: 0
A24: 216 | C24: =IF(ISNA(IF(Summary!$B$5=3,IF(VLOOKUP(A24,Calendar!$A$3:$G$459,7,FALSE)="S", "", VLOOKUP(A24,Calendar!$A$3:$G$459,7,FALSE)),IF(VLOOKUP(A24,Calendar!$A$3:$G$459,4,FALSE)="S", "", VLOOKUP(A24,Calendar!$A$3:$G$459,4,FALSE)))),"",IF(Summary!$B$5=3,IF(VLOOKUP(A24,Calendar!$A$3:$G$459,7,FALSE)="S", "", VLOOKUP(A24,Calendar!$A$3:$G$459,7,FALSE)),IF(VLOOKUP(A24,Calendar!$A$3:$G$459,4,FALSE)="S", "", VLOOKUP(A24,Calendar!$A$3:$G$459,4,FALSE)))) ->  | D24: =IF(Summary!$B$5=3,IF(C24="","",VLOOKUP(A24,Calendar!$A$3:$G$459,5,FALSE)),IF(C24="","",VLOOKUP(A24,Calendar!$A$3:$G$459,2,FALSE))) ->  | I24: 0
A25: 217 | C25: =IF(ISNA(IF(Summary!$B$5=3,IF(VLOOKUP(A25,Calendar!$A$3:$G$459,7,FALSE)="S", "", VLOOKUP(A25,Calendar!$A$3:$G$459,7,FALSE)),IF(VLOOKUP(A25,Calendar!$A$3:$G$459,4,FALSE)="S", "", VLOOKUP(A25,Calendar!$A$3:$G$459,4,FALSE)))),"",IF(Summary!$B$5=3,IF(VLOOKUP(A25,Calendar!$A$3:$G$459,7,FALSE)="S", "", VLOOKUP(A25,Calendar!$A$3:$G$459,7,FALSE)),IF(VLOOKUP(A25,Calendar!$A$3:$G$459,4,FALSE)="S", "", VLOOKUP(A25,Calendar!$A$3:$G$459,4,FALSE)))) -> M | D25: =IF(Summary!$B$5=3,IF(C25="","",VLOOKUP(A25,Calendar!$A$3:$G$459,5,FALSE)),IF(C25="","",VLOOKUP(A25,Calendar!$A$3:$G$459,2,FALSE))) -> 2020-02-17 | I25: 0
A26: 218 | C26: =IF(ISNA(IF(Summary!$B$5=3,IF(VLOOKUP(A26,Calendar!$A$3:$G$459,7,FALSE)="S", "", VLOOKUP(A26,Calendar!$A$3:$G$459,7,FALSE)),IF(VLOOKUP(A26,Calendar!$A$3:$G$459,4,FALSE)="S", "", VLOOKUP(A26,Calendar!$A$3:$G$459,4,FALSE)))),"",IF(Summary!$B$5=3,IF(VLOOKUP(A26,Calendar!$A$3:$G$459,7,FALSE)="S", "", VLOOKUP(A26,Calendar!$A$3:$G$459,7,FALSE)),IF(VLOOKUP(A26,Calendar!$A$3:$G$459,4,FALSE)="S", "", VLOOKUP(A26,Calendar!$A$3:$G$459,4,FALSE)))) -> T | D26: =IF(Summary!$B$5=3,IF(C26="","",VLOOKUP(A26,Calendar!$A$3:$G$459,5,FALSE)),IF(C26="","",VLOOKUP(A26,Calendar!$A$3:$G$459,2,FALSE))) -> 2020-02-18 | I26: 0
A27: 219 | C27: =IF(ISNA(IF(Summary!$B$5=3,IF(VLOOKUP(A27,Calendar!$A$3:$G$459,7,FALSE)="S", "", VLOOKUP(A27,Calendar!$A$3:$G$459,7,FALSE)),IF(VLOOKUP(A27,Calendar!$A$3:$G$459,4,FALSE)="S", "", VLOOKUP(A27,Calendar!$A$3:$G$459,4,FALSE)))),"",IF(Summary!$B$5=3,IF(VLOOKUP(A27,Calendar!$A$3:$G$459,7,FALSE)="S", "", VLOOKUP(A27,Calendar!$A$3:$G$459,7,FALSE)),IF(VLOOKUP(A27,Calendar!$A$3:$G$459,4,FALSE)="S", "", VLOOKUP(A27,Calendar!$A$3:$G$459,4,FALSE)))) -> W | D27: =IF(Summary!$B$5=3,IF(C27="","",VLOOKUP(A27,Calendar!$A$3:$G$459,5,FALSE)),IF(C27="","",VLOOKUP(A27,Calendar!$A$3:$G$459,2,FALSE))) -> 2020-02-19 | I27: 0
A28: 220 | C28: =IF(ISNA(IF(Summary!$B$5=3,IF(VLOOKUP(A28,Calendar!$A$3:$G$459,7,FALSE)="S", "", VLOOKUP(A28,Calendar!$A$3:$G$459,7,FALSE)),IF(VLOOKUP(A28,Calendar!$A$3:$G$459,4,FALSE)="S", "", VLOOKUP(A28,Calendar!$A$3:$G$459,4,FALSE)))),"",IF(Summary!$B$5=3,IF(VLOOKUP(A28,Calendar!$A$3:$G$459,7,FALSE)="S", "", VLOOKUP(A28,Calendar!$A$3:$G$459,7,FALSE)),IF(VLOOKUP(A28,Calendar!$A$3:$G$459,4,FALSE)="S", "", VLOOKUP(A28,Calendar!$A$3:$G$459,4,FALSE)))) -> R | D28: =IF(Summary!$B$5=3,IF(C28="","",VLOOKUP(A28,Calendar!$A$3:$G$459,5,FALSE)),IF(C28="","",VLOOKUP(A28,Calendar!$A$3:$G$459,2,FALSE))) -> 2020-02-20 | I28: 0
A29: 221 | C29: =IF(ISNA(IF(Summary!$B$5=3,IF(VLOOKUP(A29,Calendar!$A$3:$G$459,7,FALSE)="S", "", VLOOKUP(A29,Calendar!$A$3:$G$459,7,FALSE)),IF(VLOOKUP(A29,Calendar!$A$3:$G$459,4,FALSE)="S", "", VLOOKUP(A29,Calendar!$A$3:$G$459,4,FALSE)))),"",IF(Summary!$B$5=3,IF(VLOOKUP(A29,Calendar!$A$3:$G$459,7,FALSE)="S", "", VLOOKUP(A29,Calendar!$A$3:$G$459,7,FALSE)),IF(VLOOKUP(A29,Calendar!$A$3:$G$459,4,FALSE)="S", "", VLOOKUP(A29,Calendar!$A$3:$G$459,4,FALSE)))) -> F | D29: =IF(Summary!$B$5=3,IF(C29="","",VLOOKUP(A29,Calendar!$A$3:$G$459,5,FALSE)),IF(C29="","",VLOOKUP(A29,Calendar!$A$3:$G$459,2,FALSE))) -> 2020-02-21 | I29: 0
A30: 222 | C30: =IF(ISNA(IF(Summary!$B$5=3,IF(VLOOKUP(A30,Calendar!$A$3:$G$459,7,FALSE)="S", "", VLOOKUP(A30,Calendar!$A$3:$G$459,7,FALSE)),IF(VLOOKUP(A30,Calendar!$A$3:$G$459,4,FALSE)="S", "", VLOOKUP(A30,Calendar!$A$3:$G$459,4,FALSE)))),"",IF(Summary!$B$5=3,IF(VLOOKUP(A30,Calendar!$A$3:$G$459,7,FALSE)="S", "", VLOOKUP(A30,Calendar!$A$3:$G$459,7,FALSE)),IF(VLOOKUP(A30,Calendar!$A$3:$G$459,4,FALSE)="S", "", VLOOKUP(A30,Calendar!$A$3:$G$459,4,FALSE)))) ->  | D30: =IF(Summary!$B$5=3,IF(C30="","",VLOOKUP(A30,Calendar!$A$3:$G$459,5,FALSE)),IF(C30="","",VLOOKUP(A30,Calendar!$A$3:$G$459,2,FALSE))) ->  | I30: 0
A31: 223 | C31: =IF(ISNA(IF(Summary!$B$5=3,IF(VLOOKUP(A31,Calendar!$A$3:$G$459,7,FALSE)="S", "", VLOOKUP(A31,Calendar!$A$3:$G$459,7,FALSE)),IF(VLOOKUP(A31,Calendar!$A$3:$G$459,4,FALSE)="S", "", VLOOKUP(A31,Calendar!$A$3:$G$459,4,FALSE)))),"",IF(Summary!$B$5=3,IF(VLOOKUP(A31,Calendar!$A$3:$G$459,7,FALSE)="S", "", VLOOKUP(A31,Calendar!$A$3:$G$459,7,FALSE)),IF(VLOOKUP(A31,Calendar!$A$3:$G$459,4,FALSE)="S", "", VLOOKUP(A31,Calendar!$A$3:$G$459,4,FALSE)))) ->  | D31: =IF(Summary!$B$5=3,IF(C31="","",VLOOKUP(A31,Calendar!$A$3:$G$459,5,FALSE)),IF(C31="","",VLOOKUP(A31,Calendar!$A$3:$G$459,2,FALSE))) ->  | I31: 0
A32: 224 | C32: =IF(ISNA(IF(Summary!$B$5=3,IF(VLOOKUP(A32,Calendar!$A$3:$G$459,7,FALSE)="S", "", VLOOKUP(A32,Calendar!$A$3:$G$459,7,FALSE)),IF(VLOOKUP(A32,Calendar!$A$3:$G$459,4,FALSE)="S", "", VLOOKUP(A32,Calendar!$A$3:$G$459,4,FALSE)))),"",IF(Summary!$B$5=3,IF(VLOOKUP(A32,Calendar!$A$3:$G$459,7,FALSE)="S", "", VLOOKUP(A32,Calendar!$A$3:$G$459,7,FALSE)),IF(VLOOKUP(A32,Calendar!$A$3:$G$459,4,FALSE)="S", "", VLOOKUP(A32,Calendar!$A$3:$G$459,4,FALSE)))) -> M | D32: =IF(Summary!$B$5=3,IF(C32="","",VLOOKUP(A32,Calendar!$A$3:$G$459,5,FALSE)),IF(C32="","",VLOOKUP(A32,Calendar!$A$3:$G$459,2,FALSE))) -> 2020-02-24 | I32: 0
A33: 225 | C33: =IF(ISNA(IF(Summary!$B$5=3,IF(VLOOKUP(A33,Calendar!$A$3:$G$459,7,FALSE)="S", "", VLOOKUP(A33,Calendar!$A$3:$G$459,7,FALSE)),IF(VLOOKUP(A33,Calendar!$A$3:$G$459,4,FALSE)="S", "", VLOOKUP(A33,Calendar!$A$3:$G$459,4,FALSE)))),"",IF(Summary!$B$5=3,IF(VLOOKUP(A33,Calendar!$A$3:$G$459,7,FALSE)="S", "", VLOOKUP(A33,Calendar!$A$3:$G$459,7,FALSE)),IF(VLOOKUP(A33,Calendar!$A$3:$G$459,4,FALSE)="S", "", VLOOKUP(A33,Calendar!$A$3:$G$459,4,FALSE)))) -> T | D33: =IF(Summary!$B$5=3,IF(C33="","",VLOOKUP(A33,Calendar!$A$3:$G$459,5,FALSE)),IF(C33="","",VLOOKUP(A33,Calendar!$A$3:$G$459,2,FALSE))) -> 2020-02-25 | I33: 0
A34: 226 | C34: =IF(ISNA(IF(Summary!$B$5=3,IF(VLOOKUP(A34,Calendar!$A$3:$G$459,7,FALSE)="S", "", VLOOKUP(A34,Calendar!$A$3:$G$459,7,FALSE)),IF(VLOOKUP(A34,Calendar!$A$3:$G$459,4,FALSE)="S", "", VLOOKUP(A34,Calendar!$A$3:$G$459,4,FALSE)))),"",IF(Summary!$B$5=3,IF(VLOOKUP(A34,Calendar!$A$3:$G$459,7,FALSE)="S", "", VLOOKUP(A34,Calendar!$A$3:$G$459,7,FALSE)),IF(VLOOKUP(A34,Calendar!$A$3:$G$459,4,FALSE)="S", "", VLOOKUP(A34,Calendar!$A$3:$G$459,4,FALSE)))) -> W | D34: =IF(Summary!$B$5=3,IF(C34="","",VLOOKUP(A34,Calendar!$A$3:$G$459,5,FALSE)),IF(C34="","",VLOOKUP(A34,Calendar!$A$3:$G$459,2,FALSE))) -> 2020-02-26 | I34: 0
A35: 227 | C35: =IF(ISNA(IF(Summary!$B$5=3,IF(VLOOKUP(A35,Calendar!$A$3:$G$459,7,FALSE)="S", "", VLOOKUP(A35,Calendar!$A$3:$G$459,7,FALSE)),IF(VLOOKUP(A35,Calendar!$A$3:$G$459,4,FALSE)="S", "", VLOOKUP(A35,Calendar!$A$3:$G$459,4,FALSE)))),"",IF(Summary!$B$5=3,IF(VLOOKUP(A35,Calendar!$A$3:$G$459,7,FALSE)="S", "", VLOOKUP(A35,Calendar!$A$3:$G$459,7,FALSE)),IF(VLOOKUP(A35,Calendar!$A$3:$G$459,4,FALSE)="S", "", VLOOKUP(A35,Calendar!$A$3:$G$459,4,FALSE)))) -> R | D35: =IF(Summary!$B$5=3,IF(C35="","",VLOOKUP(A35,Calendar!$A$3:$G$459,5,FALSE)),IF(C35="","",VLOOKUP(A35,Calendar!$A$3:$G$459,2,FALSE))) -> 2020-02-27 | I35: 0
A36: 228 | C36: =IF(ISNA(IF(Summary!$B$5=3,IF(VLOOKUP(A36,Calendar!$A$3:$G$459,7,FALSE)="S", "", VLOOKUP(A36,Calendar!$A$3:$G$459,7,FALSE)),IF(VLOOKUP(A36,Calendar!$A$3:$G$459,4,FALSE)="S", "", VLOOKUP(A36,Calendar!$A$3:$G$459,4,FALSE)))),"",IF(Summary!$B$5=3,IF(VLOOKUP(A36,Calendar!$A$3:$G$459,7,FALSE)="S", "", VLOOKUP(A36,Calendar!$A$3:$G$459,7,FALSE)),IF(VLOOKUP(A36,Calendar!$A$3:$G$459,4,FALSE)="S", "", VLOOKUP(A36,Calendar!$A$3:$G$459,4,FALSE)))) -> F | D36: =IF(Summary!$B$5=3,IF(C36="","",VLOOKUP(A36,Calendar!$A$3:$G$459,5,FALSE)),IF(C36="","",VLOOKUP(A36,Calendar!$A$3:$G$459,2,FALSE))) -> 2020-02-28 | I36: 0
A37: 229 | C37: =IF(ISNA(IF(Summary!$B$5=3,IF(VLOOKUP(A37,Calendar!$A$3:$G$459,7,FALSE)="S", "", VLOOKUP(A37,Calendar!$A$3:$G$459,7,FALSE)),IF(VLOOKUP(A37,Calendar!$A$3:$G$459,4,FALSE)="S", "", VLOOKUP(A37,Calendar!$A$3:$G$459,4,FALSE)))),"",IF(Summary!$B$5=3,IF(VLOOKUP(A37,Calendar!$A$3:$G$459,7,FALSE)="S", "", VLOOKUP(A37,Calendar!$A$3:$G$459,7,FALSE)),IF(VLOOKUP(A37,Calendar!$A$3:$G$459,4,FALSE)="S", "", VLOOKUP(A37,Calendar!$A$3:$G$459,4,FALSE)))) ->  | D37: =IF(Summary!$B$5=3,IF(C37="","",VLOOKUP(A37,Calendar!$A$3:$G$459,5,FALSE)),IF(C37="","",VLOOKUP(A37,Calendar!$A$3:$G$459,4,FALSE))) ->  | I37: 0
C38: =IF(ISNA(IF(Summary!$B$5=3,IF(VLOOKUP(A38,Calendar!$A$3:$G$459,7,FALSE)="S", "", VLOOKUP(A38,Calendar!$A$3:$G$459,7,FALSE)),IF(VLOOKUP(A38,Calendar!$A$3:$G$459,4,FALSE)="S", "", VLOOKUP(A38,Calendar!$A$3:$G$459,4,FALSE)))),"",IF(Summary!$B$5=3,IF(VLOOKUP(A38,Calendar!$A$3:$G$459,7,FALSE)="S", "", VLOOKUP(A38,Calendar!$A$3:$G$459,7,FALSE)),IF(VLOOKUP(A38,Calendar!$A$3:$G$459,4,FALSE)="S", "", VLOOKUP(A38,Calendar!$A$3:$G$459,4,FALSE)))) ->  | D38: =IF(Summary!$B$5=3,IF(C38="","",VLOOKUP(A38,Calendar!$A$3:$G$459,5,FALSE)),IF(C38="","",VLOOKUP(A38,Calendar!$A$3:$G$459,2,FALSE))) ->  | I38: 0
C39: =IF(ISNA(IF(Summary!$B$5=3,IF(VLOOKUP(A39,Calendar!$A$3:$G$459,7,FALSE)="S", "", VLOOKUP(A39,Calendar!$A$3:$G$459,7,FALSE)),IF(VLOOKUP(A39,Calendar!$A$3:$G$459,4,FALSE)="S", "", VLOOKUP(A39,Calendar!$A$3:$G$459,4,FALSE)))),"",IF(Summary!$B$5=3,IF(VLOOKUP(A39,Calendar!$A$3:$G$459,7,FALSE)="S", "", VLOOKUP(A39,Calendar!$A$3:$G$459,7,FALSE)),IF(VLOOKUP(A39,Calendar!$A$3:$G$459,4,FALSE)="S", "", VLOOKUP(A39,Calendar!$A$3:$G$459,4,FALSE)))) ->  | D39: =IF(Summary!$B$5=3,IF(C39="","",VLOOKUP(A39,Calendar!$A$3:$G$459,5,FALSE)),IF(C39="","",VLOOKUP(A39,Calendar!$A$3:$G$459,2,FALSE))) ->  | I39: 0
D40: Total Minutes | E40: =SUM(E9:E39) -> 0 | F40: =SUM(F9:F39) -> 0 | G40: 0 | H40: 0 | I40: 0 | L40: =IF(SUM(E40:H40)>COUNTA(E9:E39)*390,"The sum total for all cost objectives exceeds the maximum anticipated value based upon the number of days worked. Confirm minutes claimed for each day.","") -> 
D41: Total Hours | E41: =E40/60 -> 0 | F41: =F40/60 -> 0 | G41: 0 | H41: 0 | I41: 0
C44: Notes
E56: Kansas State Department of Education | I56: Personnel Activity Report
E57: Fiscal Auditing | I57: Updated 9/20/18
E58: 785-296-4976
E59: https://www.ksde.org/Agency/Fiscal-and-Administrative-Services/Fiscal-Auditing
C62: The Kansas State Department of Education does not discriminate on the basis of race, color, national origin, sex, disability, or age in its programs and activities and provides equal access to the Boy Scouts and other designated youth groups. The following person has been designated to handle inquiries regarding the nondiscrimination policies: KSDE General Counsel, Office of General Counsel, KSDE, Landon State Office Building, 900 S.W. Jackson, Suite 102, Topeka, KS 66612, (785) 296-3204.

Sheet March
C3: Personnel Activity Report
C4: Regular School Year
C5: March
C6: =IF(Summary!$E$8<>"",Summary!$E$8," ") -> 
C7: =IF(Summary!$E$9<>"",Summary!$E$9," ") -> 
C8: Day | D8: Date | E8: Special Ed | F8: General Ed | G8: Other | H8: Other | I8: Totals | L8: =IF(OR(AND(F8="",COUNTA(F9:F39)>0),AND(G8="",COUNTA(G9:G39)>0),AND(H8="",COUNTA(H9:H39)>0)),"<<< You must identify the cost objective in the column heading.","") -> 
A9: 301 | C9: =IF(ISNA(IF(Summary!$B$5=3,IF(VLOOKUP(A9,Calendar!$A$3:$G$459,7,FALSE)="S", "", VLOOKUP(A9,Calendar!$A$3:$G$459,7,FALSE)),IF(VLOOKUP(A9,Calendar!$A$3:$G$459,4,FALSE)="S", "", VLOOKUP(A9,Calendar!$A$3:$G$459,4,FALSE)))),"",IF(Summary!$B$5=3,IF(VLOOKUP(A9,Calendar!$A$3:$G$459,7,FALSE)="S", "", VLOOKUP(A9,Calendar!$A$3:$G$459,7,FALSE)),IF(VLOOKUP(A9,Calendar!$A$3:$G$459,4,FALSE)="S", "", VLOOKUP(A9,Calendar!$A$3:$G$459,4,FALSE)))) ->  | D9: =IF(Summary!$B$5=3,IF(C9="","",VLOOKUP(A9,Calendar!$A$3:$G$459,5,FALSE)),IF(C9="","",VLOOKUP(A9,Calendar!$A$3:$G$459,2,FALSE))) ->  | I9: =MIN(1440,SUM(E9:H9)) -> 0 | L9: =IF(I9>390, "<<< Day exceeds 390 minutes. Confirm reported time.","") -> 
A10: 302 | C10: =IF(ISNA(IF(Summary!$B$5=3,IF(VLOOKUP(A10,Calendar!$A$3:$G$459,7,FALSE)="S", "", VLOOKUP(A10,Calendar!$A$3:$G$459,7,FALSE)),IF(VLOOKUP(A10,Calendar!$A$3:$G$459,4,FALSE)="S", "", VLOOKUP(A10,Calendar!$A$3:$G$459,4,FALSE)))),"",IF(Summary!$B$5=3,IF(VLOOKUP(A10,Calendar!$A$3:$G$459,7,FALSE)="S", "", VLOOKUP(A10,Calendar!$A$3:$G$459,7,FALSE)),IF(VLOOKUP(A10,Calendar!$A$3:$G$459,4,FALSE)="S", "", VLOOKUP(A10,Calendar!$A$3:$G$459,4,FALSE)))) -> M | D10: =IF(Summary!$B$5=3,IF(C10="","",VLOOKUP(A10,Calendar!$A$3:$G$459,5,FALSE)),IF(C10="","",VLOOKUP(A10,Calendar!$A$3:$G$459,2,FALSE))) -> 2020-03-02 | I10: =MIN(1440,SUM(E10:H10)) -> 0 | L10: =IF(I10>390, "<<< Day exceeds 390 minutes. Confirm reported time.","") -> 
A11: 303 | C11: =IF(ISNA(IF(Summary!$B$5=3,IF(VLOOKUP(A11,Calendar!$A$3:$G$459,7,FALSE)="S", "", VLOOKUP(A11,Calendar!$A$3:$G$459,7,FALSE)),IF(VLOOKUP(A11,Calendar!$A$3:$G$459,4,FALSE)="S", "", VLOOKUP(A11,Calendar!$A$3:$G$459,4,FALSE)))),"",IF(Summary!$B$5=3,IF(VLOOKUP(A11,Calendar!$A$3:$G$459,7,FALSE)="S", "", VLOOKUP(A11,Calendar!$A$3:$G$459,7,FALSE)),IF(VLOOKUP(A11,Calendar!$A$3:$G$459,4,FALSE)="S", "", VLOOKUP(A11,Calendar!$A$3:$G$459,4,FALSE)))) -> T | D11: =IF(Summary!$B$5=3,IF(C11="","",VLOOKUP(A11,Calendar!$A$3:$G$459,5,FALSE)),IF(C11="","",VLOOKUP(A11,Calendar!$A$3:$G$459,2,FALSE))) -> 2020-03-03 | I11: 0
A12: 304 | C12: =IF(ISNA(IF(Summary!$B$5=3,IF(VLOOKUP(A12,Calendar!$A$3:$G$459,7,FALSE)="S", "", VLOOKUP(A12,Calendar!$A$3:$G$459,7,FALSE)),IF(VLOOKUP(A12,Calendar!$A$3:$G$459,4,FALSE)="S", "", VLOOKUP(A12,Calendar!$A$3:$G$459,4,FALSE)))),"",IF(Summary!$B$5=3,IF(VLOOKUP(A12,Calendar!$A$3:$G$459,7,FALSE)="S", "", VLOOKUP(A12,Calendar!$A$3:$G$459,7,FALSE)),IF(VLOOKUP(A12,Calendar!$A$3:$G$459,4,FALSE)="S", "", VLOOKUP(A12,Calendar!$A$3:$G$459,4,FALSE)))) -> W | D12: =IF(Summary!$B$5=3,IF(C12="","",VLOOKUP(A12,Calendar!$A$3:$G$459,5,FALSE)),IF(C12="","",VLOOKUP(A12,Calendar!$A$3:$G$459,2,FALSE))) -> 2020-03-04 | I12: 0
A13: 305 | C13: =IF(ISNA(IF(Summary!$B$5=3,IF(VLOOKUP(A13,Calendar!$A$3:$G$459,7,FALSE)="S", "", VLOOKUP(A13,Calendar!$A$3:$G$459,7,FALSE)),IF(VLOOKUP(A13,Calendar!$A$3:$G$459,4,FALSE)="S", "", VLOOKUP(A13,Calendar!$A$3:$G$459,4,FALSE)))),"",IF(Summary!$B$5=3,IF(VLOOKUP(A13,Calendar!$A$3:$G$459,7,FALSE)="S", "", VLOOKUP(A13,Calendar!$A$3:$G$459,7,FALSE)),IF(VLOOKUP(A13,Calendar!$A$3:$G$459,4,FALSE)="S", "", VLOOKUP(A13,Calendar!$A$3:$G$459,4,FALSE)))) -> R | D13: =IF(Summary!$B$5=3,IF(C13="","",VLOOKUP(A13,Calendar!$A$3:$G$459,5,FALSE)),IF(C13="","",VLOOKUP(A13,Calendar!$A$3:$G$459,2,FALSE))) -> 2020-03-05 | I13: 0
A14: 306 | C14: =IF(ISNA(IF(Summary!$B$5=3,IF(VLOOKUP(A14,Calendar!$A$3:$G$459,7,FALSE)="S", "", VLOOKUP(A14,Calendar!$A$3:$G$459,7,FALSE)),IF(VLOOKUP(A14,Calendar!$A$3:$G$459,4,FALSE)="S", "", VLOOKUP(A14,Calendar!$A$3:$G$459,4,FALSE)))),"",IF(Summary!$B$5=3,IF(VLOOKUP(A14,Calendar!$A$3:$G$459,7,FALSE)="S", "", VLOOKUP(A14,Calendar!$A$3:$G$459,7,FALSE)),IF(VLOOKUP(A14,Calendar!$A$3:$G$459,4,FALSE)="S", "", VLOOKUP(A14,Calendar!$A$3:$G$459,4,FALSE)))) -> F | D14: =IF(Summary!$B$5=3,IF(C14="","",VLOOKUP(A14,Calendar!$A$3:$G$459,5,FALSE)),IF(C14="","",VLOOKUP(A14,Calendar!$A$3:$G$459,2,FALSE))) -> 2020-03-06 | I14: 0
A15: 307 | C15: =IF(ISNA(IF(Summary!$B$5=3,IF(VLOOKUP(A15,Calendar!$A$3:$G$459,7,FALSE)="S", "", VLOOKUP(A15,Calendar!$A$3:$G$459,7,FALSE)),IF(VLOOKUP(A15,Calendar!$A$3:$G$459,4,FALSE)="S", "", VLOOKUP(A15,Calendar!$A$3:$G$459,4,FALSE)))),"",IF(Summary!$B$5=3,IF(VLOOKUP(A15,Calendar!$A$3:$G$459,7,FALSE)="S", "", VLOOKUP(A15,Calendar!$A$3:$G$459,7,FALSE)),IF(VLOOKUP(A15,Calendar!$A$3:$G$459,4,FALSE)="S", "", VLOOKUP(A15,Calendar!$A$3:$G$459,4,FALSE)))) ->  | D15: =IF(Summary!$B$5=3,IF(C15="","",VLOOKUP(A15,Calendar!$A$3:$G$459,5,FALSE)),IF(C15="","",VLOOKUP(A15,Calendar!$A$3:$G$459,2,FALSE))) ->  | I15: 0
A16: 308 | C16: =IF(ISNA(IF(Summary!$B$5=3,IF(VLOOKUP(A16,Calendar!$A$3:$G$459,7,FALSE)="S", "", VLOOKUP(A16,Calendar!$A$3:$G$459,7,FALSE)),IF(VLOOKUP(A16,Calendar!$A$3:$G$459,4,FALSE)="S", "", VLOOKUP(A16,Calendar!$A$3:$G$459,4,FALSE)))),"",IF(Summary!$B$5=3,IF(VLOOKUP(A16,Calendar!$A$3:$G$459,7,FALSE)="S", "", VLOOKUP(A16,Calendar!$A$3:$G$459,7,FALSE)),IF(VLOOKUP(A16,Calendar!$A$3:$G$459,4,FALSE)="S", "", VLOOKUP(A16,Calendar!$A$3:$G$459,4,FALSE)))) ->  | D16: =IF(Summary!$B$5=3,IF(C16="","",VLOOKUP(A16,Calendar!$A$3:$G$459,5,FALSE)),IF(C16="","",VLOOKUP(A16,Calendar!$A$3:$G$459,2,FALSE))) ->  | I16: 0
A17: 309 | C17: =IF(ISNA(IF(Summary!$B$5=3,IF(VLOOKUP(A17,Calendar!$A$3:$G$459,7,FALSE)="S", "", VLOOKUP(A17,Calendar!$A$3:$G$459,7,FALSE)),IF(VLOOKUP(A17,Calendar!$A$3:$G$459,4,FALSE)="S", "", VLOOKUP(A17,Calendar!$A$3:$G$459,4,FALSE)))),"",IF(Summary!$B$5=3,IF(VLOOKUP(A17,Calendar!$A$3:$G$459,7,FALSE)="S", "", VLOOKUP(A17,Calendar!$A$3:$G$459,7,FALSE)),IF(VLOOKUP(A17,Calendar!$A$3:$G$459,4,FALSE)="S", "", VLOOKUP(A17,Calendar!$A$3:$G$459,4,FALSE)))) -> M | D17: =IF(Summary!$B$5=3,IF(C17="","",VLOOKUP(A17,Calendar!$A$3:$G$459,5,FALSE)),IF(C17="","",VLOOKUP(A17,Calendar!$A$3:$G$459,2,FALSE))) -> 2020-03-09 | I17: 0
A18: 310 | C18: =IF(ISNA(IF(Summary!$B$5=3,IF(VLOOKUP(A18,Calendar!$A$3:$G$459,7,FALSE)="S", "", VLOOKUP(A18,Calendar!$A$3:$G$459,7,FALSE)),IF(VLOOKUP(A18,Calendar!$A$3:$G$459,4,FALSE)="S", "", VLOOKUP(A18,Calendar!$A$3:$G$459,4,FALSE)))),"",IF(Summary!$B$5=3,IF(VLOOKUP(A18,Calendar!$A$3:$G$459,7,FALSE)="S", "", VLOOKUP(A18,Calendar!$A$3:$G$459,7,FALSE)),IF(VLOOKUP(A18,Calendar!$A$3:$G$459,4,FALSE)="S", "", VLOOKUP(A18,Calendar!$A$3:$G$459,4,FALSE)))) -> T | D18: =IF(Summary!$B$5=3,IF(C18="","",VLOOKUP(A18,Calendar!$A$3:$G$459,5,FALSE)),IF(C18="","",VLOOKUP(A18,Calendar!$A$3:$G$459,2,FALSE))) -> 2020-03-10 | I18: 0
A19: 311 | C19: =IF(ISNA(IF(Summary!$B$5=3,IF(VLOOKUP(A19,Calendar!$A$3:$G$459,7,FALSE)="S", "", VLOOKUP(A19,Calendar!$A$3:$G$459,7,FALSE)),IF(VLOOKUP(A19,Calendar!$A$3:$G$459,4,FALSE)="S", "", VLOOKUP(A19,Calendar!$A$3:$G$459,4,FALSE)))),"",IF(Summary!$B$5=3,IF(VLOOKUP(A19,Calendar!$A$3:$G$459,7,FALSE)="S", "", VLOOKUP(A19,Calendar!$A$3:$G$459,7,FALSE)),IF(VLOOKUP(A19,Calendar!$A$3:$G$459,4,FALSE)="S", "", VLOOKUP(A19,Calendar!$A$3:$G$459,4,FALSE)))) -> W | D19: =IF(Summary!$B$5=3,IF(C19="","",VLOOKUP(A19,Calendar!$A$3:$G$459,5,FALSE)),IF(C19="","",VLOOKUP(A19,Calendar!$A$3:$G$459,2,FALSE))) -> 2020-03-11 | I19: 0
A20: 312 | C20: =IF(ISNA(IF(Summary!$B$5=3,IF(VLOOKUP(A20,Calendar!$A$3:$G$459,7,FALSE)="S", "", VLOOKUP(A20,Calendar!$A$3:$G$459,7,FALSE)),IF(VLOOKUP(A20,Calendar!$A$3:$G$459,4,FALSE)="S", "", VLOOKUP(A20,Calendar!$A$3:$G$459,4,FALSE)))),"",IF(Summary!$B$5=3,IF(VLOOKUP(A20,Calendar!$A$3:$G$459,7,FALSE)="S", "", VLOOKUP(A20,Calendar!$A$3:$G$459,7,FALSE)),IF(VLOOKUP(A20,Calendar!$A$3:$G$459,4,FALSE)="S", "", VLOOKUP(A20,Calendar!$A$3:$G$459,4,FALSE)))) -> R | D20: =IF(Summary!$B$5=3,IF(C20="","",VLOOKUP(A20,Calendar!$A$3:$G$459,5,FALSE)),IF(C20="","",VLOOKUP(A20,Calendar!$A$3:$G$459,2,FALSE))) -> 2020-03-12 | I20: 0
A21: 313 | C21: =IF(ISNA(IF(Summary!$B$5=3,IF(VLOOKUP(A21,Calendar!$A$3:$G$459,7,FALSE)="S", "", VLOOKUP(A21,Calendar!$A$3:$G$459,7,FALSE)),IF(VLOOKUP(A21,Calendar!$A$3:$G$459,4,FALSE)="S", "", VLOOKUP(A21,Calendar!$A$3:$G$459,4,FALSE)))),"",IF(Summary!$B$5=3,IF(VLOOKUP(A21,Calendar!$A$3:$G$459,7,FALSE)="S", "", VLOOKUP(A21,Calendar!$A$3:$G$459,7,FALSE)),IF(VLOOKUP(A21,Calendar!$A$3:$G$459,4,FALSE)="S", "", VLOOKUP(A21,Calendar!$A$3:$G$459,4,FALSE)))) -> F | D21: =IF(Summary!$B$5=3,IF(C21="","",VLOOKUP(A21,Calendar!$A$3:$G$459,5,FALSE)),IF(C21="","",VLOOKUP(A21,Calendar!$A$3:$G$459,2,FALSE))) -> 2020-03-13 | I21: 0
A22: 314 | C22: =IF(ISNA(IF(Summary!$B$5=3,IF(VLOOKUP(A22,Calendar!$A$3:$G$459,7,FALSE)="S", "", VLOOKUP(A22,Calendar!$A$3:$G$459,7,FALSE)),IF(VLOOKUP(A22,Calendar!$A$3:$G$459,4,FALSE)="S", "", VLOOKUP(A22,Calendar!$A$3:$G$459,4,FALSE)))),"",IF(Summary!$B$5=3,IF(VLOOKUP(A22,Calendar!$A$3:$G$459,7,FALSE)="S", "", VLOOKUP(A22,Calendar!$A$3:$G$459,7,FALSE)),IF(VLOOKUP(A22,Calendar!$A$3:$G$459,4,FALSE)="S", "", VLOOKUP(A22,Calendar!$A$3:$G$459,4,FALSE)))) ->  | D22: =IF(Summary!$B$5=3,IF(C22="","",VLOOKUP(A22,Calendar!$A$3:$G$459,5,FALSE)),IF(C22="","",VLOOKUP(A22,Calendar!$A$3:$G$459,2,FALSE))) ->  | I22: 0
A23: 315 | C23: =IF(ISNA(IF(Summary!$B$5=3,IF(VLOOKUP(A23,Calendar!$A$3:$G$459,7,FALSE)="S", "", VLOOKUP(A23,Calendar!$A$3:$G$459,7,FALSE)),IF(VLOOKUP(A23,Calendar!$A$3:$G$459,4,FALSE)="S", "", VLOOKUP(A23,Calendar!$A$3:$G$459,4,FALSE)))),"",IF(Summary!$B$5=3,IF(VLOOKUP(A23,Calendar!$A$3:$G$459,7,FALSE)="S", "", VLOOKUP(A23,Calendar!$A$3:$G$459,7,FALSE)),IF(VLOOKUP(A23,Calendar!$A$3:$G$459,4,FALSE)="S", "", VLOOKUP(A23,Calendar!$A$3:$G$459,4,FALSE)))) ->  | D23: =IF(Summary!$B$5=3,IF(C23="","",VLOOKUP(A23,Calendar!$A$3:$G$459,5,FALSE)),IF(C23="","",VLOOKUP(A23,Calendar!$A$3:$G$459,2,FALSE))) ->  | I23: 0
A24: 316 | C24: =IF(ISNA(IF(Summary!$B$5=3,IF(VLOOKUP(A24,Calendar!$A$3:$G$459,7,FALSE)="S", "", VLOOKUP(A24,Calendar!$A$3:$G$459,7,FALSE)),IF(VLOOKUP(A24,Calendar!$A$3:$G$459,4,FALSE)="S", "", VLOOKUP(A24,Calendar!$A$3:$G$459,4,FALSE)))),"",IF(Summary!$B$5=3,IF(VLOOKUP(A24,Calendar!$A$3:$G$459,7,FALSE)="S", "", VLOOKUP(A24,Calendar!$A$3:$G$459,7,FALSE)),IF(VLOOKUP(A24,Calendar!$A$3:$G$459,4,FALSE)="S", "", VLOOKUP(A24,Calendar!$A$3:$G$459,4,FALSE)))) -> M | D24: =IF(Summary!$B$5=3,IF(C24="","",VLOOKUP(A24,Calendar!$A$3:$G$459,5,FALSE)),IF(C24="","",VLOOKUP(A24,Calendar!$A$3:$G$459,2,FALSE))) -> 2020-03-16 | I24: 0
A25: 317 | C25: =IF(ISNA(IF(Summary!$B$5=3,IF(VLOOKUP(A25,Calendar!$A$3:$G$459,7,FALSE)="S", "", VLOOKUP(A25,Calendar!$A$3:$G$459,7,FALSE)),IF(VLOOKUP(A25,Calendar!$A$3:$G$459,4,FALSE)="S", "", VLOOKUP(A25,Calendar!$A$3:$G$459,4,FALSE)))),"",IF(Summary!$B$5=3,IF(VLOOKUP(A25,Calendar!$A$3:$G$459,7,FALSE)="S", "", VLOOKUP(A25,Calendar!$A$3:$G$459,7,FALSE)),IF(VLOOKUP(A25,Calendar!$A$3:$G$459,4,FALSE)="S", "", VLOOKUP(A25,Calendar!$A$3:$G$459,4,FALSE)))) -> T | D25: =IF(Summary!$B$5=3,IF(C25="","",VLOOKUP(A25,Calendar!$A$3:$G$459,5,FALSE)),IF(C25="","",VLOOKUP(A25,Calendar!$A$3:$G$459,2,FALSE))) -> 2020-03-17 | I25: 0
A26: 318 | C26: =IF(ISNA(IF(Summary!$B$5=3,IF(VLOOKUP(A26,Calendar!$A$3:$G$459,7,FALSE)="S", "", VLOOKUP(A26,Calendar!$A$3:$G$459,7,FALSE)),IF(VLOOKUP(A26,Calendar!$A$3:$G$459,4,FALSE)="S", "", VLOOKUP(A26,Calendar!$A$3:$G$459,4,FALSE)))),"",IF(Summary!$B$5=3,IF(VLOOKUP(A26,Calendar!$A$3:$G$459,7,FALSE)="S", "", VLOOKUP(A26,Calendar!$A$3:$G$459,7,FALSE)),IF(VLOOKUP(A26,Calendar!$A$3:$G$459,4,FALSE)="S", "", VLOOKUP(A26,Calendar!$A$3:$G$459,4,FALSE)))) -> W | D26: =IF(Summary!$B$5=3,IF(C26="","",VLOOKUP(A26,Calendar!$A$3:$G$459,5,FALSE)),IF(C26="","",VLOOKUP(A26,Calendar!$A$3:$G$459,2,FALSE))) -> 2020-03-18 | I26: 0
A27: 319 | C27: =IF(ISNA(IF(Summary!$B$5=3,IF(VLOOKUP(A27,Calendar!$A$3:$G$459,7,FALSE)="S", "", VLOOKUP(A27,Calendar!$A$3:$G$459,7,FALSE)),IF(VLOOKUP(A27,Calendar!$A$3:$G$459,4,FALSE)="S", "", VLOOKUP(A27,Calendar!$A$3:$G$459,4,FALSE)))),"",IF(Summary!$B$5=3,IF(VLOOKUP(A27,Calendar!$A$3:$G$459,7,FALSE)="S", "", VLOOKUP(A27,Calendar!$A$3:$G$459,7,FALSE)),IF(VLOOKUP(A27,Calendar!$A$3:$G$459,4,FALSE)="S", "", VLOOKUP(A27,Calendar!$A$3:$G$459,4,FALSE)))) -> R | D27: =IF(Summary!$B$5=3,IF(C27="","",VLOOKUP(A27,Calendar!$A$3:$G$459,5,FALSE)),IF(C27="","",VLOOKUP(A27,Calendar!$A$3:$G$459,2,FALSE))) -> 2020-03-19 | I27: 0
A28: 320 | C28: =IF(ISNA(IF(Summary!$B$5=3,IF(VLOOKUP(A28,Calendar!$A$3:$G$459,7,FALSE)="S", "", VLOOKUP(A28,Calendar!$A$3:$G$459,7,FALSE)),IF(VLOOKUP(A28,Calendar!$A$3:$G$459,4,FALSE)="S", "", VLOOKUP(A28,Calendar!$A$3:$G$459,4,FALSE)))),"",IF(Summary!$B$5=3,IF(VLOOKUP(A28,Calendar!$A$3:$G$459,7,FALSE)="S", "", VLOOKUP(A28,Calendar!$A$3:$G$459,7,FALSE)),IF(VLOOKUP(A28,Calendar!$A$3:$G$459,4,FALSE)="S", "", VLOOKUP(A28,Calendar!$A$3:$G$459,4,FALSE)))) -> F | D28: =IF(Summary!$B$5=3,IF(C28="","",VLOOKUP(A28,Calendar!$A$3:$G$459,5,FALSE)),IF(C28="","",VLOOKUP(A28,Calendar!$A$3:$G$459,2,FALSE))) -> 2020-03-20 | I28: 0
A29: 321 | C29: =IF(ISNA(IF(Summary!$B$5=3,IF(VLOOKUP(A29,Calendar!$A$3:$G$459,7,FALSE)="S", "", VLOOKUP(A29,Calendar!$A$3:$G$459,7,FALSE)),IF(VLOOKUP(A29,Calendar!$A$3:$G$459,4,FALSE)="S", "", VLOOKUP(A29,Calendar!$A$3:$G$459,4,FALSE)))),"",IF(Summary!$B$5=3,IF(VLOOKUP(A29,Calendar!$A$3:$G$459,7,FALSE)="S", "", VLOOKUP(A29,Calendar!$A$3:$G$459,7,FALSE)),IF(VLOOKUP(A29,Calendar!$A$3:$G$459,4,FALSE)="S", "", VLOOKUP(A29,Calendar!$A$3:$G$459,4,FALSE)))) ->  | D29: =IF(Summary!$B$5=3,IF(C29="","",VLOOKUP(A29,Calendar!$A$3:$G$459,5,FALSE)),IF(C29="","",VLOOKUP(A29,Calendar!$A$3:$G$459,2,FALSE))) ->  | I29: 0
A30: 322 | C30: =IF(ISNA(IF(Summary!$B$5=3,IF(VLOOKUP(A30,Calendar!$A$3:$G$459,7,FALSE)="S", "", VLOOKUP(A30,Calendar!$A$3:$G$459,7,FALSE)),IF(VLOOKUP(A30,Calendar!$A$3:$G$459,4,FALSE)="S", "", VLOOKUP(A30,Calendar!$A$3:$G$459,4,FALSE)))),"",IF(Summary!$B$5=3,IF(VLOOKUP(A30,Calendar!$A$3:$G$459,7,FALSE)="S", "", VLOOKUP(A30,Calendar!$A$3:$G$459,7,FALSE)),IF(VLOOKUP(A30,Calendar!$A$3:$G$459,4,FALSE)="S", "", VLOOKUP(A30,Calendar!$A$3:$G$459,4,FALSE)))) ->  | D30: =IF(Summary!$B$5=3,IF(C30="","",VLOOKUP(A30,Calendar!$A$3:$G$459,5,FALSE)),IF(C30="","",VLOOKUP(A30,Calendar!$A$3:$G$459,2,FALSE))) ->  | I30: 0
A31: 323 | C31: =IF(ISNA(IF(Summary!$B$5=3,IF(VLOOKUP(A31,Calendar!$A$3:$G$459,7,FALSE)="S", "", VLOOKUP(A31,Calendar!$A$3:$G$459,7,FALSE)),IF(VLOOKUP(A31,Calendar!$A$3:$G$459,4,FALSE)="S", "", VLOOKUP(A31,Calendar!$A$3:$G$459,4,FALSE)))),"",IF(Summary!$B$5=3,IF(VLOOKUP(A31,Calendar!$A$3:$G$459,7,FALSE)="S", "", VLOOKUP(A31,Calendar!$A$3:$G$459,7,FALSE)),IF(VLOOKUP(A31,Calendar!$A$3:$G$459,4,FALSE)="S", "", VLOOKUP(A31,Calendar!$A$3:$G$459,4,FALSE)))) -> M | D31: =IF(Summary!$B$5=3,IF(C31="","",VLOOKUP(A31,Calendar!$A$3:$G$459,5,FALSE)),IF(C31="","",VLOOKUP(A31,Calendar!$A$3:$G$459,2,FALSE))) -> 2020-03-23 | I31: 0
A32: 324 | C32: =IF(ISNA(IF(Summary!$B$5=3,IF(VLOOKUP(A32,Calendar!$A$3:$G$459,7,FALSE)="S", "", VLOOKUP(A32,Calendar!$A$3:$G$459,7,FALSE)),IF(VLOOKUP(A32,Calendar!$A$3:$G$459,4,FALSE)="S", "", VLOOKUP(A32,Calendar!$A$3:$G$459,4,FALSE)))),"",IF(Summary!$B$5=3,IF(VLOOKUP(A32,Calendar!$A$3:$G$459,7,FALSE)="S", "", VLOOKUP(A32,Calendar!$A$3:$G$459,7,FALSE)),IF(VLOOKUP(A32,Calendar!$A$3:$G$459,4,FALSE)="S", "", VLOOKUP(A32,Calendar!$A$3:$G$459,4,FALSE)))) -> T | D32: =IF(Summary!$B$5=3,IF(C32="","",VLOOKUP(A32,Calendar!$A$3:$G$459,5,FALSE)),IF(C32="","",VLOOKUP(A32,Calendar!$A$3:$G$459,2,FALSE))) -> 2020-03-24 | I32: 0
A33: 325 | C33: =IF(ISNA(IF(Summary!$B$5=3,IF(VLOOKUP(A33,Calendar!$A$3:$G$459,7,FALSE)="S", "", VLOOKUP(A33,Calendar!$A$3:$G$459,7,FALSE)),IF(VLOOKUP(A33,Calendar!$A$3:$G$459,4,FALSE)="S", "", VLOOKUP(A33,Calendar!$A$3:$G$459,4,FALSE)))),"",IF(Summary!$B$5=3,IF(VLOOKUP(A33,Calendar!$A$3:$G$459,7,FALSE)="S", "", VLOOKUP(A33,Calendar!$A$3:$G$459,7,FALSE)),IF(VLOOKUP(A33,Calendar!$A$3:$G$459,4,FALSE)="S", "", VLOOKUP(A33,Calendar!$A$3:$G$459,4,FALSE)))) -> W | D33: =IF(Summary!$B$5=3,IF(C33="","",VLOOKUP(A33,Calendar!$A$3:$G$459,5,FALSE)),IF(C33="","",VLOOKUP(A33,Calendar!$A$3:$G$459,2,FALSE))) -> 2020-03-25 | I33: 0
A34: 326 | C34: =IF(ISNA(IF(Summary!$B$5=3,IF(VLOOKUP(A34,Calendar!$A$3:$G$459,7,FALSE)="S", "", VLOOKUP(A34,Calendar!$A$3:$G$459,7,FALSE)),IF(VLOOKUP(A34,Calendar!$A$3:$G$459,4,FALSE)="S", "", VLOOKUP(A34,Calendar!$A$3:$G$459,4,FALSE)))),"",IF(Summary!$B$5=3,IF(VLOOKUP(A34,Calendar!$A$3:$G$459,7,FALSE)="S", "", VLOOKUP(A34,Calendar!$A$3:$G$459,7,FALSE)),IF(VLOOKUP(A34,Calendar!$A$3:$G$459,4,FALSE)="S", "", VLOOKUP(A34,Calendar!$A$3:$G$459,4,FALSE)))) -> R | D34: =IF(Summary!$B$5=3,IF(C34="","",VLOOKUP(A34,Calendar!$A$3:$G$459,5,FALSE)),IF(C34="","",VLOOKUP(A34,Calendar!$A$3:$G$459,2,FALSE))) -> 2020-03-26 | I34: 0
A35: 327 | C35: =IF(ISNA(IF(Summary!$B$5=3,IF(VLOOKUP(A35,Calendar!$A$3:$G$459,7,FALSE)="S", "", VLOOKUP(A35,Calendar!$A$3:$G$459,7,FALSE)),IF(VLOOKUP(A35,Calendar!$A$3:$G$459,4,FALSE)="S", "", VLOOKUP(A35,Calendar!$A$3:$G$459,4,FALSE)))),"",IF(Summary!$B$5=3,IF(VLOOKUP(A35,Calendar!$A$3:$G$459,7,FALSE)="S", "", VLOOKUP(A35,Calendar!$A$3:$G$459,7,FALSE)),IF(VLOOKUP(A35,Calendar!$A$3:$G$459,4,FALSE)="S", "", VLOOKUP(A35,Calendar!$A$3:$G$459,4,FALSE)))) -> F | D35: =IF(Summary!$B$5=3,IF(C35="","",VLOOKUP(A35,Calendar!$A$3:$G$459,5,FALSE)),IF(C35="","",VLOOKUP(A35,Calendar!$A$3:$G$459,2,FALSE))) -> 2020-03-27 | I35: 0
A36: 328 | C36: =IF(ISNA(IF(Summary!$B$5=3,IF(VLOOKUP(A36,Calendar!$A$3:$G$459,7,FALSE)="S", "", VLOOKUP(A36,Calendar!$A$3:$G$459,7,FALSE)),IF(VLOOKUP(A36,Calendar!$A$3:$G$459,4,FALSE)="S", "", VLOOKUP(A36,Calendar!$A$3:$G$459,4,FALSE)))),"",IF(Summary!$B$5=3,IF(VLOOKUP(A36,Calendar!$A$3:$G$459,7,FALSE)="S", "", VLOOKUP(A36,Calendar!$A$3:$G$459,7,FALSE)),IF(VLOOKUP(A36,Calendar!$A$3:$G$459,4,FALSE)="S", "", VLOOKUP(A36,Calendar!$A$3:$G$459,4,FALSE)))) ->  | D36: =IF(Summary!$B$5=3,IF(C36="","",VLOOKUP(A36,Calendar!$A$3:$G$459,5,FALSE)),IF(C36="","",VLOOKUP(A36,Calendar!$A$3:$G$459,2,FALSE))) ->  | I36: 0
A37: 329 | C37: =IF(ISNA(IF(Summary!$B$5=3,IF(VLOOKUP(A37,Calendar!$A$3:$G$459,7,FALSE)="S", "", VLOOKUP(A37,Calendar!$A$3:$G$459,7,FALSE)),IF(VLOOKUP(A37,Calendar!$A$3:$G$459,4,FALSE)="S", "", VLOOKUP(A37,Calendar!$A$3:$G$459,4,FALSE)))),"",IF(Summary!$B$5=3,IF(VLOOKUP(A37,Calendar!$A$3:$G$459,7,FALSE)="S", "", VLOOKUP(A37,Calendar!$A$3:$G$459,7,FALSE)),IF(VLOOKUP(A37,Calendar!$A$3:$G$459,4,FALSE)="S", "", VLOOKUP(A37,Calendar!$A$3:$G$459,4,FALSE)))) ->  | D37: =IF(Summary!$B$5=3,IF(C37="","",VLOOKUP(A37,Calendar!$A$3:$G$459,5,FALSE)),IF(C37="","",VLOOKUP(A37,Calendar!$A$3:$G$459,2,FALSE))) ->  | I37: 0
A38: 330 | C38: =IF(ISNA(IF(Summary!$B$5=3,IF(VLOOKUP(A38,Calendar!$A$3:$G$459,7,FALSE)="S", "", VLOOKUP(A38,Calendar!$A$3:$G$459,7,FALSE)),IF(VLOOKUP(A38,Calendar!$A$3:$G$459,4,FALSE)="S", "", VLOOKUP(A38,Calendar!$A$3:$G$459,4,FALSE)))),"",IF(Summary!$B$5=3,IF(VLOOKUP(A38,Calendar!$A$3:$G$459,7,FALSE)="S", "", VLOOKUP(A38,Calendar!$A$3:$G$459,7,FALSE)),IF(VLOOKUP(A38,Calendar!$A$3:$G$459,4,FALSE)="S", "", VLOOKUP(A38,Calendar!$A$3:$G$459,4,FALSE)))) -> M | D38: =IF(Summary!$B$5=3,IF(C38="","",VLOOKUP(A38,Calendar!$A$3:$G$459,5,FALSE)),IF(C38="","",VLOOKUP(A38,Calendar!$A$3:$G$459,2,FALSE))) -> 2020-03-30 | I38: 0
A39: 331 | C39: =IF(ISNA(IF(Summary!$B$5=3,IF(VLOOKUP(A39,Calendar!$A$3:$G$459,7,FALSE)="S", "", VLOOKUP(A39,Calendar!$A$3:$G$459,7,FALSE)),IF(VLOOKUP(A39,Calendar!$A$3:$G$459,4,FALSE)="S", "", VLOOKUP(A39,Calendar!$A$3:$G$459,4,FALSE)))),"",IF(Summary!$B$5=3,IF(VLOOKUP(A39,Calendar!$A$3:$G$459,7,FALSE)="S", "", VLOOKUP(A39,Calendar!$A$3:$G$459,7,FALSE)),IF(VLOOKUP(A39,Calendar!$A$3:$G$459,4,FALSE)="S", "", VLOOKUP(A39,Calendar!$A$3:$G$459,4,FALSE)))) -> T | D39: =IF(Summary!$B$5=3,IF(C39="","",VLOOKUP(A39,Calendar!$A$3:$G$459,5,FALSE)),IF(C39="","",VLOOKUP(A39,Calendar!$A$3:$G$459,2,FALSE))) -> 2020-03-31 | I39: 0
D40: Total Minutes | E40: =SUM(E9:E39) -> 0 | F40: =SUM(F9:F39) -> 0 | G40: 0 | H40: 0 | I40: 0 | L40: =IF(SUM(E40:H40)>COUNTA(E9:E39)*390,"The sum total for all cost objectives exceeds the maximum anticipated value based upon the number of days worked. Confirm minutes claimed for each day.","") -> 
D41: Total Hours | E41: =E40/60 -> 0 | F41: =F40/60 -> 0 | G41: 0 | H41: 0 | I41: 0
C44: Notes
E56: Kansas State Department of Education | I56: Personnel Activity Report
E57: Fiscal Auditing | I57: Updated 9/20/18
E58: 785-296-4976
E59: https://www.ksde.org/Agency/Fiscal-and-Administrative-Services/Fiscal-Auditing
C62: The Kansas State Department of Education does not discriminate on the basis of race, color, national origin, sex, disability, or age in its programs and activities and provides equal access to the Boy Scouts and other designated youth groups. The following person has been designated to handle inquiries regarding the nondiscrimination policies: KSDE General Counsel, Office of General Counsel, KSDE, Landon State Office Building, 900 S.W. Jackson, Suite 102, Topeka, KS 66612, (785) 296-3204.

Sheet April
C3: Personnel Activity Report
C4: Regular School Year
C5: April
C6: =IF(Summary!$E$8<>"",Summary!$E$8," ") -> 
C7: =IF(Summary!$E$9<>"",Summary!$E$9," ") -> 
C8: Day | D8: Date | E8: Special Ed | F8: General Ed | G8: Other | H8: Other | I8: Totals | L8: =IF(OR(AND(F8="",COUNTA(F9:F39)>0),AND(G8="",COUNTA(G9:G39)>0),AND(H8="",COUNTA(H9:H39)>0)),"<<< You must identify the cost objective in the column heading.","") -> 
A9: 401 | C9: =IF(ISNA(IF(Summary!$B$5=3,IF(VLOOKUP(A9,Calendar!$A$3:$G$459,7,FALSE)="S", "", VLOOKUP(A9,Calendar!$A$3:$G$459,7,FALSE)),IF(VLOOKUP(A9,Calendar!$A$3:$G$459,4,FALSE)="S", "", VLOOKUP(A9,Calendar!$A$3:$G$459,4,FALSE)))),"",IF(Summary!$B$5=3,IF(VLOOKUP(A9,Calendar!$A$3:$G$459,7,FALSE)="S", "", VLOOKUP(A9,Calendar!$A$3:$G$459,7,FALSE)),IF(VLOOKUP(A9,Calendar!$A$3:$G$459,4,FALSE)="S", "", VLOOKUP(A9,Calendar!$A$3:$G$459,4,FALSE)))) -> W | D9: =IF(Summary!$B$5=3,IF(C9="","",VLOOKUP(A9,Calendar!$A$3:$G$459,5,FALSE)),IF(C9="","",VLOOKUP(A9,Calendar!$A$3:$G$459,2,FALSE))) -> 2020-04-01 | I9: =MIN(1440,SUM(E9:H9)) -> 0 | L9: =IF(I9>390, "<<< Day exceeds 390 minutes. Confirm reported time.","") -> 
A10: 402 | C10: =IF(ISNA(IF(Summary!$B$5=3,IF(VLOOKUP(A10,Calendar!$A$3:$G$459,7,FALSE)="S", "", VLOOKUP(A10,Calendar!$A$3:$G$459,7,FALSE)),IF(VLOOKUP(A10,Calendar!$A$3:$G$459,4,FALSE)="S", "", VLOOKUP(A10,Calendar!$A$3:$G$459,4,FALSE)))),"",IF(Summary!$B$5=3,IF(VLOOKUP(A10,Calendar!$A$3:$G$459,7,FALSE)="S", "", VLOOKUP(A10,Calendar!$A$3:$G$459,7,FALSE)),IF(VLOOKUP(A10,Calendar!$A$3:$G$459,4,FALSE)="S", "", VLOOKUP(A10,Calendar!$A$3:$G$459,4,FALSE)))) -> R | D10: =IF(Summary!$B$5=3,IF(C10="","",VLOOKUP(A10,Calendar!$A$3:$G$459,5,FALSE)),IF(C10="","",VLOOKUP(A10,Calendar!$A$3:$G$459,2,FALSE))) -> 2020-04-02 | I10: =MIN(1440,SUM(E10:H10)) -> 0 | L10: =IF(I10>390, "<<< Day exceeds 390 minutes. Confirm reported time.","") -> 
A11: 403 | C11: =IF(ISNA(IF(Summary!$B$5=3,IF(VLOOKUP(A11,Calendar!$A$3:$G$459,7,FALSE)="S", "", VLOOKUP(A11,Calendar!$A$3:$G$459,7,FALSE)),IF(VLOOKUP(A11,Calendar!$A$3:$G$459,4,FALSE)="S", "", VLOOKUP(A11,Calendar!$A$3:$G$459,4,FALSE)))),"",IF(Summary!$B$5=3,IF(VLOOKUP(A11,Calendar!$A$3:$G$459,7,FALSE)="S", "", VLOOKUP(A11,Calendar!$A$3:$G$459,7,FALSE)),IF(VLOOKUP(A11,Calendar!$A$3:$G$459,4,FALSE)="S", "", VLOOKUP(A11,Calendar!$A$3:$G$459,4,FALSE)))) -> F | D11: =IF(Summary!$B$5=3,IF(C11="","",VLOOKUP(A11,Calendar!$A$3:$G$459,5,FALSE)),IF(C11="","",VLOOKUP(A11,Calendar!$A$3:$G$459,2,FALSE))) -> 2020-04-03 | I11: 0
A12: 404 | C12: =IF(ISNA(IF(Summary!$B$5=3,IF(VLOOKUP(A12,Calendar!$A$3:$G$459,7,FALSE)="S", "", VLOOKUP(A12,Calendar!$A$3:$G$459,7,FALSE)),IF(VLOOKUP(A12,Calendar!$A$3:$G$459,4,FALSE)="S", "", VLOOKUP(A12,Calendar!$A$3:$G$459,4,FALSE)))),"",IF(Summary!$B$5=3,IF(VLOOKUP(A12,Calendar!$A$3:$G$459,7,FALSE)="S", "", VLOOKUP(A12,Calendar!$A$3:$G$459,7,FALSE)),IF(VLOOKUP(A12,Calendar!$A$3:$G$459,4,FALSE)="S", "", VLOOKUP(A12,Calendar!$A$3:$G$459,4,FALSE)))) ->  | D12: =IF(Summary!$B$5=3,IF(C12="","",VLOOKUP(A12,Calendar!$A$3:$G$459,5,FALSE)),IF(C12="","",VLOOKUP(A12,Calendar!$A$3:$G$459,2,FALSE))) ->  | I12: 0
A13: 405 | C13: =IF(ISNA(IF(Summary!$B$5=3,IF(VLOOKUP(A13,Calendar!$A$3:$G$459,7,FALSE)="S", "", VLOOKUP(A13,Calendar!$A$3:$G$459,7,FALSE)),IF(VLOOKUP(A13,Calendar!$A$3:$G$459,4,FALSE)="S", "", VLOOKUP(A13,Calendar!$A$3:$G$459,4,FALSE)))),"",IF(Summary!$B$5=3,IF(VLOOKUP(A13,Calendar!$A$3:$G$459,7,FALSE)="S", "", VLOOKUP(A13,Calendar!$A$3:$G$459,7,FALSE)),IF(VLOOKUP(A13,Calendar!$A$3:$G$459,4,FALSE)="S", "", VLOOKUP(A13,Calendar!$A$3:$G$459,4,FALSE)))) ->  | D13: =IF(Summary!$B$5=3,IF(C13="","",VLOOKUP(A13,Calendar!$A$3:$G$459,5,FALSE)),IF(C13="","",VLOOKUP(A13,Calendar!$A$3:$G$459,2,FALSE))) ->  | I13: 0
A14: 406 | C14: =IF(ISNA(IF(Summary!$B$5=3,IF(VLOOKUP(A14,Calendar!$A$3:$G$459,7,FALSE)="S", "", VLOOKUP(A14,Calendar!$A$3:$G$459,7,FALSE)),IF(VLOOKUP(A14,Calendar!$A$3:$G$459,4,FALSE)="S", "", VLOOKUP(A14,Calendar!$A$3:$G$459,4,FALSE)))),"",IF(Summary!$B$5=3,IF(VLOOKUP(A14,Calendar!$A$3:$G$459,7,FALSE)="S", "", VLOOKUP(A14,Calendar!$A$3:$G$459,7,FALSE)),IF(VLOOKUP(A14,Calendar!$A$3:$G$459,4,FALSE)="S", "", VLOOKUP(A14,Calendar!$A$3:$G$459,4,FALSE)))) -> M | D14: =IF(Summary!$B$5=3,IF(C14="","",VLOOKUP(A14,Calendar!$A$3:$G$459,5,FALSE)),IF(C14="","",VLOOKUP(A14,Calendar!$A$3:$G$459,2,FALSE))) -> 2020-04-06 | I14: 0
A15: 407 | C15: =IF(ISNA(IF(Summary!$B$5=3,IF(VLOOKUP(A15,Calendar!$A$3:$G$459,7,FALSE)="S", "", VLOOKUP(A15,Calendar!$A$3:$G$459,7,FALSE)),IF(VLOOKUP(A15,Calendar!$A$3:$G$459,4,FALSE)="S", "", VLOOKUP(A15,Calendar!$A$3:$G$459,4,FALSE)))),"",IF(Summary!$B$5=3,IF(VLOOKUP(A15,Calendar!$A$3:$G$459,7,FALSE)="S", "", VLOOKUP(A15,Calendar!$A$3:$G$459,7,FALSE)),IF(VLOOKUP(A15,Calendar!$A$3:$G$459,4,FALSE)="S", "", VLOOKUP(A15,Calendar!$A$3:$G$459,4,FALSE)))) -> T | D15: =IF(Summary!$B$5=3,IF(C15="","",VLOOKUP(A15,Calendar!$A$3:$G$459,5,FALSE)),IF(C15="","",VLOOKUP(A15,Calendar!$A$3:$G$459,2,FALSE))) -> 2020-04-07 | I15: 0
A16: 408 | C16: =IF(ISNA(IF(Summary!$B$5=3,IF(VLOOKUP(A16,Calendar!$A$3:$G$459,7,FALSE)="S", "", VLOOKUP(A16,Calendar!$A$3:$G$459,7,FALSE)),IF(VLOOKUP(A16,Calendar!$A$3:$G$459,4,FALSE)="S", "", VLOOKUP(A16,Calendar!$A$3:$G$459,4,FALSE)))),"",IF(Summary!$B$5=3,IF(VLOOKUP(A16,Calendar!$A$3:$G$459,7,FALSE)="S", "", VLOOKUP(A16,Calendar!$A$3:$G$459,7,FALSE)),IF(VLOOKUP(A16,Calendar!$A$3:$G$459,4,FALSE)="S", "", VLOOKUP(A16,Calendar!$A$3:$G$459,4,FALSE)))) -> W | D16: =IF(Summary!$B$5=3,IF(C16="","",VLOOKUP(A16,Calendar!$A$3:$G$459,5,FALSE)),IF(C16="","",VLOOKUP(A16,Calendar!$A$3:$G$459,2,FALSE))) -> 2020-04-08 | I16: 0
A17: 409 | C17: =IF(ISNA(IF(Summary!$B$5=3,IF(VLOOKUP(A17,Calendar!$A$3:$G$459,7,FALSE)="S", "", VLOOKUP(A17,Calendar!$A$3:$G$459,7,FALSE)),IF(VLOOKUP(A17,Calendar!$A$3:$G$459,4,FALSE)="S", "", VLOOKUP(A17,Calendar!$A$3:$G$459,4,FALSE)))),"",IF(Summary!$B$5=3,IF(VLOOKUP(A17,Calendar!$A$3:$G$459,7,FALSE)="S", "", VLOOKUP(A17,Calendar!$A$3:$G$459,7,FALSE)),IF(VLOOKUP(A17,Calendar!$A$3:$G$459,4,FALSE)="S", "", VLOOKUP(A17,Calendar!$A$3:$G$459,4,FALSE)))) -> R | D17: =IF(Summary!$B$5=3,IF(C17="","",VLOOKUP(A17,Calendar!$A$3:$G$459,5,FALSE)),IF(C17="","",VLOOKUP(A17,Calendar!$A$3:$G$459,2,FALSE))) -> 2020-04-09 | I17: 0
A18: 410 | C18: =IF(ISNA(IF(Summary!$B$5=3,IF(VLOOKUP(A18,Calendar!$A$3:$G$459,7,FALSE)="S", "", VLOOKUP(A18,Calendar!$A$3:$G$459,7,FALSE)),IF(VLOOKUP(A18,Calendar!$A$3:$G$459,4,FALSE)="S", "", VLOOKUP(A18,Calendar!$A$3:$G$459,4,FALSE)))),"",IF(Summary!$B$5=3,IF(VLOOKUP(A18,Calendar!$A$3:$G$459,7,FALSE)="S", "", VLOOKUP(A18,Calendar!$A$3:$G$459,7,FALSE)),IF(VLOOKUP(A18,Calendar!$A$3:$G$459,4,FALSE)="S", "", VLOOKUP(A18,Calendar!$A$3:$G$459,4,FALSE)))) -> F | D18: =IF(Summary!$B$5=3,IF(C18="","",VLOOKUP(A18,Calendar!$A$3:$G$459,5,FALSE)),IF(C18="","",VLOOKUP(A18,Calendar!$A$3:$G$459,2,FALSE))) -> 2020-04-10 | I18: 0
A19: 411 | C19: =IF(ISNA(IF(Summary!$B$5=3,IF(VLOOKUP(A19,Calendar!$A$3:$G$459,7,FALSE)="S", "", VLOOKUP(A19,Calendar!$A$3:$G$459,7,FALSE)),IF(VLOOKUP(A19,Calendar!$A$3:$G$459,4,FALSE)="S", "", VLOOKUP(A19,Calendar!$A$3:$G$459,4,FALSE)))),"",IF(Summary!$B$5=3,IF(VLOOKUP(A19,Calendar!$A$3:$G$459,7,FALSE)="S", "", VLOOKUP(A19,Calendar!$A$3:$G$459,7,FALSE)),IF(VLOOKUP(A19,Calendar!$A$3:$G$459,4,FALSE)="S", "", VLOOKUP(A19,Calendar!$A$3:$G$459,4,FALSE)))) ->  | D19: =IF(Summary!$B$5=3,IF(C19="","",VLOOKUP(A19,Calendar!$A$3:$G$459,5,FALSE)),IF(C19="","",VLOOKUP(A19,Calendar!$A$3:$G$459,2,FALSE))) ->  | I19: 0
A20: 412 | C20: =IF(ISNA(IF(Summary!$B$5=3,IF(VLOOKUP(A20,Calendar!$A$3:$G$459,7,FALSE)="S", "", VLOOKUP(A20,Calendar!$A$3:$G$459,7,FALSE)),IF(VLOOKUP(A20,Calendar!$A$3:$G$459,4,FALSE)="S", "", VLOOKUP(A20,Calendar!$A$3:$G$459,4,FALSE)))),"",IF(Summary!$B$5=3,IF(VLOOKUP(A20,Calendar!$A$3:$G$459,7,FALSE)="S", "", VLOOKUP(A20,Calendar!$A$3:$G$459,7,FALSE)),IF(VLOOKUP(A20,Calendar!$A$3:$G$459,4,FALSE)="S", "", VLOOKUP(A20,Calendar!$A$3:$G$459,4,FALSE)))) ->  | D20: =IF(Summary!$B$5=3,IF(C20="","",VLOOKUP(A20,Calendar!$A$3:$G$459,5,FALSE)),IF(C20="","",VLOOKUP(A20,Calendar!$A$3:$G$459,2,FALSE))) ->  | I20: 0
A21: 413 | C21: =IF(ISNA(IF(Summary!$B$5=3,IF(VLOOKUP(A21,Calendar!$A$3:$G$459,7,FALSE)="S", "", VLOOKUP(A21,Calendar!$A$3:$G$459,7,FALSE)),IF(VLOOKUP(A21,Calendar!$A$3:$G$459,4,FALSE)="S", "", VLOOKUP(A21,Calendar!$A$3:$G$459,4,FALSE)))),"",IF(Summary!$B$5=3,IF(VLOOKUP(A21,Calendar!$A$3:$G$459,7,FALSE)="S", "", VLOOKUP(A21,Calendar!$A$3:$G$459,7,FALSE)),IF(VLOOKUP(A21,Calendar!$A$3:$G$459,4,FALSE)="S", "", VLOOKUP(A21,Calendar!$A$3:$G$459,4,FALSE)))) -> M | D21: =IF(Summary!$B$5=3,IF(C21="","",VLOOKUP(A21,Calendar!$A$3:$G$459,5,FALSE)),IF(C21="","",VLOOKUP(A21,Calendar!$A$3:$G$459,2,FALSE))) -> 2020-04-13 | I21: 0
A22: 414 | C22: =IF(ISNA(IF(Summary!$B$5=3,IF(VLOOKUP(A22,Calendar!$A$3:$G$459,7,FALSE)="S", "", VLOOKUP(A22,Calendar!$A$3:$G$459,7,FALSE)),IF(VLOOKUP(A22,Calendar!$A$3:$G$459,4,FALSE)="S", "", VLOOKUP(A22,Calendar!$A$3:$G$459,4,FALSE)))),"",IF(Summary!$B$5=3,IF(VLOOKUP(A22,Calendar!$A$3:$G$459,7,FALSE)="S", "", VLOOKUP(A22,Calendar!$A$3:$G$459,7,FALSE)),IF(VLOOKUP(A22,Calendar!$A$3:$G$459,4,FALSE)="S", "", VLOOKUP(A22,Calendar!$A$3:$G$459,4,FALSE)))) -> T | D22: =IF(Summary!$B$5=3,IF(C22="","",VLOOKUP(A22,Calendar!$A$3:$G$459,5,FALSE)),IF(C22="","",VLOOKUP(A22,Calendar!$A$3:$G$459,2,FALSE))) -> 2020-04-14 | I22: 0
A23: 415 | C23: =IF(ISNA(IF(Summary!$B$5=3,IF(VLOOKUP(A23,Calendar!$A$3:$G$459,7,FALSE)="S", "", VLOOKUP(A23,Calendar!$A$3:$G$459,7,FALSE)),IF(VLOOKUP(A23,Calendar!$A$3:$G$459,4,FALSE)="S", "", VLOOKUP(A23,Calendar!$A$3:$G$459,4,FALSE)))),"",IF(Summary!$B$5=3,IF(VLOOKUP(A23,Calendar!$A$3:$G$459,7,FALSE)="S", "", VLOOKUP(A23,Calendar!$A$3:$G$459,7,FALSE)),IF(VLOOKUP(A23,Calendar!$A$3:$G$459,4,FALSE)="S", "", VLOOKUP(A23,Calendar!$A$3:$G$459,4,FALSE)))) -> W | D23: =IF(Summary!$B$5=3,IF(C23="","",VLOOKUP(A23,Calendar!$A$3:$G$459,5,FALSE)),IF(C23="","",VLOOKUP(A23,Calendar!$A$3:$G$459,2,FALSE))) -> 2020-04-15 | I23: 0
A24: 416 | C24: =IF(ISNA(IF(Summary!$B$5=3,IF(VLOOKUP(A24,Calendar!$A$3:$G$459,7,FALSE)="S", "", VLOOKUP(A24,Calendar!$A$3:$G$459,7,FALSE)),IF(VLOOKUP(A24,Calendar!$A$3:$G$459,4,FALSE)="S", "", VLOOKUP(A24,Calendar!$A$3:$G$459,4,FALSE)))),"",IF(Summary!$B$5=3,IF(VLOOKUP(A24,Calendar!$A$3:$G$459,7,FALSE)="S", "", VLOOKUP(A24,Calendar!$A$3:$G$459,7,FALSE)),IF(VLOOKUP(A24,Calendar!$A$3:$G$459,4,FALSE)="S", "", VLOOKUP(A24,Calendar!$A$3:$G$459,4,FALSE)))) -> R | D24: =IF(Summary!$B$5=3,IF(C24="","",VLOOKUP(A24,Calendar!$A$3:$G$459,5,FALSE)),IF(C24="","",VLOOKUP(A24,Calendar!$A$3:$G$459,2,FALSE))) -> 2020-04-16 | I24: 0
A25: 417 | C25: =IF(ISNA(IF(Summary!$B$5=3,IF(VLOOKUP(A25,Calendar!$A$3:$G$459,7,FALSE)="S", "", VLOOKUP(A25,Calendar!$A$3:$G$459,7,FALSE)),IF(VLOOKUP(A25,Calendar!$A$3:$G$459,4,FALSE)="S", "", VLOOKUP(A25,Calendar!$A$3:$G$459,4,FALSE)))),"",IF(Summary!$B$5=3,IF(VLOOKUP(A25,Calendar!$A$3:$G$459,7,FALSE)="S", "", VLOOKUP(A25,Calendar!$A$3:$G$459,7,FALSE)),IF(VLOOKUP(A25,Calendar!$A$3:$G$459,4,FALSE)="S", "", VLOOKUP(A25,Calendar!$A$3:$G$459,4,FALSE)))) -> F | D25: =IF(Summary!$B$5=3,IF(C25="","",VLOOKUP(A25,Calendar!$A$3:$G$459,5,FALSE)),IF(C25="","",VLOOKUP(A25,Calendar!$A$3:$G$459,2,FALSE))) -> 2020-04-17 | I25: 0
A26: 418 | C26: =IF(ISNA(IF(Summary!$B$5=3,IF(VLOOKUP(A26,Calendar!$A$3:$G$459,7,FALSE)="S", "", VLOOKUP(A26,Calendar!$A$3:$G$459,7,FALSE)),IF(VLOOKUP(A26,Calendar!$A$3:$G$459,4,FALSE)="S", "", VLOOKUP(A26,Calendar!$A$3:$G$459,4,FALSE)))),"",IF(Summary!$B$5=3,IF(VLOOKUP(A26,Calendar!$A$3:$G$459,7,FALSE)="S", "", VLOOKUP(A26,Calendar!$A$3:$G$459,7,FALSE)),IF(VLOOKUP(A26,Calendar!$A$3:$G$459,4,FALSE)="S", "", VLOOKUP(A26,Calendar!$A$3:$G$459,4,FALSE)))) ->  | D26: =IF(Summary!$B$5=3,IF(C26="","",VLOOKUP(A26,Calendar!$A$3:$G$459,5,FALSE)),IF(C26="","",VLOOKUP(A26,Calendar!$A$3:$G$459,2,FALSE))) ->  | I26: 0
A27: 419 | C27: =IF(ISNA(IF(Summary!$B$5=3,IF(VLOOKUP(A27,Calendar!$A$3:$G$459,7,FALSE)="S", "", VLOOKUP(A27,Calendar!$A$3:$G$459,7,FALSE)),IF(VLOOKUP(A27,Calendar!$A$3:$G$459,4,FALSE)="S", "", VLOOKUP(A27,Calendar!$A$3:$G$459,4,FALSE)))),"",IF(Summary!$B$5=3,IF(VLOOKUP(A27,Calendar!$A$3:$G$459,7,FALSE)="S", "", VLOOKUP(A27,Calendar!$A$3:$G$459,7,FALSE)),IF(VLOOKUP(A27,Calendar!$A$3:$G$459,4,FALSE)="S", "", VLOOKUP(A27,Calendar!$A$3:$G$459,4,FALSE)))) ->  | D27: =IF(Summary!$B$5=3,IF(C27="","",VLOOKUP(A27,Calendar!$A$3:$G$459,5,FALSE)),IF(C27="","",VLOOKUP(A27,Calendar!$A$3:$G$459,2,FALSE))) ->  | I27: 0
A28: 420 | C28: =IF(ISNA(IF(Summary!$B$5=3,IF(VLOOKUP(A28,Calendar!$A$3:$G$459,7,FALSE)="S", "", VLOOKUP(A28,Calendar!$A$3:$G$459,7,FALSE)),IF(VLOOKUP(A28,Calendar!$A$3:$G$459,4,FALSE)="S", "", VLOOKUP(A28,Calendar!$A$3:$G$459,4,FALSE)))),"",IF(Summary!$B$5=3,IF(VLOOKUP(A28,Calendar!$A$3:$G$459,7,FALSE)="S", "", VLOOKUP(A28,Calendar!$A$3:$G$459,7,FALSE)),IF(VLOOKUP(A28,Calendar!$A$3:$G$459,4,FALSE)="S", "", VLOOKUP(A28,Calendar!$A$3:$G$459,4,FALSE)))) -> M | D28: =IF(Summary!$B$5=3,IF(C28="","",VLOOKUP(A28,Calendar!$A$3:$G$459,5,FALSE)),IF(C28="","",VLOOKUP(A28,Calendar!$A$3:$G$459,2,FALSE))) -> 2020-04-20 | I28: 0
A29: 421 | C29: =IF(ISNA(IF(Summary!$B$5=3,IF(VLOOKUP(A29,Calendar!$A$3:$G$459,7,FALSE)="S", "", VLOOKUP(A29,Calendar!$A$3:$G$459,7,FALSE)),IF(VLOOKUP(A29,Calendar!$A$3:$G$459,4,FALSE)="S", "", VLOOKUP(A29,Calendar!$A$3:$G$459,4,FALSE)))),"",IF(Summary!$B$5=3,IF(VLOOKUP(A29,Calendar!$A$3:$G$459,7,FALSE)="S", "", VLOOKUP(A29,Calendar!$A$3:$G$459,7,FALSE)),IF(VLOOKUP(A29,Calendar!$A$3:$G$459,4,FALSE)="S", "", VLOOKUP(A29,Calendar!$A$3:$G$459,4,FALSE)))) -> T | D29: =IF(Summary!$B$5=3,IF(C29="","",VLOOKUP(A29,Calendar!$A$3:$G$459,5,FALSE)),IF(C29="","",VLOOKUP(A29,Calendar!$A$3:$G$459,2,FALSE))) -> 2020-04-21 | I29: 0
A30: 422 | C30: =IF(ISNA(IF(Summary!$B$5=3,IF(VLOOKUP(A30,Calendar!$A$3:$G$459,7,FALSE)="S", "", VLOOKUP(A30,Calendar!$A$3:$G$459,7,FALSE)),IF(VLOOKUP(A30,Calendar!$A$3:$G$459,4,FALSE)="S", "", VLOOKUP(A30,Calendar!$A$3:$G$459,4,FALSE)))),"",IF(Summary!$B$5=3,IF(VLOOKUP(A30,Calendar!$A$3:$G$459,7,FALSE)="S", "", VLOOKUP(A30,Calendar!$A$3:$G$459,7,FALSE)),IF(VLOOKUP(A30,Calendar!$A$3:$G$459,4,FALSE)="S", "", VLOOKUP(A30,Calendar!$A$3:$G$459,4,FALSE)))) -> W | D30: =IF(Summary!$B$5=3,IF(C30="","",VLOOKUP(A30,Calendar!$A$3:$G$459,5,FALSE)),IF(C30="","",VLOOKUP(A30,Calendar!$A$3:$G$459,2,FALSE))) -> 2020-04-22 | I30: 0
A31: 423 | C31: =IF(ISNA(IF(Summary!$B$5=3,IF(VLOOKUP(A31,Calendar!$A$3:$G$459,7,FALSE)="S", "", VLOOKUP(A31,Calendar!$A$3:$G$459,7,FALSE)),IF(VLOOKUP(A31,Calendar!$A$3:$G$459,4,FALSE)="S", "", VLOOKUP(A31,Calendar!$A$3:$G$459,4,FALSE)))),"",IF(Summary!$B$5=3,IF(VLOOKUP(A31,Calendar!$A$3:$G$459,7,FALSE)="S", "", VLOOKUP(A31,Calendar!$A$3:$G$459,7,FALSE)),IF(VLOOKUP(A31,Calendar!$A$3:$G$459,4,FALSE)="S", "", VLOOKUP(A31,Calendar!$A$3:$G$459,4,FALSE)))) -> R | D31: =IF(Summary!$B$5=3,IF(C31="","",VLOOKUP(A31,Calendar!$A$3:$G$459,5,FALSE)),IF(C31="","",VLOOKUP(A31,Calendar!$A$3:$G$459,2,FALSE))) -> 2020-04-23 | I31: 0
A32: 424 | C32: =IF(ISNA(IF(Summary!$B$5=3,IF(VLOOKUP(A32,Calendar!$A$3:$G$459,7,FALSE)="S", "", VLOOKUP(A32,Calendar!$A$3:$G$459,7,FALSE)),IF(VLOOKUP(A32,Calendar!$A$3:$G$459,4,FALSE)="S", "", VLOOKUP(A32,Calendar!$A$3:$G$459,4,FALSE)))),"",IF(Summary!$B$5=3,IF(VLOOKUP(A32,Calendar!$A$3:$G$459,7,FALSE)="S", "", VLOOKUP(A32,Calendar!$A$3:$G$459,7,FALSE)),IF(VLOOKUP(A32,Calendar!$A$3:$G$459,4,FALSE)="S", "", VLOOKUP(A32,Calendar!$A$3:$G$459,4,FALSE)))) -> F | D32: =IF(Summary!$B$5=3,IF(C32="","",VLOOKUP(A32,Calendar!$A$3:$G$459,5,FALSE)),IF(C32="","",VLOOKUP(A32,Calendar!$A$3:$G$459,2,FALSE))) -> 2020-04-24 | I32: 0
A33: 425 | C33: =IF(ISNA(IF(Summary!$B$5=3,IF(VLOOKUP(A33,Calendar!$A$3:$G$459,7,FALSE)="S", "", VLOOKUP(A33,Calendar!$A$3:$G$459,7,FALSE)),IF(VLOOKUP(A33,Calendar!$A$3:$G$459,4,FALSE)="S", "", VLOOKUP(A33,Calendar!$A$3:$G$459,4,FALSE)))),"",IF(Summary!$B$5=3,IF(VLOOKUP(A33,Calendar!$A$3:$G$459,7,FALSE)="S", "", VLOOKUP(A33,Calendar!$A$3:$G$459,7,FALSE)),IF(VLOOKUP(A33,Calendar!$A$3:$G$459,4,FALSE)="S", "", VLOOKUP(A33,Calendar!$A$3:$G$459,4,FALSE)))) ->  | D33: =IF(Summary!$B$5=3,IF(C33="","",VLOOKUP(A33,Calendar!$A$3:$G$459,5,FALSE)),IF(C33="","",VLOOKUP(A33,Calendar!$A$3:$G$459,2,FALSE))) ->  | I33: 0
A34: 426 | C34: =IF(ISNA(IF(Summary!$B$5=3,IF(VLOOKUP(A34,Calendar!$A$3:$G$459,7,FALSE)="S", "", VLOOKUP(A34,Calendar!$A$3:$G$459,7,FALSE)),IF(VLOOKUP(A34,Calendar!$A$3:$G$459,4,FALSE)="S", "", VLOOKUP(A34,Calendar!$A$3:$G$459,4,FALSE)))),"",IF(Summary!$B$5=3,IF(VLOOKUP(A34,Calendar!$A$3:$G$459,7,FALSE)="S", "", VLOOKUP(A34,Calendar!$A$3:$G$459,7,FALSE)),IF(VLOOKUP(A34,Calendar!$A$3:$G$459,4,FALSE)="S", "", VLOOKUP(A34,Calendar!$A$3:$G$459,4,FALSE)))) ->  | D34: =IF(Summary!$B$5=3,IF(C34="","",VLOOKUP(A34,Calendar!$A$3:$G$459,5,FALSE)),IF(C34="","",VLOOKUP(A34,Calendar!$A$3:$G$459,2,FALSE))) ->  | I34: 0
A35: 427 | C35: =IF(ISNA(IF(Summary!$B$5=3,IF(VLOOKUP(A35,Calendar!$A$3:$G$459,7,FALSE)="S", "", VLOOKUP(A35,Calendar!$A$3:$G$459,7,FALSE)),IF(VLOOKUP(A35,Calendar!$A$3:$G$459,4,FALSE)="S", "", VLOOKUP(A35,Calendar!$A$3:$G$459,4,FALSE)))),"",IF(Summary!$B$5=3,IF(VLOOKUP(A35,Calendar!$A$3:$G$459,7,FALSE)="S", "", VLOOKUP(A35,Calendar!$A$3:$G$459,7,FALSE)),IF(VLOOKUP(A35,Calendar!$A$3:$G$459,4,FALSE)="S", "", VLOOKUP(A35,Calendar!$A$3:$G$459,4,FALSE)))) -> M | D35: =IF(Summary!$B$5=3,IF(C35="","",VLOOKUP(A35,Calendar!$A$3:$G$459,5,FALSE)),IF(C35="","",VLOOKUP(A35,Calendar!$A$3:$G$459,2,FALSE))) -> 2020-04-27 | I35: 0
A36: 428 | C36: =IF(ISNA(IF(Summary!$B$5=3,IF(VLOOKUP(A36,Calendar!$A$3:$G$459,7,FALSE)="S", "", VLOOKUP(A36,Calendar!$A$3:$G$459,7,FALSE)),IF(VLOOKUP(A36,Calendar!$A$3:$G$459,4,FALSE)="S", "", VLOOKUP(A36,Calendar!$A$3:$G$459,4,FALSE)))),"",IF(Summary!$B$5=3,IF(VLOOKUP(A36,Calendar!$A$3:$G$459,7,FALSE)="S", "", VLOOKUP(A36,Calendar!$A$3:$G$459,7,FALSE)),IF(VLOOKUP(A36,Calendar!$A$3:$G$459,4,FALSE)="S", "", VLOOKUP(A36,Calendar!$A$3:$G$459,4,FALSE)))) -> T | D36: =IF(Summary!$B$5=3,IF(C36="","",VLOOKUP(A36,Calendar!$A$3:$G$459,5,FALSE)),IF(C36="","",VLOOKUP(A36,Calendar!$A$3:$G$459,2,FALSE))) -> 2020-04-28 | I36: 0
A37: 429 | C37: =IF(ISNA(IF(Summary!$B$5=3,IF(VLOOKUP(A37,Calendar!$A$3:$G$459,7,FALSE)="S", "", VLOOKUP(A37,Calendar!$A$3:$G$459,7,FALSE)),IF(VLOOKUP(A37,Calendar!$A$3:$G$459,4,FALSE)="S", "", VLOOKUP(A37,Calendar!$A$3:$G$459,4,FALSE)))),"",IF(Summary!$B$5=3,IF(VLOOKUP(A37,Calendar!$A$3:$G$459,7,FALSE)="S", "", VLOOKUP(A37,Calendar!$A$3:$G$459,7,FALSE)),IF(VLOOKUP(A37,Calendar!$A$3:$G$459,4,FALSE)="S", "", VLOOKUP(A37,Calendar!$A$3:$G$459,4,FALSE)))) -> W | D37: =IF(Summary!$B$5=3,IF(C37="","",VLOOKUP(A37,Calendar!$A$3:$G$459,5,FALSE)),IF(C37="","",VLOOKUP(A37,Calendar!$A$3:$G$459,2,FALSE))) -> 2020-04-29 | I37: 0
A38: 430 | C38: =IF(ISNA(IF(Summary!$B$5=3,IF(VLOOKUP(A38,Calendar!$A$3:$G$459,7,FALSE)="S", "", VLOOKUP(A38,Calendar!$A$3:$G$459,7,FALSE)),IF(VLOOKUP(A38,Calendar!$A$3:$G$459,4,FALSE)="S", "", VLOOKUP(A38,Calendar!$A$3:$G$459,4,FALSE)))),"",IF(Summary!$B$5=3,IF(VLOOKUP(A38,Calendar!$A$3:$G$459,7,FALSE)="S", "", VLOOKUP(A38,Calendar!$A$3:$G$459,7,FALSE)),IF(VLOOKUP(A38,Calendar!$A$3:$G$459,4,FALSE)="S", "", VLOOKUP(A38,Calendar!$A$3:$G$459,4,FALSE)))) -> R | D38: =IF(Summary!$B$5=3,IF(C38="","",VLOOKUP(A38,Calendar!$A$3:$G$459,5,FALSE)),IF(C38="","",VLOOKUP(A38,Calendar!$A$3:$G$459,2,FALSE))) -> 2020-04-30 | I38: 0
C39: =IF(ISNA(IF(Summary!$B$5=3,IF(VLOOKUP(A39,Calendar!$A$3:$G$459,7,FALSE)="S", "", VLOOKUP(A39,Calendar!$A$3:$G$459,7,FALSE)),IF(VLOOKUP(A39,Calendar!$A$3:$G$459,4,FALSE)="S", "", VLOOKUP(A39,Calendar!$A$3:$G$459,4,FALSE)))),"",IF(Summary!$B$5=3,IF(VLOOKUP(A39,Calendar!$A$3:$G$459,7,FALSE)="S", "", VLOOKUP(A39,Calendar!$A$3:$G$459,7,FALSE)),IF(VLOOKUP(A39,Calendar!$A$3:$G$459,4,FALSE)="S", "", VLOOKUP(A39,Calendar!$A$3:$G$459,4,FALSE)))) ->  | D39: =IF(Summary!$B$5=3,IF(C39="","",VLOOKUP(A39,Calendar!$A$3:$G$459,5,FALSE)),IF(C39="","",VLOOKUP(A39,Calendar!$A$3:$G$459,2,FALSE))) ->  | I39: 0
D40: Total Minutes | E40: =SUM(E9:E39) -> 0 | F40: =SUM(F9:F39) -> 0 | G40: 0 | H40: 0 | I40: 0 | L40: =IF(SUM(E40:H40)>COUNTA(E9:E39)*390,"The sum total for all cost objectives exceeds the maximum anticipated value based upon the number of days worked. Confirm minutes claimed for each day.","") -> 
D41: Total Hours | E41: =E40/60 -> 0 | F41: =F40/60 -> 0 | G41: 0 | H41: 0 | I41: 0
C44: Notes
E56: Kansas State Department of Education | I56: Personnel Activity Report
E57: Fiscal Auditing | I57: Updated 9/20/18
E58: 785-296-4976
E59: https://www.ksde.org/Agency/Fiscal-and-Administrative-Services/Fiscal-Auditing
C62: The Kansas State Department of Education does not discriminate on the basis of race, color, national origin, sex, disability, or age in its programs and activities and provides equal access to the Boy Scouts and other designated youth groups. The following person has been designated to handle inquiries regarding the nondiscrimination policies: KSDE General Counsel, Office of General Counsel, KSDE, Landon State Office Building, 900 S.W. Jackson, Suite 102, Topeka, KS 66612, (785) 296-3204.

Sheet May
C3: Personnel Activity Report
C4: Regular School Year
C5: May
C6: =IF(Summary!$E$8<>"",Summary!$E$8," ") -> 
C7: =IF(Summary!$E$9<>"",Summary!$E$9," ") -> 
C8: Day | D8: Date | E8: Special Ed | F8: General Ed | G8: Other | H8: Other | I8: Totals | L8: =IF(OR(AND(F8="",COUNTA(F9:F39)>0),AND(G8="",COUNTA(G9:G39)>0),AND(H8="",COUNTA(H9:H39)>0)),"<<< You must identify the cost objective in the column heading.","") -> 
A9: 501 | C9: =IF(ISNA(IF(Summary!$B$5=3,IF(VLOOKUP(A9,Calendar!$A$34:$G$459,7,FALSE)="S", "", VLOOKUP(A9,Calendar!$A$34:$G$459,7,FALSE)),IF(VLOOKUP(A9,Calendar!$A$34:$G$459,4,FALSE)="S", "", VLOOKUP(A9,Calendar!$A$34:$G$459,4,FALSE)))),"",IF(Summary!$B$5=3,IF(VLOOKUP(A9,Calendar!$A$34:$G$459,7,FALSE)="S", "", VLOOKUP(A9,Calendar!$A$34:$G$459,7,FALSE)),IF(VLOOKUP(A9,Calendar!$A$34:$G$459,4,FALSE)="S", "", VLOOKUP(A9,Calendar!$A$34:$G$459,4,FALSE)))) -> F | D9: =IF(Summary!$B$5=3,IF(C9="","",VLOOKUP(A9,Calendar!$A$34:$G$459,5,FALSE)),IF(C9="","",VLOOKUP(A9,Calendar!$A$34:$G$459,2,FALSE))) -> 2020-05-01 | I9: =MIN(1440,SUM(E9:H9)) -> 0 | L9: =IF(I9>390, "<<< Day exceeds 390 minutes. Confirm reported time.","") -> 
A10: 502 | C10: =IF(ISNA(IF(Summary!$B$5=3,IF(VLOOKUP(A10,Calendar!$A$34:$G$459,7,FALSE)="S", "", VLOOKUP(A10,Calendar!$A$34:$G$459,7,FALSE)),IF(VLOOKUP(A10,Calendar!$A$34:$G$459,4,FALSE)="S", "", VLOOKUP(A10,Calendar!$A$34:$G$459,4,FALSE)))),"",IF(Summary!$B$5=3,IF(VLOOKUP(A10,Calendar!$A$34:$G$459,7,FALSE)="S", "", VLOOKUP(A10,Calendar!$A$34:$G$459,7,FALSE)),IF(VLOOKUP(A10,Calendar!$A$34:$G$459,4,FALSE)="S", "", VLOOKUP(A10,Calendar!$A$34:$G$459,4,FALSE)))) ->  | D10: =IF(Summary!$B$5=3,IF(C10="","",VLOOKUP(A10,Calendar!$A$34:$G$459,5,FALSE)),IF(C10="","",VLOOKUP(A10,Calendar!$A$34:$G$459,2,FALSE))) ->  | I10: =MIN(1440,SUM(E10:H10)) -> 0 | L10: =IF(I10>390, "<<< Day exceeds 390 minutes. Confirm reported time.","") -> 
A11: 503 | C11: =IF(ISNA(IF(Summary!$B$5=3,IF(VLOOKUP(A11,Calendar!$A$34:$G$459,7,FALSE)="S", "", VLOOKUP(A11,Calendar!$A$34:$G$459,7,FALSE)),IF(VLOOKUP(A11,Calendar!$A$34:$G$459,4,FALSE)="S", "", VLOOKUP(A11,Calendar!$A$34:$G$459,4,FALSE)))),"",IF(Summary!$B$5=3,IF(VLOOKUP(A11,Calendar!$A$34:$G$459,7,FALSE)="S", "", VLOOKUP(A11,Calendar!$A$34:$G$459,7,FALSE)),IF(VLOOKUP(A11,Calendar!$A$34:$G$459,4,FALSE)="S", "", VLOOKUP(A11,Calendar!$A$34:$G$459,4,FALSE)))) ->  | D11: =IF(Summary!$B$5=3,IF(C11="","",VLOOKUP(A11,Calendar!$A$34:$G$459,5,FALSE)),IF(C11="","",VLOOKUP(A11,Calendar!$A$34:$G$459,2,FALSE))) ->  | I11: 0
A12: 504 | C12: =IF(ISNA(IF(Summary!$B$5=3,IF(VLOOKUP(A12,Calendar!$A$34:$G$459,7,FALSE)="S", "", VLOOKUP(A12,Calendar!$A$34:$G$459,7,FALSE)),IF(VLOOKUP(A12,Calendar!$A$34:$G$459,4,FALSE)="S", "", VLOOKUP(A12,Calendar!$A$34:$G$459,4,FALSE)))),"",IF(Summary!$B$5=3,IF(VLOOKUP(A12,Calendar!$A$34:$G$459,7,FALSE)="S", "", VLOOKUP(A12,Calendar!$A$34:$G$459,7,FALSE)),IF(VLOOKUP(A12,Calendar!$A$34:$G$459,4,FALSE)="S", "", VLOOKUP(A12,Calendar!$A$34:$G$459,4,FALSE)))) -> M | D12: =IF(Summary!$B$5=3,IF(C12="","",VLOOKUP(A12,Calendar!$A$34:$G$459,5,FALSE)),IF(C12="","",VLOOKUP(A12,Calendar!$A$34:$G$459,2,FALSE))) -> 2020-05-04 | I12: 0
A13: 505 | C13: =IF(ISNA(IF(Summary!$B$5=3,IF(VLOOKUP(A13,Calendar!$A$34:$G$459,7,FALSE)="S", "", VLOOKUP(A13,Calendar!$A$34:$G$459,7,FALSE)),IF(VLOOKUP(A13,Calendar!$A$34:$G$459,4,FALSE)="S", "", VLOOKUP(A13,Calendar!$A$34:$G$459,4,FALSE)))),"",IF(Summary!$B$5=3,IF(VLOOKUP(A13,Calendar!$A$34:$G$459,7,FALSE)="S", "", VLOOKUP(A13,Calendar!$A$34:$G$459,7,FALSE)),IF(VLOOKUP(A13,Calendar!$A$34:$G$459,4,FALSE)="S", "", VLOOKUP(A13,Calendar!$A$34:$G$459,4,FALSE)))) -> T | D13: =IF(Summary!$B$5=3,IF(C13="","",VLOOKUP(A13,Calendar!$A$34:$G$459,5,FALSE)),IF(C13="","",VLOOKUP(A13,Calendar!$A$34:$G$459,2,FALSE))) -> 2020-05-05 | I13: 0
A14: 506 | C14: =IF(ISNA(IF(Summary!$B$5=3,IF(VLOOKUP(A14,Calendar!$A$34:$G$459,7,FALSE)="S", "", VLOOKUP(A14,Calendar!$A$34:$G$459,7,FALSE)),IF(VLOOKUP(A14,Calendar!$A$34:$G$459,4,FALSE)="S", "", VLOOKUP(A14,Calendar!$A$34:$G$459,4,FALSE)))),"",IF(Summary!$B$5=3,IF(VLOOKUP(A14,Calendar!$A$34:$G$459,7,FALSE)="S", "", VLOOKUP(A14,Calendar!$A$34:$G$459,7,FALSE)),IF(VLOOKUP(A14,Calendar!$A$34:$G$459,4,FALSE)="S", "", VLOOKUP(A14,Calendar!$A$34:$G$459,4,FALSE)))) -> W | D14: =IF(Summary!$B$5=3,IF(C14="","",VLOOKUP(A14,Calendar!$A$34:$G$459,5,FALSE)),IF(C14="","",VLOOKUP(A14,Calendar!$A$34:$G$459,2,FALSE))) -> 2020-05-06 | I14: 0
A15: 507 | C15: =IF(ISNA(IF(Summary!$B$5=3,IF(VLOOKUP(A15,Calendar!$A$34:$G$459,7,FALSE)="S", "", VLOOKUP(A15,Calendar!$A$34:$G$459,7,FALSE)),IF(VLOOKUP(A15,Calendar!$A$34:$G$459,4,FALSE)="S", "", VLOOKUP(A15,Calendar!$A$34:$G$459,4,FALSE)))),"",IF(Summary!$B$5=3,IF(VLOOKUP(A15,Calendar!$A$34:$G$459,7,FALSE)="S", "", VLOOKUP(A15,Calendar!$A$34:$G$459,7,FALSE)),IF(VLOOKUP(A15,Calendar!$A$34:$G$459,4,FALSE)="S", "", VLOOKUP(A15,Calendar!$A$34:$G$459,4,FALSE)))) -> R | D15: =IF(Summary!$B$5=3,IF(C15="","",VLOOKUP(A15,Calendar!$A$34:$G$459,5,FALSE)),IF(C15="","",VLOOKUP(A15,Calendar!$A$34:$G$459,2,FALSE))) -> 2020-05-07 | I15: 0
A16: 508 | C16: =IF(ISNA(IF(Summary!$B$5=3,IF(VLOOKUP(A16,Calendar!$A$34:$G$459,7,FALSE)="S", "", VLOOKUP(A16,Calendar!$A$34:$G$459,7,FALSE)),IF(VLOOKUP(A16,Calendar!$A$34:$G$459,4,FALSE)="S", "", VLOOKUP(A16,Calendar!$A$34:$G$459,4,FALSE)))),"",IF(Summary!$B$5=3,IF(VLOOKUP(A16,Calendar!$A$34:$G$459,7,FALSE)="S", "", VLOOKUP(A16,Calendar!$A$34:$G$459,7,FALSE)),IF(VLOOKUP(A16,Calendar!$A$34:$G$459,4,FALSE)="S", "", VLOOKUP(A16,Calendar!$A$34:$G$459,4,FALSE)))) -> F | D16: =IF(Summary!$B$5=3,IF(C16="","",VLOOKUP(A16,Calendar!$A$34:$G$459,5,FALSE)),IF(C16="","",VLOOKUP(A16,Calendar!$A$34:$G$459,2,FALSE))) -> 2020-05-08 | I16: 0
A17: 509 | C17: =IF(ISNA(IF(Summary!$B$5=3,IF(VLOOKUP(A17,Calendar!$A$34:$G$459,7,FALSE)="S", "", VLOOKUP(A17,Calendar!$A$34:$G$459,7,FALSE)),IF(VLOOKUP(A17,Calendar!$A$34:$G$459,4,FALSE)="S", "", VLOOKUP(A17,Calendar!$A$34:$G$459,4,FALSE)))),"",IF(Summary!$B$5=3,IF(VLOOKUP(A17,Calendar!$A$34:$G$459,7,FALSE)="S", "", VLOOKUP(A17,Calendar!$A$34:$G$459,7,FALSE)),IF(VLOOKUP(A17,Calendar!$A$34:$G$459,4,FALSE)="S", "", VLOOKUP(A17,Calendar!$A$34:$G$459,4,FALSE)))) ->  | D17: =IF(Summary!$B$5=3,IF(C17="","",VLOOKUP(A17,Calendar!$A$34:$G$459,5,FALSE)),IF(C17="","",VLOOKUP(A17,Calendar!$A$34:$G$459,2,FALSE))) ->  | I17: 0
A18: 510 | C18: =IF(ISNA(IF(Summary!$B$5=3,IF(VLOOKUP(A18,Calendar!$A$34:$G$459,7,FALSE)="S", "", VLOOKUP(A18,Calendar!$A$34:$G$459,7,FALSE)),IF(VLOOKUP(A18,Calendar!$A$34:$G$459,4,FALSE)="S", "", VLOOKUP(A18,Calendar!$A$34:$G$459,4,FALSE)))),"",IF(Summary!$B$5=3,IF(VLOOKUP(A18,Calendar!$A$34:$G$459,7,FALSE)="S", "", VLOOKUP(A18,Calendar!$A$34:$G$459,7,FALSE)),IF(VLOOKUP(A18,Calendar!$A$34:$G$459,4,FALSE)="S", "", VLOOKUP(A18,Calendar!$A$34:$G$459,4,FALSE)))) ->  | D18: =IF(Summary!$B$5=3,IF(C18="","",VLOOKUP(A18,Calendar!$A$34:$G$459,5,FALSE)),IF(C18="","",VLOOKUP(A18,Calendar!$A$34:$G$459,2,FALSE))) ->  | I18: 0
A19: 511 | C19: =IF(ISNA(IF(Summary!$B$5=3,IF(VLOOKUP(A19,Calendar!$A$34:$G$459,7,FALSE)="S", "", VLOOKUP(A19,Calendar!$A$34:$G$459,7,FALSE)),IF(VLOOKUP(A19,Calendar!$A$34:$G$459,4,FALSE)="S", "", VLOOKUP(A19,Calendar!$A$34:$G$459,4,FALSE)))),"",IF(Summary!$B$5=3,IF(VLOOKUP(A19,Calendar!$A$34:$G$459,7,FALSE)="S", "", VLOOKUP(A19,Calendar!$A$34:$G$459,7,FALSE)),IF(VLOOKUP(A19,Calendar!$A$34:$G$459,4,FALSE)="S", "", VLOOKUP(A19,Calendar!$A$34:$G$459,4,FALSE)))) -> M | D19: =IF(Summary!$B$5=3,IF(C19="","",VLOOKUP(A19,Calendar!$A$34:$G$459,5,FALSE)),IF(C19="","",VLOOKUP(A19,Calendar!$A$34:$G$459,2,FALSE))) -> 2020-05-11 | I19: 0
A20: 512 | C20: =IF(ISNA(IF(Summary!$B$5=3,IF(VLOOKUP(A20,Calendar!$A$34:$G$459,7,FALSE)="S", "", VLOOKUP(A20,Calendar!$A$34:$G$459,7,FALSE)),IF(VLOOKUP(A20,Calendar!$A$34:$G$459,4,FALSE)="S", "", VLOOKUP(A20,Calendar!$A$34:$G$459,4,FALSE)))),"",IF(Summary!$B$5=3,IF(VLOOKUP(A20,Calendar!$A$34:$G$459,7,FALSE)="S", "", VLOOKUP(A20,Calendar!$A$34:$G$459,7,FALSE)),IF(VLOOKUP(A20,Calendar!$A$34:$G$459,4,FALSE)="S", "", VLOOKUP(A20,Calendar!$A$34:$G$459,4,FALSE)))) -> T | D20: =IF(Summary!$B$5=3,IF(C20="","",VLOOKUP(A20,Calendar!$A$34:$G$459,5,FALSE)),IF(C20="","",VLOOKUP(A20,Calendar!$A$34:$G$459,2,FALSE))) -> 2020-05-12 | I20: 0
A21: 513 | C21: =IF(ISNA(IF(Summary!$B$5=3,IF(VLOOKUP(A21,Calendar!$A$34:$G$459,7,FALSE)="S", "", VLOOKUP(A21,Calendar!$A$34:$G$459,7,FALSE)),IF(VLOOKUP(A21,Calendar!$A$34:$G$459,4,FALSE)="S", "", VLOOKUP(A21,Calendar!$A$34:$G$459,4,FALSE)))),"",IF(Summary!$B$5=3,IF(VLOOKUP(A21,Calendar!$A$34:$G$459,7,FALSE)="S", "", VLOOKUP(A21,Calendar!$A$34:$G$459,7,FALSE)),IF(VLOOKUP(A21,Calendar!$A$34:$G$459,4,FALSE)="S", "", VLOOKUP(A21,Calendar!$A$34:$G$459,4,FALSE)))) -> W | D21: =IF(Summary!$B$5=3,IF(C21="","",VLOOKUP(A21,Calendar!$A$34:$G$459,5,FALSE)),IF(C21="","",VLOOKUP(A21,Calendar!$A$34:$G$459,2,FALSE))) -> 2020-05-13 | I21: 0
A22: 514 | C22: =IF(ISNA(IF(Summary!$B$5=3,IF(VLOOKUP(A22,Calendar!$A$34:$G$459,7,FALSE)="S", "", VLOOKUP(A22,Calendar!$A$34:$G$459,7,FALSE)),IF(VLOOKUP(A22,Calendar!$A$34:$G$459,4,FALSE)="S", "", VLOOKUP(A22,Calendar!$A$34:$G$459,4,FALSE)))),"",IF(Summary!$B$5=3,IF(VLOOKUP(A22,Calendar!$A$34:$G$459,7,FALSE)="S", "", VLOOKUP(A22,Calendar!$A$34:$G$459,7,FALSE)),IF(VLOOKUP(A22,Calendar!$A$34:$G$459,4,FALSE)="S", "", VLOOKUP(A22,Calendar!$A$34:$G$459,4,FALSE)))) -> R | D22: =IF(Summary!$B$5=3,IF(C22="","",VLOOKUP(A22,Calendar!$A$34:$G$459,5,FALSE)),IF(C22="","",VLOOKUP(A22,Calendar!$A$34:$G$459,2,FALSE))) -> 2020-05-14 | I22: 0
A23: 515 | C23: =IF(ISNA(IF(Summary!$B$5=3,IF(VLOOKUP(A23,Calendar!$A$34:$G$459,7,FALSE)="S", "", VLOOKUP(A23,Calendar!$A$34:$G$459,7,FALSE)),IF(VLOOKUP(A23,Calendar!$A$34:$G$459,4,FALSE)="S", "", VLOOKUP(A23,Calendar!$A$34:$G$459,4,FALSE)))),"",IF(Summary!$B$5=3,IF(VLOOKUP(A23,Calendar!$A$34:$G$459,7,FALSE)="S", "", VLOOKUP(A23,Calendar!$A$34:$G$459,7,FALSE)),IF(VLOOKUP(A23,Calendar!$A$34:$G$459,4,FALSE)="S", "", VLOOKUP(A23,Calendar!$A$34:$G$459,4,FALSE)))) -> F | D23: =IF(Summary!$B$5=3,IF(C23="","",VLOOKUP(A23,Calendar!$A$34:$G$459,5,FALSE)),IF(C23="","",VLOOKUP(A23,Calendar!$A$34:$G$459,2,FALSE))) -> 2020-05-15 | I23: 0
A24: 516 | C24: =IF(ISNA(IF(Summary!$B$5=3,IF(VLOOKUP(A24,Calendar!$A$34:$G$459,7,FALSE)="S", "", VLOOKUP(A24,Calendar!$A$34:$G$459,7,FALSE)),IF(VLOOKUP(A24,Calendar!$A$34:$G$459,4,FALSE)="S", "", VLOOKUP(A24,Calendar!$A$34:$G$459,4,FALSE)))),"",IF(Summary!$B$5=3,IF(VLOOKUP(A24,Calendar!$A$34:$G$459,7,FALSE)="S", "", VLOOKUP(A24,Calendar!$A$34:$G$459,7,FALSE)),IF(VLOOKUP(A24,Calendar!$A$34:$G$459,4,FALSE)="S", "", VLOOKUP(A24,Calendar!$A$34:$G$459,4,FALSE)))) ->  | D24: =IF(Summary!$B$5=3,IF(C24="","",VLOOKUP(A24,Calendar!$A$34:$G$459,5,FALSE)),IF(C24="","",VLOOKUP(A24,Calendar!$A$34:$G$459,2,FALSE))) ->  | I24: 0
A25: 517 | C25: =IF(ISNA(IF(Summary!$B$5=3,IF(VLOOKUP(A25,Calendar!$A$34:$G$459,7,FALSE)="S", "", VLOOKUP(A25,Calendar!$A$34:$G$459,7,FALSE)),IF(VLOOKUP(A25,Calendar!$A$34:$G$459,4,FALSE)="S", "", VLOOKUP(A25,Calendar!$A$34:$G$459,4,FALSE)))),"",IF(Summary!$B$5=3,IF(VLOOKUP(A25,Calendar!$A$34:$G$459,7,FALSE)="S", "", VLOOKUP(A25,Calendar!$A$34:$G$459,7,FALSE)),IF(VLOOKUP(A25,Calendar!$A$34:$G$459,4,FALSE)="S", "", VLOOKUP(A25,Calendar!$A$34:$G$459,4,FALSE)))) ->  | D25: =IF(Summary!$B$5=3,IF(C25="","",VLOOKUP(A25,Calendar!$A$34:$G$459,5,FALSE)),IF(C25="","",VLOOKUP(A25,Calendar!$A$34:$G$459,2,FALSE))) ->  | I25: 0
A26: 518 | C26: =IF(ISNA(IF(Summary!$B$5=3,IF(VLOOKUP(A26,Calendar!$A$34:$G$459,7,FALSE)="S", "", VLOOKUP(A26,Calendar!$A$34:$G$459,7,FALSE)),IF(VLOOKUP(A26,Calendar!$A$34:$G$459,4,FALSE)="S", "", VLOOKUP(A26,Calendar!$A$34:$G$459,4,FALSE)))),"",IF(Summary!$B$5=3,IF(VLOOKUP(A26,Calendar!$A$34:$G$459,7,FALSE)="S", "", VLOOKUP(A26,Calendar!$A$34:$G$459,7,FALSE)),IF(VLOOKUP(A26,Calendar!$A$34:$G$459,4,FALSE)="S", "", VLOOKUP(A26,Calendar!$A$34:$G$459,4,FALSE)))) -> M | D26: =IF(Summary!$B$5=3,IF(C26="","",VLOOKUP(A26,Calendar!$A$34:$G$459,5,FALSE)),IF(C26="","",VLOOKUP(A26,Calendar!$A$34:$G$459,2,FALSE))) -> 2020-05-18 | I26: 0
A27: 519 | C27: =IF(ISNA(IF(Summary!$B$5=3,IF(VLOOKUP(A27,Calendar!$A$34:$G$459,7,FALSE)="S", "", VLOOKUP(A27,Calendar!$A$34:$G$459,7,FALSE)),IF(VLOOKUP(A27,Calendar!$A$34:$G$459,4,FALSE)="S", "", VLOOKUP(A27,Calendar!$A$34:$G$459,4,FALSE)))),"",IF(Summary!$B$5=3,IF(VLOOKUP(A27,Calendar!$A$34:$G$459,7,FALSE)="S", "", VLOOKUP(A27,Calendar!$A$34:$G$459,7,FALSE)),IF(VLOOKUP(A27,Calendar!$A$34:$G$459,4,FALSE)="S", "", VLOOKUP(A27,Calendar!$A$34:$G$459,4,FALSE)))) -> T | D27: =IF(Summary!$B$5=3,IF(C27="","",VLOOKUP(A27,Calendar!$A$34:$G$459,5,FALSE)),IF(C27="","",VLOOKUP(A27,Calendar!$A$34:$G$459,2,FALSE))) -> 2020-05-19 | I27: 0
A28: 520 | C28: =IF(ISNA(IF(Summary!$B$5=3,IF(VLOOKUP(A28,Calendar!$A$34:$G$459,7,FALSE)="S", "", VLOOKUP(A28,Calendar!$A$34:$G$459,7,FALSE)),IF(VLOOKUP(A28,Calendar!$A$34:$G$459,4,FALSE)="S", "", VLOOKUP(A28,Calendar!$A$34:$G$459,4,FALSE)))),"",IF(Summary!$B$5=3,IF(VLOOKUP(A28,Calendar!$A$34:$G$459,7,FALSE)="S", "", VLOOKUP(A28,Calendar!$A$34:$G$459,7,FALSE)),IF(VLOOKUP(A28,Calendar!$A$34:$G$459,4,FALSE)="S", "", VLOOKUP(A28,Calendar!$A$34:$G$459,4,FALSE)))) -> W | D28: =IF(Summary!$B$5=3,IF(C28="","",VLOOKUP(A28,Calendar!$A$34:$G$459,5,FALSE)),IF(C28="","",VLOOKUP(A28,Calendar!$A$34:$G$459,2,FALSE))) -> 2020-05-20 | I28: 0
A29: 521 | C29: =IF(ISNA(IF(Summary!$B$5=3,IF(VLOOKUP(A29,Calendar!$A$34:$G$459,7,FALSE)="S", "", VLOOKUP(A29,Calendar!$A$34:$G$459,7,FALSE)),IF(VLOOKUP(A29,Calendar!$A$34:$G$459,4,FALSE)="S", "", VLOOKUP(A29,Calendar!$A$34:$G$459,4,FALSE)))),"",IF(Summary!$B$5=3,IF(VLOOKUP(A29,Calendar!$A$34:$G$459,7,FALSE)="S", "", VLOOKUP(A29,Calendar!$A$34:$G$459,7,FALSE)),IF(VLOOKUP(A29,Calendar!$A$34:$G$459,4,FALSE)="S", "", VLOOKUP(A29,Calendar!$A$34:$G$459,4,FALSE)))) -> R | D29: =IF(Summary!$B$5=3,IF(C29="","",VLOOKUP(A29,Calendar!$A$34:$G$459,5,FALSE)),IF(C29="","",VLOOKUP(A29,Calendar!$A$34:$G$459,2,FALSE))) -> 2020-05-21 | I29: 0
A30: 522 | C30: =IF(ISNA(IF(Summary!$B$5=3,IF(VLOOKUP(A30,Calendar!$A$34:$G$459,7,FALSE)="S", "", VLOOKUP(A30,Calendar!$A$34:$G$459,7,FALSE)),IF(VLOOKUP(A30,Calendar!$A$34:$G$459,4,FALSE)="S", "", VLOOKUP(A30,Calendar!$A$34:$G$459,4,FALSE)))),"",IF(Summary!$B$5=3,IF(VLOOKUP(A30,Calendar!$A$34:$G$459,7,FALSE)="S", "", VLOOKUP(A30,Calendar!$A$34:$G$459,7,FALSE)),IF(VLOOKUP(A30,Calendar!$A$34:$G$459,4,FALSE)="S", "", VLOOKUP(A30,Calendar!$A$34:$G$459,4,FALSE)))) -> F | D30: =IF(Summary!$B$5=3,IF(C30="","",VLOOKUP(A30,Calendar!$A$34:$G$459,5,FALSE)),IF(C30="","",VLOOKUP(A30,Calendar!$A$34:$G$459,2,FALSE))) -> 2020-05-22 | I30: 0
A31: 523 | C31: =IF(ISNA(IF(Summary!$B$5=3,IF(VLOOKUP(A31,Calendar!$A$34:$G$459,7,FALSE)="S", "", VLOOKUP(A31,Calendar!$A$34:$G$459,7,FALSE)),IF(VLOOKUP(A31,Calendar!$A$34:$G$459,4,FALSE)="S", "", VLOOKUP(A31,Calendar!$A$34:$G$459,4,FALSE)))),"",IF(Summary!$B$5=3,IF(VLOOKUP(A31,Calendar!$A$34:$G$459,7,FALSE)="S", "", VLOOKUP(A31,Calendar!$A$34:$G$459,7,FALSE)),IF(VLOOKUP(A31,Calendar!$A$34:$G$459,4,FALSE)="S", "", VLOOKUP(A31,Calendar!$A$34:$G$459,4,FALSE)))) ->  | D31: =IF(Summary!$B$5=3,IF(C31="","",VLOOKUP(A31,Calendar!$A$34:$G$459,5,FALSE)),IF(C31="","",VLOOKUP(A31,Calendar!$A$34:$G$459,2,FALSE))) ->  | I31: 0
A32: 524 | C32: =IF(ISNA(IF(Summary!$B$5=3,IF(VLOOKUP(A32,Calendar!$A$34:$G$459,7,FALSE)="S", "", VLOOKUP(A32,Calendar!$A$34:$G$459,7,FALSE)),IF(VLOOKUP(A32,Calendar!$A$34:$G$459,4,FALSE)="S", "", VLOOKUP(A32,Calendar!$A$34:$G$459,4,FALSE)))),"",IF(Summary!$B$5=3,IF(VLOOKUP(A32,Calendar!$A$34:$G$459,7,FALSE)="S", "", VLOOKUP(A32,Calendar!$A$34:$G$459,7,FALSE)),IF(VLOOKUP(A32,Calendar!$A$34:$G$459,4,FALSE)="S", "", VLOOKUP(A32,Calendar!$A$34:$G$459,4,FALSE)))) ->  | D32: =IF(Summary!$B$5=3,IF(C32="","",VLOOKUP(A32,Calendar!$A$34:$G$459,5,FALSE)),IF(C32="","",VLOOKUP(A32,Calendar!$A$34:$G$459,2,FALSE))) ->  | I32: 0
A33: 525 | C33: =IF(ISNA(IF(Summary!$B$5=3,IF(VLOOKUP(A33,Calendar!$A$34:$G$459,7,FALSE)="S", "", VLOOKUP(A33,Calendar!$A$34:$G$459,7,FALSE)),IF(VLOOKUP(A33,Calendar!$A$34:$G$459,4,FALSE)="S", "", VLOOKUP(A33,Calendar!$A$34:$G$459,4,FALSE)))),"",IF(Summary!$B$5=3,IF(VLOOKUP(A33,Calendar!$A$34:$G$459,7,FALSE)="S", "", VLOOKUP(A33,Calendar!$A$34:$G$459,7,FALSE)),IF(VLOOKUP(A33,Calendar!$A$34:$G$459,4,FALSE)="S", "", VLOOKUP(A33,Calendar!$A$34:$G$459,4,FALSE)))) -> M | D33: =IF(Summary!$B$5=3,IF(C33="","",VLOOKUP(A33,Calendar!$A$34:$G$459,5,FALSE)),IF(C33="","",VLOOKUP(A33,Calendar!$A$34:$G$459,2,FALSE))) -> 2020-05-25 | I33: 0
A34: 526 | C34: =IF(ISNA(IF(Summary!$B$5=3,IF(VLOOKUP(A34,Calendar!$A$34:$G$459,7,FALSE)="S", "", VLOOKUP(A34,Calendar!$A$34:$G$459,7,FALSE)),IF(VLOOKUP(A34,Calendar!$A$34:$G$459,4,FALSE)="S", "", VLOOKUP(A34,Calendar!$A$34:$G$459,4,FALSE)))),"",IF(Summary!$B$5=3,IF(VLOOKUP(A34,Calendar!$A$34:$G$459,7,FALSE)="S", "", VLOOKUP(A34,Calendar!$A$34:$G$459,7,FALSE)),IF(VLOOKUP(A34,Calendar!$A$34:$G$459,4,FALSE)="S", "", VLOOKUP(A34,Calendar!$A$34:$G$459,4,FALSE)))) -> T | D34: =IF(Summary!$B$5=3,IF(C34="","",VLOOKUP(A34,Calendar!$A$34:$G$459,5,FALSE)),IF(C34="","",VLOOKUP(A34,Calendar!$A$34:$G$459,2,FALSE))) -> 2020-05-26 | I34: 0
A35: 527 | C35: =IF(ISNA(IF(Summary!$B$5=3,IF(VLOOKUP(A35,Calendar!$A$34:$G$459,7,FALSE)="S", "", VLOOKUP(A35,Calendar!$A$34:$G$459,7,FALSE)),IF(VLOOKUP(A35,Calendar!$A$34:$G$459,4,FALSE)="S", "", VLOOKUP(A35,Calendar!$A$34:$G$459,4,FALSE)))),"",IF(Summary!$B$5=3,IF(VLOOKUP(A35,Calendar!$A$34:$G$459,7,FALSE)="S", "", VLOOKUP(A35,Calendar!$A$34:$G$459,7,FALSE)),IF(VLOOKUP(A35,Calendar!$A$34:$G$459,4,FALSE)="S", "", VLOOKUP(A35,Calendar!$A$34:$G$459,4,FALSE)))) -> W | D35: =IF(Summary!$B$5=3,IF(C35="","",VLOOKUP(A35,Calendar!$A$34:$G$459,5,FALSE)),IF(C35="","",VLOOKUP(A35,Calendar!$A$34:$G$459,2,FALSE))) -> 2020-05-27 | I35: 0
A36: 528 | C36: =IF(ISNA(IF(Summary!$B$5=3,IF(VLOOKUP(A36,Calendar!$A$34:$G$459,7,FALSE)="S", "", VLOOKUP(A36,Calendar!$A$34:$G$459,7,FALSE)),IF(VLOOKUP(A36,Calendar!$A$34:$G$459,4,FALSE)="S", "", VLOOKUP(A36,Calendar!$A$34:$G$459,4,FALSE)))),"",IF(Summary!$B$5=3,IF(VLOOKUP(A36,Calendar!$A$34:$G$459,7,FALSE)="S", "", VLOOKUP(A36,Calendar!$A$34:$G$459,7,FALSE)),IF(VLOOKUP(A36,Calendar!$A$34:$G$459,4,FALSE)="S", "", VLOOKUP(A36,Calendar!$A$34:$G$459,4,FALSE)))) -> R | D36: =IF(Summary!$B$5=3,IF(C36="","",VLOOKUP(A36,Calendar!$A$34:$G$459,5,FALSE)),IF(C36="","",VLOOKUP(A36,Calendar!$A$34:$G$459,2,FALSE))) -> 2020-05-28 | I36: 0
A37: 529 | C37: =IF(ISNA(IF(Summary!$B$5=3,IF(VLOOKUP(A37,Calendar!$A$34:$G$459,7,FALSE)="S", "", VLOOKUP(A37,Calendar!$A$34:$G$459,7,FALSE)),IF(VLOOKUP(A37,Calendar!$A$34:$G$459,4,FALSE)="S", "", VLOOKUP(A37,Calendar!$A$34:$G$459,4,FALSE)))),"",IF(Summary!$B$5=3,IF(VLOOKUP(A37,Calendar!$A$34:$G$459,7,FALSE)="S", "", VLOOKUP(A37,Calendar!$A$34:$G$459,7,FALSE)),IF(VLOOKUP(A37,Calendar!$A$34:$G$459,4,FALSE)="S", "", VLOOKUP(A37,Calendar!$A$34:$G$459,4,FALSE)))) -> F | D37: =IF(Summary!$B$5=3,IF(C37="","",VLOOKUP(A37,Calendar!$A$34:$G$459,5,FALSE)),IF(C37="","",VLOOKUP(A37,Calendar!$A$34:$G$459,2,FALSE))) -> 2020-05-29 | I37: 0
A38: 530 | C38: =IF(ISNA(IF(Summary!$B$5=3,IF(VLOOKUP(A38,Calendar!$A$34:$G$459,7,FALSE)="S", "", VLOOKUP(A38,Calendar!$A$34:$G$459,7,FALSE)),IF(VLOOKUP(A38,Calendar!$A$34:$G$459,4,FALSE)="S", "", VLOOKUP(A38,Calendar!$A$34:$G$459,4,FALSE)))),"",IF(Summary!$B$5=3,IF(VLOOKUP(A38,Calendar!$A$34:$G$459,7,FALSE)="S", "", VLOOKUP(A38,Calendar!$A$34:$G$459,7,FALSE)),IF(VLOOKUP(A38,Calendar!$A$34:$G$459,4,FALSE)="S", "", VLOOKUP(A38,Calendar!$A$34:$G$459,4,FALSE)))) ->  | D38: =IF(Summary!$B$5=3,IF(C38="","",VLOOKUP(A38,Calendar!$A$34:$G$459,5,FALSE)),IF(C38="","",VLOOKUP(A38,Calendar!$A$34:$G$459,2,FALSE))) ->  | I38: 0
A39: 531 | C39: =IF(ISNA(IF(Summary!$B$5=3,IF(VLOOKUP(A39,Calendar!$A$34:$G$459,7,FALSE)="S", "", VLOOKUP(A39,Calendar!$A$34:$G$459,7,FALSE)),IF(VLOOKUP(A39,Calendar!$A$34:$G$459,4,FALSE)="S", "", VLOOKUP(A39,Calendar!$A$34:$G$459,4,FALSE)))),"",IF(Summary!$B$5=3,IF(VLOOKUP(A39,Calendar!$A$34:$G$459,7,FALSE)="S", "", VLOOKUP(A39,Calendar!$A$34:$G$459,7,FALSE)),IF(VLOOKUP(A39,Calendar!$A$34:$G$459,4,FALSE)="S", "", VLOOKUP(A39,Calendar!$A$34:$G$459,4,FALSE)))) ->  | D39: =IF(Summary!$B$5=3,IF(C39="","",VLOOKUP(A39,Calendar!$A$34:$G$459,5,FALSE)),IF(C39="","",VLOOKUP(A39,Calendar!$A$34:$G$459,2,FALSE))) ->  | I39: 0
D40: Total Minutes | E40: =SUM(E9:E39) -> 0 | F40: =SUM(F9:F39) -> 0 | G40: 0 | H40: 0 | I40: 0 | L40: =IF(SUM(E40:H40)>COUNTA(E9:E39)*390,"The sum total for all cost objectives exceeds the maximum anticipated value based upon the number of days worked. Confirm minutes claimed for each day.","") -> 
D41: Total Hours | E41: =E40/60 -> 0 | F41: =F40/60 -> 0 | G41: 0 | H41: 0 | I41: 0
C44: Notes
E56: Kansas State Department of Education | I56: Personnel Activity Report
E57: Fiscal Auditing | I57: Updated 9/20/18
E58: 785-296-4976
E59: https://www.ksde.org/Agency/Fiscal-and-Administrative-Services/Fiscal-Auditing
C62: The Kansas State Department of Education does not discriminate on the basis of race, color, national origin, sex, disability, or age in its programs and activities and provides equal access to the Boy Scouts and other designated youth groups. The following person has been designated to handle inquiries regarding the nondiscrimination policies: KSDE General Counsel, Office of General Counsel, KSDE, Landon State Office Building, 900 S.W. Jackson, Suite 102, Topeka, KS 66612, (785) 296-3204.

Sheet June
C3: Personnel Activity Report
C4: Regular School Year
C5: June
C6: =IF(Summary!$E$8<>"",Summary!$E$8," ") -> 
C7: =IF(Summary!$E$9<>"",Summary!$E$9," ") -> 
C8: Day | D8: Date | E8: Special Ed | F8: General Ed | G8: Other | H8: Other | I8: Totals | L8: =IF(OR(AND(F8="",COUNTA(F9:F39)>0),AND(G8="",COUNTA(G9:G39)>0),AND(H8="",COUNTA(H9:H39)>0)),"<<< You must identify the cost objective in the column heading.","") -> 
A9: 601 | C9: =IF(ISNA(IF(Summary!$B$5=3,IF(VLOOKUP(A9,Calendar!$A$64:$G$459,7,FALSE)="S", "", VLOOKUP(A9,Calendar!$A$64:$G$459,7,FALSE)),IF(VLOOKUP(A9,Calendar!$A$64:$G$459,4,FALSE)="S", "", VLOOKUP(A9,Calendar!$A$64:$G$459,4,FALSE)))),"",IF(Summary!$B$5=3,IF(VLOOKUP(A9,Calendar!$A$64:$G$459,7,FALSE)="S", "", VLOOKUP(A9,Calendar!$A$64:$G$459,7,FALSE)),IF(VLOOKUP(A9,Calendar!$A$64:$G$459,4,FALSE)="S", "", VLOOKUP(A9,Calendar!$A$64:$G$459,4,FALSE)))) -> M | D9: =IF(Summary!$B$5=3,IF(C9="","",VLOOKUP(A9,Calendar!$A$64:$G$459,5,FALSE)),IF(C9="","",VLOOKUP(A9,Calendar!$A$64:$G$459,2,FALSE))) -> 2020-06-01 | I9: =MIN(1440,SUM(E9:H9)) -> 0 | L9: =IF(I9>390, "<<< Day exceeds 390 minutes. Confirm reported time.","") -> 
A10: 602 | C10: =IF(ISNA(IF(Summary!$B$5=3,IF(VLOOKUP(A10,Calendar!$A$64:$G$459,7,FALSE)="S", "", VLOOKUP(A10,Calendar!$A$64:$G$459,7,FALSE)),IF(VLOOKUP(A10,Calendar!$A$64:$G$459,4,FALSE)="S", "", VLOOKUP(A10,Calendar!$A$64:$G$459,4,FALSE)))),"",IF(Summary!$B$5=3,IF(VLOOKUP(A10,Calendar!$A$64:$G$459,7,FALSE)="S", "", VLOOKUP(A10,Calendar!$A$64:$G$459,7,FALSE)),IF(VLOOKUP(A10,Calendar!$A$64:$G$459,4,FALSE)="S", "", VLOOKUP(A10,Calendar!$A$64:$G$459,4,FALSE)))) -> T | D10: =IF(Summary!$B$5=3,IF(C10="","",VLOOKUP(A10,Calendar!$A$64:$G$459,5,FALSE)),IF(C10="","",VLOOKUP(A10,Calendar!$A$64:$G$459,2,FALSE))) -> 2020-06-02 | I10: =MIN(1440,SUM(E10:H10)) -> 0 | L10: =IF(I10>390, "<<< Day exceeds 390 minutes. Confirm reported time.","") -> 
A11: 603 | C11: =IF(ISNA(IF(Summary!$B$5=3,IF(VLOOKUP(A11,Calendar!$A$64:$G$459,7,FALSE)="S", "", VLOOKUP(A11,Calendar!$A$64:$G$459,7,FALSE)),IF(VLOOKUP(A11,Calendar!$A$64:$G$459,4,FALSE)="S", "", VLOOKUP(A11,Calendar!$A$64:$G$459,4,FALSE)))),"",IF(Summary!$B$5=3,IF(VLOOKUP(A11,Calendar!$A$64:$G$459,7,FALSE)="S", "", VLOOKUP(A11,Calendar!$A$64:$G$459,7,FALSE)),IF(VLOOKUP(A11,Calendar!$A$64:$G$459,4,FALSE)="S", "", VLOOKUP(A11,Calendar!$A$64:$G$459,4,FALSE)))) -> W | D11: =IF(Summary!$B$5=3,IF(C11="","",VLOOKUP(A11,Calendar!$A$64:$G$459,5,FALSE)),IF(C11="","",VLOOKUP(A11,Calendar!$A$64:$G$459,2,FALSE))) -> 2020-06-03 | I11: 0
